Workbook

Sheet Match Input
B1: Match Input Sheet | E1: Club: | F1: Cavalier Rifle & Pistol Club - Cavalier Cowboys
B2: (Version 8.3) | C2: Score Method: | D2: R | E2: Date: | F2: Sunday Feb. 01, 2015
B3: Number of Shooters: | C3: =COUNT('Shooter Information'!A6:A151)-COUNTBLANK('Shooter Information'!B6:B80) -> 16 | D3: of | E3: =COUNT(A6:A151) -> 75
A5: Shooter # | B5: Shooter | C5: Class | E5: MDQ
A6: =ROW()-5 -> 1
A7: 2
A8: 3
A9: 4
A10: 5
A11: 6
A12: 7
A13: 8
A14: 9
A15: 10
A16: 11
A17: 12
A18: 13
A19: 14
A20: 15
A21: 16
A22: 17
A23: 18
A24: 19
A25: 20
A26: 21
A27: 22
A28: 23
A29: 24
A30: 25
A31: 26
A32: 27
A33: 28
A34: 29
A35: 30
A36: 31
A37: 32
A38: =ROW()-5 -> 33
A39: 34
A40: 35
A41: 36
A42: 37
A43: 38
A44: 39
A45: 40
A46: 41
A47: 42
A48: 43
A49: 44
A50: 45
A51: 46
A52: 47
A53: 48
A54: 49
A55: 50
A56: 51
A57: 52
A58: 53
A59: 54
A60: 55
A61: 56
A62: 57
A63: 58
A64: 59
A65: 60
A66: 61
A67: 62
A68: 63
A69: 64
A70: =ROW()-5 -> 65
A71: 66
A72: 67
A73: 68
A74: 69
A75: 70
A76: 71
A77: 72
A78: 73
A79: 74
A80: 75

Sheet Shooter Information (hidden)
B1: Shooter Information | D1: Club: | E1: ='Match Input'!F1 -> Cavalier Rifle & Pistol Club - Cavalier Cowboys
B2: Score Method: | C2: ='Match Input'!D2 -> R | D2: Date: | E2: ='Match Input'!F2 -> Sunday Feb. 01, 2015
D3: Number of Shooters: | E3: =COUNTA(B6:B80) -> 16 | F3: of | G3: =COUNT(A6:A151) -> 75
A5: Roster # | B5: Shooter | C5: Class | E5: Posse | F5: Shooting # | H5: MDQ
A6: =ROW()-5 -> 1 | B6: Striker | C6: WW | H6: ='Match Input'!E6 -> 0
A7: 2 | B7: Cody Maverick | C7: GF | H7: ='Match Input'!E7 -> 0
A8: 3 | B8: Potter County Kid | C8: WW | H8: ='Match Input'!E8 -> 0
A9: 4 | B9: Ricochet Kid | C9: W | H9: ='Match Input'!E9 -> 0
A10: 5 | B10: Flatboat Bob | C10: CBAR | H10: ='Match Input'!E10 -> 0
A11: 6 | B11: Hotshod | C11: W | H11: ='Match Input'!E11 -> 0
A12: 7 | B12: Prairie City Slim | C12: ES | H12: ='Match Input'!E12 -> 0
A13: 8 | B13: Regret Schofield | C13: 49er | H13: ='Match Input'!E13 -> 0
A14: 9 | B14: Tumble Weed Tink | C14: L49 | H14: ='Match Input'!E14 -> 0
A15: 10 | B15: One Eyed Jane | C15: LSS | H15: ='Match Input'!E15 -> 0
A16: 11 | B16: Stogie | C16: 49er | H16: ='Match Input'!E16 -> 0
A17: 12 | B17: Major BS Walker | C17: WW | H17: ='Match Input'!E17 -> 0
A18: 13 | B18: Sassy Shooting Sours | C18: S | H18: ='Match Input'!E18 -> 0
A19: 14 | B19: Lefty Spurmaker | C19: S | H19: ='Match Input'!E19 -> 0
A20: 15 | B20: Windhorse Rider | C20: GF | H20: ='Match Input'!E20 -> 0
A21: 16 | B21: Red Cavanaugh | C21: 49er | H21: ='Match Input'!E21 -> 0
A22: 17 | H22: ='Match Input'!E22 -> 0
A23: 18 | H23: ='Match Input'!E23 -> 0
A24: 19 | H24: ='Match Input'!E24 -> 0
A25: 20 | H25: ='Match Input'!E25 -> 0
A26: 21 | H26: ='Match Input'!E26 -> 0
A27: 22 | H27: ='Match Input'!E27 -> 0
A28: 23 | H28: ='Match Input'!E28 -> 0
A29: 24 | H29: ='Match Input'!E29 -> 0
A30: 25 | H30: ='Match Input'!E30 -> 0
A31: 26 | H31: ='Match Input'!E31 -> 0
A32: 27 | H32: ='Match Input'!E32 -> 0
A33: 28 | H33: ='Match Input'!E33 -> 0
A34: 29 | H34: ='Match Input'!E34 -> 0
A35: 30 | H35: ='Match Input'!E35 -> 0
A36: 31 | H36: ='Match Input'!E36 -> 0
A37: 32 | H37: ='Match Input'!E37 -> 0
A38: =ROW()-5 -> 33 | H38: ='Match Input'!E38 -> 0
A39: 34 | H39: ='Match Input'!E39 -> 0
A40: 35 | H40: ='Match Input'!E40 -> 0
A41: 36 | H41: ='Match Input'!E41 -> 0
A42: 37 | H42: ='Match Input'!E42 -> 0
A43: 38 | H43: ='Match Input'!E43 -> 0
A44: 39 | H44: ='Match Input'!E44 -> 0
A45: 40 | H45: ='Match Input'!E45 -> 0
A46: 41 | H46: ='Match Input'!E46 -> 0
A47: 42 | H47: ='Match Input'!E47 -> 0
A48: 43 | H48: ='Match Input'!E48 -> 0
A49: 44 | H49: ='Match Input'!E49 -> 0
A50: 45 | H50: ='Match Input'!E50 -> 0
A51: 46 | H51: ='Match Input'!E51 -> 0
A52: 47 | H52: ='Match Input'!E52 -> 0
A53: 48 | H53: ='Match Input'!E53 -> 0
A54: 49 | H54: ='Match Input'!E54 -> 0
A55: 50 | H55: ='Match Input'!E55 -> 0
A56: 51 | H56: ='Match Input'!E56 -> 0
A57: 52 | H57: ='Match Input'!E57 -> 0
A58: 53 | H58: ='Match Input'!E58 -> 0
A59: 54 | H59: ='Match Input'!E59 -> 0
A60: 55 | H60: ='Match Input'!E60 -> 0
A61: 56 | H61: ='Match Input'!E61 -> 0
A62: 57 | H62: ='Match Input'!E62 -> 0
A63: 58 | H63: ='Match Input'!E63 -> 0
A64: 59 | H64: ='Match Input'!E64 -> 0
A65: 60 | H65: ='Match Input'!E65 -> 0
A66: 61 | H66: ='Match Input'!E66 -> 0
A67: 62 | H67: ='Match Input'!E67 -> 0
A68: 63 | H68: ='Match Input'!E68 -> 0
A69: 64 | H69: ='Match Input'!E69 -> 0
A70: =ROW()-5 -> 65 | H70: ='Match Input'!E70 -> 0
A71: 66 | H71: ='Match Input'!E71 -> 0
A72: 67 | H72: ='Match Input'!E72 -> 0
A73: 68 | H73: ='Match Input'!E73 -> 0
A74: 69 | H74: ='Match Input'!E74 -> 0
A75: 70 | H75: ='Match Input'!E75 -> 0
A76: 71 | H76: ='Match Input'!E76 -> 0
A77: 72 | H77: ='Match Input'!E77 -> 0
A78: 73 | H78: ='Match Input'!E78 -> 0
A79: 74 | H79: ='Match Input'!E79 -> 0
A80: 75 | H80: ='Match Input'!E80 -> 0

Sheet Stage 1
B1: Stage Input Sheet - Stage 1
A3: Shooter # | B3: Shooter | C3: Class | D3: Misses | E3: Raw Time | F3: Bonus | G3: 10 Sec | H3: 30 Sec | I3: DNF | J3: SDQ | K3: Total | L3: Rank | M3: Penalties | O3: # Penalties
A4: =ROW()-3 -> 1 | B4: ='Shooter Information'!B6 -> Striker | C4: ='Shooter Information'!C6 -> WW | E4: 26.11 | K4: =MIN(IF('Shooter Information'!H6=1,999.99,(D4*5)+E4-F4+(G4*10)+(H4*30)+(I4*999.99)+(J4*999.99)),999.99) -> 26.11 | L4: =IF(K4>0,SUMPRODUCT(--(K4>$K$4:$K$78),--($K$4:$K$78>0))+1,0) -> 8 | M4: =(IF('Shooter Information'!H6=1,"MDQ",IF(J4=1,"SDQ",IF(I4=1,"DNF",SUM(D4+G4+H4+I4+J4))))) -> 0 | O4: =SUM(D4+G4+H4+I4+J4) -> 0
A5: =ROW()-3 -> 2 | B5: ='Shooter Information'!B7 -> Cody Maverick | C5: ='Shooter Information'!C7 -> GF | D5: 1 | E5: 24.34 | K5: =MIN(IF('Shooter Information'!H7=1,999.99,(D5*5)+E5-F5+(G5*10)+(H5*30)+(I5*999.99)+(J5*999.99)),999.99) -> 29.34 | L5: =IF(K5>0,SUMPRODUCT(--(K5>$K$4:$K$78),--($K$4:$K$78>0))+1,0) -> 13 | M5: =(IF('Shooter Information'!H7=1,"MDQ",IF(J5=1,"SDQ",IF(I5=1,"DNF",SUM(D5+G5+H5+I5+J5))))) -> 1 | O5: =SUM(D5+G5+H5+I5+J5) -> 1
A6: 3 | B6: ='Shooter Information'!B8 -> Potter County Kid | C6: ='Shooter Information'!C8 -> WW | E6: 26.13 | K6: =MIN(IF('Shooter Information'!H8=1,999.99,(D6*5)+E6-F6+(G6*10)+(H6*30)+(I6*999.99)+(J6*999.99)),999.99) -> 26.13 | L6: 9 | M6: =(IF('Shooter Information'!H8=1,"MDQ",IF(J6=1,"SDQ",IF(I6=1,"DNF",SUM(D6+G6+H6+I6+J6))))) -> 0 | O6: 0
A7: 4 | B7: ='Shooter Information'!B9 -> Ricochet Kid | C7: ='Shooter Information'!C9 -> W | E7: 29.12 | K7: =MIN(IF('Shooter Information'!H9=1,999.99,(D7*5)+E7-F7+(G7*10)+(H7*30)+(I7*999.99)+(J7*999.99)),999.99) -> 29.12 | L7: 12 | M7: =(IF('Shooter Information'!H9=1,"MDQ",IF(J7=1,"SDQ",IF(I7=1,"DNF",SUM(D7+G7+H7+I7+J7))))) -> 0 | O7: 0
A8: 5 | B8: ='Shooter Information'!B10 -> Flatboat Bob | C8: ='Shooter Information'!C10 -> CBAR | E8: 23.48 | K8: =MIN(IF('Shooter Information'!H10=1,999.99,(D8*5)+E8-F8+(G8*10)+(H8*30)+(I8*999.99)+(J8*999.99)),999.99) -> 23.48 | L8: 4 | M8: =(IF('Shooter Information'!H10=1,"MDQ",IF(J8=1,"SDQ",IF(I8=1,"DNF",SUM(D8+G8+H8+I8+J8))))) -> 0 | O8: 0
A9: 6 | B9: ='Shooter Information'!B11 -> Hotshod | C9: ='Shooter Information'!C11 -> W | E9: 20.73 | K9: =MIN(IF('Shooter Information'!H11=1,999.99,(D9*5)+E9-F9+(G9*10)+(H9*30)+(I9*999.99)+(J9*999.99)),999.99) -> 20.73 | L9: 3 | M9: =(IF('Shooter Information'!H11=1,"MDQ",IF(J9=1,"SDQ",IF(I9=1,"DNF",SUM(D9+G9+H9+I9+J9))))) -> 0 | O9: 0
A10: 7 | B10: ='Shooter Information'!B12 -> Prairie City Slim | C10: ='Shooter Information'!C12 -> ES | E10: 27.33 | K10: =MIN(IF('Shooter Information'!H12=1,999.99,(D10*5)+E10-F10+(G10*10)+(H10*30)+(I10*999.99)+(J10*999.99)),999.99) -> 27.33 | L10: 10 | M10: =(IF('Shooter Information'!H12=1,"MDQ",IF(J10=1,"SDQ",IF(I10=1,"DNF",SUM(D10+G10+H10+I10+J10))))) -> 0 | O10: 0
A11: 8 | B11: ='Shooter Information'!B13 -> Regret Schofield | C11: ='Shooter Information'!C13 -> 49er | E11: 37.55 | K11: =MIN(IF('Shooter Information'!H13=1,999.99,(D11*5)+E11-F11+(G11*10)+(H11*30)+(I11*999.99)+(J11*999.99)),999.99) -> 37.55 | L11: 14 | M11: =(IF('Shooter Information'!H13=1,"MDQ",IF(J11=1,"SDQ",IF(I11=1,"DNF",SUM(D11+G11+H11+I11+J11))))) -> 0 | O11: 0
A12: 9 | B12: ='Shooter Information'!B14 -> Tumble Weed Tink | C12: ='Shooter Information'!C14 -> L49 | E12: 54.49 | G12: 1 | K12: =MIN(IF('Shooter Information'!H14=1,999.99,(D12*5)+E12-F12+(G12*10)+(H12*30)+(I12*999.99)+(J12*999.99)),999.99) -> 64.49 | L12: 16 | M12: =(IF('Shooter Information'!H14=1,"MDQ",IF(J12=1,"SDQ",IF(I12=1,"DNF",SUM(D12+G12+H12+I12+J12))))) -> 1 | O12: 1
A13: 10 | B13: ='Shooter Information'!B15 -> One Eyed Jane | C13: ='Shooter Information'!C15 -> LSS | E13: 54.65 | K13: =MIN(IF('Shooter Information'!H15=1,999.99,(D13*5)+E13-F13+(G13*10)+(H13*30)+(I13*999.99)+(J13*999.99)),999.99) -> 54.65 | L13: 15 | M13: =(IF('Shooter Information'!H15=1,"MDQ",IF(J13=1,"SDQ",IF(I13=1,"DNF",SUM(D13+G13+H13+I13+J13))))) -> 0 | O13: 0
A14: 11 | B14: ='Shooter Information'!B16 -> Stogie | C14: ='Shooter Information'!C16 -> 49er | E14: 20.42 | K14: =MIN(IF('Shooter Information'!H16=1,999.99,(D14*5)+E14-F14+(G14*10)+(H14*30)+(I14*999.99)+(J14*999.99)),999.99) -> 20.42 | L14: 2 | M14: =(IF('Shooter Information'!H16=1,"MDQ",IF(J14=1,"SDQ",IF(I14=1,"DNF",SUM(D14+G14+H14+I14+J14))))) -> 0 | O14: 0
A15: 12 | B15: ='Shooter Information'!B17 -> Major BS Walker | C15: ='Shooter Information'!C17 -> WW | E15: 24.72 | K15: =MIN(IF('Shooter Information'!H17=1,999.99,(D15*5)+E15-F15+(G15*10)+(H15*30)+(I15*999.99)+(J15*999.99)),999.99) -> 24.72 | L15: 7 | M15: =(IF('Shooter Information'!H17=1,"MDQ",IF(J15=1,"SDQ",IF(I15=1,"DNF",SUM(D15+G15+H15+I15+J15))))) -> 0 | O15: 0
A16: 13 | B16: ='Shooter Information'!B18 -> Sassy Shooting Sours | C16: ='Shooter Information'!C18 -> S | E16: 24.43 | K16: =MIN(IF('Shooter Information'!H18=1,999.99,(D16*5)+E16-F16+(G16*10)+(H16*30)+(I16*999.99)+(J16*999.99)),999.99) -> 24.43 | L16: 5 | M16: =(IF('Shooter Information'!H18=1,"MDQ",IF(J16=1,"SDQ",IF(I16=1,"DNF",SUM(D16+G16+H16+I16+J16))))) -> 0 | O16: 0
A17: 14 | B17: ='Shooter Information'!B19 -> Lefty Spurmaker | C17: ='Shooter Information'!C19 -> S | D17: 1 | E17: 19.5 | K17: =MIN(IF('Shooter Information'!H19=1,999.99,(D17*5)+E17-F17+(G17*10)+(H17*30)+(I17*999.99)+(J17*999.99)),999.99) -> 24.5 | L17: 6 | M17: =(IF('Shooter Information'!H19=1,"MDQ",IF(J17=1,"SDQ",IF(I17=1,"DNF",SUM(D17+G17+H17+I17+J17))))) -> 1 | O17: 1
A18: 15 | B18: ='Shooter Information'!B20 -> Windhorse Rider | C18: ='Shooter Information'!C20 -> GF | E18: 27.52 | K18: =MIN(IF('Shooter Information'!H20=1,999.99,(D18*5)+E18-F18+(G18*10)+(H18*30)+(I18*999.99)+(J18*999.99)),999.99) -> 27.52 | L18: 11 | M18: =(IF('Shooter Information'!H20=1,"MDQ",IF(J18=1,"SDQ",IF(I18=1,"DNF",SUM(D18+G18+H18+I18+J18))))) -> 0 | O18: 0
A19: 16 | B19: ='Shooter Information'!B21 -> Red Cavanaugh | C19: ='Shooter Information'!C21 -> 49er | E19: 19.42 | K19: =MIN(IF('Shooter Information'!H21=1,999.99,(D19*5)+E19-F19+(G19*10)+(H19*30)+(I19*999.99)+(J19*999.99)),999.99) -> 19.42 | L19: 1 | M19: =(IF('Shooter Information'!H21=1,"MDQ",IF(J19=1,"SDQ",IF(I19=1,"DNF",SUM(D19+G19+H19+I19+J19))))) -> 0 | O19: 0
A20: 17 | B20: ='Shooter Information'!B22 -> 0 | C20: ='Shooter Information'!C22 -> 0 | K20: =MIN(IF('Shooter Information'!H22=1,999.99,(D20*5)+E20-F20+(G20*10)+(H20*30)+(I20*999.99)+(J20*999.99)),999.99) -> 0 | L20: 0 | M20: =(IF('Shooter Information'!H22=1,"MDQ",IF(J20=1,"SDQ",IF(I20=1,"DNF",SUM(D20+G20+H20+I20+J20))))) -> 0 | O20: 0
A21: 18 | B21: ='Shooter Information'!B23 -> 0 | C21: ='Shooter Information'!C23 -> 0 | K21: =MIN(IF('Shooter Information'!H23=1,999.99,(D21*5)+E21-F21+(G21*10)+(H21*30)+(I21*999.99)+(J21*999.99)),999.99) -> 0 | L21: 0 | M21: =(IF('Shooter Information'!H23=1,"MDQ",IF(J21=1,"SDQ",IF(I21=1,"DNF",SUM(D21+G21+H21+I21+J21))))) -> 0 | O21: 0
A22: 19 | B22: ='Shooter Information'!B24 -> 0 | C22: ='Shooter Information'!C24 -> 0 | K22: =MIN(IF('Shooter Information'!H24=1,999.99,(D22*5)+E22-F22+(G22*10)+(H22*30)+(I22*999.99)+(J22*999.99)),999.99) -> 0 | L22: 0 | M22: =(IF('Shooter Information'!H24=1,"MDQ",IF(J22=1,"SDQ",IF(I22=1,"DNF",SUM(D22+G22+H22+I22+J22))))) -> 0 | O22: 0
A23: 20 | B23: ='Shooter Information'!B25 -> 0 | C23: ='Shooter Information'!C25 -> 0 | K23: =MIN(IF('Shooter Information'!H25=1,999.99,(D23*5)+E23-F23+(G23*10)+(H23*30)+(I23*999.99)+(J23*999.99)),999.99) -> 0 | L23: 0 | M23: =(IF('Shooter Information'!H25=1,"MDQ",IF(J23=1,"SDQ",IF(I23=1,"DNF",SUM(D23+G23+H23+I23+J23))))) -> 0 | O23: 0
A24: 21 | B24: ='Shooter Information'!B26 -> 0 | C24: ='Shooter Information'!C26 -> 0 | K24: =MIN(IF('Shooter Information'!H26=1,999.99,(D24*5)+E24-F24+(G24*10)+(H24*30)+(I24*999.99)+(J24*999.99)),999.99) -> 0 | L24: 0 | M24: =(IF('Shooter Information'!H26=1,"MDQ",IF(J24=1,"SDQ",IF(I24=1,"DNF",SUM(D24+G24+H24+I24+J24))))) -> 0 | O24: 0
A25: 22 | B25: ='Shooter Information'!B27 -> 0 | C25: ='Shooter Information'!C27 -> 0 | K25: =MIN(IF('Shooter Information'!H27=1,999.99,(D25*5)+E25-F25+(G25*10)+(H25*30)+(I25*999.99)+(J25*999.99)),999.99) -> 0 | L25: 0 | M25: =(IF('Shooter Information'!H27=1,"MDQ",IF(J25=1,"SDQ",IF(I25=1,"DNF",SUM(D25+G25+H25+I25+J25))))) -> 0 | O25: 0
A26: 23 | B26: ='Shooter Information'!B28 -> 0 | C26: ='Shooter Information'!C28 -> 0 | K26: =MIN(IF('Shooter Information'!H28=1,999.99,(D26*5)+E26-F26+(G26*10)+(H26*30)+(I26*999.99)+(J26*999.99)),999.99) -> 0 | L26: 0 | M26: =(IF('Shooter Information'!H28=1,"MDQ",IF(J26=1,"SDQ",IF(I26=1,"DNF",SUM(D26+G26+H26+I26+J26))))) -> 0 | O26: 0
A27: 24 | B27: ='Shooter Information'!B29 -> 0 | C27: ='Shooter Information'!C29 -> 0 | K27: =MIN(IF('Shooter Information'!H29=1,999.99,(D27*5)+E27-F27+(G27*10)+(H27*30)+(I27*999.99)+(J27*999.99)),999.99) -> 0 | L27: 0 | M27: =(IF('Shooter Information'!H29=1,"MDQ",IF(J27=1,"SDQ",IF(I27=1,"DNF",SUM(D27+G27+H27+I27+J27))))) -> 0 | O27: 0
A28: 25 | B28: ='Shooter Information'!B30 -> 0 | C28: ='Shooter Information'!C30 -> 0 | K28: =MIN(IF('Shooter Information'!H30=1,999.99,(D28*5)+E28-F28+(G28*10)+(H28*30)+(I28*999.99)+(J28*999.99)),999.99) -> 0 | L28: 0 | M28: =(IF('Shooter Information'!H30=1,"MDQ",IF(J28=1,"SDQ",IF(I28=1,"DNF",SUM(D28+G28+H28+I28+J28))))) -> 0 | O28: 0
A29: 26 | B29: ='Shooter Information'!B31 -> 0 | C29: ='Shooter Information'!C31 -> 0 | K29: =MIN(IF('Shooter Information'!H31=1,999.99,(D29*5)+E29-F29+(G29*10)+(H29*30)+(I29*999.99)+(J29*999.99)),999.99) -> 0 | L29: 0 | M29: =(IF('Shooter Information'!H31=1,"MDQ",IF(J29=1,"SDQ",IF(I29=1,"DNF",SUM(D29+G29+H29+I29+J29))))) -> 0 | O29: 0
A30: 27 | B30: ='Shooter Information'!B32 -> 0 | C30: ='Shooter Information'!C32 -> 0 | K30: =MIN(IF('Shooter Information'!H32=1,999.99,(D30*5)+E30-F30+(G30*10)+(H30*30)+(I30*999.99)+(J30*999.99)),999.99) -> 0 | L30: 0 | M30: =(IF('Shooter Information'!H32=1,"MDQ",IF(J30=1,"SDQ",IF(I30=1,"DNF",SUM(D30+G30+H30+I30+J30))))) -> 0 | O30: 0
A31: 28 | B31: ='Shooter Information'!B33 -> 0 | C31: ='Shooter Information'!C33 -> 0 | K31: =MIN(IF('Shooter Information'!H33=1,999.99,(D31*5)+E31-F31+(G31*10)+(H31*30)+(I31*999.99)+(J31*999.99)),999.99) -> 0 | L31: 0 | M31: =(IF('Shooter Information'!H33=1,"MDQ",IF(J31=1,"SDQ",IF(I31=1,"DNF",SUM(D31+G31+H31+I31+J31))))) -> 0 | O31: 0
A32: 29 | B32: ='Shooter Information'!B34 -> 0 | C32: ='Shooter Information'!C34 -> 0 | K32: =MIN(IF('Shooter Information'!H34=1,999.99,(D32*5)+E32-F32+(G32*10)+(H32*30)+(I32*999.99)+(J32*999.99)),999.99) -> 0 | L32: 0 | M32: =(IF('Shooter Information'!H34=1,"MDQ",IF(J32=1,"SDQ",IF(I32=1,"DNF",SUM(D32+G32+H32+I32+J32))))) -> 0 | O32: 0
A33: 30 | B33: ='Shooter Information'!B35 -> 0 | C33: ='Shooter Information'!C35 -> 0 | K33: =MIN(IF('Shooter Information'!H35=1,999.99,(D33*5)+E33-F33+(G33*10)+(H33*30)+(I33*999.99)+(J33*999.99)),999.99) -> 0 | L33: 0 | M33: =(IF('Shooter Information'!H35=1,"MDQ",IF(J33=1,"SDQ",IF(I33=1,"DNF",SUM(D33+G33+H33+I33+J33))))) -> 0 | O33: 0
A34: 31 | B34: ='Shooter Information'!B36 -> 0 | C34: ='Shooter Information'!C36 -> 0 | K34: =MIN(IF('Shooter Information'!H36=1,999.99,(D34*5)+E34-F34+(G34*10)+(H34*30)+(I34*999.99)+(J34*999.99)),999.99) -> 0 | L34: 0 | M34: =(IF('Shooter Information'!H36=1,"MDQ",IF(J34=1,"SDQ",IF(I34=1,"DNF",SUM(D34+G34+H34+I34+J34))))) -> 0 | O34: 0
A35: 32 | B35: ='Shooter Information'!B37 -> 0 | C35: ='Shooter Information'!C37 -> 0 | K35: =MIN(IF('Shooter Information'!H37=1,999.99,(D35*5)+E35-F35+(G35*10)+(H35*30)+(I35*999.99)+(J35*999.99)),999.99) -> 0 | L35: 0 | M35: =(IF('Shooter Information'!H37=1,"MDQ",IF(J35=1,"SDQ",IF(I35=1,"DNF",SUM(D35+G35+H35+I35+J35))))) -> 0 | O35: 0
A36: 33 | B36: ='Shooter Information'!B38 -> 0 | C36: ='Shooter Information'!C38 -> 0 | K36: =MIN(IF('Shooter Information'!H38=1,999.99,(D36*5)+E36-F36+(G36*10)+(H36*30)+(I36*999.99)+(J36*999.99)),999.99) -> 0 | L36: 0 | M36: =(IF('Shooter Information'!H38=1,"MDQ",IF(J36=1,"SDQ",IF(I36=1,"DNF",SUM(D36+G36+H36+I36+J36))))) -> 0 | O36: 0
A37: 34 | B37: ='Shooter Information'!B39 -> 0 | C37: ='Shooter Information'!C39 -> 0 | K37: =MIN(IF('Shooter Information'!H39=1,999.99,(D37*5)+E37-F37+(G37*10)+(H37*30)+(I37*999.99)+(J37*999.99)),999.99) -> 0 | L37: 0 | M37: =(IF('Shooter Information'!H39=1,"MDQ",IF(J37=1,"SDQ",IF(I37=1,"DNF",SUM(D37+G37+H37+I37+J37))))) -> 0 | O37: 0
A38: 35 | B38: ='Shooter Information'!B40 -> 0 | C38: ='Shooter Information'!C40 -> 0 | K38: =MIN(IF('Shooter Information'!H40=1,999.99,(D38*5)+E38-F38+(G38*10)+(H38*30)+(I38*999.99)+(J38*999.99)),999.99) -> 0 | L38: 0 | M38: =(IF('Shooter Information'!H40=1,"MDQ",IF(J38=1,"SDQ",IF(I38=1,"DNF",SUM(D38+G38+H38+I38+J38))))) -> 0 | O38: 0
A39: 36 | B39: ='Shooter Information'!B41 -> 0 | C39: ='Shooter Information'!C41 -> 0 | K39: =MIN(IF('Shooter Information'!H41=1,999.99,(D39*5)+E39-F39+(G39*10)+(H39*30)+(I39*999.99)+(J39*999.99)),999.99) -> 0 | L39: 0 | M39: =(IF('Shooter Information'!H41=1,"MDQ",IF(J39=1,"SDQ",IF(I39=1,"DNF",SUM(D39+G39+H39+I39+J39))))) -> 0 | O39: 0
A40: 37 | B40: ='Shooter Information'!B42 -> 0 | C40: ='Shooter Information'!C42 -> 0 | K40: =MIN(IF('Shooter Information'!H42=1,999.99,(D40*5)+E40-F40+(G40*10)+(H40*30)+(I40*999.99)+(J40*999.99)),999.99) -> 0 | L40: 0 | M40: =(IF('Shooter Information'!H42=1,"MDQ",IF(J40=1,"SDQ",IF(I40=1,"DNF",SUM(D40+G40+H40+I40+J40))))) -> 0 | O40: 0
A41: 38 | B41: ='Shooter Information'!B43 -> 0 | C41: ='Shooter Information'!C43 -> 0 | K41: =MIN(IF('Shooter Information'!H43=1,999.99,(D41*5)+E41-F41+(G41*10)+(H41*30)+(I41*999.99)+(J41*999.99)),999.99) -> 0 | L41: 0 | M41: =(IF('Shooter Information'!H43=1,"MDQ",IF(J41=1,"SDQ",IF(I41=1,"DNF",SUM(D41+G41+H41+I41+J41))))) -> 0 | O41: 0
A42: 39 | B42: ='Shooter Information'!B44 -> 0 | C42: ='Shooter Information'!C44 -> 0 | K42: =MIN(IF('Shooter Information'!H44=1,999.99,(D42*5)+E42-F42+(G42*10)+(H42*30)+(I42*999.99)+(J42*999.99)),999.99) -> 0 | L42: 0 | M42: =(IF('Shooter Information'!H44=1,"MDQ",IF(J42=1,"SDQ",IF(I42=1,"DNF",SUM(D42+G42+H42+I42+J42))))) -> 0 | O42: 0
A43: 40 | B43: ='Shooter Information'!B45 -> 0 | C43: ='Shooter Information'!C45 -> 0 | K43: =MIN(IF('Shooter Information'!H45=1,999.99,(D43*5)+E43-F43+(G43*10)+(H43*30)+(I43*999.99)+(J43*999.99)),999.99) -> 0 | L43: 0 | M43: =(IF('Shooter Information'!H45=1,"MDQ",IF(J43=1,"SDQ",IF(I43=1,"DNF",SUM(D43+G43+H43+I43+J43))))) -> 0 | O43: 0
A44: 41 | B44: ='Shooter Information'!B46 -> 0 | C44: ='Shooter Information'!C46 -> 0 | K44: =MIN(IF('Shooter Information'!H46=1,999.99,(D44*5)+E44-F44+(G44*10)+(H44*30)+(I44*999.99)+(J44*999.99)),999.99) -> 0 | L44: 0 | M44: =(IF('Shooter Information'!H46=1,"MDQ",IF(J44=1,"SDQ",IF(I44=1,"DNF",SUM(D44+G44+H44+I44+J44))))) -> 0 | O44: 0
A45: 42 | B45: ='Shooter Information'!B47 -> 0 | C45: ='Shooter Information'!C47 -> 0 | K45: =MIN(IF('Shooter Information'!H47=1,999.99,(D45*5)+E45-F45+(G45*10)+(H45*30)+(I45*999.99)+(J45*999.99)),999.99) -> 0 | L45: 0 | M45: =(IF('Shooter Information'!H47=1,"MDQ",IF(J45=1,"SDQ",IF(I45=1,"DNF",SUM(D45+G45+H45+I45+J45))))) -> 0 | O45: 0
A46: 43 | B46: ='Shooter Information'!B48 -> 0 | C46: ='Shooter Information'!C48 -> 0 | K46: =MIN(IF('Shooter Information'!H48=1,999.99,(D46*5)+E46-F46+(G46*10)+(H46*30)+(I46*999.99)+(J46*999.99)),999.99) -> 0 | L46: 0 | M46: =(IF('Shooter Information'!H48=1,"MDQ",IF(J46=1,"SDQ",IF(I46=1,"DNF",SUM(D46+G46+H46+I46+J46))))) -> 0 | O46: 0
A47: 44 | B47: ='Shooter Information'!B49 -> 0 | C47: ='Shooter Information'!C49 -> 0 | K47: =MIN(IF('Shooter Information'!H49=1,999.99,(D47*5)+E47-F47+(G47*10)+(H47*30)+(I47*999.99)+(J47*999.99)),999.99) -> 0 | L47: 0 | M47: =(IF('Shooter Information'!H49=1,"MDQ",IF(J47=1,"SDQ",IF(I47=1,"DNF",SUM(D47+G47+H47+I47+J47))))) -> 0 | O47: 0
A48: 45 | B48: ='Shooter Information'!B50 -> 0 | C48: ='Shooter Information'!C50 -> 0 | K48: =MIN(IF('Shooter Information'!H50=1,999.99,(D48*5)+E48-F48+(G48*10)+(H48*30)+(I48*999.99)+(J48*999.99)),999.99) -> 0 | L48: 0 | M48: =(IF('Shooter Information'!H50=1,"MDQ",IF(J48=1,"SDQ",IF(I48=1,"DNF",SUM(D48+G48+H48+I48+J48))))) -> 0 | O48: 0
A49: 46 | B49: ='Shooter Information'!B51 -> 0 | C49: ='Shooter Information'!C51 -> 0 | K49: =MIN(IF('Shooter Information'!H51=1,999.99,(D49*5)+E49-F49+(G49*10)+(H49*30)+(I49*999.99)+(J49*999.99)),999.99) -> 0 | L49: 0 | M49: =(IF('Shooter Information'!H51=1,"MDQ",IF(J49=1,"SDQ",IF(I49=1,"DNF",SUM(D49+G49+H49+I49+J49))))) -> 0 | O49: 0
A50: 47 | B50: ='Shooter Information'!B52 -> 0 | C50: ='Shooter Information'!C52 -> 0 | K50: =MIN(IF('Shooter Information'!H52=1,999.99,(D50*5)+E50-F50+(G50*10)+(H50*30)+(I50*999.99)+(J50*999.99)),999.99) -> 0 | L50: 0 | M50: =(IF('Shooter Information'!H52=1,"MDQ",IF(J50=1,"SDQ",IF(I50=1,"DNF",SUM(D50+G50+H50+I50+J50))))) -> 0 | O50: 0
A51: 48 | B51: ='Shooter Information'!B53 -> 0 | C51: ='Shooter Information'!C53 -> 0 | K51: =MIN(IF('Shooter Information'!H53=1,999.99,(D51*5)+E51-F51+(G51*10)+(H51*30)+(I51*999.99)+(J51*999.99)),999.99) -> 0 | L51: 0 | M51: =(IF('Shooter Information'!H53=1,"MDQ",IF(J51=1,"SDQ",IF(I51=1,"DNF",SUM(D51+G51+H51+I51+J51))))) -> 0 | O51: 0
A52: 49 | B52: ='Shooter Information'!B54 -> 0 | C52: ='Shooter Information'!C54 -> 0 | K52: =MIN(IF('Shooter Information'!H54=1,999.99,(D52*5)+E52-F52+(G52*10)+(H52*30)+(I52*999.99)+(J52*999.99)),999.99) -> 0 | L52: 0 | M52: =(IF('Shooter Information'!H54=1,"MDQ",IF(J52=1,"SDQ",IF(I52=1,"DNF",SUM(D52+G52+H52+I52+J52))))) -> 0 | O52: 0
A53: 50 | B53: ='Shooter Information'!B55 -> 0 | C53: ='Shooter Information'!C55 -> 0 | K53: =MIN(IF('Shooter Information'!H55=1,999.99,(D53*5)+E53-F53+(G53*10)+(H53*30)+(I53*999.99)+(J53*999.99)),999.99) -> 0 | L53: 0 | M53: =(IF('Shooter Information'!H55=1,"MDQ",IF(J53=1,"SDQ",IF(I53=1,"DNF",SUM(D53+G53+H53+I53+J53))))) -> 0 | O53: 0
A54: 51 | B54: ='Shooter Information'!B56 -> 0 | C54: ='Shooter Information'!C56 -> 0 | K54: =MIN(IF('Shooter Information'!H56=1,999.99,(D54*5)+E54-F54+(G54*10)+(H54*30)+(I54*999.99)+(J54*999.99)),999.99) -> 0 | L54: 0 | M54: =(IF('Shooter Information'!H56=1,"MDQ",IF(J54=1,"SDQ",IF(I54=1,"DNF",SUM(D54+G54+H54+I54+J54))))) -> 0 | O54: 0
A55: 52 | B55: ='Shooter Information'!B57 -> 0 | C55: ='Shooter Information'!C57 -> 0 | K55: =MIN(IF('Shooter Information'!H57=1,999.99,(D55*5)+E55-F55+(G55*10)+(H55*30)+(I55*999.99)+(J55*999.99)),999.99) -> 0 | L55: 0 | M55: =(IF('Shooter Information'!H57=1,"MDQ",IF(J55=1,"SDQ",IF(I55=1,"DNF",SUM(D55+G55+H55+I55+J55))))) -> 0 | O55: 0
A56: 53 | B56: ='Shooter Information'!B58 -> 0 | C56: ='Shooter Information'!C58 -> 0 | K56: =MIN(IF('Shooter Information'!H58=1,999.99,(D56*5)+E56-F56+(G56*10)+(H56*30)+(I56*999.99)+(J56*999.99)),999.99) -> 0 | L56: 0 | M56: =(IF('Shooter Information'!H58=1,"MDQ",IF(J56=1,"SDQ",IF(I56=1,"DNF",SUM(D56+G56+H56+I56+J56))))) -> 0 | O56: 0
A57: 54 | B57: ='Shooter Information'!B59 -> 0 | C57: ='Shooter Information'!C59 -> 0 | K57: =MIN(IF('Shooter Information'!H59=1,999.99,(D57*5)+E57-F57+(G57*10)+(H57*30)+(I57*999.99)+(J57*999.99)),999.99) -> 0 | L57: 0 | M57: =(IF('Shooter Information'!H59=1,"MDQ",IF(J57=1,"SDQ",IF(I57=1,"DNF",SUM(D57+G57+H57+I57+J57))))) -> 0 | O57: 0
A58: 55 | B58: ='Shooter Information'!B60 -> 0 | C58: ='Shooter Information'!C60 -> 0 | K58: =MIN(IF('Shooter Information'!H60=1,999.99,(D58*5)+E58-F58+(G58*10)+(H58*30)+(I58*999.99)+(J58*999.99)),999.99) -> 0 | L58: 0 | M58: =(IF('Shooter Information'!H60=1,"MDQ",IF(J58=1,"SDQ",IF(I58=1,"DNF",SUM(D58+G58+H58+I58+J58))))) -> 0 | O58: 0
A59: 56 | B59: ='Shooter Information'!B61 -> 0 | C59: ='Shooter Information'!C61 -> 0 | K59: =MIN(IF('Shooter Information'!H61=1,999.99,(D59*5)+E59-F59+(G59*10)+(H59*30)+(I59*999.99)+(J59*999.99)),999.99) -> 0 | L59: 0 | M59: =(IF('Shooter Information'!H61=1,"MDQ",IF(J59=1,"SDQ",IF(I59=1,"DNF",SUM(D59+G59+H59+I59+J59))))) -> 0 | O59: 0
A60: 57 | B60: ='Shooter Information'!B62 -> 0 | C60: ='Shooter Information'!C62 -> 0 | K60: =MIN(IF('Shooter Information'!H62=1,999.99,(D60*5)+E60-F60+(G60*10)+(H60*30)+(I60*999.99)+(J60*999.99)),999.99) -> 0 | L60: 0 | M60: =(IF('Shooter Information'!H62=1,"MDQ",IF(J60=1,"SDQ",IF(I60=1,"DNF",SUM(D60+G60+H60+I60+J60))))) -> 0 | O60: 0
A61: 58 | B61: ='Shooter Information'!B63 -> 0 | C61: ='Shooter Information'!C63 -> 0 | K61: =MIN(IF('Shooter Information'!H63=1,999.99,(D61*5)+E61-F61+(G61*10)+(H61*30)+(I61*999.99)+(J61*999.99)),999.99) -> 0 | L61: 0 | M61: =(IF('Shooter Information'!H63=1,"MDQ",IF(J61=1,"SDQ",IF(I61=1,"DNF",SUM(D61+G61+H61+I61+J61))))) -> 0 | O61: 0
A62: 59 | B62: ='Shooter Information'!B64 -> 0 | C62: ='Shooter Information'!C64 -> 0 | K62: =MIN(IF('Shooter Information'!H64=1,999.99,(D62*5)+E62-F62+(G62*10)+(H62*30)+(I62*999.99)+(J62*999.99)),999.99) -> 0 | L62: 0 | M62: =(IF('Shooter Information'!H64=1,"MDQ",IF(J62=1,"SDQ",IF(I62=1,"DNF",SUM(D62+G62+H62+I62+J62))))) -> 0 | O62: 0
A63: 60 | B63: ='Shooter Information'!B65 -> 0 | C63: ='Shooter Information'!C65 -> 0 | K63: =MIN(IF('Shooter Information'!H65=1,999.99,(D63*5)+E63-F63+(G63*10)+(H63*30)+(I63*999.99)+(J63*999.99)),999.99) -> 0 | L63: 0 | M63: =(IF('Shooter Information'!H65=1,"MDQ",IF(J63=1,"SDQ",IF(I63=1,"DNF",SUM(D63+G63+H63+I63+J63))))) -> 0 | O63: 0
A64: 61 | B64: ='Shooter Information'!B66 -> 0 | C64: ='Shooter Information'!C66 -> 0 | K64: =MIN(IF('Shooter Information'!H66=1,999.99,(D64*5)+E64-F64+(G64*10)+(H64*30)+(I64*999.99)+(J64*999.99)),999.99) -> 0 | L64: 0 | M64: =(IF('Shooter Information'!H66=1,"MDQ",IF(J64=1,"SDQ",IF(I64=1,"DNF",SUM(D64+G64+H64+I64+J64))))) -> 0 | O64: 0
A65: 62 | B65: ='Shooter Information'!B67 -> 0 | C65: ='Shooter Information'!C67 -> 0 | K65: =MIN(IF('Shooter Information'!H67=1,999.99,(D65*5)+E65-F65+(G65*10)+(H65*30)+(I65*999.99)+(J65*999.99)),999.99) -> 0 | L65: 0 | M65: =(IF('Shooter Information'!H67=1,"MDQ",IF(J65=1,"SDQ",IF(I65=1,"DNF",SUM(D65+G65+H65+I65+J65))))) -> 0 | O65: 0
A66: 63 | B66: ='Shooter Information'!B68 -> 0 | C66: ='Shooter Information'!C68 -> 0 | K66: =MIN(IF('Shooter Information'!H68=1,999.99,(D66*5)+E66-F66+(G66*10)+(H66*30)+(I66*999.99)+(J66*999.99)),999.99) -> 0 | L66: 0 | M66: =(IF('Shooter Information'!H68=1,"MDQ",IF(J66=1,"SDQ",IF(I66=1,"DNF",SUM(D66+G66+H66+I66+J66))))) -> 0 | O66: 0
A67: 64 | B67: ='Shooter Information'!B69 -> 0 | C67: ='Shooter Information'!C69 -> 0 | K67: =MIN(IF('Shooter Information'!H69=1,999.99,(D67*5)+E67-F67+(G67*10)+(H67*30)+(I67*999.99)+(J67*999.99)),999.99) -> 0 | L67: 0 | M67: =(IF('Shooter Information'!H69=1,"MDQ",IF(J67=1,"SDQ",IF(I67=1,"DNF",SUM(D67+G67+H67+I67+J67))))) -> 0 | O67: 0
A68: 65 | B68: ='Shooter Information'!B70 -> 0 | C68: ='Shooter Information'!C70 -> 0 | K68: =MIN(IF('Shooter Information'!H70=1,999.99,(D68*5)+E68-F68+(G68*10)+(H68*30)+(I68*999.99)+(J68*999.99)),999.99) -> 0 | L68: 0 | M68: =(IF('Shooter Information'!H70=1,"MDQ",IF(J68=1,"SDQ",IF(I68=1,"DNF",SUM(D68+G68+H68+I68+J68))))) -> 0 | O68: 0
A69: 66 | B69: ='Shooter Information'!B71 -> 0 | C69: ='Shooter Information'!C71 -> 0 | K69: =MIN(IF('Shooter Information'!H71=1,999.99,(D69*5)+E69-F69+(G69*10)+(H69*30)+(I69*999.99)+(J69*999.99)),999.99) -> 0 | L69: =IF(K69>0,SUMPRODUCT(--(K69>$K$4:$K$78),--($K$4:$K$78>0))+1,0) -> 0 | M69: =(IF('Shooter Information'!H71=1,"MDQ",IF(J69=1,"SDQ",IF(I69=1,"DNF",SUM(D69+G69+H69+I69+J69))))) -> 0 | O69: =SUM(D69+G69+H69+I69+J69) -> 0
A70: 67 | B70: ='Shooter Information'!B72 -> 0 | C70: ='Shooter Information'!C72 -> 0 | K70: =MIN(IF('Shooter Information'!H72=1,999.99,(D70*5)+E70-F70+(G70*10)+(H70*30)+(I70*999.99)+(J70*999.99)),999.99) -> 0 | L70: 0 | M70: =(IF('Shooter Information'!H72=1,"MDQ",IF(J70=1,"SDQ",IF(I70=1,"DNF",SUM(D70+G70+H70+I70+J70))))) -> 0 | O70: 0
A71: 68 | B71: ='Shooter Information'!B73 -> 0 | C71: ='Shooter Information'!C73 -> 0 | K71: =MIN(IF('Shooter Information'!H73=1,999.99,(D71*5)+E71-F71+(G71*10)+(H71*30)+(I71*999.99)+(J71*999.99)),999.99) -> 0 | L71: 0 | M71: =(IF('Shooter Information'!H73=1,"MDQ",IF(J71=1,"SDQ",IF(I71=1,"DNF",SUM(D71+G71+H71+I71+J71))))) -> 0 | O71: 0
A72: 69 | B72: ='Shooter Information'!B74 -> 0 | C72: ='Shooter Information'!C74 -> 0 | K72: =MIN(IF('Shooter Information'!H74=1,999.99,(D72*5)+E72-F72+(G72*10)+(H72*30)+(I72*999.99)+(J72*999.99)),999.99) -> 0 | L72: 0 | M72: =(IF('Shooter Information'!H74=1,"MDQ",IF(J72=1,"SDQ",IF(I72=1,"DNF",SUM(D72+G72+H72+I72+J72))))) -> 0 | O72: 0
A73: 70 | B73: ='Shooter Information'!B75 -> 0 | C73: ='Shooter Information'!C75 -> 0 | K73: =MIN(IF('Shooter Information'!H75=1,999.99,(D73*5)+E73-F73+(G73*10)+(H73*30)+(I73*999.99)+(J73*999.99)),999.99) -> 0 | L73: 0 | M73: =(IF('Shooter Information'!H75=1,"MDQ",IF(J73=1,"SDQ",IF(I73=1,"DNF",SUM(D73+G73+H73+I73+J73))))) -> 0 | O73: 0
A74: 71 | B74: ='Shooter Information'!B76 -> 0 | C74: ='Shooter Information'!C76 -> 0 | K74: =MIN(IF('Shooter Information'!H76=1,999.99,(D74*5)+E74-F74+(G74*10)+(H74*30)+(I74*999.99)+(J74*999.99)),999.99) -> 0 | L74: 0 | M74: =(IF('Shooter Information'!H76=1,"MDQ",IF(J74=1,"SDQ",IF(I74=1,"DNF",SUM(D74+G74+H74+I74+J74))))) -> 0 | O74: 0
A75: 72 | B75: ='Shooter Information'!B77 -> 0 | C75: ='Shooter Information'!C77 -> 0 | K75: =MIN(IF('Shooter Information'!H77=1,999.99,(D75*5)+E75-F75+(G75*10)+(H75*30)+(I75*999.99)+(J75*999.99)),999.99) -> 0 | L75: 0 | M75: =(IF('Shooter Information'!H77=1,"MDQ",IF(J75=1,"SDQ",IF(I75=1,"DNF",SUM(D75+G75+H75+I75+J75))))) -> 0 | O75: 0
A76: 73 | B76: ='Shooter Information'!B78 -> 0 | C76: ='Shooter Information'!C78 -> 0 | K76: =MIN(IF('Shooter Information'!H78=1,999.99,(D76*5)+E76-F76+(G76*10)+(H76*30)+(I76*999.99)+(J76*999.99)),999.99) -> 0 | L76: 0 | M76: =(IF('Shooter Information'!H78=1,"MDQ",IF(J76=1,"SDQ",IF(I76=1,"DNF",SUM(D76+G76+H76+I76+J76))))) -> 0 | O76: 0
A77: 74 | B77: ='Shooter Information'!B79 -> 0 | C77: ='Shooter Information'!C79 -> 0 | K77: =MIN(IF('Shooter Information'!H79=1,999.99,(D77*5)+E77-F77+(G77*10)+(H77*30)+(I77*999.99)+(J77*999.99)),999.99) -> 0 | L77: 0 | M77: =(IF('Shooter Information'!H79=1,"MDQ",IF(J77=1,"SDQ",IF(I77=1,"DNF",SUM(D77+G77+H77+I77+J77))))) -> 0 | O77: 0
A78: 75 | B78: ='Shooter Information'!B80 -> 0 | C78: ='Shooter Information'!C80 -> 0 | K78: =MIN(IF('Shooter Information'!H80=1,999.99,(D78*5)+E78-F78+(G78*10)+(H78*30)+(I78*999.99)+(J78*999.99)),999.99) -> 0 | L78: 0 | M78: =(IF('Shooter Information'!H80=1,"MDQ",IF(J78=1,"SDQ",IF(I78=1,"DNF",SUM(D78+G78+H78+I78+J78))))) -> 0 | O78: 0

Sheet Stage 2
B1: Stage Input Sheet - Stage 2
A3: Shooter # | B3: Shooter | C3: Class | D3: Misses | E3: Raw Time | F3: Bonus | G3: 10 Sec | H3: 30 Sec | I3: DNF | J3: SDQ | K3: Total | L3: Rank | M3: Penalties | O3: # Penalties
A4: =ROW()-3 -> 1 | B4: ='Shooter Information'!B6 -> Striker | C4: ='Shooter Information'!C6 -> WW | E4: 24.82 | K4: =MIN(IF('Shooter Information'!H6=1,999.99,(D4*5)+E4-F4+(G4*10)+(H4*30)+(I4*999.99)+(J4*999.99)),999.99) -> 24.82 | L4: =IF(K4>0,SUMPRODUCT(--(K4>$K$4:$K$78),--($K$4:$K$78>0))+1,0) -> 2 | M4: =(IF('Shooter Information'!H6=1,"MDQ",IF(J4=1,"SDQ",IF(I4=1,"DNF",SUM(D4+G4+H4+I4+J4))))) -> 0 | O4: =SUM(D4+G4+H4+I4+J4) -> 0
A5: =ROW()-3 -> 2 | B5: ='Shooter Information'!B7 -> Cody Maverick | C5: ='Shooter Information'!C7 -> GF | E5: 26.18 | K5: =MIN(IF('Shooter Information'!H7=1,999.99,(D5*5)+E5-F5+(G5*10)+(H5*30)+(I5*999.99)+(J5*999.99)),999.99) -> 26.18 | L5: =IF(K5>0,SUMPRODUCT(--(K5>$K$4:$K$78),--($K$4:$K$78>0))+1,0) -> 4 | M5: =(IF('Shooter Information'!H7=1,"MDQ",IF(J5=1,"SDQ",IF(I5=1,"DNF",SUM(D5+G5+H5+I5+J5))))) -> 0 | O5: =SUM(D5+G5+H5+I5+J5) -> 0
A6: 3 | B6: ='Shooter Information'!B8 -> Potter County Kid | C6: ='Shooter Information'!C8 -> WW | D6: 1 | E6: 38.3 | K6: =MIN(IF('Shooter Information'!H8=1,999.99,(D6*5)+E6-F6+(G6*10)+(H6*30)+(I6*999.99)+(J6*999.99)),999.99) -> 43.3 | L6: 11 | M6: =(IF('Shooter Information'!H8=1,"MDQ",IF(J6=1,"SDQ",IF(I6=1,"DNF",SUM(D6+G6+H6+I6+J6))))) -> 1 | O6: 1
A7: 4 | B7: ='Shooter Information'!B9 -> Ricochet Kid | C7: ='Shooter Information'!C9 -> W | D7: 2 | E7: 36.66 | K7: =MIN(IF('Shooter Information'!H9=1,999.99,(D7*5)+E7-F7+(G7*10)+(H7*30)+(I7*999.99)+(J7*999.99)),999.99) -> 46.66 | L7: 13 | M7: =(IF('Shooter Information'!H9=1,"MDQ",IF(J7=1,"SDQ",IF(I7=1,"DNF",SUM(D7+G7+H7+I7+J7))))) -> 2 | O7: 2
A8: 5 | B8: ='Shooter Information'!B10 -> Flatboat Bob | C8: ='Shooter Information'!C10 -> CBAR | E8: 39.66 | K8: =MIN(IF('Shooter Information'!H10=1,999.99,(D8*5)+E8-F8+(G8*10)+(H8*30)+(I8*999.99)+(J8*999.99)),999.99) -> 39.66 | L8: 10 | M8: =(IF('Shooter Information'!H10=1,"MDQ",IF(J8=1,"SDQ",IF(I8=1,"DNF",SUM(D8+G8+H8+I8+J8))))) -> 0 | O8: 0
A9: 6 | B9: ='Shooter Information'!B11 -> Hotshod | C9: ='Shooter Information'!C11 -> W | E9: 27.98 | K9: =MIN(IF('Shooter Information'!H11=1,999.99,(D9*5)+E9-F9+(G9*10)+(H9*30)+(I9*999.99)+(J9*999.99)),999.99) -> 27.98 | L9: 6 | M9: =(IF('Shooter Information'!H11=1,"MDQ",IF(J9=1,"SDQ",IF(I9=1,"DNF",SUM(D9+G9+H9+I9+J9))))) -> 0 | O9: 0
A10: 7 | B10: ='Shooter Information'!B12 -> Prairie City Slim | C10: ='Shooter Information'!C12 -> ES | E10: 32.83 | K10: =MIN(IF('Shooter Information'!H12=1,999.99,(D10*5)+E10-F10+(G10*10)+(H10*30)+(I10*999.99)+(J10*999.99)),999.99) -> 32.83 | L10: 7 | M10: =(IF('Shooter Information'!H12=1,"MDQ",IF(J10=1,"SDQ",IF(I10=1,"DNF",SUM(D10+G10+H10+I10+J10))))) -> 0 | O10: 0
A11: 8 | B11: ='Shooter Information'!B13 -> Regret Schofield | C11: ='Shooter Information'!C13 -> 49er | D11: 1 | E11: 50.66 | K11: =MIN(IF('Shooter Information'!H13=1,999.99,(D11*5)+E11-F11+(G11*10)+(H11*30)+(I11*999.99)+(J11*999.99)),999.99) -> 55.66 | L11: 14 | M11: =(IF('Shooter Information'!H13=1,"MDQ",IF(J11=1,"SDQ",IF(I11=1,"DNF",SUM(D11+G11+H11+I11+J11))))) -> 1 | O11: 1
A12: 9 | B12: ='Shooter Information'!B14 -> Tumble Weed Tink | C12: ='Shooter Information'!C14 -> L49 | D12: 2 | E12: 82.33 | G12: 1 | K12: =MIN(IF('Shooter Information'!H14=1,999.99,(D12*5)+E12-F12+(G12*10)+(H12*30)+(I12*999.99)+(J12*999.99)),999.99) -> 102.33 | L12: 16 | M12: =(IF('Shooter Information'!H14=1,"MDQ",IF(J12=1,"SDQ",IF(I12=1,"DNF",SUM(D12+G12+H12+I12+J12))))) -> 3 | O12: 3
A13: 10 | B13: ='Shooter Information'!B15 -> One Eyed Jane | C13: ='Shooter Information'!C15 -> LSS | E13: 67.21 | K13: =MIN(IF('Shooter Information'!H15=1,999.99,(D13*5)+E13-F13+(G13*10)+(H13*30)+(I13*999.99)+(J13*999.99)),999.99) -> 67.21 | L13: 15 | M13: =(IF('Shooter Information'!H15=1,"MDQ",IF(J13=1,"SDQ",IF(I13=1,"DNF",SUM(D13+G13+H13+I13+J13))))) -> 0 | O13: 0
A14: 11 | B14: ='Shooter Information'!B16 -> Stogie | C14: ='Shooter Information'!C16 -> 49er | E14: 26.02 | K14: =MIN(IF('Shooter Information'!H16=1,999.99,(D14*5)+E14-F14+(G14*10)+(H14*30)+(I14*999.99)+(J14*999.99)),999.99) -> 26.02 | L14: 3 | M14: =(IF('Shooter Information'!H16=1,"MDQ",IF(J14=1,"SDQ",IF(I14=1,"DNF",SUM(D14+G14+H14+I14+J14))))) -> 0 | O14: 0
A15: 12 | B15: ='Shooter Information'!B17 -> Major BS Walker | C15: ='Shooter Information'!C17 -> WW | E15: 26.53 | K15: =MIN(IF('Shooter Information'!H17=1,999.99,(D15*5)+E15-F15+(G15*10)+(H15*30)+(I15*999.99)+(J15*999.99)),999.99) -> 26.53 | L15: 5 | M15: =(IF('Shooter Information'!H17=1,"MDQ",IF(J15=1,"SDQ",IF(I15=1,"DNF",SUM(D15+G15+H15+I15+J15))))) -> 0 | O15: 0
A16: 13 | B16: ='Shooter Information'!B18 -> Sassy Shooting Sours | C16: ='Shooter Information'!C18 -> S | E16: 37.07 | K16: =MIN(IF('Shooter Information'!H18=1,999.99,(D16*5)+E16-F16+(G16*10)+(H16*30)+(I16*999.99)+(J16*999.99)),999.99) -> 37.07 | L16: 9 | M16: =(IF('Shooter Information'!H18=1,"MDQ",IF(J16=1,"SDQ",IF(I16=1,"DNF",SUM(D16+G16+H16+I16+J16))))) -> 0 | O16: 0
A17: 14 | B17: ='Shooter Information'!B19 -> Lefty Spurmaker | C17: ='Shooter Information'!C19 -> S | D17: 1 | E17: 30.77 | K17: =MIN(IF('Shooter Information'!H19=1,999.99,(D17*5)+E17-F17+(G17*10)+(H17*30)+(I17*999.99)+(J17*999.99)),999.99) -> 35.77 | L17: 8 | M17: =(IF('Shooter Information'!H19=1,"MDQ",IF(J17=1,"SDQ",IF(I17=1,"DNF",SUM(D17+G17+H17+I17+J17))))) -> 1 | O17: 1
A18: 15 | B18: ='Shooter Information'!B20 -> Windhorse Rider | C18: ='Shooter Information'!C20 -> GF | D18: 1 | E18: 41.38 | K18: =MIN(IF('Shooter Information'!H20=1,999.99,(D18*5)+E18-F18+(G18*10)+(H18*30)+(I18*999.99)+(J18*999.99)),999.99) -> 46.38 | L18: 12 | M18: =(IF('Shooter Information'!H20=1,"MDQ",IF(J18=1,"SDQ",IF(I18=1,"DNF",SUM(D18+G18+H18+I18+J18))))) -> 1 | O18: 1
A19: 16 | B19: ='Shooter Information'!B21 -> Red Cavanaugh | C19: ='Shooter Information'!C21 -> 49er | E19: 24.45 | K19: =MIN(IF('Shooter Information'!H21=1,999.99,(D19*5)+E19-F19+(G19*10)+(H19*30)+(I19*999.99)+(J19*999.99)),999.99) -> 24.45 | L19: 1 | M19: =(IF('Shooter Information'!H21=1,"MDQ",IF(J19=1,"SDQ",IF(I19=1,"DNF",SUM(D19+G19+H19+I19+J19))))) -> 0 | O19: 0
A20: 17 | B20: ='Shooter Information'!B22 -> 0 | C20: ='Shooter Information'!C22 -> 0 | K20: =MIN(IF('Shooter Information'!H22=1,999.99,(D20*5)+E20-F20+(G20*10)+(H20*30)+(I20*999.99)+(J20*999.99)),999.99) -> 0 | L20: 0 | M20: =(IF('Shooter Information'!H22=1,"MDQ",IF(J20=1,"SDQ",IF(I20=1,"DNF",SUM(D20+G20+H20+I20+J20))))) -> 0 | O20: 0
A21: 18 | B21: ='Shooter Information'!B23 -> 0 | C21: ='Shooter Information'!C23 -> 0 | K21: =MIN(IF('Shooter Information'!H23=1,999.99,(D21*5)+E21-F21+(G21*10)+(H21*30)+(I21*999.99)+(J21*999.99)),999.99) -> 0 | L21: 0 | M21: =(IF('Shooter Information'!H23=1,"MDQ",IF(J21=1,"SDQ",IF(I21=1,"DNF",SUM(D21+G21+H21+I21+J21))))) -> 0 | O21: 0
A22: 19 | B22: ='Shooter Information'!B24 -> 0 | C22: ='Shooter Information'!C24 -> 0 | K22: =MIN(IF('Shooter Information'!H24=1,999.99,(D22*5)+E22-F22+(G22*10)+(H22*30)+(I22*999.99)+(J22*999.99)),999.99) -> 0 | L22: 0 | M22: =(IF('Shooter Information'!H24=1,"MDQ",IF(J22=1,"SDQ",IF(I22=1,"DNF",SUM(D22+G22+H22+I22+J22))))) -> 0 | O22: 0
A23: 20 | B23: ='Shooter Information'!B25 -> 0 | C23: ='Shooter Information'!C25 -> 0 | K23: =MIN(IF('Shooter Information'!H25=1,999.99,(D23*5)+E23-F23+(G23*10)+(H23*30)+(I23*999.99)+(J23*999.99)),999.99) -> 0 | L23: 0 | M23: =(IF('Shooter Information'!H25=1,"MDQ",IF(J23=1,"SDQ",IF(I23=1,"DNF",SUM(D23+G23+H23+I23+J23))))) -> 0 | O23: 0
A24: 21 | B24: ='Shooter Information'!B26 -> 0 | C24: ='Shooter Information'!C26 -> 0 | K24: =MIN(IF('Shooter Information'!H26=1,999.99,(D24*5)+E24-F24+(G24*10)+(H24*30)+(I24*999.99)+(J24*999.99)),999.99) -> 0 | L24: 0 | M24: =(IF('Shooter Information'!H26=1,"MDQ",IF(J24=1,"SDQ",IF(I24=1,"DNF",SUM(D24+G24+H24+I24+J24))))) -> 0 | O24: 0
A25: 22 | B25: ='Shooter Information'!B27 -> 0 | C25: ='Shooter Information'!C27 -> 0 | K25: =MIN(IF('Shooter Information'!H27=1,999.99,(D25*5)+E25-F25+(G25*10)+(H25*30)+(I25*999.99)+(J25*999.99)),999.99) -> 0 | L25: 0 | M25: =(IF('Shooter Information'!H27=1,"MDQ",IF(J25=1,"SDQ",IF(I25=1,"DNF",SUM(D25+G25+H25+I25+J25))))) -> 0 | O25: 0
A26: 23 | B26: ='Shooter Information'!B28 -> 0 | C26: ='Shooter Information'!C28 -> 0 | K26: =MIN(IF('Shooter Information'!H28=1,999.99,(D26*5)+E26-F26+(G26*10)+(H26*30)+(I26*999.99)+(J26*999.99)),999.99) -> 0 | L26: 0 | M26: =(IF('Shooter Information'!H28=1,"MDQ",IF(J26=1,"SDQ",IF(I26=1,"DNF",SUM(D26+G26+H26+I26+J26))))) -> 0 | O26: 0
A27: 24 | B27: ='Shooter Information'!B29 -> 0 | C27: ='Shooter Information'!C29 -> 0 | K27: =MIN(IF('Shooter Information'!H29=1,999.99,(D27*5)+E27-F27+(G27*10)+(H27*30)+(I27*999.99)+(J27*999.99)),999.99) -> 0 | L27: 0 | M27: =(IF('Shooter Information'!H29=1,"MDQ",IF(J27=1,"SDQ",IF(I27=1,"DNF",SUM(D27+G27+H27+I27+J27))))) -> 0 | O27: 0
A28: 25 | B28: ='Shooter Information'!B30 -> 0 | C28: ='Shooter Information'!C30 -> 0 | K28: =MIN(IF('Shooter Information'!H30=1,999.99,(D28*5)+E28-F28+(G28*10)+(H28*30)+(I28*999.99)+(J28*999.99)),999.99) -> 0 | L28: 0 | M28: =(IF('Shooter Information'!H30=1,"MDQ",IF(J28=1,"SDQ",IF(I28=1,"DNF",SUM(D28+G28+H28+I28+J28))))) -> 0 | O28: 0
A29: 26 | B29: ='Shooter Information'!B31 -> 0 | C29: ='Shooter Information'!C31 -> 0 | K29: =MIN(IF('Shooter Information'!H31=1,999.99,(D29*5)+E29-F29+(G29*10)+(H29*30)+(I29*999.99)+(J29*999.99)),999.99) -> 0 | L29: 0 | M29: =(IF('Shooter Information'!H31=1,"MDQ",IF(J29=1,"SDQ",IF(I29=1,"DNF",SUM(D29+G29+H29+I29+J29))))) -> 0 | O29: 0
A30: 27 | B30: ='Shooter Information'!B32 -> 0 | C30: ='Shooter Information'!C32 -> 0 | K30: =MIN(IF('Shooter Information'!H32=1,999.99,(D30*5)+E30-F30+(G30*10)+(H30*30)+(I30*999.99)+(J30*999.99)),999.99) -> 0 | L30: 0 | M30: =(IF('Shooter Information'!H32=1,"MDQ",IF(J30=1,"SDQ",IF(I30=1,"DNF",SUM(D30+G30+H30+I30+J30))))) -> 0 | O30: 0
A31: 28 | B31: ='Shooter Information'!B33 -> 0 | C31: ='Shooter Information'!C33 -> 0 | K31: =MIN(IF('Shooter Information'!H33=1,999.99,(D31*5)+E31-F31+(G31*10)+(H31*30)+(I31*999.99)+(J31*999.99)),999.99) -> 0 | L31: 0 | M31: =(IF('Shooter Information'!H33=1,"MDQ",IF(J31=1,"SDQ",IF(I31=1,"DNF",SUM(D31+G31+H31+I31+J31))))) -> 0 | O31: 0
A32: 29 | B32: ='Shooter Information'!B34 -> 0 | C32: ='Shooter Information'!C34 -> 0 | K32: =MIN(IF('Shooter Information'!H34=1,999.99,(D32*5)+E32-F32+(G32*10)+(H32*30)+(I32*999.99)+(J32*999.99)),999.99) -> 0 | L32: 0 | M32: =(IF('Shooter Information'!H34=1,"MDQ",IF(J32=1,"SDQ",IF(I32=1,"DNF",SUM(D32+G32+H32+I32+J32))))) -> 0 | O32: 0
A33: 30 | B33: ='Shooter Information'!B35 -> 0 | C33: ='Shooter Information'!C35 -> 0 | K33: =MIN(IF('Shooter Information'!H35=1,999.99,(D33*5)+E33-F33+(G33*10)+(H33*30)+(I33*999.99)+(J33*999.99)),999.99) -> 0 | L33: 0 | M33: =(IF('Shooter Information'!H35=1,"MDQ",IF(J33=1,"SDQ",IF(I33=1,"DNF",SUM(D33+G33+H33+I33+J33))))) -> 0 | O33: 0
A34: 31 | B34: ='Shooter Information'!B36 -> 0 | C34: ='Shooter Information'!C36 -> 0 | K34: =MIN(IF('Shooter Information'!H36=1,999.99,(D34*5)+E34-F34+(G34*10)+(H34*30)+(I34*999.99)+(J34*999.99)),999.99) -> 0 | L34: 0 | M34: =(IF('Shooter Information'!H36=1,"MDQ",IF(J34=1,"SDQ",IF(I34=1,"DNF",SUM(D34+G34+H34+I34+J34))))) -> 0 | O34: 0
A35: 32 | B35: ='Shooter Information'!B37 -> 0 | C35: ='Shooter Information'!C37 -> 0 | K35: =MIN(IF('Shooter Information'!H37=1,999.99,(D35*5)+E35-F35+(G35*10)+(H35*30)+(I35*999.99)+(J35*999.99)),999.99) -> 0 | L35: 0 | M35: =(IF('Shooter Information'!H37=1,"MDQ",IF(J35=1,"SDQ",IF(I35=1,"DNF",SUM(D35+G35+H35+I35+J35))))) -> 0 | O35: 0
A36: 33 | B36: ='Shooter Information'!B38 -> 0 | C36: ='Shooter Information'!C38 -> 0 | K36: =MIN(IF('Shooter Information'!H38=1,999.99,(D36*5)+E36-F36+(G36*10)+(H36*30)+(I36*999.99)+(J36*999.99)),999.99) -> 0 | L36: 0 | M36: =(IF('Shooter Information'!H38=1,"MDQ",IF(J36=1,"SDQ",IF(I36=1,"DNF",SUM(D36+G36+H36+I36+J36))))) -> 0 | O36: 0
A37: 34 | B37: ='Shooter Information'!B39 -> 0 | C37: ='Shooter Information'!C39 -> 0 | K37: =MIN(IF('Shooter Information'!H39=1,999.99,(D37*5)+E37-F37+(G37*10)+(H37*30)+(I37*999.99)+(J37*999.99)),999.99) -> 0 | L37: 0 | M37: =(IF('Shooter Information'!H39=1,"MDQ",IF(J37=1,"SDQ",IF(I37=1,"DNF",SUM(D37+G37+H37+I37+J37))))) -> 0 | O37: 0
A38: 35 | B38: ='Shooter Information'!B40 -> 0 | C38: ='Shooter Information'!C40 -> 0 | K38: =MIN(IF('Shooter Information'!H40=1,999.99,(D38*5)+E38-F38+(G38*10)+(H38*30)+(I38*999.99)+(J38*999.99)),999.99) -> 0 | L38: 0 | M38: =(IF('Shooter Information'!H40=1,"MDQ",IF(J38=1,"SDQ",IF(I38=1,"DNF",SUM(D38+G38+H38+I38+J38))))) -> 0 | O38: 0
A39: 36 | B39: ='Shooter Information'!B41 -> 0 | C39: ='Shooter Information'!C41 -> 0 | K39: =MIN(IF('Shooter Information'!H41=1,999.99,(D39*5)+E39-F39+(G39*10)+(H39*30)+(I39*999.99)+(J39*999.99)),999.99) -> 0 | L39: 0 | M39: =(IF('Shooter Information'!H41=1,"MDQ",IF(J39=1,"SDQ",IF(I39=1,"DNF",SUM(D39+G39+H39+I39+J39))))) -> 0 | O39: 0
A40: 37 | B40: ='Shooter Information'!B42 -> 0 | C40: ='Shooter Information'!C42 -> 0 | K40: =MIN(IF('Shooter Information'!H42=1,999.99,(D40*5)+E40-F40+(G40*10)+(H40*30)+(I40*999.99)+(J40*999.99)),999.99) -> 0 | L40: 0 | M40: =(IF('Shooter Information'!H42=1,"MDQ",IF(J40=1,"SDQ",IF(I40=1,"DNF",SUM(D40+G40+H40+I40+J40))))) -> 0 | O40: 0
A41: 38 | B41: ='Shooter Information'!B43 -> 0 | C41: ='Shooter Information'!C43 -> 0 | K41: =MIN(IF('Shooter Information'!H43=1,999.99,(D41*5)+E41-F41+(G41*10)+(H41*30)+(I41*999.99)+(J41*999.99)),999.99) -> 0 | L41: 0 | M41: =(IF('Shooter Information'!H43=1,"MDQ",IF(J41=1,"SDQ",IF(I41=1,"DNF",SUM(D41+G41+H41+I41+J41))))) -> 0 | O41: 0
A42: 39 | B42: ='Shooter Information'!B44 -> 0 | C42: ='Shooter Information'!C44 -> 0 | K42: =MIN(IF('Shooter Information'!H44=1,999.99,(D42*5)+E42-F42+(G42*10)+(H42*30)+(I42*999.99)+(J42*999.99)),999.99) -> 0 | L42: 0 | M42: =(IF('Shooter Information'!H44=1,"MDQ",IF(J42=1,"SDQ",IF(I42=1,"DNF",SUM(D42+G42+H42+I42+J42))))) -> 0 | O42: 0
A43: 40 | B43: ='Shooter Information'!B45 -> 0 | C43: ='Shooter Information'!C45 -> 0 | K43: =MIN(IF('Shooter Information'!H45=1,999.99,(D43*5)+E43-F43+(G43*10)+(H43*30)+(I43*999.99)+(J43*999.99)),999.99) -> 0 | L43: 0 | M43: =(IF('Shooter Information'!H45=1,"MDQ",IF(J43=1,"SDQ",IF(I43=1,"DNF",SUM(D43+G43+H43+I43+J43))))) -> 0 | O43: 0
A44: 41 | B44: ='Shooter Information'!B46 -> 0 | C44: ='Shooter Information'!C46 -> 0 | K44: =MIN(IF('Shooter Information'!H46=1,999.99,(D44*5)+E44-F44+(G44*10)+(H44*30)+(I44*999.99)+(J44*999.99)),999.99) -> 0 | L44: 0 | M44: =(IF('Shooter Information'!H46=1,"MDQ",IF(J44=1,"SDQ",IF(I44=1,"DNF",SUM(D44+G44+H44+I44+J44))))) -> 0 | O44: 0
A45: 42 | B45: ='Shooter Information'!B47 -> 0 | C45: ='Shooter Information'!C47 -> 0 | K45: =MIN(IF('Shooter Information'!H47=1,999.99,(D45*5)+E45-F45+(G45*10)+(H45*30)+(I45*999.99)+(J45*999.99)),999.99) -> 0 | L45: 0 | M45: =(IF('Shooter Information'!H47=1,"MDQ",IF(J45=1,"SDQ",IF(I45=1,"DNF",SUM(D45+G45+H45+I45+J45))))) -> 0 | O45: 0
A46: 43 | B46: ='Shooter Information'!B48 -> 0 | C46: ='Shooter Information'!C48 -> 0 | K46: =MIN(IF('Shooter Information'!H48=1,999.99,(D46*5)+E46-F46+(G46*10)+(H46*30)+(I46*999.99)+(J46*999.99)),999.99) -> 0 | L46: 0 | M46: =(IF('Shooter Information'!H48=1,"MDQ",IF(J46=1,"SDQ",IF(I46=1,"DNF",SUM(D46+G46+H46+I46+J46))))) -> 0 | O46: 0
A47: 44 | B47: ='Shooter Information'!B49 -> 0 | C47: ='Shooter Information'!C49 -> 0 | K47: =MIN(IF('Shooter Information'!H49=1,999.99,(D47*5)+E47-F47+(G47*10)+(H47*30)+(I47*999.99)+(J47*999.99)),999.99) -> 0 | L47: 0 | M47: =(IF('Shooter Information'!H49=1,"MDQ",IF(J47=1,"SDQ",IF(I47=1,"DNF",SUM(D47+G47+H47+I47+J47))))) -> 0 | O47: 0
A48: 45 | B48: ='Shooter Information'!B50 -> 0 | C48: ='Shooter Information'!C50 -> 0 | K48: =MIN(IF('Shooter Information'!H50=1,999.99,(D48*5)+E48-F48+(G48*10)+(H48*30)+(I48*999.99)+(J48*999.99)),999.99) -> 0 | L48: 0 | M48: =(IF('Shooter Information'!H50=1,"MDQ",IF(J48=1,"SDQ",IF(I48=1,"DNF",SUM(D48+G48+H48+I48+J48))))) -> 0 | O48: 0
A49: 46 | B49: ='Shooter Information'!B51 -> 0 | C49: ='Shooter Information'!C51 -> 0 | K49: =MIN(IF('Shooter Information'!H51=1,999.99,(D49*5)+E49-F49+(G49*10)+(H49*30)+(I49*999.99)+(J49*999.99)),999.99) -> 0 | L49: 0 | M49: =(IF('Shooter Information'!H51=1,"MDQ",IF(J49=1,"SDQ",IF(I49=1,"DNF",SUM(D49+G49+H49+I49+J49))))) -> 0 | O49: 0
A50: 47 | B50: ='Shooter Information'!B52 -> 0 | C50: ='Shooter Information'!C52 -> 0 | K50: =MIN(IF('Shooter Information'!H52=1,999.99,(D50*5)+E50-F50+(G50*10)+(H50*30)+(I50*999.99)+(J50*999.99)),999.99) -> 0 | L50: 0 | M50: =(IF('Shooter Information'!H52=1,"MDQ",IF(J50=1,"SDQ",IF(I50=1,"DNF",SUM(D50+G50+H50+I50+J50))))) -> 0 | O50: 0
A51: 48 | B51: ='Shooter Information'!B53 -> 0 | C51: ='Shooter Information'!C53 -> 0 | K51: =MIN(IF('Shooter Information'!H53=1,999.99,(D51*5)+E51-F51+(G51*10)+(H51*30)+(I51*999.99)+(J51*999.99)),999.99) -> 0 | L51: 0 | M51: =(IF('Shooter Information'!H53=1,"MDQ",IF(J51=1,"SDQ",IF(I51=1,"DNF",SUM(D51+G51+H51+I51+J51))))) -> 0 | O51: 0
A52: 49 | B52: ='Shooter Information'!B54 -> 0 | C52: ='Shooter Information'!C54 -> 0 | K52: =MIN(IF('Shooter Information'!H54=1,999.99,(D52*5)+E52-F52+(G52*10)+(H52*30)+(I52*999.99)+(J52*999.99)),999.99) -> 0 | L52: 0 | M52: =(IF('Shooter Information'!H54=1,"MDQ",IF(J52=1,"SDQ",IF(I52=1,"DNF",SUM(D52+G52+H52+I52+J52))))) -> 0 | O52: 0
A53: 50 | B53: ='Shooter Information'!B55 -> 0 | C53: ='Shooter Information'!C55 -> 0 | K53: =MIN(IF('Shooter Information'!H55=1,999.99,(D53*5)+E53-F53+(G53*10)+(H53*30)+(I53*999.99)+(J53*999.99)),999.99) -> 0 | L53: 0 | M53: =(IF('Shooter Information'!H55=1,"MDQ",IF(J53=1,"SDQ",IF(I53=1,"DNF",SUM(D53+G53+H53+I53+J53))))) -> 0 | O53: 0
A54: 51 | B54: ='Shooter Information'!B56 -> 0 | C54: ='Shooter Information'!C56 -> 0 | K54: =MIN(IF('Shooter Information'!H56=1,999.99,(D54*5)+E54-F54+(G54*10)+(H54*30)+(I54*999.99)+(J54*999.99)),999.99) -> 0 | L54: 0 | M54: =(IF('Shooter Information'!H56=1,"MDQ",IF(J54=1,"SDQ",IF(I54=1,"DNF",SUM(D54+G54+H54+I54+J54))))) -> 0 | O54: 0
A55: 52 | B55: ='Shooter Information'!B57 -> 0 | C55: ='Shooter Information'!C57 -> 0 | K55: =MIN(IF('Shooter Information'!H57=1,999.99,(D55*5)+E55-F55+(G55*10)+(H55*30)+(I55*999.99)+(J55*999.99)),999.99) -> 0 | L55: 0 | M55: =(IF('Shooter Information'!H57=1,"MDQ",IF(J55=1,"SDQ",IF(I55=1,"DNF",SUM(D55+G55+H55+I55+J55))))) -> 0 | O55: 0
A56: 53 | B56: ='Shooter Information'!B58 -> 0 | C56: ='Shooter Information'!C58 -> 0 | K56: =MIN(IF('Shooter Information'!H58=1,999.99,(D56*5)+E56-F56+(G56*10)+(H56*30)+(I56*999.99)+(J56*999.99)),999.99) -> 0 | L56: 0 | M56: =(IF('Shooter Information'!H58=1,"MDQ",IF(J56=1,"SDQ",IF(I56=1,"DNF",SUM(D56+G56+H56+I56+J56))))) -> 0 | O56: 0
A57: 54 | B57: ='Shooter Information'!B59 -> 0 | C57: ='Shooter Information'!C59 -> 0 | K57: =MIN(IF('Shooter Information'!H59=1,999.99,(D57*5)+E57-F57+(G57*10)+(H57*30)+(I57*999.99)+(J57*999.99)),999.99) -> 0 | L57: 0 | M57: =(IF('Shooter Information'!H59=1,"MDQ",IF(J57=1,"SDQ",IF(I57=1,"DNF",SUM(D57+G57+H57+I57+J57))))) -> 0 | O57: 0
A58: 55 | B58: ='Shooter Information'!B60 -> 0 | C58: ='Shooter Information'!C60 -> 0 | K58: =MIN(IF('Shooter Information'!H60=1,999.99,(D58*5)+E58-F58+(G58*10)+(H58*30)+(I58*999.99)+(J58*999.99)),999.99) -> 0 | L58: 0 | M58: =(IF('Shooter Information'!H60=1,"MDQ",IF(J58=1,"SDQ",IF(I58=1,"DNF",SUM(D58+G58+H58+I58+J58))))) -> 0 | O58: 0
A59: 56 | B59: ='Shooter Information'!B61 -> 0 | C59: ='Shooter Information'!C61 -> 0 | K59: =MIN(IF('Shooter Information'!H61=1,999.99,(D59*5)+E59-F59+(G59*10)+(H59*30)+(I59*999.99)+(J59*999.99)),999.99) -> 0 | L59: 0 | M59: =(IF('Shooter Information'!H61=1,"MDQ",IF(J59=1,"SDQ",IF(I59=1,"DNF",SUM(D59+G59+H59+I59+J59))))) -> 0 | O59: 0
A60: 57 | B60: ='Shooter Information'!B62 -> 0 | C60: ='Shooter Information'!C62 -> 0 | K60: =MIN(IF('Shooter Information'!H62=1,999.99,(D60*5)+E60-F60+(G60*10)+(H60*30)+(I60*999.99)+(J60*999.99)),999.99) -> 0 | L60: 0 | M60: =(IF('Shooter Information'!H62=1,"MDQ",IF(J60=1,"SDQ",IF(I60=1,"DNF",SUM(D60+G60+H60+I60+J60))))) -> 0 | O60: 0
A61: 58 | B61: ='Shooter Information'!B63 -> 0 | C61: ='Shooter Information'!C63 -> 0 | K61: =MIN(IF('Shooter Information'!H63=1,999.99,(D61*5)+E61-F61+(G61*10)+(H61*30)+(I61*999.99)+(J61*999.99)),999.99) -> 0 | L61: 0 | M61: =(IF('Shooter Information'!H63=1,"MDQ",IF(J61=1,"SDQ",IF(I61=1,"DNF",SUM(D61+G61+H61+I61+J61))))) -> 0 | O61: 0
A62: 59 | B62: ='Shooter Information'!B64 -> 0 | C62: ='Shooter Information'!C64 -> 0 | K62: =MIN(IF('Shooter Information'!H64=1,999.99,(D62*5)+E62-F62+(G62*10)+(H62*30)+(I62*999.99)+(J62*999.99)),999.99) -> 0 | L62: 0 | M62: =(IF('Shooter Information'!H64=1,"MDQ",IF(J62=1,"SDQ",IF(I62=1,"DNF",SUM(D62+G62+H62+I62+J62))))) -> 0 | O62: 0
A63: 60 | B63: ='Shooter Information'!B65 -> 0 | C63: ='Shooter Information'!C65 -> 0 | K63: =MIN(IF('Shooter Information'!H65=1,999.99,(D63*5)+E63-F63+(G63*10)+(H63*30)+(I63*999.99)+(J63*999.99)),999.99) -> 0 | L63: 0 | M63: =(IF('Shooter Information'!H65=1,"MDQ",IF(J63=1,"SDQ",IF(I63=1,"DNF",SUM(D63+G63+H63+I63+J63))))) -> 0 | O63: 0
A64: 61 | B64: ='Shooter Information'!B66 -> 0 | C64: ='Shooter Information'!C66 -> 0 | K64: =MIN(IF('Shooter Information'!H66=1,999.99,(D64*5)+E64-F64+(G64*10)+(H64*30)+(I64*999.99)+(J64*999.99)),999.99) -> 0 | L64: 0 | M64: =(IF('Shooter Information'!H66=1,"MDQ",IF(J64=1,"SDQ",IF(I64=1,"DNF",SUM(D64+G64+H64+I64+J64))))) -> 0 | O64: 0
A65: 62 | B65: ='Shooter Information'!B67 -> 0 | C65: ='Shooter Information'!C67 -> 0 | K65: =MIN(IF('Shooter Information'!H67=1,999.99,(D65*5)+E65-F65+(G65*10)+(H65*30)+(I65*999.99)+(J65*999.99)),999.99) -> 0 | L65: 0 | M65: =(IF('Shooter Information'!H67=1,"MDQ",IF(J65=1,"SDQ",IF(I65=1,"DNF",SUM(D65+G65+H65+I65+J65))))) -> 0 | O65: 0
A66: 63 | B66: ='Shooter Information'!B68 -> 0 | C66: ='Shooter Information'!C68 -> 0 | K66: =MIN(IF('Shooter Information'!H68=1,999.99,(D66*5)+E66-F66+(G66*10)+(H66*30)+(I66*999.99)+(J66*999.99)),999.99) -> 0 | L66: 0 | M66: =(IF('Shooter Information'!H68=1,"MDQ",IF(J66=1,"SDQ",IF(I66=1,"DNF",SUM(D66+G66+H66+I66+J66))))) -> 0 | O66: 0
A67: 64 | B67: ='Shooter Information'!B69 -> 0 | C67: ='Shooter Information'!C69 -> 0 | K67: =MIN(IF('Shooter Information'!H69=1,999.99,(D67*5)+E67-F67+(G67*10)+(H67*30)+(I67*999.99)+(J67*999.99)),999.99) -> 0 | L67: 0 | M67: =(IF('Shooter Information'!H69=1,"MDQ",IF(J67=1,"SDQ",IF(I67=1,"DNF",SUM(D67+G67+H67+I67+J67))))) -> 0 | O67: 0
A68: 65 | B68: ='Shooter Information'!B70 -> 0 | C68: ='Shooter Information'!C70 -> 0 | K68: =MIN(IF('Shooter Information'!H70=1,999.99,(D68*5)+E68-F68+(G68*10)+(H68*30)+(I68*999.99)+(J68*999.99)),999.99) -> 0 | L68: 0 | M68: =(IF('Shooter Information'!H70=1,"MDQ",IF(J68=1,"SDQ",IF(I68=1,"DNF",SUM(D68+G68+H68+I68+J68))))) -> 0 | O68: 0
A69: 66 | B69: ='Shooter Information'!B71 -> 0 | C69: ='Shooter Information'!C71 -> 0 | K69: =MIN(IF('Shooter Information'!H71=1,999.99,(D69*5)+E69-F69+(G69*10)+(H69*30)+(I69*999.99)+(J69*999.99)),999.99) -> 0 | L69: =IF(K69>0,SUMPRODUCT(--(K69>$K$4:$K$78),--($K$4:$K$78>0))+1,0) -> 0 | M69: =(IF('Shooter Information'!H71=1,"MDQ",IF(J69=1,"SDQ",IF(I69=1,"DNF",SUM(D69+G69+H69+I69+J69))))) -> 0 | O69: =SUM(D69+G69+H69+I69+J69) -> 0
A70: 67 | B70: ='Shooter Information'!B72 -> 0 | C70: ='Shooter Information'!C72 -> 0 | K70: =MIN(IF('Shooter Information'!H72=1,999.99,(D70*5)+E70-F70+(G70*10)+(H70*30)+(I70*999.99)+(J70*999.99)),999.99) -> 0 | L70: 0 | M70: =(IF('Shooter Information'!H72=1,"MDQ",IF(J70=1,"SDQ",IF(I70=1,"DNF",SUM(D70+G70+H70+I70+J70))))) -> 0 | O70: 0
A71: 68 | B71: ='Shooter Information'!B73 -> 0 | C71: ='Shooter Information'!C73 -> 0 | K71: =MIN(IF('Shooter Information'!H73=1,999.99,(D71*5)+E71-F71+(G71*10)+(H71*30)+(I71*999.99)+(J71*999.99)),999.99) -> 0 | L71: 0 | M71: =(IF('Shooter Information'!H73=1,"MDQ",IF(J71=1,"SDQ",IF(I71=1,"DNF",SUM(D71+G71+H71+I71+J71))))) -> 0 | O71: 0
A72: 69 | B72: ='Shooter Information'!B74 -> 0 | C72: ='Shooter Information'!C74 -> 0 | K72: =MIN(IF('Shooter Information'!H74=1,999.99,(D72*5)+E72-F72+(G72*10)+(H72*30)+(I72*999.99)+(J72*999.99)),999.99) -> 0 | L72: 0 | M72: =(IF('Shooter Information'!H74=1,"MDQ",IF(J72=1,"SDQ",IF(I72=1,"DNF",SUM(D72+G72+H72+I72+J72))))) -> 0 | O72: 0
A73: 70 | B73: ='Shooter Information'!B75 -> 0 | C73: ='Shooter Information'!C75 -> 0 | K73: =MIN(IF('Shooter Information'!H75=1,999.99,(D73*5)+E73-F73+(G73*10)+(H73*30)+(I73*999.99)+(J73*999.99)),999.99) -> 0 | L73: 0 | M73: =(IF('Shooter Information'!H75=1,"MDQ",IF(J73=1,"SDQ",IF(I73=1,"DNF",SUM(D73+G73+H73+I73+J73))))) -> 0 | O73: 0
A74: 71 | B74: ='Shooter Information'!B76 -> 0 | C74: ='Shooter Information'!C76 -> 0 | K74: =MIN(IF('Shooter Information'!H76=1,999.99,(D74*5)+E74-F74+(G74*10)+(H74*30)+(I74*999.99)+(J74*999.99)),999.99) -> 0 | L74: 0 | M74: =(IF('Shooter Information'!H76=1,"MDQ",IF(J74=1,"SDQ",IF(I74=1,"DNF",SUM(D74+G74+H74+I74+J74))))) -> 0 | O74: 0
A75: 72 | B75: ='Shooter Information'!B77 -> 0 | C75: ='Shooter Information'!C77 -> 0 | K75: =MIN(IF('Shooter Information'!H77=1,999.99,(D75*5)+E75-F75+(G75*10)+(H75*30)+(I75*999.99)+(J75*999.99)),999.99) -> 0 | L75: 0 | M75: =(IF('Shooter Information'!H77=1,"MDQ",IF(J75=1,"SDQ",IF(I75=1,"DNF",SUM(D75+G75+H75+I75+J75))))) -> 0 | O75: 0
A76: 73 | B76: ='Shooter Information'!B78 -> 0 | C76: ='Shooter Information'!C78 -> 0 | K76: =MIN(IF('Shooter Information'!H78=1,999.99,(D76*5)+E76-F76+(G76*10)+(H76*30)+(I76*999.99)+(J76*999.99)),999.99) -> 0 | L76: 0 | M76: =(IF('Shooter Information'!H78=1,"MDQ",IF(J76=1,"SDQ",IF(I76=1,"DNF",SUM(D76+G76+H76+I76+J76))))) -> 0 | O76: 0
A77: 74 | B77: ='Shooter Information'!B79 -> 0 | C77: ='Shooter Information'!C79 -> 0 | K77: =MIN(IF('Shooter Information'!H79=1,999.99,(D77*5)+E77-F77+(G77*10)+(H77*30)+(I77*999.99)+(J77*999.99)),999.99) -> 0 | L77: 0 | M77: =(IF('Shooter Information'!H79=1,"MDQ",IF(J77=1,"SDQ",IF(I77=1,"DNF",SUM(D77+G77+H77+I77+J77))))) -> 0 | O77: 0
A78: 75 | B78: ='Shooter Information'!B80 -> 0 | C78: ='Shooter Information'!C80 -> 0 | K78: =MIN(IF('Shooter Information'!H80=1,999.99,(D78*5)+E78-F78+(G78*10)+(H78*30)+(I78*999.99)+(J78*999.99)),999.99) -> 0 | L78: 0 | M78: =(IF('Shooter Information'!H80=1,"MDQ",IF(J78=1,"SDQ",IF(I78=1,"DNF",SUM(D78+G78+H78+I78+J78))))) -> 0 | O78: 0

Sheet Stage 3
B1: Stage Input Sheet - Stage 3
A3: Shooter # | B3: Shooter | C3: Class | D3: Misses | E3: Raw Time | F3: Bonus | G3: 10 Sec | H3: 30 Sec | I3: DNF | J3: SDQ | K3: Total | L3: Rank | M3: Penalties | O3: # Penalties
A4: =ROW()-3 -> 1 | B4: ='Shooter Information'!B6 -> Striker | C4: ='Shooter Information'!C6 -> WW | E4: 21.27 | K4: =MIN(IF('Shooter Information'!H6=1,999.99,(D4*5)+E4-F4+(G4*10)+(H4*30)+(I4*999.99)+(J4*999.99)),999.99) -> 21.27 | L4: =IF(K4>0,SUMPRODUCT(--(K4>$K$4:$K$78),--($K$4:$K$78>0))+1,0) -> 5 | M4: =(IF('Shooter Information'!H6=1,"MDQ",IF(J4=1,"SDQ",IF(I4=1,"DNF",SUM(D4+G4+H4+I4+J4))))) -> 0 | O4: =SUM(D4+G4+H4+I4+J4) -> 0
A5: =ROW()-3 -> 2 | B5: ='Shooter Information'!B7 -> Cody Maverick | C5: ='Shooter Information'!C7 -> GF | E5: 20.03 | K5: =MIN(IF('Shooter Information'!H7=1,999.99,(D5*5)+E5-F5+(G5*10)+(H5*30)+(I5*999.99)+(J5*999.99)),999.99) -> 20.03 | L5: =IF(K5>0,SUMPRODUCT(--(K5>$K$4:$K$78),--($K$4:$K$78>0))+1,0) -> 4 | M5: =(IF('Shooter Information'!H7=1,"MDQ",IF(J5=1,"SDQ",IF(I5=1,"DNF",SUM(D5+G5+H5+I5+J5))))) -> 0 | O5: =SUM(D5+G5+H5+I5+J5) -> 0
A6: 3 | B6: ='Shooter Information'!B8 -> Potter County Kid | C6: ='Shooter Information'!C8 -> WW | D6: 1 | E6: 25.71 | K6: =MIN(IF('Shooter Information'!H8=1,999.99,(D6*5)+E6-F6+(G6*10)+(H6*30)+(I6*999.99)+(J6*999.99)),999.99) -> 30.71 | L6: 10 | M6: =(IF('Shooter Information'!H8=1,"MDQ",IF(J6=1,"SDQ",IF(I6=1,"DNF",SUM(D6+G6+H6+I6+J6))))) -> 1 | O6: 1
A7: 4 | B7: ='Shooter Information'!B9 -> Ricochet Kid | C7: ='Shooter Information'!C9 -> W | E7: 25.59 | K7: =MIN(IF('Shooter Information'!H9=1,999.99,(D7*5)+E7-F7+(G7*10)+(H7*30)+(I7*999.99)+(J7*999.99)),999.99) -> 25.59 | L7: 8 | M7: =(IF('Shooter Information'!H9=1,"MDQ",IF(J7=1,"SDQ",IF(I7=1,"DNF",SUM(D7+G7+H7+I7+J7))))) -> 0 | O7: 0
A8: 5 | B8: ='Shooter Information'!B10 -> Flatboat Bob | C8: ='Shooter Information'!C10 -> CBAR | E8: 32.65 | K8: =MIN(IF('Shooter Information'!H10=1,999.99,(D8*5)+E8-F8+(G8*10)+(H8*30)+(I8*999.99)+(J8*999.99)),999.99) -> 32.65 | L8: 11 | M8: =(IF('Shooter Information'!H10=1,"MDQ",IF(J8=1,"SDQ",IF(I8=1,"DNF",SUM(D8+G8+H8+I8+J8))))) -> 0 | O8: 0
A9: 6 | B9: ='Shooter Information'!B11 -> Hotshod | C9: ='Shooter Information'!C11 -> W | E9: 34.57 | K9: =MIN(IF('Shooter Information'!H11=1,999.99,(D9*5)+E9-F9+(G9*10)+(H9*30)+(I9*999.99)+(J9*999.99)),999.99) -> 34.57 | L9: 12 | M9: =(IF('Shooter Information'!H11=1,"MDQ",IF(J9=1,"SDQ",IF(I9=1,"DNF",SUM(D9+G9+H9+I9+J9))))) -> 0 | O9: 0
A10: 7 | B10: ='Shooter Information'!B12 -> Prairie City Slim | C10: ='Shooter Information'!C12 -> ES | E10: 25.52 | K10: =MIN(IF('Shooter Information'!H12=1,999.99,(D10*5)+E10-F10+(G10*10)+(H10*30)+(I10*999.99)+(J10*999.99)),999.99) -> 25.52 | L10: 7 | M10: =(IF('Shooter Information'!H12=1,"MDQ",IF(J10=1,"SDQ",IF(I10=1,"DNF",SUM(D10+G10+H10+I10+J10))))) -> 0 | O10: 0
A11: 8 | B11: ='Shooter Information'!B13 -> Regret Schofield | C11: ='Shooter Information'!C13 -> 49er | E11: 43.22 | K11: =MIN(IF('Shooter Information'!H13=1,999.99,(D11*5)+E11-F11+(G11*10)+(H11*30)+(I11*999.99)+(J11*999.99)),999.99) -> 43.22 | L11: 13 | M11: =(IF('Shooter Information'!H13=1,"MDQ",IF(J11=1,"SDQ",IF(I11=1,"DNF",SUM(D11+G11+H11+I11+J11))))) -> 0 | O11: 0
A12: 9 | B12: ='Shooter Information'!B14 -> Tumble Weed Tink | C12: ='Shooter Information'!C14 -> L49 | E12: 61.13 | K12: =MIN(IF('Shooter Information'!H14=1,999.99,(D12*5)+E12-F12+(G12*10)+(H12*30)+(I12*999.99)+(J12*999.99)),999.99) -> 61.13 | L12: 16 | M12: =(IF('Shooter Information'!H14=1,"MDQ",IF(J12=1,"SDQ",IF(I12=1,"DNF",SUM(D12+G12+H12+I12+J12))))) -> 0 | O12: 0
A13: 10 | B13: ='Shooter Information'!B15 -> One Eyed Jane | C13: ='Shooter Information'!C15 -> LSS | E13: 51.81 | K13: =MIN(IF('Shooter Information'!H15=1,999.99,(D13*5)+E13-F13+(G13*10)+(H13*30)+(I13*999.99)+(J13*999.99)),999.99) -> 51.81 | L13: 15 | M13: =(IF('Shooter Information'!H15=1,"MDQ",IF(J13=1,"SDQ",IF(I13=1,"DNF",SUM(D13+G13+H13+I13+J13))))) -> 0 | O13: 0
A14: 11 | B14: ='Shooter Information'!B16 -> Stogie | C14: ='Shooter Information'!C16 -> 49er | E14: 36.08 | G14: 1 | K14: =MIN(IF('Shooter Information'!H16=1,999.99,(D14*5)+E14-F14+(G14*10)+(H14*30)+(I14*999.99)+(J14*999.99)),999.99) -> 46.08 | L14: 14 | M14: =(IF('Shooter Information'!H16=1,"MDQ",IF(J14=1,"SDQ",IF(I14=1,"DNF",SUM(D14+G14+H14+I14+J14))))) -> 1 | O14: 1
A15: 12 | B15: ='Shooter Information'!B17 -> Major BS Walker | C15: ='Shooter Information'!C17 -> WW | E15: 19.81 | K15: =MIN(IF('Shooter Information'!H17=1,999.99,(D15*5)+E15-F15+(G15*10)+(H15*30)+(I15*999.99)+(J15*999.99)),999.99) -> 19.81 | L15: 2 | M15: =(IF('Shooter Information'!H17=1,"MDQ",IF(J15=1,"SDQ",IF(I15=1,"DNF",SUM(D15+G15+H15+I15+J15))))) -> 0 | O15: 0
A16: 13 | B16: ='Shooter Information'!B18 -> Sassy Shooting Sours | C16: ='Shooter Information'!C18 -> S | E16: 25 | K16: =MIN(IF('Shooter Information'!H18=1,999.99,(D16*5)+E16-F16+(G16*10)+(H16*30)+(I16*999.99)+(J16*999.99)),999.99) -> 25 | L16: 6 | M16: =(IF('Shooter Information'!H18=1,"MDQ",IF(J16=1,"SDQ",IF(I16=1,"DNF",SUM(D16+G16+H16+I16+J16))))) -> 0 | O16: 0
A17: 14 | B17: ='Shooter Information'!B19 -> Lefty Spurmaker | C17: ='Shooter Information'!C19 -> S | E17: 18.02 | K17: =MIN(IF('Shooter Information'!H19=1,999.99,(D17*5)+E17-F17+(G17*10)+(H17*30)+(I17*999.99)+(J17*999.99)),999.99) -> 18.02 | L17: 1 | M17: =(IF('Shooter Information'!H19=1,"MDQ",IF(J17=1,"SDQ",IF(I17=1,"DNF",SUM(D17+G17+H17+I17+J17))))) -> 0 | O17: 0
A18: 15 | B18: ='Shooter Information'!B20 -> Windhorse Rider | C18: ='Shooter Information'!C20 -> GF | E18: 28.2 | K18: =MIN(IF('Shooter Information'!H20=1,999.99,(D18*5)+E18-F18+(G18*10)+(H18*30)+(I18*999.99)+(J18*999.99)),999.99) -> 28.2 | L18: 9 | M18: =(IF('Shooter Information'!H20=1,"MDQ",IF(J18=1,"SDQ",IF(I18=1,"DNF",SUM(D18+G18+H18+I18+J18))))) -> 0 | O18: 0
A19: 16 | B19: ='Shooter Information'!B21 -> Red Cavanaugh | C19: ='Shooter Information'!C21 -> 49er | E19: 20.01 | K19: =MIN(IF('Shooter Information'!H21=1,999.99,(D19*5)+E19-F19+(G19*10)+(H19*30)+(I19*999.99)+(J19*999.99)),999.99) -> 20.01 | L19: 3 | M19: =(IF('Shooter Information'!H21=1,"MDQ",IF(J19=1,"SDQ",IF(I19=1,"DNF",SUM(D19+G19+H19+I19+J19))))) -> 0 | O19: 0
A20: 17 | B20: ='Shooter Information'!B22 -> 0 | C20: ='Shooter Information'!C22 -> 0 | K20: =MIN(IF('Shooter Information'!H22=1,999.99,(D20*5)+E20-F20+(G20*10)+(H20*30)+(I20*999.99)+(J20*999.99)),999.99) -> 0 | L20: 0 | M20: =(IF('Shooter Information'!H22=1,"MDQ",IF(J20=1,"SDQ",IF(I20=1,"DNF",SUM(D20+G20+H20+I20+J20))))) -> 0 | O20: 0
A21: 18 | B21: ='Shooter Information'!B23 -> 0 | C21: ='Shooter Information'!C23 -> 0 | K21: =MIN(IF('Shooter Information'!H23=1,999.99,(D21*5)+E21-F21+(G21*10)+(H21*30)+(I21*999.99)+(J21*999.99)),999.99) -> 0 | L21: 0 | M21: =(IF('Shooter Information'!H23=1,"MDQ",IF(J21=1,"SDQ",IF(I21=1,"DNF",SUM(D21+G21+H21+I21+J21))))) -> 0 | O21: 0
A22: 19 | B22: ='Shooter Information'!B24 -> 0 | C22: ='Shooter Information'!C24 -> 0 | K22: =MIN(IF('Shooter Information'!H24=1,999.99,(D22*5)+E22-F22+(G22*10)+(H22*30)+(I22*999.99)+(J22*999.99)),999.99) -> 0 | L22: 0 | M22: =(IF('Shooter Information'!H24=1,"MDQ",IF(J22=1,"SDQ",IF(I22=1,"DNF",SUM(D22+G22+H22+I22+J22))))) -> 0 | O22: 0
A23: 20 | B23: ='Shooter Information'!B25 -> 0 | C23: ='Shooter Information'!C25 -> 0 | K23: =MIN(IF('Shooter Information'!H25=1,999.99,(D23*5)+E23-F23+(G23*10)+(H23*30)+(I23*999.99)+(J23*999.99)),999.99) -> 0 | L23: 0 | M23: =(IF('Shooter Information'!H25=1,"MDQ",IF(J23=1,"SDQ",IF(I23=1,"DNF",SUM(D23+G23+H23+I23+J23))))) -> 0 | O23: 0
A24: 21 | B24: ='Shooter Information'!B26 -> 0 | C24: ='Shooter Information'!C26 -> 0 | K24: =MIN(IF('Shooter Information'!H26=1,999.99,(D24*5)+E24-F24+(G24*10)+(H24*30)+(I24*999.99)+(J24*999.99)),999.99) -> 0 | L24: 0 | M24: =(IF('Shooter Information'!H26=1,"MDQ",IF(J24=1,"SDQ",IF(I24=1,"DNF",SUM(D24+G24+H24+I24+J24))))) -> 0 | O24: 0
A25: 22 | B25: ='Shooter Information'!B27 -> 0 | C25: ='Shooter Information'!C27 -> 0 | K25: =MIN(IF('Shooter Information'!H27=1,999.99,(D25*5)+E25-F25+(G25*10)+(H25*30)+(I25*999.99)+(J25*999.99)),999.99) -> 0 | L25: 0 | M25: =(IF('Shooter Information'!H27=1,"MDQ",IF(J25=1,"SDQ",IF(I25=1,"DNF",SUM(D25+G25+H25+I25+J25))))) -> 0 | O25: 0
A26: 23 | B26: ='Shooter Information'!B28 -> 0 | C26: ='Shooter Information'!C28 -> 0 | K26: =MIN(IF('Shooter Information'!H28=1,999.99,(D26*5)+E26-F26+(G26*10)+(H26*30)+(I26*999.99)+(J26*999.99)),999.99) -> 0 | L26: 0 | M26: =(IF('Shooter Information'!H28=1,"MDQ",IF(J26=1,"SDQ",IF(I26=1,"DNF",SUM(D26+G26+H26+I26+J26))))) -> 0 | O26: 0
A27: 24 | B27: ='Shooter Information'!B29 -> 0 | C27: ='Shooter Information'!C29 -> 0 | K27: =MIN(IF('Shooter Information'!H29=1,999.99,(D27*5)+E27-F27+(G27*10)+(H27*30)+(I27*999.99)+(J27*999.99)),999.99) -> 0 | L27: 0 | M27: =(IF('Shooter Information'!H29=1,"MDQ",IF(J27=1,"SDQ",IF(I27=1,"DNF",SUM(D27+G27+H27+I27+J27))))) -> 0 | O27: 0
A28: 25 | B28: ='Shooter Information'!B30 -> 0 | C28: ='Shooter Information'!C30 -> 0 | K28: =MIN(IF('Shooter Information'!H30=1,999.99,(D28*5)+E28-F28+(G28*10)+(H28*30)+(I28*999.99)+(J28*999.99)),999.99) -> 0 | L28: 0 | M28: =(IF('Shooter Information'!H30=1,"MDQ",IF(J28=1,"SDQ",IF(I28=1,"DNF",SUM(D28+G28+H28+I28+J28))))) -> 0 | O28: 0
A29: 26 | B29: ='Shooter Information'!B31 -> 0 | C29: ='Shooter Information'!C31 -> 0 | K29: =MIN(IF('Shooter Information'!H31=1,999.99,(D29*5)+E29-F29+(G29*10)+(H29*30)+(I29*999.99)+(J29*999.99)),999.99) -> 0 | L29: 0 | M29: =(IF('Shooter Information'!H31=1,"MDQ",IF(J29=1,"SDQ",IF(I29=1,"DNF",SUM(D29+G29+H29+I29+J29))))) -> 0 | O29: 0
A30: 27 | B30: ='Shooter Information'!B32 -> 0 | C30: ='Shooter Information'!C32 -> 0 | K30: =MIN(IF('Shooter Information'!H32=1,999.99,(D30*5)+E30-F30+(G30*10)+(H30*30)+(I30*999.99)+(J30*999.99)),999.99) -> 0 | L30: 0 | M30: =(IF('Shooter Information'!H32=1,"MDQ",IF(J30=1,"SDQ",IF(I30=1,"DNF",SUM(D30+G30+H30+I30+J30))))) -> 0 | O30: 0
A31: 28 | B31: ='Shooter Information'!B33 -> 0 | C31: ='Shooter Information'!C33 -> 0 | K31: =MIN(IF('Shooter Information'!H33=1,999.99,(D31*5)+E31-F31+(G31*10)+(H31*30)+(I31*999.99)+(J31*999.99)),999.99) -> 0 | L31: 0 | M31: =(IF('Shooter Information'!H33=1,"MDQ",IF(J31=1,"SDQ",IF(I31=1,"DNF",SUM(D31+G31+H31+I31+J31))))) -> 0 | O31: 0
A32: 29 | B32: ='Shooter Information'!B34 -> 0 | C32: ='Shooter Information'!C34 -> 0 | K32: =MIN(IF('Shooter Information'!H34=1,999.99,(D32*5)+E32-F32+(G32*10)+(H32*30)+(I32*999.99)+(J32*999.99)),999.99) -> 0 | L32: 0 | M32: =(IF('Shooter Information'!H34=1,"MDQ",IF(J32=1,"SDQ",IF(I32=1,"DNF",SUM(D32+G32+H32+I32+J32))))) -> 0 | O32: 0
A33: 30 | B33: ='Shooter Information'!B35 -> 0 | C33: ='Shooter Information'!C35 -> 0 | K33: =MIN(IF('Shooter Information'!H35=1,999.99,(D33*5)+E33-F33+(G33*10)+(H33*30)+(I33*999.99)+(J33*999.99)),999.99) -> 0 | L33: 0 | M33: =(IF('Shooter Information'!H35=1,"MDQ",IF(J33=1,"SDQ",IF(I33=1,"DNF",SUM(D33+G33+H33+I33+J33))))) -> 0 | O33: 0
A34: 31 | B34: ='Shooter Information'!B36 -> 0 | C34: ='Shooter Information'!C36 -> 0 | K34: =MIN(IF('Shooter Information'!H36=1,999.99,(D34*5)+E34-F34+(G34*10)+(H34*30)+(I34*999.99)+(J34*999.99)),999.99) -> 0 | L34: 0 | M34: =(IF('Shooter Information'!H36=1,"MDQ",IF(J34=1,"SDQ",IF(I34=1,"DNF",SUM(D34+G34+H34+I34+J34))))) -> 0 | O34: 0
A35: 32 | B35: ='Shooter Information'!B37 -> 0 | C35: ='Shooter Information'!C37 -> 0 | K35: =MIN(IF('Shooter Information'!H37=1,999.99,(D35*5)+E35-F35+(G35*10)+(H35*30)+(I35*999.99)+(J35*999.99)),999.99) -> 0 | L35: 0 | M35: =(IF('Shooter Information'!H37=1,"MDQ",IF(J35=1,"SDQ",IF(I35=1,"DNF",SUM(D35+G35+H35+I35+J35))))) -> 0 | O35: 0
A36: 33 | B36: ='Shooter Information'!B38 -> 0 | C36: ='Shooter Information'!C38 -> 0 | K36: =MIN(IF('Shooter Information'!H38=1,999.99,(D36*5)+E36-F36+(G36*10)+(H36*30)+(I36*999.99)+(J36*999.99)),999.99) -> 0 | L36: 0 | M36: =(IF('Shooter Information'!H38=1,"MDQ",IF(J36=1,"SDQ",IF(I36=1,"DNF",SUM(D36+G36+H36+I36+J36))))) -> 0 | O36: 0
A37: 34 | B37: ='Shooter Information'!B39 -> 0 | C37: ='Shooter Information'!C39 -> 0 | K37: =MIN(IF('Shooter Information'!H39=1,999.99,(D37*5)+E37-F37+(G37*10)+(H37*30)+(I37*999.99)+(J37*999.99)),999.99) -> 0 | L37: 0 | M37: =(IF('Shooter Information'!H39=1,"MDQ",IF(J37=1,"SDQ",IF(I37=1,"DNF",SUM(D37+G37+H37+I37+J37))))) -> 0 | O37: 0
A38: 35 | B38: ='Shooter Information'!B40 -> 0 | C38: ='Shooter Information'!C40 -> 0 | K38: =MIN(IF('Shooter Information'!H40=1,999.99,(D38*5)+E38-F38+(G38*10)+(H38*30)+(I38*999.99)+(J38*999.99)),999.99) -> 0 | L38: 0 | M38: =(IF('Shooter Information'!H40=1,"MDQ",IF(J38=1,"SDQ",IF(I38=1,"DNF",SUM(D38+G38+H38+I38+J38))))) -> 0 | O38: 0
A39: 36 | B39: ='Shooter Information'!B41 -> 0 | C39: ='Shooter Information'!C41 -> 0 | K39: =MIN(IF('Shooter Information'!H41=1,999.99,(D39*5)+E39-F39+(G39*10)+(H39*30)+(I39*999.99)+(J39*999.99)),999.99) -> 0 | L39: 0 | M39: =(IF('Shooter Information'!H41=1,"MDQ",IF(J39=1,"SDQ",IF(I39=1,"DNF",SUM(D39+G39+H39+I39+J39))))) -> 0 | O39: 0
A40: 37 | B40: ='Shooter Information'!B42 -> 0 | C40: ='Shooter Information'!C42 -> 0 | K40: =MIN(IF('Shooter Information'!H42=1,999.99,(D40*5)+E40-F40+(G40*10)+(H40*30)+(I40*999.99)+(J40*999.99)),999.99) -> 0 | L40: 0 | M40: =(IF('Shooter Information'!H42=1,"MDQ",IF(J40=1,"SDQ",IF(I40=1,"DNF",SUM(D40+G40+H40+I40+J40))))) -> 0 | O40: 0
A41: 38 | B41: ='Shooter Information'!B43 -> 0 | C41: ='Shooter Information'!C43 -> 0 | K41: =MIN(IF('Shooter Information'!H43=1,999.99,(D41*5)+E41-F41+(G41*10)+(H41*30)+(I41*999.99)+(J41*999.99)),999.99) -> 0 | L41: 0 | M41: =(IF('Shooter Information'!H43=1,"MDQ",IF(J41=1,"SDQ",IF(I41=1,"DNF",SUM(D41+G41+H41+I41+J41))))) -> 0 | O41: 0
A42: 39 | B42: ='Shooter Information'!B44 -> 0 | C42: ='Shooter Information'!C44 -> 0 | K42: =MIN(IF('Shooter Information'!H44=1,999.99,(D42*5)+E42-F42+(G42*10)+(H42*30)+(I42*999.99)+(J42*999.99)),999.99) -> 0 | L42: 0 | M42: =(IF('Shooter Information'!H44=1,"MDQ",IF(J42=1,"SDQ",IF(I42=1,"DNF",SUM(D42+G42+H42+I42+J42))))) -> 0 | O42: 0
A43: 40 | B43: ='Shooter Information'!B45 -> 0 | C43: ='Shooter Information'!C45 -> 0 | K43: =MIN(IF('Shooter Information'!H45=1,999.99,(D43*5)+E43-F43+(G43*10)+(H43*30)+(I43*999.99)+(J43*999.99)),999.99) -> 0 | L43: 0 | M43: =(IF('Shooter Information'!H45=1,"MDQ",IF(J43=1,"SDQ",IF(I43=1,"DNF",SUM(D43+G43+H43+I43+J43))))) -> 0 | O43: 0
A44: 41 | B44: ='Shooter Information'!B46 -> 0 | C44: ='Shooter Information'!C46 -> 0 | K44: =MIN(IF('Shooter Information'!H46=1,999.99,(D44*5)+E44-F44+(G44*10)+(H44*30)+(I44*999.99)+(J44*999.99)),999.99) -> 0 | L44: 0 | M44: =(IF('Shooter Information'!H46=1,"MDQ",IF(J44=1,"SDQ",IF(I44=1,"DNF",SUM(D44+G44+H44+I44+J44))))) -> 0 | O44: 0
A45: 42 | B45: ='Shooter Information'!B47 -> 0 | C45: ='Shooter Information'!C47 -> 0 | K45: =MIN(IF('Shooter Information'!H47=1,999.99,(D45*5)+E45-F45+(G45*10)+(H45*30)+(I45*999.99)+(J45*999.99)),999.99) -> 0 | L45: 0 | M45: =(IF('Shooter Information'!H47=1,"MDQ",IF(J45=1,"SDQ",IF(I45=1,"DNF",SUM(D45+G45+H45+I45+J45))))) -> 0 | O45: 0
A46: 43 | B46: ='Shooter Information'!B48 -> 0 | C46: ='Shooter Information'!C48 -> 0 | K46: =MIN(IF('Shooter Information'!H48=1,999.99,(D46*5)+E46-F46+(G46*10)+(H46*30)+(I46*999.99)+(J46*999.99)),999.99) -> 0 | L46: 0 | M46: =(IF('Shooter Information'!H48=1,"MDQ",IF(J46=1,"SDQ",IF(I46=1,"DNF",SUM(D46+G46+H46+I46+J46))))) -> 0 | O46: 0
A47: 44 | B47: ='Shooter Information'!B49 -> 0 | C47: ='Shooter Information'!C49 -> 0 | K47: =MIN(IF('Shooter Information'!H49=1,999.99,(D47*5)+E47-F47+(G47*10)+(H47*30)+(I47*999.99)+(J47*999.99)),999.99) -> 0 | L47: 0 | M47: =(IF('Shooter Information'!H49=1,"MDQ",IF(J47=1,"SDQ",IF(I47=1,"DNF",SUM(D47+G47+H47+I47+J47))))) -> 0 | O47: 0
A48: 45 | B48: ='Shooter Information'!B50 -> 0 | C48: ='Shooter Information'!C50 -> 0 | K48: =MIN(IF('Shooter Information'!H50=1,999.99,(D48*5)+E48-F48+(G48*10)+(H48*30)+(I48*999.99)+(J48*999.99)),999.99) -> 0 | L48: 0 | M48: =(IF('Shooter Information'!H50=1,"MDQ",IF(J48=1,"SDQ",IF(I48=1,"DNF",SUM(D48+G48+H48+I48+J48))))) -> 0 | O48: 0
A49: 46 | B49: ='Shooter Information'!B51 -> 0 | C49: ='Shooter Information'!C51 -> 0 | K49: =MIN(IF('Shooter Information'!H51=1,999.99,(D49*5)+E49-F49+(G49*10)+(H49*30)+(I49*999.99)+(J49*999.99)),999.99) -> 0 | L49: 0 | M49: =(IF('Shooter Information'!H51=1,"MDQ",IF(J49=1,"SDQ",IF(I49=1,"DNF",SUM(D49+G49+H49+I49+J49))))) -> 0 | O49: 0
A50: 47 | B50: ='Shooter Information'!B52 -> 0 | C50: ='Shooter Information'!C52 -> 0 | K50: =MIN(IF('Shooter Information'!H52=1,999.99,(D50*5)+E50-F50+(G50*10)+(H50*30)+(I50*999.99)+(J50*999.99)),999.99) -> 0 | L50: 0 | M50: =(IF('Shooter Information'!H52=1,"MDQ",IF(J50=1,"SDQ",IF(I50=1,"DNF",SUM(D50+G50+H50+I50+J50))))) -> 0 | O50: 0
A51: 48 | B51: ='Shooter Information'!B53 -> 0 | C51: ='Shooter Information'!C53 -> 0 | K51: =MIN(IF('Shooter Information'!H53=1,999.99,(D51*5)+E51-F51+(G51*10)+(H51*30)+(I51*999.99)+(J51*999.99)),999.99) -> 0 | L51: 0 | M51: =(IF('Shooter Information'!H53=1,"MDQ",IF(J51=1,"SDQ",IF(I51=1,"DNF",SUM(D51+G51+H51+I51+J51))))) -> 0 | O51: 0
A52: 49 | B52: ='Shooter Information'!B54 -> 0 | C52: ='Shooter Information'!C54 -> 0 | K52: =MIN(IF('Shooter Information'!H54=1,999.99,(D52*5)+E52-F52+(G52*10)+(H52*30)+(I52*999.99)+(J52*999.99)),999.99) -> 0 | L52: 0 | M52: =(IF('Shooter Information'!H54=1,"MDQ",IF(J52=1,"SDQ",IF(I52=1,"DNF",SUM(D52+G52+H52+I52+J52))))) -> 0 | O52: 0
A53: 50 | B53: ='Shooter Information'!B55 -> 0 | C53: ='Shooter Information'!C55 -> 0 | K53: =MIN(IF('Shooter Information'!H55=1,999.99,(D53*5)+E53-F53+(G53*10)+(H53*30)+(I53*999.99)+(J53*999.99)),999.99) -> 0 | L53: 0 | M53: =(IF('Shooter Information'!H55=1,"MDQ",IF(J53=1,"SDQ",IF(I53=1,"DNF",SUM(D53+G53+H53+I53+J53))))) -> 0 | O53: 0
A54: 51 | B54: ='Shooter Information'!B56 -> 0 | C54: ='Shooter Information'!C56 -> 0 | K54: =MIN(IF('Shooter Information'!H56=1,999.99,(D54*5)+E54-F54+(G54*10)+(H54*30)+(I54*999.99)+(J54*999.99)),999.99) -> 0 | L54: 0 | M54: =(IF('Shooter Information'!H56=1,"MDQ",IF(J54=1,"SDQ",IF(I54=1,"DNF",SUM(D54+G54+H54+I54+J54))))) -> 0 | O54: 0
A55: 52 | B55: ='Shooter Information'!B57 -> 0 | C55: ='Shooter Information'!C57 -> 0 | K55: =MIN(IF('Shooter Information'!H57=1,999.99,(D55*5)+E55-F55+(G55*10)+(H55*30)+(I55*999.99)+(J55*999.99)),999.99) -> 0 | L55: 0 | M55: =(IF('Shooter Information'!H57=1,"MDQ",IF(J55=1,"SDQ",IF(I55=1,"DNF",SUM(D55+G55+H55+I55+J55))))) -> 0 | O55: 0
A56: 53 | B56: ='Shooter Information'!B58 -> 0 | C56: ='Shooter Information'!C58 -> 0 | K56: =MIN(IF('Shooter Information'!H58=1,999.99,(D56*5)+E56-F56+(G56*10)+(H56*30)+(I56*999.99)+(J56*999.99)),999.99) -> 0 | L56: 0 | M56: =(IF('Shooter Information'!H58=1,"MDQ",IF(J56=1,"SDQ",IF(I56=1,"DNF",SUM(D56+G56+H56+I56+J56))))) -> 0 | O56: 0
A57: 54 | B57: ='Shooter Information'!B59 -> 0 | C57: ='Shooter Information'!C59 -> 0 | K57: =MIN(IF('Shooter Information'!H59=1,999.99,(D57*5)+E57-F57+(G57*10)+(H57*30)+(I57*999.99)+(J57*999.99)),999.99) -> 0 | L57: 0 | M57: =(IF('Shooter Information'!H59=1,"MDQ",IF(J57=1,"SDQ",IF(I57=1,"DNF",SUM(D57+G57+H57+I57+J57))))) -> 0 | O57: 0
A58: 55 | B58: ='Shooter Information'!B60 -> 0 | C58: ='Shooter Information'!C60 -> 0 | K58: =MIN(IF('Shooter Information'!H60=1,999.99,(D58*5)+E58-F58+(G58*10)+(H58*30)+(I58*999.99)+(J58*999.99)),999.99) -> 0 | L58: 0 | M58: =(IF('Shooter Information'!H60=1,"MDQ",IF(J58=1,"SDQ",IF(I58=1,"DNF",SUM(D58+G58+H58+I58+J58))))) -> 0 | O58: 0
A59: 56 | B59: ='Shooter Information'!B61 -> 0 | C59: ='Shooter Information'!C61 -> 0 | K59: =MIN(IF('Shooter Information'!H61=1,999.99,(D59*5)+E59-F59+(G59*10)+(H59*30)+(I59*999.99)+(J59*999.99)),999.99) -> 0 | L59: 0 | M59: =(IF('Shooter Information'!H61=1,"MDQ",IF(J59=1,"SDQ",IF(I59=1,"DNF",SUM(D59+G59+H59+I59+J59))))) -> 0 | O59: 0
A60: 57 | B60: ='Shooter Information'!B62 -> 0 | C60: ='Shooter Information'!C62 -> 0 | K60: =MIN(IF('Shooter Information'!H62=1,999.99,(D60*5)+E60-F60+(G60*10)+(H60*30)+(I60*999.99)+(J60*999.99)),999.99) -> 0 | L60: 0 | M60: =(IF('Shooter Information'!H62=1,"MDQ",IF(J60=1,"SDQ",IF(I60=1,"DNF",SUM(D60+G60+H60+I60+J60))))) -> 0 | O60: 0
A61: 58 | B61: ='Shooter Information'!B63 -> 0 | C61: ='Shooter Information'!C63 -> 0 | K61: =MIN(IF('Shooter Information'!H63=1,999.99,(D61*5)+E61-F61+(G61*10)+(H61*30)+(I61*999.99)+(J61*999.99)),999.99) -> 0 | L61: 0 | M61: =(IF('Shooter Information'!H63=1,"MDQ",IF(J61=1,"SDQ",IF(I61=1,"DNF",SUM(D61+G61+H61+I61+J61))))) -> 0 | O61: 0
A62: 59 | B62: ='Shooter Information'!B64 -> 0 | C62: ='Shooter Information'!C64 -> 0 | K62: =MIN(IF('Shooter Information'!H64=1,999.99,(D62*5)+E62-F62+(G62*10)+(H62*30)+(I62*999.99)+(J62*999.99)),999.99) -> 0 | L62: 0 | M62: =(IF('Shooter Information'!H64=1,"MDQ",IF(J62=1,"SDQ",IF(I62=1,"DNF",SUM(D62+G62+H62+I62+J62))))) -> 0 | O62: 0
A63: 60 | B63: ='Shooter Information'!B65 -> 0 | C63: ='Shooter Information'!C65 -> 0 | K63: =MIN(IF('Shooter Information'!H65=1,999.99,(D63*5)+E63-F63+(G63*10)+(H63*30)+(I63*999.99)+(J63*999.99)),999.99) -> 0 | L63: 0 | M63: =(IF('Shooter Information'!H65=1,"MDQ",IF(J63=1,"SDQ",IF(I63=1,"DNF",SUM(D63+G63+H63+I63+J63))))) -> 0 | O63: 0
A64: 61 | B64: ='Shooter Information'!B66 -> 0 | C64: ='Shooter Information'!C66 -> 0 | K64: =MIN(IF('Shooter Information'!H66=1,999.99,(D64*5)+E64-F64+(G64*10)+(H64*30)+(I64*999.99)+(J64*999.99)),999.99) -> 0 | L64: 0 | M64: =(IF('Shooter Information'!H66=1,"MDQ",IF(J64=1,"SDQ",IF(I64=1,"DNF",SUM(D64+G64+H64+I64+J64))))) -> 0 | O64: 0
A65: 62 | B65: ='Shooter Information'!B67 -> 0 | C65: ='Shooter Information'!C67 -> 0 | K65: =MIN(IF('Shooter Information'!H67=1,999.99,(D65*5)+E65-F65+(G65*10)+(H65*30)+(I65*999.99)+(J65*999.99)),999.99) -> 0 | L65: 0 | M65: =(IF('Shooter Information'!H67=1,"MDQ",IF(J65=1,"SDQ",IF(I65=1,"DNF",SUM(D65+G65+H65+I65+J65))))) -> 0 | O65: 0
A66: 63 | B66: ='Shooter Information'!B68 -> 0 | C66: ='Shooter Information'!C68 -> 0 | K66: =MIN(IF('Shooter Information'!H68=1,999.99,(D66*5)+E66-F66+(G66*10)+(H66*30)+(I66*999.99)+(J66*999.99)),999.99) -> 0 | L66: 0 | M66: =(IF('Shooter Information'!H68=1,"MDQ",IF(J66=1,"SDQ",IF(I66=1,"DNF",SUM(D66+G66+H66+I66+J66))))) -> 0 | O66: 0
A67: 64 | B67: ='Shooter Information'!B69 -> 0 | C67: ='Shooter Information'!C69 -> 0 | K67: =MIN(IF('Shooter Information'!H69=1,999.99,(D67*5)+E67-F67+(G67*10)+(H67*30)+(I67*999.99)+(J67*999.99)),999.99) -> 0 | L67: 0 | M67: =(IF('Shooter Information'!H69=1,"MDQ",IF(J67=1,"SDQ",IF(I67=1,"DNF",SUM(D67+G67+H67+I67+J67))))) -> 0 | O67: 0
A68: 65 | B68: ='Shooter Information'!B70 -> 0 | C68: ='Shooter Information'!C70 -> 0 | K68: =MIN(IF('Shooter Information'!H70=1,999.99,(D68*5)+E68-F68+(G68*10)+(H68*30)+(I68*999.99)+(J68*999.99)),999.99) -> 0 | L68: 0 | M68: =(IF('Shooter Information'!H70=1,"MDQ",IF(J68=1,"SDQ",IF(I68=1,"DNF",SUM(D68+G68+H68+I68+J68))))) -> 0 | O68: 0
A69: 66 | B69: ='Shooter Information'!B71 -> 0 | C69: ='Shooter Information'!C71 -> 0 | K69: =MIN(IF('Shooter Information'!H71=1,999.99,(D69*5)+E69-F69+(G69*10)+(H69*30)+(I69*999.99)+(J69*999.99)),999.99) -> 0 | L69: =IF(K69>0,SUMPRODUCT(--(K69>$K$4:$K$78),--($K$4:$K$78>0))+1,0) -> 0 | M69: =(IF('Shooter Information'!H71=1,"MDQ",IF(J69=1,"SDQ",IF(I69=1,"DNF",SUM(D69+G69+H69+I69+J69))))) -> 0 | O69: =SUM(D69+G69+H69+I69+J69) -> 0
A70: 67 | B70: ='Shooter Information'!B72 -> 0 | C70: ='Shooter Information'!C72 -> 0 | K70: =MIN(IF('Shooter Information'!H72=1,999.99,(D70*5)+E70-F70+(G70*10)+(H70*30)+(I70*999.99)+(J70*999.99)),999.99) -> 0 | L70: 0 | M70: =(IF('Shooter Information'!H72=1,"MDQ",IF(J70=1,"SDQ",IF(I70=1,"DNF",SUM(D70+G70+H70+I70+J70))))) -> 0 | O70: 0
A71: 68 | B71: ='Shooter Information'!B73 -> 0 | C71: ='Shooter Information'!C73 -> 0 | K71: =MIN(IF('Shooter Information'!H73=1,999.99,(D71*5)+E71-F71+(G71*10)+(H71*30)+(I71*999.99)+(J71*999.99)),999.99) -> 0 | L71: 0 | M71: =(IF('Shooter Information'!H73=1,"MDQ",IF(J71=1,"SDQ",IF(I71=1,"DNF",SUM(D71+G71+H71+I71+J71))))) -> 0 | O71: 0
A72: 69 | B72: ='Shooter Information'!B74 -> 0 | C72: ='Shooter Information'!C74 -> 0 | K72: =MIN(IF('Shooter Information'!H74=1,999.99,(D72*5)+E72-F72+(G72*10)+(H72*30)+(I72*999.99)+(J72*999.99)),999.99) -> 0 | L72: 0 | M72: =(IF('Shooter Information'!H74=1,"MDQ",IF(J72=1,"SDQ",IF(I72=1,"DNF",SUM(D72+G72+H72+I72+J72))))) -> 0 | O72: 0
A73: 70 | B73: ='Shooter Information'!B75 -> 0 | C73: ='Shooter Information'!C75 -> 0 | K73: =MIN(IF('Shooter Information'!H75=1,999.99,(D73*5)+E73-F73+(G73*10)+(H73*30)+(I73*999.99)+(J73*999.99)),999.99) -> 0 | L73: 0 | M73: =(IF('Shooter Information'!H75=1,"MDQ",IF(J73=1,"SDQ",IF(I73=1,"DNF",SUM(D73+G73+H73+I73+J73))))) -> 0 | O73: 0
A74: 71 | B74: ='Shooter Information'!B76 -> 0 | C74: ='Shooter Information'!C76 -> 0 | K74: =MIN(IF('Shooter Information'!H76=1,999.99,(D74*5)+E74-F74+(G74*10)+(H74*30)+(I74*999.99)+(J74*999.99)),999.99) -> 0 | L74: 0 | M74: =(IF('Shooter Information'!H76=1,"MDQ",IF(J74=1,"SDQ",IF(I74=1,"DNF",SUM(D74+G74+H74+I74+J74))))) -> 0 | O74: 0
A75: 72 | B75: ='Shooter Information'!B77 -> 0 | C75: ='Shooter Information'!C77 -> 0 | K75: =MIN(IF('Shooter Information'!H77=1,999.99,(D75*5)+E75-F75+(G75*10)+(H75*30)+(I75*999.99)+(J75*999.99)),999.99) -> 0 | L75: 0 | M75: =(IF('Shooter Information'!H77=1,"MDQ",IF(J75=1,"SDQ",IF(I75=1,"DNF",SUM(D75+G75+H75+I75+J75))))) -> 0 | O75: 0
A76: 73 | B76: ='Shooter Information'!B78 -> 0 | C76: ='Shooter Information'!C78 -> 0 | K76: =MIN(IF('Shooter Information'!H78=1,999.99,(D76*5)+E76-F76+(G76*10)+(H76*30)+(I76*999.99)+(J76*999.99)),999.99) -> 0 | L76: 0 | M76: =(IF('Shooter Information'!H78=1,"MDQ",IF(J76=1,"SDQ",IF(I76=1,"DNF",SUM(D76+G76+H76+I76+J76))))) -> 0 | O76: 0
A77: 74 | B77: ='Shooter Information'!B79 -> 0 | C77: ='Shooter Information'!C79 -> 0 | K77: =MIN(IF('Shooter Information'!H79=1,999.99,(D77*5)+E77-F77+(G77*10)+(H77*30)+(I77*999.99)+(J77*999.99)),999.99) -> 0 | L77: 0 | M77: =(IF('Shooter Information'!H79=1,"MDQ",IF(J77=1,"SDQ",IF(I77=1,"DNF",SUM(D77+G77+H77+I77+J77))))) -> 0 | O77: 0
A78: 75 | B78: ='Shooter Information'!B80 -> 0 | C78: ='Shooter Information'!C80 -> 0 | K78: =MIN(IF('Shooter Information'!H80=1,999.99,(D78*5)+E78-F78+(G78*10)+(H78*30)+(I78*999.99)+(J78*999.99)),999.99) -> 0 | L78: 0 | M78: =(IF('Shooter Information'!H80=1,"MDQ",IF(J78=1,"SDQ",IF(I78=1,"DNF",SUM(D78+G78+H78+I78+J78))))) -> 0 | O78: 0

Sheet Stage 4
B1: Stage Input Sheet - Stage 4
A3: Shooter # | B3: Shooter | C3: Class | D3: Misses | E3: Raw Time | F3: Bonus | G3: 10 Sec | H3: 30 Sec | I3: DNF | J3: SDQ | K3: Total | L3: Rank | M3: Penalties | O3: # Penalties
A4: =ROW()-3 -> 1 | B4: ='Shooter Information'!B6 -> Striker | C4: ='Shooter Information'!C6 -> WW | E4: 25.89 | K4: =MIN(IF('Shooter Information'!H6=1,999.99,(D4*5)+E4-F4+(G4*10)+(H4*30)+(I4*999.99)+(J4*999.99)),999.99) -> 25.89 | L4: =IF(K4>0,SUMPRODUCT(--(K4>$K$4:$K$78),--($K$4:$K$78>0))+1,0) -> 3 | M4: =(IF('Shooter Information'!H6=1,"MDQ",IF(J4=1,"SDQ",IF(I4=1,"DNF",SUM(D4+G4+H4+I4+J4))))) -> 0 | O4: =SUM(D4+G4+H4+I4+J4) -> 0
A5: =ROW()-3 -> 2 | B5: ='Shooter Information'!B7 -> Cody Maverick | C5: ='Shooter Information'!C7 -> GF | E5: 26.33 | K5: =MIN(IF('Shooter Information'!H7=1,999.99,(D5*5)+E5-F5+(G5*10)+(H5*30)+(I5*999.99)+(J5*999.99)),999.99) -> 26.33 | L5: =IF(K5>0,SUMPRODUCT(--(K5>$K$4:$K$78),--($K$4:$K$78>0))+1,0) -> 4 | M5: =(IF('Shooter Information'!H7=1,"MDQ",IF(J5=1,"SDQ",IF(I5=1,"DNF",SUM(D5+G5+H5+I5+J5))))) -> 0 | O5: =SUM(D5+G5+H5+I5+J5) -> 0
A6: 3 | B6: ='Shooter Information'!B8 -> Potter County Kid | C6: ='Shooter Information'!C8 -> WW | D6: 1 | E6: 36.66 | K6: =MIN(IF('Shooter Information'!H8=1,999.99,(D6*5)+E6-F6+(G6*10)+(H6*30)+(I6*999.99)+(J6*999.99)),999.99) -> 41.66 | L6: 11 | M6: =(IF('Shooter Information'!H8=1,"MDQ",IF(J6=1,"SDQ",IF(I6=1,"DNF",SUM(D6+G6+H6+I6+J6))))) -> 1 | O6: 1
A7: 4 | B7: ='Shooter Information'!B9 -> Ricochet Kid | C7: ='Shooter Information'!C9 -> W | D7: 2 | E7: 47.1 | K7: =MIN(IF('Shooter Information'!H9=1,999.99,(D7*5)+E7-F7+(G7*10)+(H7*30)+(I7*999.99)+(J7*999.99)),999.99) -> 57.1 | L7: 14 | M7: =(IF('Shooter Information'!H9=1,"MDQ",IF(J7=1,"SDQ",IF(I7=1,"DNF",SUM(D7+G7+H7+I7+J7))))) -> 2 | O7: 2
A8: 5 | B8: ='Shooter Information'!B10 -> Flatboat Bob | C8: ='Shooter Information'!C10 -> CBAR | E8: 30.79 | K8: =MIN(IF('Shooter Information'!H10=1,999.99,(D8*5)+E8-F8+(G8*10)+(H8*30)+(I8*999.99)+(J8*999.99)),999.99) -> 30.79 | L8: 8 | M8: =(IF('Shooter Information'!H10=1,"MDQ",IF(J8=1,"SDQ",IF(I8=1,"DNF",SUM(D8+G8+H8+I8+J8))))) -> 0 | O8: 0
A9: 6 | B9: ='Shooter Information'!B11 -> Hotshod | C9: ='Shooter Information'!C11 -> W | E9: 29.61 | K9: =MIN(IF('Shooter Information'!H11=1,999.99,(D9*5)+E9-F9+(G9*10)+(H9*30)+(I9*999.99)+(J9*999.99)),999.99) -> 29.61 | L9: 7 | M9: =(IF('Shooter Information'!H11=1,"MDQ",IF(J9=1,"SDQ",IF(I9=1,"DNF",SUM(D9+G9+H9+I9+J9))))) -> 0 | O9: 0
A10: 7 | B10: ='Shooter Information'!B12 -> Prairie City Slim | C10: ='Shooter Information'!C12 -> ES | E10: 32.15 | K10: =MIN(IF('Shooter Information'!H12=1,999.99,(D10*5)+E10-F10+(G10*10)+(H10*30)+(I10*999.99)+(J10*999.99)),999.99) -> 32.15 | L10: 9 | M10: =(IF('Shooter Information'!H12=1,"MDQ",IF(J10=1,"SDQ",IF(I10=1,"DNF",SUM(D10+G10+H10+I10+J10))))) -> 0 | O10: 0
A11: 8 | B11: ='Shooter Information'!B13 -> Regret Schofield | C11: ='Shooter Information'!C13 -> 49er | E11: 61.5 | K11: =MIN(IF('Shooter Information'!H13=1,999.99,(D11*5)+E11-F11+(G11*10)+(H11*30)+(I11*999.99)+(J11*999.99)),999.99) -> 61.5 | L11: 16 | M11: =(IF('Shooter Information'!H13=1,"MDQ",IF(J11=1,"SDQ",IF(I11=1,"DNF",SUM(D11+G11+H11+I11+J11))))) -> 0 | O11: 0
A12: 9 | B12: ='Shooter Information'!B14 -> Tumble Weed Tink | C12: ='Shooter Information'!C14 -> L49 | E12: 51.83 | K12: =MIN(IF('Shooter Information'!H14=1,999.99,(D12*5)+E12-F12+(G12*10)+(H12*30)+(I12*999.99)+(J12*999.99)),999.99) -> 51.83 | L12: 13 | M12: =(IF('Shooter Information'!H14=1,"MDQ",IF(J12=1,"SDQ",IF(I12=1,"DNF",SUM(D12+G12+H12+I12+J12))))) -> 0 | O12: 0
A13: 10 | B13: ='Shooter Information'!B15 -> One Eyed Jane | C13: ='Shooter Information'!C15 -> LSS | E13: 58.58 | K13: =MIN(IF('Shooter Information'!H15=1,999.99,(D13*5)+E13-F13+(G13*10)+(H13*30)+(I13*999.99)+(J13*999.99)),999.99) -> 58.58 | L13: 15 | M13: =(IF('Shooter Information'!H15=1,"MDQ",IF(J13=1,"SDQ",IF(I13=1,"DNF",SUM(D13+G13+H13+I13+J13))))) -> 0 | O13: 0
A14: 11 | B14: ='Shooter Information'!B16 -> Stogie | C14: ='Shooter Information'!C16 -> 49er | E14: 27.61 | K14: =MIN(IF('Shooter Information'!H16=1,999.99,(D14*5)+E14-F14+(G14*10)+(H14*30)+(I14*999.99)+(J14*999.99)),999.99) -> 27.61 | L14: 6 | M14: =(IF('Shooter Information'!H16=1,"MDQ",IF(J14=1,"SDQ",IF(I14=1,"DNF",SUM(D14+G14+H14+I14+J14))))) -> 0 | O14: 0
A15: 12 | B15: ='Shooter Information'!B17 -> Major BS Walker | C15: ='Shooter Information'!C17 -> WW | E15: 27.36 | K15: =MIN(IF('Shooter Information'!H17=1,999.99,(D15*5)+E15-F15+(G15*10)+(H15*30)+(I15*999.99)+(J15*999.99)),999.99) -> 27.36 | L15: 5 | M15: =(IF('Shooter Information'!H17=1,"MDQ",IF(J15=1,"SDQ",IF(I15=1,"DNF",SUM(D15+G15+H15+I15+J15))))) -> 0 | O15: 0
A16: 13 | B16: ='Shooter Information'!B18 -> Sassy Shooting Sours | C16: ='Shooter Information'!C18 -> S | E16: 32.81 | K16: =MIN(IF('Shooter Information'!H18=1,999.99,(D16*5)+E16-F16+(G16*10)+(H16*30)+(I16*999.99)+(J16*999.99)),999.99) -> 32.81 | L16: 10 | M16: =(IF('Shooter Information'!H18=1,"MDQ",IF(J16=1,"SDQ",IF(I16=1,"DNF",SUM(D16+G16+H16+I16+J16))))) -> 0 | O16: 0
A17: 14 | B17: ='Shooter Information'!B19 -> Lefty Spurmaker | C17: ='Shooter Information'!C19 -> S | E17: 25.37 | K17: =MIN(IF('Shooter Information'!H19=1,999.99,(D17*5)+E17-F17+(G17*10)+(H17*30)+(I17*999.99)+(J17*999.99)),999.99) -> 25.37 | L17: 2 | M17: =(IF('Shooter Information'!H19=1,"MDQ",IF(J17=1,"SDQ",IF(I17=1,"DNF",SUM(D17+G17+H17+I17+J17))))) -> 0 | O17: 0
A18: 15 | B18: ='Shooter Information'!B20 -> Windhorse Rider | C18: ='Shooter Information'!C20 -> GF | D18: 1 | E18: 40.87 | K18: =MIN(IF('Shooter Information'!H20=1,999.99,(D18*5)+E18-F18+(G18*10)+(H18*30)+(I18*999.99)+(J18*999.99)),999.99) -> 45.87 | L18: 12 | M18: =(IF('Shooter Information'!H20=1,"MDQ",IF(J18=1,"SDQ",IF(I18=1,"DNF",SUM(D18+G18+H18+I18+J18))))) -> 1 | O18: 1
A19: 16 | B19: ='Shooter Information'!B21 -> Red Cavanaugh | C19: ='Shooter Information'!C21 -> 49er | E19: 23.21 | K19: =MIN(IF('Shooter Information'!H21=1,999.99,(D19*5)+E19-F19+(G19*10)+(H19*30)+(I19*999.99)+(J19*999.99)),999.99) -> 23.21 | L19: 1 | M19: =(IF('Shooter Information'!H21=1,"MDQ",IF(J19=1,"SDQ",IF(I19=1,"DNF",SUM(D19+G19+H19+I19+J19))))) -> 0 | O19: 0
A20: 17 | B20: ='Shooter Information'!B22 -> 0 | C20: ='Shooter Information'!C22 -> 0 | K20: =MIN(IF('Shooter Information'!H22=1,999.99,(D20*5)+E20-F20+(G20*10)+(H20*30)+(I20*999.99)+(J20*999.99)),999.99) -> 0 | L20: 0 | M20: =(IF('Shooter Information'!H22=1,"MDQ",IF(J20=1,"SDQ",IF(I20=1,"DNF",SUM(D20+G20+H20+I20+J20))))) -> 0 | O20: 0
A21: 18 | B21: ='Shooter Information'!B23 -> 0 | C21: ='Shooter Information'!C23 -> 0 | K21: =MIN(IF('Shooter Information'!H23=1,999.99,(D21*5)+E21-F21+(G21*10)+(H21*30)+(I21*999.99)+(J21*999.99)),999.99) -> 0 | L21: 0 | M21: =(IF('Shooter Information'!H23=1,"MDQ",IF(J21=1,"SDQ",IF(I21=1,"DNF",SUM(D21+G21+H21+I21+J21))))) -> 0 | O21: 0
A22: 19 | B22: ='Shooter Information'!B24 -> 0 | C22: ='Shooter Information'!C24 -> 0 | K22: =MIN(IF('Shooter Information'!H24=1,999.99,(D22*5)+E22-F22+(G22*10)+(H22*30)+(I22*999.99)+(J22*999.99)),999.99) -> 0 | L22: 0 | M22: =(IF('Shooter Information'!H24=1,"MDQ",IF(J22=1,"SDQ",IF(I22=1,"DNF",SUM(D22+G22+H22+I22+J22))))) -> 0 | O22: 0
A23: 20 | B23: ='Shooter Information'!B25 -> 0 | C23: ='Shooter Information'!C25 -> 0 | K23: =MIN(IF('Shooter Information'!H25=1,999.99,(D23*5)+E23-F23+(G23*10)+(H23*30)+(I23*999.99)+(J23*999.99)),999.99) -> 0 | L23: 0 | M23: =(IF('Shooter Information'!H25=1,"MDQ",IF(J23=1,"SDQ",IF(I23=1,"DNF",SUM(D23+G23+H23+I23+J23))))) -> 0 | O23: 0
A24: 21 | B24: ='Shooter Information'!B26 -> 0 | C24: ='Shooter Information'!C26 -> 0 | K24: =MIN(IF('Shooter Information'!H26=1,999.99,(D24*5)+E24-F24+(G24*10)+(H24*30)+(I24*999.99)+(J24*999.99)),999.99) -> 0 | L24: 0 | M24: =(IF('Shooter Information'!H26=1,"MDQ",IF(J24=1,"SDQ",IF(I24=1,"DNF",SUM(D24+G24+H24+I24+J24))))) -> 0 | O24: 0
A25: 22 | B25: ='Shooter Information'!B27 -> 0 | C25: ='Shooter Information'!C27 -> 0 | K25: =MIN(IF('Shooter Information'!H27=1,999.99,(D25*5)+E25-F25+(G25*10)+(H25*30)+(I25*999.99)+(J25*999.99)),999.99) -> 0 | L25: 0 | M25: =(IF('Shooter Information'!H27=1,"MDQ",IF(J25=1,"SDQ",IF(I25=1,"DNF",SUM(D25+G25+H25+I25+J25))))) -> 0 | O25: 0
A26: 23 | B26: ='Shooter Information'!B28 -> 0 | C26: ='Shooter Information'!C28 -> 0 | K26: =MIN(IF('Shooter Information'!H28=1,999.99,(D26*5)+E26-F26+(G26*10)+(H26*30)+(I26*999.99)+(J26*999.99)),999.99) -> 0 | L26: 0 | M26: =(IF('Shooter Information'!H28=1,"MDQ",IF(J26=1,"SDQ",IF(I26=1,"DNF",SUM(D26+G26+H26+I26+J26))))) -> 0 | O26: 0
A27: 24 | B27: ='Shooter Information'!B29 -> 0 | C27: ='Shooter Information'!C29 -> 0 | K27: =MIN(IF('Shooter Information'!H29=1,999.99,(D27*5)+E27-F27+(G27*10)+(H27*30)+(I27*999.99)+(J27*999.99)),999.99) -> 0 | L27: 0 | M27: =(IF('Shooter Information'!H29=1,"MDQ",IF(J27=1,"SDQ",IF(I27=1,"DNF",SUM(D27+G27+H27+I27+J27))))) -> 0 | O27: 0
A28: 25 | B28: ='Shooter Information'!B30 -> 0 | C28: ='Shooter Information'!C30 -> 0 | K28: =MIN(IF('Shooter Information'!H30=1,999.99,(D28*5)+E28-F28+(G28*10)+(H28*30)+(I28*999.99)+(J28*999.99)),999.99) -> 0 | L28: 0 | M28: =(IF('Shooter Information'!H30=1,"MDQ",IF(J28=1,"SDQ",IF(I28=1,"DNF",SUM(D28+G28+H28+I28+J28))))) -> 0 | O28: 0
A29: 26 | B29: ='Shooter Information'!B31 -> 0 | C29: ='Shooter Information'!C31 -> 0 | K29: =MIN(IF('Shooter Information'!H31=1,999.99,(D29*5)+E29-F29+(G29*10)+(H29*30)+(I29*999.99)+(J29*999.99)),999.99) -> 0 | L29: 0 | M29: =(IF('Shooter Information'!H31=1,"MDQ",IF(J29=1,"SDQ",IF(I29=1,"DNF",SUM(D29+G29+H29+I29+J29))))) -> 0 | O29: 0
A30: 27 | B30: ='Shooter Information'!B32 -> 0 | C30: ='Shooter Information'!C32 -> 0 | K30: =MIN(IF('Shooter Information'!H32=1,999.99,(D30*5)+E30-F30+(G30*10)+(H30*30)+(I30*999.99)+(J30*999.99)),999.99) -> 0 | L30: 0 | M30: =(IF('Shooter Information'!H32=1,"MDQ",IF(J30=1,"SDQ",IF(I30=1,"DNF",SUM(D30+G30+H30+I30+J30))))) -> 0 | O30: 0
A31: 28 | B31: ='Shooter Information'!B33 -> 0 | C31: ='Shooter Information'!C33 -> 0 | K31: =MIN(IF('Shooter Information'!H33=1,999.99,(D31*5)+E31-F31+(G31*10)+(H31*30)+(I31*999.99)+(J31*999.99)),999.99) -> 0 | L31: 0 | M31: =(IF('Shooter Information'!H33=1,"MDQ",IF(J31=1,"SDQ",IF(I31=1,"DNF",SUM(D31+G31+H31+I31+J31))))) -> 0 | O31: 0
A32: 29 | B32: ='Shooter Information'!B34 -> 0 | C32: ='Shooter Information'!C34 -> 0 | K32: =MIN(IF('Shooter Information'!H34=1,999.99,(D32*5)+E32-F32+(G32*10)+(H32*30)+(I32*999.99)+(J32*999.99)),999.99) -> 0 | L32: 0 | M32: =(IF('Shooter Information'!H34=1,"MDQ",IF(J32=1,"SDQ",IF(I32=1,"DNF",SUM(D32+G32+H32+I32+J32))))) -> 0 | O32: 0
A33: 30 | B33: ='Shooter Information'!B35 -> 0 | C33: ='Shooter Information'!C35 -> 0 | K33: =MIN(IF('Shooter Information'!H35=1,999.99,(D33*5)+E33-F33+(G33*10)+(H33*30)+(I33*999.99)+(J33*999.99)),999.99) -> 0 | L33: 0 | M33: =(IF('Shooter Information'!H35=1,"MDQ",IF(J33=1,"SDQ",IF(I33=1,"DNF",SUM(D33+G33+H33+I33+J33))))) -> 0 | O33: 0
A34: 31 | B34: ='Shooter Information'!B36 -> 0 | C34: ='Shooter Information'!C36 -> 0 | K34: =MIN(IF('Shooter Information'!H36=1,999.99,(D34*5)+E34-F34+(G34*10)+(H34*30)+(I34*999.99)+(J34*999.99)),999.99) -> 0 | L34: 0 | M34: =(IF('Shooter Information'!H36=1,"MDQ",IF(J34=1,"SDQ",IF(I34=1,"DNF",SUM(D34+G34+H34+I34+J34))))) -> 0 | O34: 0
A35: 32 | B35: ='Shooter Information'!B37 -> 0 | C35: ='Shooter Information'!C37 -> 0 | K35: =MIN(IF('Shooter Information'!H37=1,999.99,(D35*5)+E35-F35+(G35*10)+(H35*30)+(I35*999.99)+(J35*999.99)),999.99) -> 0 | L35: 0 | M35: =(IF('Shooter Information'!H37=1,"MDQ",IF(J35=1,"SDQ",IF(I35=1,"DNF",SUM(D35+G35+H35+I35+J35))))) -> 0 | O35: 0
A36: 33 | B36: ='Shooter Information'!B38 -> 0 | C36: ='Shooter Information'!C38 -> 0 | K36: =MIN(IF('Shooter Information'!H38=1,999.99,(D36*5)+E36-F36+(G36*10)+(H36*30)+(I36*999.99)+(J36*999.99)),999.99) -> 0 | L36: 0 | M36: =(IF('Shooter Information'!H38=1,"MDQ",IF(J36=1,"SDQ",IF(I36=1,"DNF",SUM(D36+G36+H36+I36+J36))))) -> 0 | O36: 0
A37: 34 | B37: ='Shooter Information'!B39 -> 0 | C37: ='Shooter Information'!C39 -> 0 | K37: =MIN(IF('Shooter Information'!H39=1,999.99,(D37*5)+E37-F37+(G37*10)+(H37*30)+(I37*999.99)+(J37*999.99)),999.99) -> 0 | L37: 0 | M37: =(IF('Shooter Information'!H39=1,"MDQ",IF(J37=1,"SDQ",IF(I37=1,"DNF",SUM(D37+G37+H37+I37+J37))))) -> 0 | O37: 0
A38: 35 | B38: ='Shooter Information'!B40 -> 0 | C38: ='Shooter Information'!C40 -> 0 | K38: =MIN(IF('Shooter Information'!H40=1,999.99,(D38*5)+E38-F38+(G38*10)+(H38*30)+(I38*999.99)+(J38*999.99)),999.99) -> 0 | L38: 0 | M38: =(IF('Shooter Information'!H40=1,"MDQ",IF(J38=1,"SDQ",IF(I38=1,"DNF",SUM(D38+G38+H38+I38+J38))))) -> 0 | O38: 0
A39: 36 | B39: ='Shooter Information'!B41 -> 0 | C39: ='Shooter Information'!C41 -> 0 | K39: =MIN(IF('Shooter Information'!H41=1,999.99,(D39*5)+E39-F39+(G39*10)+(H39*30)+(I39*999.99)+(J39*999.99)),999.99) -> 0 | L39: 0 | M39: =(IF('Shooter Information'!H41=1,"MDQ",IF(J39=1,"SDQ",IF(I39=1,"DNF",SUM(D39+G39+H39+I39+J39))))) -> 0 | O39: 0
A40: 37 | B40: ='Shooter Information'!B42 -> 0 | C40: ='Shooter Information'!C42 -> 0 | K40: =MIN(IF('Shooter Information'!H42=1,999.99,(D40*5)+E40-F40+(G40*10)+(H40*30)+(I40*999.99)+(J40*999.99)),999.99) -> 0 | L40: 0 | M40: =(IF('Shooter Information'!H42=1,"MDQ",IF(J40=1,"SDQ",IF(I40=1,"DNF",SUM(D40+G40+H40+I40+J40))))) -> 0 | O40: 0
A41: 38 | B41: ='Shooter Information'!B43 -> 0 | C41: ='Shooter Information'!C43 -> 0 | K41: =MIN(IF('Shooter Information'!H43=1,999.99,(D41*5)+E41-F41+(G41*10)+(H41*30)+(I41*999.99)+(J41*999.99)),999.99) -> 0 | L41: 0 | M41: =(IF('Shooter Information'!H43=1,"MDQ",IF(J41=1,"SDQ",IF(I41=1,"DNF",SUM(D41+G41+H41+I41+J41))))) -> 0 | O41: 0
A42: 39 | B42: ='Shooter Information'!B44 -> 0 | C42: ='Shooter Information'!C44 -> 0 | K42: =MIN(IF('Shooter Information'!H44=1,999.99,(D42*5)+E42-F42+(G42*10)+(H42*30)+(I42*999.99)+(J42*999.99)),999.99) -> 0 | L42: 0 | M42: =(IF('Shooter Information'!H44=1,"MDQ",IF(J42=1,"SDQ",IF(I42=1,"DNF",SUM(D42+G42+H42+I42+J42))))) -> 0 | O42: 0
A43: 40 | B43: ='Shooter Information'!B45 -> 0 | C43: ='Shooter Information'!C45 -> 0 | K43: =MIN(IF('Shooter Information'!H45=1,999.99,(D43*5)+E43-F43+(G43*10)+(H43*30)+(I43*999.99)+(J43*999.99)),999.99) -> 0 | L43: 0 | M43: =(IF('Shooter Information'!H45=1,"MDQ",IF(J43=1,"SDQ",IF(I43=1,"DNF",SUM(D43+G43+H43+I43+J43))))) -> 0 | O43: 0
A44: 41 | B44: ='Shooter Information'!B46 -> 0 | C44: ='Shooter Information'!C46 -> 0 | K44: =MIN(IF('Shooter Information'!H46=1,999.99,(D44*5)+E44-F44+(G44*10)+(H44*30)+(I44*999.99)+(J44*999.99)),999.99) -> 0 | L44: 0 | M44: =(IF('Shooter Information'!H46=1,"MDQ",IF(J44=1,"SDQ",IF(I44=1,"DNF",SUM(D44+G44+H44+I44+J44))))) -> 0 | O44: 0
A45: 42 | B45: ='Shooter Information'!B47 -> 0 | C45: ='Shooter Information'!C47 -> 0 | K45: =MIN(IF('Shooter Information'!H47=1,999.99,(D45*5)+E45-F45+(G45*10)+(H45*30)+(I45*999.99)+(J45*999.99)),999.99) -> 0 | L45: 0 | M45: =(IF('Shooter Information'!H47=1,"MDQ",IF(J45=1,"SDQ",IF(I45=1,"DNF",SUM(D45+G45+H45+I45+J45))))) -> 0 | O45: 0
A46: 43 | B46: ='Shooter Information'!B48 -> 0 | C46: ='Shooter Information'!C48 -> 0 | K46: =MIN(IF('Shooter Information'!H48=1,999.99,(D46*5)+E46-F46+(G46*10)+(H46*30)+(I46*999.99)+(J46*999.99)),999.99) -> 0 | L46: 0 | M46: =(IF('Shooter Information'!H48=1,"MDQ",IF(J46=1,"SDQ",IF(I46=1,"DNF",SUM(D46+G46+H46+I46+J46))))) -> 0 | O46: 0
A47: 44 | B47: ='Shooter Information'!B49 -> 0 | C47: ='Shooter Information'!C49 -> 0 | K47: =MIN(IF('Shooter Information'!H49=1,999.99,(D47*5)+E47-F47+(G47*10)+(H47*30)+(I47*999.99)+(J47*999.99)),999.99) -> 0 | L47: 0 | M47: =(IF('Shooter Information'!H49=1,"MDQ",IF(J47=1,"SDQ",IF(I47=1,"DNF",SUM(D47+G47+H47+I47+J47))))) -> 0 | O47: 0
A48: 45 | B48: ='Shooter Information'!B50 -> 0 | C48: ='Shooter Information'!C50 -> 0 | K48: =MIN(IF('Shooter Information'!H50=1,999.99,(D48*5)+E48-F48+(G48*10)+(H48*30)+(I48*999.99)+(J48*999.99)),999.99) -> 0 | L48: 0 | M48: =(IF('Shooter Information'!H50=1,"MDQ",IF(J48=1,"SDQ",IF(I48=1,"DNF",SUM(D48+G48+H48+I48+J48))))) -> 0 | O48: 0
A49: 46 | B49: ='Shooter Information'!B51 -> 0 | C49: ='Shooter Information'!C51 -> 0 | K49: =MIN(IF('Shooter Information'!H51=1,999.99,(D49*5)+E49-F49+(G49*10)+(H49*30)+(I49*999.99)+(J49*999.99)),999.99) -> 0 | L49: 0 | M49: =(IF('Shooter Information'!H51=1,"MDQ",IF(J49=1,"SDQ",IF(I49=1,"DNF",SUM(D49+G49+H49+I49+J49))))) -> 0 | O49: 0
A50: 47 | B50: ='Shooter Information'!B52 -> 0 | C50: ='Shooter Information'!C52 -> 0 | K50: =MIN(IF('Shooter Information'!H52=1,999.99,(D50*5)+E50-F50+(G50*10)+(H50*30)+(I50*999.99)+(J50*999.99)),999.99) -> 0 | L50: 0 | M50: =(IF('Shooter Information'!H52=1,"MDQ",IF(J50=1,"SDQ",IF(I50=1,"DNF",SUM(D50+G50+H50+I50+J50))))) -> 0 | O50: 0
A51: 48 | B51: ='Shooter Information'!B53 -> 0 | C51: ='Shooter Information'!C53 -> 0 | K51: =MIN(IF('Shooter Information'!H53=1,999.99,(D51*5)+E51-F51+(G51*10)+(H51*30)+(I51*999.99)+(J51*999.99)),999.99) -> 0 | L51: 0 | M51: =(IF('Shooter Information'!H53=1,"MDQ",IF(J51=1,"SDQ",IF(I51=1,"DNF",SUM(D51+G51+H51+I51+J51))))) -> 0 | O51: 0
A52: 49 | B52: ='Shooter Information'!B54 -> 0 | C52: ='Shooter Information'!C54 -> 0 | K52: =MIN(IF('Shooter Information'!H54=1,999.99,(D52*5)+E52-F52+(G52*10)+(H52*30)+(I52*999.99)+(J52*999.99)),999.99) -> 0 | L52: 0 | M52: =(IF('Shooter Information'!H54=1,"MDQ",IF(J52=1,"SDQ",IF(I52=1,"DNF",SUM(D52+G52+H52+I52+J52))))) -> 0 | O52: 0
A53: 50 | B53: ='Shooter Information'!B55 -> 0 | C53: ='Shooter Information'!C55 -> 0 | K53: =MIN(IF('Shooter Information'!H55=1,999.99,(D53*5)+E53-F53+(G53*10)+(H53*30)+(I53*999.99)+(J53*999.99)),999.99) -> 0 | L53: 0 | M53: =(IF('Shooter Information'!H55=1,"MDQ",IF(J53=1,"SDQ",IF(I53=1,"DNF",SUM(D53+G53+H53+I53+J53))))) -> 0 | O53: 0
A54: 51 | B54: ='Shooter Information'!B56 -> 0 | C54: ='Shooter Information'!C56 -> 0 | K54: =MIN(IF('Shooter Information'!H56=1,999.99,(D54*5)+E54-F54+(G54*10)+(H54*30)+(I54*999.99)+(J54*999.99)),999.99) -> 0 | L54: 0 | M54: =(IF('Shooter Information'!H56=1,"MDQ",IF(J54=1,"SDQ",IF(I54=1,"DNF",SUM(D54+G54+H54+I54+J54))))) -> 0 | O54: 0
A55: 52 | B55: ='Shooter Information'!B57 -> 0 | C55: ='Shooter Information'!C57 -> 0 | K55: =MIN(IF('Shooter Information'!H57=1,999.99,(D55*5)+E55-F55+(G55*10)+(H55*30)+(I55*999.99)+(J55*999.99)),999.99) -> 0 | L55: 0 | M55: =(IF('Shooter Information'!H57=1,"MDQ",IF(J55=1,"SDQ",IF(I55=1,"DNF",SUM(D55+G55+H55+I55+J55))))) -> 0 | O55: 0
A56: 53 | B56: ='Shooter Information'!B58 -> 0 | C56: ='Shooter Information'!C58 -> 0 | K56: =MIN(IF('Shooter Information'!H58=1,999.99,(D56*5)+E56-F56+(G56*10)+(H56*30)+(I56*999.99)+(J56*999.99)),999.99) -> 0 | L56: 0 | M56: =(IF('Shooter Information'!H58=1,"MDQ",IF(J56=1,"SDQ",IF(I56=1,"DNF",SUM(D56+G56+H56+I56+J56))))) -> 0 | O56: 0
A57: 54 | B57: ='Shooter Information'!B59 -> 0 | C57: ='Shooter Information'!C59 -> 0 | K57: =MIN(IF('Shooter Information'!H59=1,999.99,(D57*5)+E57-F57+(G57*10)+(H57*30)+(I57*999.99)+(J57*999.99)),999.99) -> 0 | L57: 0 | M57: =(IF('Shooter Information'!H59=1,"MDQ",IF(J57=1,"SDQ",IF(I57=1,"DNF",SUM(D57+G57+H57+I57+J57))))) -> 0 | O57: 0
A58: 55 | B58: ='Shooter Information'!B60 -> 0 | C58: ='Shooter Information'!C60 -> 0 | K58: =MIN(IF('Shooter Information'!H60=1,999.99,(D58*5)+E58-F58+(G58*10)+(H58*30)+(I58*999.99)+(J58*999.99)),999.99) -> 0 | L58: 0 | M58: =(IF('Shooter Information'!H60=1,"MDQ",IF(J58=1,"SDQ",IF(I58=1,"DNF",SUM(D58+G58+H58+I58+J58))))) -> 0 | O58: 0
A59: 56 | B59: ='Shooter Information'!B61 -> 0 | C59: ='Shooter Information'!C61 -> 0 | K59: =MIN(IF('Shooter Information'!H61=1,999.99,(D59*5)+E59-F59+(G59*10)+(H59*30)+(I59*999.99)+(J59*999.99)),999.99) -> 0 | L59: 0 | M59: =(IF('Shooter Information'!H61=1,"MDQ",IF(J59=1,"SDQ",IF(I59=1,"DNF",SUM(D59+G59+H59+I59+J59))))) -> 0 | O59: 0
A60: 57 | B60: ='Shooter Information'!B62 -> 0 | C60: ='Shooter Information'!C62 -> 0 | K60: =MIN(IF('Shooter Information'!H62=1,999.99,(D60*5)+E60-F60+(G60*10)+(H60*30)+(I60*999.99)+(J60*999.99)),999.99) -> 0 | L60: 0 | M60: =(IF('Shooter Information'!H62=1,"MDQ",IF(J60=1,"SDQ",IF(I60=1,"DNF",SUM(D60+G60+H60+I60+J60))))) -> 0 | O60: 0
A61: 58 | B61: ='Shooter Information'!B63 -> 0 | C61: ='Shooter Information'!C63 -> 0 | K61: =MIN(IF('Shooter Information'!H63=1,999.99,(D61*5)+E61-F61+(G61*10)+(H61*30)+(I61*999.99)+(J61*999.99)),999.99) -> 0 | L61: 0 | M61: =(IF('Shooter Information'!H63=1,"MDQ",IF(J61=1,"SDQ",IF(I61=1,"DNF",SUM(D61+G61+H61+I61+J61))))) -> 0 | O61: 0
A62: 59 | B62: ='Shooter Information'!B64 -> 0 | C62: ='Shooter Information'!C64 -> 0 | K62: =MIN(IF('Shooter Information'!H64=1,999.99,(D62*5)+E62-F62+(G62*10)+(H62*30)+(I62*999.99)+(J62*999.99)),999.99) -> 0 | L62: 0 | M62: =(IF('Shooter Information'!H64=1,"MDQ",IF(J62=1,"SDQ",IF(I62=1,"DNF",SUM(D62+G62+H62+I62+J62))))) -> 0 | O62: 0
A63: 60 | B63: ='Shooter Information'!B65 -> 0 | C63: ='Shooter Information'!C65 -> 0 | K63: =MIN(IF('Shooter Information'!H65=1,999.99,(D63*5)+E63-F63+(G63*10)+(H63*30)+(I63*999.99)+(J63*999.99)),999.99) -> 0 | L63: 0 | M63: =(IF('Shooter Information'!H65=1,"MDQ",IF(J63=1,"SDQ",IF(I63=1,"DNF",SUM(D63+G63+H63+I63+J63))))) -> 0 | O63: 0
A64: 61 | B64: ='Shooter Information'!B66 -> 0 | C64: ='Shooter Information'!C66 -> 0 | K64: =MIN(IF('Shooter Information'!H66=1,999.99,(D64*5)+E64-F64+(G64*10)+(H64*30)+(I64*999.99)+(J64*999.99)),999.99) -> 0 | L64: 0 | M64: =(IF('Shooter Information'!H66=1,"MDQ",IF(J64=1,"SDQ",IF(I64=1,"DNF",SUM(D64+G64+H64+I64+J64))))) -> 0 | O64: 0
A65: 62 | B65: ='Shooter Information'!B67 -> 0 | C65: ='Shooter Information'!C67 -> 0 | K65: =MIN(IF('Shooter Information'!H67=1,999.99,(D65*5)+E65-F65+(G65*10)+(H65*30)+(I65*999.99)+(J65*999.99)),999.99) -> 0 | L65: 0 | M65: =(IF('Shooter Information'!H67=1,"MDQ",IF(J65=1,"SDQ",IF(I65=1,"DNF",SUM(D65+G65+H65+I65+J65))))) -> 0 | O65: 0
A66: 63 | B66: ='Shooter Information'!B68 -> 0 | C66: ='Shooter Information'!C68 -> 0 | K66: =MIN(IF('Shooter Information'!H68=1,999.99,(D66*5)+E66-F66+(G66*10)+(H66*30)+(I66*999.99)+(J66*999.99)),999.99) -> 0 | L66: 0 | M66: =(IF('Shooter Information'!H68=1,"MDQ",IF(J66=1,"SDQ",IF(I66=1,"DNF",SUM(D66+G66+H66+I66+J66))))) -> 0 | O66: 0
A67: 64 | B67: ='Shooter Information'!B69 -> 0 | C67: ='Shooter Information'!C69 -> 0 | K67: =MIN(IF('Shooter Information'!H69=1,999.99,(D67*5)+E67-F67+(G67*10)+(H67*30)+(I67*999.99)+(J67*999.99)),999.99) -> 0 | L67: 0 | M67: =(IF('Shooter Information'!H69=1,"MDQ",IF(J67=1,"SDQ",IF(I67=1,"DNF",SUM(D67+G67+H67+I67+J67))))) -> 0 | O67: 0
A68: 65 | B68: ='Shooter Information'!B70 -> 0 | C68: ='Shooter Information'!C70 -> 0 | K68: =MIN(IF('Shooter Information'!H70=1,999.99,(D68*5)+E68-F68+(G68*10)+(H68*30)+(I68*999.99)+(J68*999.99)),999.99) -> 0 | L68: 0 | M68: =(IF('Shooter Information'!H70=1,"MDQ",IF(J68=1,"SDQ",IF(I68=1,"DNF",SUM(D68+G68+H68+I68+J68))))) -> 0 | O68: 0
A69: 66 | B69: ='Shooter Information'!B71 -> 0 | C69: ='Shooter Information'!C71 -> 0 | K69: =MIN(IF('Shooter Information'!H71=1,999.99,(D69*5)+E69-F69+(G69*10)+(H69*30)+(I69*999.99)+(J69*999.99)),999.99) -> 0 | L69: =IF(K69>0,SUMPRODUCT(--(K69>$K$4:$K$78),--($K$4:$K$78>0))+1,0) -> 0 | M69: =(IF('Shooter Information'!H71=1,"MDQ",IF(J69=1,"SDQ",IF(I69=1,"DNF",SUM(D69+G69+H69+I69+J69))))) -> 0 | O69: =SUM(D69+G69+H69+I69+J69) -> 0
A70: 67 | B70: ='Shooter Information'!B72 -> 0 | C70: ='Shooter Information'!C72 -> 0 | K70: =MIN(IF('Shooter Information'!H72=1,999.99,(D70*5)+E70-F70+(G70*10)+(H70*30)+(I70*999.99)+(J70*999.99)),999.99) -> 0 | L70: 0 | M70: =(IF('Shooter Information'!H72=1,"MDQ",IF(J70=1,"SDQ",IF(I70=1,"DNF",SUM(D70+G70+H70+I70+J70))))) -> 0 | O70: 0
A71: 68 | B71: ='Shooter Information'!B73 -> 0 | C71: ='Shooter Information'!C73 -> 0 | K71: =MIN(IF('Shooter Information'!H73=1,999.99,(D71*5)+E71-F71+(G71*10)+(H71*30)+(I71*999.99)+(J71*999.99)),999.99) -> 0 | L71: 0 | M71: =(IF('Shooter Information'!H73=1,"MDQ",IF(J71=1,"SDQ",IF(I71=1,"DNF",SUM(D71+G71+H71+I71+J71))))) -> 0 | O71: 0
A72: 69 | B72: ='Shooter Information'!B74 -> 0 | C72: ='Shooter Information'!C74 -> 0 | K72: =MIN(IF('Shooter Information'!H74=1,999.99,(D72*5)+E72-F72+(G72*10)+(H72*30)+(I72*999.99)+(J72*999.99)),999.99) -> 0 | L72: 0 | M72: =(IF('Shooter Information'!H74=1,"MDQ",IF(J72=1,"SDQ",IF(I72=1,"DNF",SUM(D72+G72+H72+I72+J72))))) -> 0 | O72: 0
A73: 70 | B73: ='Shooter Information'!B75 -> 0 | C73: ='Shooter Information'!C75 -> 0 | K73: =MIN(IF('Shooter Information'!H75=1,999.99,(D73*5)+E73-F73+(G73*10)+(H73*30)+(I73*999.99)+(J73*999.99)),999.99) -> 0 | L73: 0 | M73: =(IF('Shooter Information'!H75=1,"MDQ",IF(J73=1,"SDQ",IF(I73=1,"DNF",SUM(D73+G73+H73+I73+J73))))) -> 0 | O73: 0
A74: 71 | B74: ='Shooter Information'!B76 -> 0 | C74: ='Shooter Information'!C76 -> 0 | K74: =MIN(IF('Shooter Information'!H76=1,999.99,(D74*5)+E74-F74+(G74*10)+(H74*30)+(I74*999.99)+(J74*999.99)),999.99) -> 0 | L74: 0 | M74: =(IF('Shooter Information'!H76=1,"MDQ",IF(J74=1,"SDQ",IF(I74=1,"DNF",SUM(D74+G74+H74+I74+J74))))) -> 0 | O74: 0
A75: 72 | B75: ='Shooter Information'!B77 -> 0 | C75: ='Shooter Information'!C77 -> 0 | K75: =MIN(IF('Shooter Information'!H77=1,999.99,(D75*5)+E75-F75+(G75*10)+(H75*30)+(I75*999.99)+(J75*999.99)),999.99) -> 0 | L75: 0 | M75: =(IF('Shooter Information'!H77=1,"MDQ",IF(J75=1,"SDQ",IF(I75=1,"DNF",SUM(D75+G75+H75+I75+J75))))) -> 0 | O75: 0
A76: 73 | B76: ='Shooter Information'!B78 -> 0 | C76: ='Shooter Information'!C78 -> 0 | K76: =MIN(IF('Shooter Information'!H78=1,999.99,(D76*5)+E76-F76+(G76*10)+(H76*30)+(I76*999.99)+(J76*999.99)),999.99) -> 0 | L76: 0 | M76: =(IF('Shooter Information'!H78=1,"MDQ",IF(J76=1,"SDQ",IF(I76=1,"DNF",SUM(D76+G76+H76+I76+J76))))) -> 0 | O76: 0
A77: 74 | B77: ='Shooter Information'!B79 -> 0 | C77: ='Shooter Information'!C79 -> 0 | K77: =MIN(IF('Shooter Information'!H79=1,999.99,(D77*5)+E77-F77+(G77*10)+(H77*30)+(I77*999.99)+(J77*999.99)),999.99) -> 0 | L77: 0 | M77: =(IF('Shooter Information'!H79=1,"MDQ",IF(J77=1,"SDQ",IF(I77=1,"DNF",SUM(D77+G77+H77+I77+J77))))) -> 0 | O77: 0
A78: 75 | B78: ='Shooter Information'!B80 -> 0 | C78: ='Shooter Information'!C80 -> 0 | K78: =MIN(IF('Shooter Information'!H80=1,999.99,(D78*5)+E78-F78+(G78*10)+(H78*30)+(I78*999.99)+(J78*999.99)),999.99) -> 0 | L78: 0 | M78: =(IF('Shooter Information'!H80=1,"MDQ",IF(J78=1,"SDQ",IF(I78=1,"DNF",SUM(D78+G78+H78+I78+J78))))) -> 0 | O78: 0

Sheet Stage 5
B1: Stage Input Sheet - Stage 5
A3: Shooter # | B3: Shooter | C3: Class | D3: Misses | E3: Raw Time | F3: Bonus | G3: 10 Sec | H3: 30 Sec | I3: DNF | J3: SDQ | K3: Total | L3: Rank | M3: Penalties | O3: # Penalties
A4: =ROW()-3 -> 1 | B4: ='Shooter Information'!B6 -> Striker | C4: ='Shooter Information'!C6 -> WW | D4: 1 | E4: 33.73 | K4: =MIN(IF('Shooter Information'!H6=1,999.99,(D4*5)+E4-F4+(G4*10)+(H4*30)+(I4*999.99)+(J4*999.99)),999.99) -> 38.73 | L4: =IF(K4>0,SUMPRODUCT(--(K4>$K$4:$K$78),--($K$4:$K$78>0))+1,0) -> 10 | M4: =(IF('Shooter Information'!H6=1,"MDQ",IF(J4=1,"SDQ",IF(I4=1,"DNF",SUM(D4+G4+H4+I4+J4))))) -> 1 | O4: =SUM(D4+G4+H4+I4+J4) -> 1
A5: =ROW()-3 -> 2 | B5: ='Shooter Information'!B7 -> Cody Maverick | C5: ='Shooter Information'!C7 -> GF | E5: 31.27 | K5: =MIN(IF('Shooter Information'!H7=1,999.99,(D5*5)+E5-F5+(G5*10)+(H5*30)+(I5*999.99)+(J5*999.99)),999.99) -> 31.27 | L5: =IF(K5>0,SUMPRODUCT(--(K5>$K$4:$K$78),--($K$4:$K$78>0))+1,0) -> 4 | M5: =(IF('Shooter Information'!H7=1,"MDQ",IF(J5=1,"SDQ",IF(I5=1,"DNF",SUM(D5+G5+H5+I5+J5))))) -> 0 | O5: =SUM(D5+G5+H5+I5+J5) -> 0
A6: 3 | B6: ='Shooter Information'!B8 -> Potter County Kid | C6: ='Shooter Information'!C8 -> WW | D6: 1 | E6: 37.77 | K6: =MIN(IF('Shooter Information'!H8=1,999.99,(D6*5)+E6-F6+(G6*10)+(H6*30)+(I6*999.99)+(J6*999.99)),999.99) -> 42.77 | L6: 13 | M6: =(IF('Shooter Information'!H8=1,"MDQ",IF(J6=1,"SDQ",IF(I6=1,"DNF",SUM(D6+G6+H6+I6+J6))))) -> 1 | O6: 1
A7: 4 | B7: ='Shooter Information'!B9 -> Ricochet Kid | C7: ='Shooter Information'!C9 -> W | E7: 41.5 | K7: =MIN(IF('Shooter Information'!H9=1,999.99,(D7*5)+E7-F7+(G7*10)+(H7*30)+(I7*999.99)+(J7*999.99)),999.99) -> 41.5 | L7: 12 | M7: =(IF('Shooter Information'!H9=1,"MDQ",IF(J7=1,"SDQ",IF(I7=1,"DNF",SUM(D7+G7+H7+I7+J7))))) -> 0 | O7: 0
A8: 5 | B8: ='Shooter Information'!B10 -> Flatboat Bob | C8: ='Shooter Information'!C10 -> CBAR | E8: 34.76 | K8: =MIN(IF('Shooter Information'!H10=1,999.99,(D8*5)+E8-F8+(G8*10)+(H8*30)+(I8*999.99)+(J8*999.99)),999.99) -> 34.76 | L8: 7 | M8: =(IF('Shooter Information'!H10=1,"MDQ",IF(J8=1,"SDQ",IF(I8=1,"DNF",SUM(D8+G8+H8+I8+J8))))) -> 0 | O8: 0
A9: 6 | B9: ='Shooter Information'!B11 -> Hotshod | C9: ='Shooter Information'!C11 -> W | E9: 33.13 | K9: =MIN(IF('Shooter Information'!H11=1,999.99,(D9*5)+E9-F9+(G9*10)+(H9*30)+(I9*999.99)+(J9*999.99)),999.99) -> 33.13 | L9: 6 | M9: =(IF('Shooter Information'!H11=1,"MDQ",IF(J9=1,"SDQ",IF(I9=1,"DNF",SUM(D9+G9+H9+I9+J9))))) -> 0 | O9: 0
A10: 7 | B10: ='Shooter Information'!B12 -> Prairie City Slim | C10: ='Shooter Information'!C12 -> ES | E10: 36.95 | K10: =MIN(IF('Shooter Information'!H12=1,999.99,(D10*5)+E10-F10+(G10*10)+(H10*30)+(I10*999.99)+(J10*999.99)),999.99) -> 36.95 | L10: 8 | M10: =(IF('Shooter Information'!H12=1,"MDQ",IF(J10=1,"SDQ",IF(I10=1,"DNF",SUM(D10+G10+H10+I10+J10))))) -> 0 | O10: 0
A11: 8 | B11: ='Shooter Information'!B13 -> Regret Schofield | C11: ='Shooter Information'!C13 -> 49er | E11: 57 | K11: =MIN(IF('Shooter Information'!H13=1,999.99,(D11*5)+E11-F11+(G11*10)+(H11*30)+(I11*999.99)+(J11*999.99)),999.99) -> 57 | L11: 14 | M11: =(IF('Shooter Information'!H13=1,"MDQ",IF(J11=1,"SDQ",IF(I11=1,"DNF",SUM(D11+G11+H11+I11+J11))))) -> 0 | O11: 0
A12: 9 | B12: ='Shooter Information'!B14 -> Tumble Weed Tink | C12: ='Shooter Information'!C14 -> L49 | D12: 1 | E12: 63.61 | K12: =MIN(IF('Shooter Information'!H14=1,999.99,(D12*5)+E12-F12+(G12*10)+(H12*30)+(I12*999.99)+(J12*999.99)),999.99) -> 68.61 | L12: 16 | M12: =(IF('Shooter Information'!H14=1,"MDQ",IF(J12=1,"SDQ",IF(I12=1,"DNF",SUM(D12+G12+H12+I12+J12))))) -> 1 | O12: 1
A13: 10 | B13: ='Shooter Information'!B15 -> One Eyed Jane | C13: ='Shooter Information'!C15 -> LSS | E13: 65.01 | K13: =MIN(IF('Shooter Information'!H15=1,999.99,(D13*5)+E13-F13+(G13*10)+(H13*30)+(I13*999.99)+(J13*999.99)),999.99) -> 65.01 | L13: 15 | M13: =(IF('Shooter Information'!H15=1,"MDQ",IF(J13=1,"SDQ",IF(I13=1,"DNF",SUM(D13+G13+H13+I13+J13))))) -> 0 | O13: 0
A14: 11 | B14: ='Shooter Information'!B16 -> Stogie | C14: ='Shooter Information'!C16 -> 49er | E14: 29.32 | K14: =MIN(IF('Shooter Information'!H16=1,999.99,(D14*5)+E14-F14+(G14*10)+(H14*30)+(I14*999.99)+(J14*999.99)),999.99) -> 29.32 | L14: 2 | M14: =(IF('Shooter Information'!H16=1,"MDQ",IF(J14=1,"SDQ",IF(I14=1,"DNF",SUM(D14+G14+H14+I14+J14))))) -> 0 | O14: 0
A15: 12 | B15: ='Shooter Information'!B17 -> Major BS Walker | C15: ='Shooter Information'!C17 -> WW | E15: 28.16 | K15: =MIN(IF('Shooter Information'!H17=1,999.99,(D15*5)+E15-F15+(G15*10)+(H15*30)+(I15*999.99)+(J15*999.99)),999.99) -> 28.16 | L15: 1 | M15: =(IF('Shooter Information'!H17=1,"MDQ",IF(J15=1,"SDQ",IF(I15=1,"DNF",SUM(D15+G15+H15+I15+J15))))) -> 0 | O15: 0
A16: 13 | B16: ='Shooter Information'!B18 -> Sassy Shooting Sours | C16: ='Shooter Information'!C18 -> S | E16: 37.93 | K16: =MIN(IF('Shooter Information'!H18=1,999.99,(D16*5)+E16-F16+(G16*10)+(H16*30)+(I16*999.99)+(J16*999.99)),999.99) -> 37.93 | L16: 9 | M16: =(IF('Shooter Information'!H18=1,"MDQ",IF(J16=1,"SDQ",IF(I16=1,"DNF",SUM(D16+G16+H16+I16+J16))))) -> 0 | O16: 0
A17: 14 | B17: ='Shooter Information'!B19 -> Lefty Spurmaker | C17: ='Shooter Information'!C19 -> S | E17: 31.98 | K17: =MIN(IF('Shooter Information'!H19=1,999.99,(D17*5)+E17-F17+(G17*10)+(H17*30)+(I17*999.99)+(J17*999.99)),999.99) -> 31.98 | L17: 5 | M17: =(IF('Shooter Information'!H19=1,"MDQ",IF(J17=1,"SDQ",IF(I17=1,"DNF",SUM(D17+G17+H17+I17+J17))))) -> 0 | O17: 0
A18: 15 | B18: ='Shooter Information'!B20 -> Windhorse Rider | C18: ='Shooter Information'!C20 -> GF | E18: 40.02 | K18: =MIN(IF('Shooter Information'!H20=1,999.99,(D18*5)+E18-F18+(G18*10)+(H18*30)+(I18*999.99)+(J18*999.99)),999.99) -> 40.02 | L18: 11 | M18: =(IF('Shooter Information'!H20=1,"MDQ",IF(J18=1,"SDQ",IF(I18=1,"DNF",SUM(D18+G18+H18+I18+J18))))) -> 0 | O18: 0
A19: 16 | B19: ='Shooter Information'!B21 -> Red Cavanaugh | C19: ='Shooter Information'!C21 -> 49er | E19: 29.94 | K19: =MIN(IF('Shooter Information'!H21=1,999.99,(D19*5)+E19-F19+(G19*10)+(H19*30)+(I19*999.99)+(J19*999.99)),999.99) -> 29.94 | L19: 3 | M19: =(IF('Shooter Information'!H21=1,"MDQ",IF(J19=1,"SDQ",IF(I19=1,"DNF",SUM(D19+G19+H19+I19+J19))))) -> 0 | O19: 0
A20: 17 | B20: ='Shooter Information'!B22 -> 0 | C20: ='Shooter Information'!C22 -> 0 | K20: =MIN(IF('Shooter Information'!H22=1,999.99,(D20*5)+E20-F20+(G20*10)+(H20*30)+(I20*999.99)+(J20*999.99)),999.99) -> 0 | L20: 0 | M20: =(IF('Shooter Information'!H22=1,"MDQ",IF(J20=1,"SDQ",IF(I20=1,"DNF",SUM(D20+G20+H20+I20+J20))))) -> 0 | O20: 0
A21: 18 | B21: ='Shooter Information'!B23 -> 0 | C21: ='Shooter Information'!C23 -> 0 | K21: =MIN(IF('Shooter Information'!H23=1,999.99,(D21*5)+E21-F21+(G21*10)+(H21*30)+(I21*999.99)+(J21*999.99)),999.99) -> 0 | L21: 0 | M21: =(IF('Shooter Information'!H23=1,"MDQ",IF(J21=1,"SDQ",IF(I21=1,"DNF",SUM(D21+G21+H21+I21+J21))))) -> 0 | O21: 0
A22: 19 | B22: ='Shooter Information'!B24 -> 0 | C22: ='Shooter Information'!C24 -> 0 | K22: =MIN(IF('Shooter Information'!H24=1,999.99,(D22*5)+E22-F22+(G22*10)+(H22*30)+(I22*999.99)+(J22*999.99)),999.99) -> 0 | L22: 0 | M22: =(IF('Shooter Information'!H24=1,"MDQ",IF(J22=1,"SDQ",IF(I22=1,"DNF",SUM(D22+G22+H22+I22+J22))))) -> 0 | O22: 0
A23: 20 | B23: ='Shooter Information'!B25 -> 0 | C23: ='Shooter Information'!C25 -> 0 | K23: =MIN(IF('Shooter Information'!H25=1,999.99,(D23*5)+E23-F23+(G23*10)+(H23*30)+(I23*999.99)+(J23*999.99)),999.99) -> 0 | L23: 0 | M23: =(IF('Shooter Information'!H25=1,"MDQ",IF(J23=1,"SDQ",IF(I23=1,"DNF",SUM(D23+G23+H23+I23+J23))))) -> 0 | O23: 0
A24: 21 | B24: ='Shooter Information'!B26 -> 0 | C24: ='Shooter Information'!C26 -> 0 | K24: =MIN(IF('Shooter Information'!H26=1,999.99,(D24*5)+E24-F24+(G24*10)+(H24*30)+(I24*999.99)+(J24*999.99)),999.99) -> 0 | L24: 0 | M24: =(IF('Shooter Information'!H26=1,"MDQ",IF(J24=1,"SDQ",IF(I24=1,"DNF",SUM(D24+G24+H24+I24+J24))))) -> 0 | O24: 0
A25: 22 | B25: ='Shooter Information'!B27 -> 0 | C25: ='Shooter Information'!C27 -> 0 | K25: =MIN(IF('Shooter Information'!H27=1,999.99,(D25*5)+E25-F25+(G25*10)+(H25*30)+(I25*999.99)+(J25*999.99)),999.99) -> 0 | L25: 0 | M25: =(IF('Shooter Information'!H27=1,"MDQ",IF(J25=1,"SDQ",IF(I25=1,"DNF",SUM(D25+G25+H25+I25+J25))))) -> 0 | O25: 0
A26: 23 | B26: ='Shooter Information'!B28 -> 0 | C26: ='Shooter Information'!C28 -> 0 | K26: =MIN(IF('Shooter Information'!H28=1,999.99,(D26*5)+E26-F26+(G26*10)+(H26*30)+(I26*999.99)+(J26*999.99)),999.99) -> 0 | L26: 0 | M26: =(IF('Shooter Information'!H28=1,"MDQ",IF(J26=1,"SDQ",IF(I26=1,"DNF",SUM(D26+G26+H26+I26+J26))))) -> 0 | O26: 0
A27: 24 | B27: ='Shooter Information'!B29 -> 0 | C27: ='Shooter Information'!C29 -> 0 | K27: =MIN(IF('Shooter Information'!H29=1,999.99,(D27*5)+E27-F27+(G27*10)+(H27*30)+(I27*999.99)+(J27*999.99)),999.99) -> 0 | L27: 0 | M27: =(IF('Shooter Information'!H29=1,"MDQ",IF(J27=1,"SDQ",IF(I27=1,"DNF",SUM(D27+G27+H27+I27+J27))))) -> 0 | O27: 0
A28: 25 | B28: ='Shooter Information'!B30 -> 0 | C28: ='Shooter Information'!C30 -> 0 | K28: =MIN(IF('Shooter Information'!H30=1,999.99,(D28*5)+E28-F28+(G28*10)+(H28*30)+(I28*999.99)+(J28*999.99)),999.99) -> 0 | L28: 0 | M28: =(IF('Shooter Information'!H30=1,"MDQ",IF(J28=1,"SDQ",IF(I28=1,"DNF",SUM(D28+G28+H28+I28+J28))))) -> 0 | O28: 0
A29: 26 | B29: ='Shooter Information'!B31 -> 0 | C29: ='Shooter Information'!C31 -> 0 | K29: =MIN(IF('Shooter Information'!H31=1,999.99,(D29*5)+E29-F29+(G29*10)+(H29*30)+(I29*999.99)+(J29*999.99)),999.99) -> 0 | L29: 0 | M29: =(IF('Shooter Information'!H31=1,"MDQ",IF(J29=1,"SDQ",IF(I29=1,"DNF",SUM(D29+G29+H29+I29+J29))))) -> 0 | O29: 0
A30: 27 | B30: ='Shooter Information'!B32 -> 0 | C30: ='Shooter Information'!C32 -> 0 | K30: =MIN(IF('Shooter Information'!H32=1,999.99,(D30*5)+E30-F30+(G30*10)+(H30*30)+(I30*999.99)+(J30*999.99)),999.99) -> 0 | L30: 0 | M30: =(IF('Shooter Information'!H32=1,"MDQ",IF(J30=1,"SDQ",IF(I30=1,"DNF",SUM(D30+G30+H30+I30+J30))))) -> 0 | O30: 0
A31: 28 | B31: ='Shooter Information'!B33 -> 0 | C31: ='Shooter Information'!C33 -> 0 | K31: =MIN(IF('Shooter Information'!H33=1,999.99,(D31*5)+E31-F31+(G31*10)+(H31*30)+(I31*999.99)+(J31*999.99)),999.99) -> 0 | L31: 0 | M31: =(IF('Shooter Information'!H33=1,"MDQ",IF(J31=1,"SDQ",IF(I31=1,"DNF",SUM(D31+G31+H31+I31+J31))))) -> 0 | O31: 0
A32: 29 | B32: ='Shooter Information'!B34 -> 0 | C32: ='Shooter Information'!C34 -> 0 | K32: =MIN(IF('Shooter Information'!H34=1,999.99,(D32*5)+E32-F32+(G32*10)+(H32*30)+(I32*999.99)+(J32*999.99)),999.99) -> 0 | L32: 0 | M32: =(IF('Shooter Information'!H34=1,"MDQ",IF(J32=1,"SDQ",IF(I32=1,"DNF",SUM(D32+G32+H32+I32+J32))))) -> 0 | O32: 0
A33: 30 | B33: ='Shooter Information'!B35 -> 0 | C33: ='Shooter Information'!C35 -> 0 | K33: =MIN(IF('Shooter Information'!H35=1,999.99,(D33*5)+E33-F33+(G33*10)+(H33*30)+(I33*999.99)+(J33*999.99)),999.99) -> 0 | L33: 0 | M33: =(IF('Shooter Information'!H35=1,"MDQ",IF(J33=1,"SDQ",IF(I33=1,"DNF",SUM(D33+G33+H33+I33+J33))))) -> 0 | O33: 0
A34: 31 | B34: ='Shooter Information'!B36 -> 0 | C34: ='Shooter Information'!C36 -> 0 | K34: =MIN(IF('Shooter Information'!H36=1,999.99,(D34*5)+E34-F34+(G34*10)+(H34*30)+(I34*999.99)+(J34*999.99)),999.99) -> 0 | L34: 0 | M34: =(IF('Shooter Information'!H36=1,"MDQ",IF(J34=1,"SDQ",IF(I34=1,"DNF",SUM(D34+G34+H34+I34+J34))))) -> 0 | O34: 0
A35: 32 | B35: ='Shooter Information'!B37 -> 0 | C35: ='Shooter Information'!C37 -> 0 | K35: =MIN(IF('Shooter Information'!H37=1,999.99,(D35*5)+E35-F35+(G35*10)+(H35*30)+(I35*999.99)+(J35*999.99)),999.99) -> 0 | L35: 0 | M35: =(IF('Shooter Information'!H37=1,"MDQ",IF(J35=1,"SDQ",IF(I35=1,"DNF",SUM(D35+G35+H35+I35+J35))))) -> 0 | O35: 0
A36: 33 | B36: ='Shooter Information'!B38 -> 0 | C36: ='Shooter Information'!C38 -> 0 | K36: =MIN(IF('Shooter Information'!H38=1,999.99,(D36*5)+E36-F36+(G36*10)+(H36*30)+(I36*999.99)+(J36*999.99)),999.99) -> 0 | L36: 0 | M36: =(IF('Shooter Information'!H38=1,"MDQ",IF(J36=1,"SDQ",IF(I36=1,"DNF",SUM(D36+G36+H36+I36+J36))))) -> 0 | O36: 0
A37: 34 | B37: ='Shooter Information'!B39 -> 0 | C37: ='Shooter Information'!C39 -> 0 | K37: =MIN(IF('Shooter Information'!H39=1,999.99,(D37*5)+E37-F37+(G37*10)+(H37*30)+(I37*999.99)+(J37*999.99)),999.99) -> 0 | L37: 0 | M37: =(IF('Shooter Information'!H39=1,"MDQ",IF(J37=1,"SDQ",IF(I37=1,"DNF",SUM(D37+G37+H37+I37+J37))))) -> 0 | O37: 0
A38: 35 | B38: ='Shooter Information'!B40 -> 0 | C38: ='Shooter Information'!C40 -> 0 | K38: =MIN(IF('Shooter Information'!H40=1,999.99,(D38*5)+E38-F38+(G38*10)+(H38*30)+(I38*999.99)+(J38*999.99)),999.99) -> 0 | L38: 0 | M38: =(IF('Shooter Information'!H40=1,"MDQ",IF(J38=1,"SDQ",IF(I38=1,"DNF",SUM(D38+G38+H38+I38+J38))))) -> 0 | O38: 0
A39: 36 | B39: ='Shooter Information'!B41 -> 0 | C39: ='Shooter Information'!C41 -> 0 | K39: =MIN(IF('Shooter Information'!H41=1,999.99,(D39*5)+E39-F39+(G39*10)+(H39*30)+(I39*999.99)+(J39*999.99)),999.99) -> 0 | L39: 0 | M39: =(IF('Shooter Information'!H41=1,"MDQ",IF(J39=1,"SDQ",IF(I39=1,"DNF",SUM(D39+G39+H39+I39+J39))))) -> 0 | O39: 0
A40: 37 | B40: ='Shooter Information'!B42 -> 0 | C40: ='Shooter Information'!C42 -> 0 | K40: =MIN(IF('Shooter Information'!H42=1,999.99,(D40*5)+E40-F40+(G40*10)+(H40*30)+(I40*999.99)+(J40*999.99)),999.99) -> 0 | L40: 0 | M40: =(IF('Shooter Information'!H42=1,"MDQ",IF(J40=1,"SDQ",IF(I40=1,"DNF",SUM(D40+G40+H40+I40+J40))))) -> 0 | O40: 0
A41: 38 | B41: ='Shooter Information'!B43 -> 0 | C41: ='Shooter Information'!C43 -> 0 | K41: =MIN(IF('Shooter Information'!H43=1,999.99,(D41*5)+E41-F41+(G41*10)+(H41*30)+(I41*999.99)+(J41*999.99)),999.99) -> 0 | L41: 0 | M41: =(IF('Shooter Information'!H43=1,"MDQ",IF(J41=1,"SDQ",IF(I41=1,"DNF",SUM(D41+G41+H41+I41+J41))))) -> 0 | O41: 0
A42: 39 | B42: ='Shooter Information'!B44 -> 0 | C42: ='Shooter Information'!C44 -> 0 | K42: =MIN(IF('Shooter Information'!H44=1,999.99,(D42*5)+E42-F42+(G42*10)+(H42*30)+(I42*999.99)+(J42*999.99)),999.99) -> 0 | L42: 0 | M42: =(IF('Shooter Information'!H44=1,"MDQ",IF(J42=1,"SDQ",IF(I42=1,"DNF",SUM(D42+G42+H42+I42+J42))))) -> 0 | O42: 0
A43: 40 | B43: ='Shooter Information'!B45 -> 0 | C43: ='Shooter Information'!C45 -> 0 | K43: =MIN(IF('Shooter Information'!H45=1,999.99,(D43*5)+E43-F43+(G43*10)+(H43*30)+(I43*999.99)+(J43*999.99)),999.99) -> 0 | L43: 0 | M43: =(IF('Shooter Information'!H45=1,"MDQ",IF(J43=1,"SDQ",IF(I43=1,"DNF",SUM(D43+G43+H43+I43+J43))))) -> 0 | O43: 0
A44: 41 | B44: ='Shooter Information'!B46 -> 0 | C44: ='Shooter Information'!C46 -> 0 | K44: =MIN(IF('Shooter Information'!H46=1,999.99,(D44*5)+E44-F44+(G44*10)+(H44*30)+(I44*999.99)+(J44*999.99)),999.99) -> 0 | L44: 0 | M44: =(IF('Shooter Information'!H46=1,"MDQ",IF(J44=1,"SDQ",IF(I44=1,"DNF",SUM(D44+G44+H44+I44+J44))))) -> 0 | O44: 0
A45: 42 | B45: ='Shooter Information'!B47 -> 0 | C45: ='Shooter Information'!C47 -> 0 | K45: =MIN(IF('Shooter Information'!H47=1,999.99,(D45*5)+E45-F45+(G45*10)+(H45*30)+(I45*999.99)+(J45*999.99)),999.99) -> 0 | L45: 0 | M45: =(IF('Shooter Information'!H47=1,"MDQ",IF(J45=1,"SDQ",IF(I45=1,"DNF",SUM(D45+G45+H45+I45+J45))))) -> 0 | O45: 0
A46: 43 | B46: ='Shooter Information'!B48 -> 0 | C46: ='Shooter Information'!C48 -> 0 | K46: =MIN(IF('Shooter Information'!H48=1,999.99,(D46*5)+E46-F46+(G46*10)+(H46*30)+(I46*999.99)+(J46*999.99)),999.99) -> 0 | L46: 0 | M46: =(IF('Shooter Information'!H48=1,"MDQ",IF(J46=1,"SDQ",IF(I46=1,"DNF",SUM(D46+G46+H46+I46+J46))))) -> 0 | O46: 0
A47: 44 | B47: ='Shooter Information'!B49 -> 0 | C47: ='Shooter Information'!C49 -> 0 | K47: =MIN(IF('Shooter Information'!H49=1,999.99,(D47*5)+E47-F47+(G47*10)+(H47*30)+(I47*999.99)+(J47*999.99)),999.99) -> 0 | L47: 0 | M47: =(IF('Shooter Information'!H49=1,"MDQ",IF(J47=1,"SDQ",IF(I47=1,"DNF",SUM(D47+G47+H47+I47+J47))))) -> 0 | O47: 0
A48: 45 | B48: ='Shooter Information'!B50 -> 0 | C48: ='Shooter Information'!C50 -> 0 | K48: =MIN(IF('Shooter Information'!H50=1,999.99,(D48*5)+E48-F48+(G48*10)+(H48*30)+(I48*999.99)+(J48*999.99)),999.99) -> 0 | L48: 0 | M48: =(IF('Shooter Information'!H50=1,"MDQ",IF(J48=1,"SDQ",IF(I48=1,"DNF",SUM(D48+G48+H48+I48+J48))))) -> 0 | O48: 0
A49: 46 | B49: ='Shooter Information'!B51 -> 0 | C49: ='Shooter Information'!C51 -> 0 | K49: =MIN(IF('Shooter Information'!H51=1,999.99,(D49*5)+E49-F49+(G49*10)+(H49*30)+(I49*999.99)+(J49*999.99)),999.99) -> 0 | L49: 0 | M49: =(IF('Shooter Information'!H51=1,"MDQ",IF(J49=1,"SDQ",IF(I49=1,"DNF",SUM(D49+G49+H49+I49+J49))))) -> 0 | O49: 0
A50: 47 | B50: ='Shooter Information'!B52 -> 0 | C50: ='Shooter Information'!C52 -> 0 | K50: =MIN(IF('Shooter Information'!H52=1,999.99,(D50*5)+E50-F50+(G50*10)+(H50*30)+(I50*999.99)+(J50*999.99)),999.99) -> 0 | L50: 0 | M50: =(IF('Shooter Information'!H52=1,"MDQ",IF(J50=1,"SDQ",IF(I50=1,"DNF",SUM(D50+G50+H50+I50+J50))))) -> 0 | O50: 0
A51: 48 | B51: ='Shooter Information'!B53 -> 0 | C51: ='Shooter Information'!C53 -> 0 | K51: =MIN(IF('Shooter Information'!H53=1,999.99,(D51*5)+E51-F51+(G51*10)+(H51*30)+(I51*999.99)+(J51*999.99)),999.99) -> 0 | L51: 0 | M51: =(IF('Shooter Information'!H53=1,"MDQ",IF(J51=1,"SDQ",IF(I51=1,"DNF",SUM(D51+G51+H51+I51+J51))))) -> 0 | O51: 0
A52: 49 | B52: ='Shooter Information'!B54 -> 0 | C52: ='Shooter Information'!C54 -> 0 | K52: =MIN(IF('Shooter Information'!H54=1,999.99,(D52*5)+E52-F52+(G52*10)+(H52*30)+(I52*999.99)+(J52*999.99)),999.99) -> 0 | L52: 0 | M52: =(IF('Shooter Information'!H54=1,"MDQ",IF(J52=1,"SDQ",IF(I52=1,"DNF",SUM(D52+G52+H52+I52+J52))))) -> 0 | O52: 0
A53: 50 | B53: ='Shooter Information'!B55 -> 0 | C53: ='Shooter Information'!C55 -> 0 | K53: =MIN(IF('Shooter Information'!H55=1,999.99,(D53*5)+E53-F53+(G53*10)+(H53*30)+(I53*999.99)+(J53*999.99)),999.99) -> 0 | L53: 0 | M53: =(IF('Shooter Information'!H55=1,"MDQ",IF(J53=1,"SDQ",IF(I53=1,"DNF",SUM(D53+G53+H53+I53+J53))))) -> 0 | O53: 0
A54: 51 | B54: ='Shooter Information'!B56 -> 0 | C54: ='Shooter Information'!C56 -> 0 | K54: =MIN(IF('Shooter Information'!H56=1,999.99,(D54*5)+E54-F54+(G54*10)+(H54*30)+(I54*999.99)+(J54*999.99)),999.99) -> 0 | L54: 0 | M54: =(IF('Shooter Information'!H56=1,"MDQ",IF(J54=1,"SDQ",IF(I54=1,"DNF",SUM(D54+G54+H54+I54+J54))))) -> 0 | O54: 0
A55: 52 | B55: ='Shooter Information'!B57 -> 0 | C55: ='Shooter Information'!C57 -> 0 | K55: =MIN(IF('Shooter Information'!H57=1,999.99,(D55*5)+E55-F55+(G55*10)+(H55*30)+(I55*999.99)+(J55*999.99)),999.99) -> 0 | L55: 0 | M55: =(IF('Shooter Information'!H57=1,"MDQ",IF(J55=1,"SDQ",IF(I55=1,"DNF",SUM(D55+G55+H55+I55+J55))))) -> 0 | O55: 0
A56: 53 | B56: ='Shooter Information'!B58 -> 0 | C56: ='Shooter Information'!C58 -> 0 | K56: =MIN(IF('Shooter Information'!H58=1,999.99,(D56*5)+E56-F56+(G56*10)+(H56*30)+(I56*999.99)+(J56*999.99)),999.99) -> 0 | L56: 0 | M56: =(IF('Shooter Information'!H58=1,"MDQ",IF(J56=1,"SDQ",IF(I56=1,"DNF",SUM(D56+G56+H56+I56+J56))))) -> 0 | O56: 0
A57: 54 | B57: ='Shooter Information'!B59 -> 0 | C57: ='Shooter Information'!C59 -> 0 | K57: =MIN(IF('Shooter Information'!H59=1,999.99,(D57*5)+E57-F57+(G57*10)+(H57*30)+(I57*999.99)+(J57*999.99)),999.99) -> 0 | L57: 0 | M57: =(IF('Shooter Information'!H59=1,"MDQ",IF(J57=1,"SDQ",IF(I57=1,"DNF",SUM(D57+G57+H57+I57+J57))))) -> 0 | O57: 0
A58: 55 | B58: ='Shooter Information'!B60 -> 0 | C58: ='Shooter Information'!C60 -> 0 | K58: =MIN(IF('Shooter Information'!H60=1,999.99,(D58*5)+E58-F58+(G58*10)+(H58*30)+(I58*999.99)+(J58*999.99)),999.99) -> 0 | L58: 0 | M58: =(IF('Shooter Information'!H60=1,"MDQ",IF(J58=1,"SDQ",IF(I58=1,"DNF",SUM(D58+G58+H58+I58+J58))))) -> 0 | O58: 0
A59: 56 | B59: ='Shooter Information'!B61 -> 0 | C59: ='Shooter Information'!C61 -> 0 | K59: =MIN(IF('Shooter Information'!H61=1,999.99,(D59*5)+E59-F59+(G59*10)+(H59*30)+(I59*999.99)+(J59*999.99)),999.99) -> 0 | L59: 0 | M59: =(IF('Shooter Information'!H61=1,"MDQ",IF(J59=1,"SDQ",IF(I59=1,"DNF",SUM(D59+G59+H59+I59+J59))))) -> 0 | O59: 0
A60: 57 | B60: ='Shooter Information'!B62 -> 0 | C60: ='Shooter Information'!C62 -> 0 | K60: =MIN(IF('Shooter Information'!H62=1,999.99,(D60*5)+E60-F60+(G60*10)+(H60*30)+(I60*999.99)+(J60*999.99)),999.99) -> 0 | L60: 0 | M60: =(IF('Shooter Information'!H62=1,"MDQ",IF(J60=1,"SDQ",IF(I60=1,"DNF",SUM(D60+G60+H60+I60+J60))))) -> 0 | O60: 0
A61: 58 | B61: ='Shooter Information'!B63 -> 0 | C61: ='Shooter Information'!C63 -> 0 | K61: =MIN(IF('Shooter Information'!H63=1,999.99,(D61*5)+E61-F61+(G61*10)+(H61*30)+(I61*999.99)+(J61*999.99)),999.99) -> 0 | L61: 0 | M61: =(IF('Shooter Information'!H63=1,"MDQ",IF(J61=1,"SDQ",IF(I61=1,"DNF",SUM(D61+G61+H61+I61+J61))))) -> 0 | O61: 0
A62: 59 | B62: ='Shooter Information'!B64 -> 0 | C62: ='Shooter Information'!C64 -> 0 | K62: =MIN(IF('Shooter Information'!H64=1,999.99,(D62*5)+E62-F62+(G62*10)+(H62*30)+(I62*999.99)+(J62*999.99)),999.99) -> 0 | L62: 0 | M62: =(IF('Shooter Information'!H64=1,"MDQ",IF(J62=1,"SDQ",IF(I62=1,"DNF",SUM(D62+G62+H62+I62+J62))))) -> 0 | O62: 0
A63: 60 | B63: ='Shooter Information'!B65 -> 0 | C63: ='Shooter Information'!C65 -> 0 | K63: =MIN(IF('Shooter Information'!H65=1,999.99,(D63*5)+E63-F63+(G63*10)+(H63*30)+(I63*999.99)+(J63*999.99)),999.99) -> 0 | L63: 0 | M63: =(IF('Shooter Information'!H65=1,"MDQ",IF(J63=1,"SDQ",IF(I63=1,"DNF",SUM(D63+G63+H63+I63+J63))))) -> 0 | O63: 0
A64: 61 | B64: ='Shooter Information'!B66 -> 0 | C64: ='Shooter Information'!C66 -> 0 | K64: =MIN(IF('Shooter Information'!H66=1,999.99,(D64*5)+E64-F64+(G64*10)+(H64*30)+(I64*999.99)+(J64*999.99)),999.99) -> 0 | L64: 0 | M64: =(IF('Shooter Information'!H66=1,"MDQ",IF(J64=1,"SDQ",IF(I64=1,"DNF",SUM(D64+G64+H64+I64+J64))))) -> 0 | O64: 0
A65: 62 | B65: ='Shooter Information'!B67 -> 0 | C65: ='Shooter Information'!C67 -> 0 | K65: =MIN(IF('Shooter Information'!H67=1,999.99,(D65*5)+E65-F65+(G65*10)+(H65*30)+(I65*999.99)+(J65*999.99)),999.99) -> 0 | L65: 0 | M65: =(IF('Shooter Information'!H67=1,"MDQ",IF(J65=1,"SDQ",IF(I65=1,"DNF",SUM(D65+G65+H65+I65+J65))))) -> 0 | O65: 0
A66: 63 | B66: ='Shooter Information'!B68 -> 0 | C66: ='Shooter Information'!C68 -> 0 | K66: =MIN(IF('Shooter Information'!H68=1,999.99,(D66*5)+E66-F66+(G66*10)+(H66*30)+(I66*999.99)+(J66*999.99)),999.99) -> 0 | L66: 0 | M66: =(IF('Shooter Information'!H68=1,"MDQ",IF(J66=1,"SDQ",IF(I66=1,"DNF",SUM(D66+G66+H66+I66+J66))))) -> 0 | O66: 0
A67: 64 | B67: ='Shooter Information'!B69 -> 0 | C67: ='Shooter Information'!C69 -> 0 | K67: =MIN(IF('Shooter Information'!H69=1,999.99,(D67*5)+E67-F67+(G67*10)+(H67*30)+(I67*999.99)+(J67*999.99)),999.99) -> 0 | L67: 0 | M67: =(IF('Shooter Information'!H69=1,"MDQ",IF(J67=1,"SDQ",IF(I67=1,"DNF",SUM(D67+G67+H67+I67+J67))))) -> 0 | O67: 0
A68: 65 | B68: ='Shooter Information'!B70 -> 0 | C68: ='Shooter Information'!C70 -> 0 | K68: =MIN(IF('Shooter Information'!H70=1,999.99,(D68*5)+E68-F68+(G68*10)+(H68*30)+(I68*999.99)+(J68*999.99)),999.99) -> 0 | L68: 0 | M68: =(IF('Shooter Information'!H70=1,"MDQ",IF(J68=1,"SDQ",IF(I68=1,"DNF",SUM(D68+G68+H68+I68+J68))))) -> 0 | O68: 0
A69: 66 | B69: ='Shooter Information'!B71 -> 0 | C69: ='Shooter Information'!C71 -> 0 | K69: =MIN(IF('Shooter Information'!H71=1,999.99,(D69*5)+E69-F69+(G69*10)+(H69*30)+(I69*999.99)+(J69*999.99)),999.99) -> 0 | L69: =IF(K69>0,SUMPRODUCT(--(K69>$K$4:$K$78),--($K$4:$K$78>0))+1,0) -> 0 | M69: =(IF('Shooter Information'!H71=1,"MDQ",IF(J69=1,"SDQ",IF(I69=1,"DNF",SUM(D69+G69+H69+I69+J69))))) -> 0 | O69: =SUM(D69+G69+H69+I69+J69) -> 0
A70: 67 | B70: ='Shooter Information'!B72 -> 0 | C70: ='Shooter Information'!C72 -> 0 | K70: =MIN(IF('Shooter Information'!H72=1,999.99,(D70*5)+E70-F70+(G70*10)+(H70*30)+(I70*999.99)+(J70*999.99)),999.99) -> 0 | L70: 0 | M70: =(IF('Shooter Information'!H72=1,"MDQ",IF(J70=1,"SDQ",IF(I70=1,"DNF",SUM(D70+G70+H70+I70+J70))))) -> 0 | O70: 0
A71: 68 | B71: ='Shooter Information'!B73 -> 0 | C71: ='Shooter Information'!C73 -> 0 | K71: =MIN(IF('Shooter Information'!H73=1,999.99,(D71*5)+E71-F71+(G71*10)+(H71*30)+(I71*999.99)+(J71*999.99)),999.99) -> 0 | L71: 0 | M71: =(IF('Shooter Information'!H73=1,"MDQ",IF(J71=1,"SDQ",IF(I71=1,"DNF",SUM(D71+G71+H71+I71+J71))))) -> 0 | O71: 0
A72: 69 | B72: ='Shooter Information'!B74 -> 0 | C72: ='Shooter Information'!C74 -> 0 | K72: =MIN(IF('Shooter Information'!H74=1,999.99,(D72*5)+E72-F72+(G72*10)+(H72*30)+(I72*999.99)+(J72*999.99)),999.99) -> 0 | L72: 0 | M72: =(IF('Shooter Information'!H74=1,"MDQ",IF(J72=1,"SDQ",IF(I72=1,"DNF",SUM(D72+G72+H72+I72+J72))))) -> 0 | O72: 0
A73: 70 | B73: ='Shooter Information'!B75 -> 0 | C73: ='Shooter Information'!C75 -> 0 | K73: =MIN(IF('Shooter Information'!H75=1,999.99,(D73*5)+E73-F73+(G73*10)+(H73*30)+(I73*999.99)+(J73*999.99)),999.99) -> 0 | L73: 0 | M73: =(IF('Shooter Information'!H75=1,"MDQ",IF(J73=1,"SDQ",IF(I73=1,"DNF",SUM(D73+G73+H73+I73+J73))))) -> 0 | O73: 0
A74: 71 | B74: ='Shooter Information'!B76 -> 0 | C74: ='Shooter Information'!C76 -> 0 | K74: =MIN(IF('Shooter Information'!H76=1,999.99,(D74*5)+E74-F74+(G74*10)+(H74*30)+(I74*999.99)+(J74*999.99)),999.99) -> 0 | L74: 0 | M74: =(IF('Shooter Information'!H76=1,"MDQ",IF(J74=1,"SDQ",IF(I74=1,"DNF",SUM(D74+G74+H74+I74+J74))))) -> 0 | O74: 0
A75: 72 | B75: ='Shooter Information'!B77 -> 0 | C75: ='Shooter Information'!C77 -> 0 | K75: =MIN(IF('Shooter Information'!H77=1,999.99,(D75*5)+E75-F75+(G75*10)+(H75*30)+(I75*999.99)+(J75*999.99)),999.99) -> 0 | L75: 0 | M75: =(IF('Shooter Information'!H77=1,"MDQ",IF(J75=1,"SDQ",IF(I75=1,"DNF",SUM(D75+G75+H75+I75+J75))))) -> 0 | O75: 0
A76: 73 | B76: ='Shooter Information'!B78 -> 0 | C76: ='Shooter Information'!C78 -> 0 | K76: =MIN(IF('Shooter Information'!H78=1,999.99,(D76*5)+E76-F76+(G76*10)+(H76*30)+(I76*999.99)+(J76*999.99)),999.99) -> 0 | L76: 0 | M76: =(IF('Shooter Information'!H78=1,"MDQ",IF(J76=1,"SDQ",IF(I76=1,"DNF",SUM(D76+G76+H76+I76+J76))))) -> 0 | O76: 0
A77: 74 | B77: ='Shooter Information'!B79 -> 0 | C77: ='Shooter Information'!C79 -> 0 | K77: =MIN(IF('Shooter Information'!H79=1,999.99,(D77*5)+E77-F77+(G77*10)+(H77*30)+(I77*999.99)+(J77*999.99)),999.99) -> 0 | L77: 0 | M77: =(IF('Shooter Information'!H79=1,"MDQ",IF(J77=1,"SDQ",IF(I77=1,"DNF",SUM(D77+G77+H77+I77+J77))))) -> 0 | O77: 0
A78: 75 | B78: ='Shooter Information'!B80 -> 0 | C78: ='Shooter Information'!C80 -> 0 | K78: =MIN(IF('Shooter Information'!H80=1,999.99,(D78*5)+E78-F78+(G78*10)+(H78*30)+(I78*999.99)+(J78*999.99)),999.99) -> 0 | L78: 0 | M78: =(IF('Shooter Information'!H80=1,"MDQ",IF(J78=1,"SDQ",IF(I78=1,"DNF",SUM(D78+G78+H78+I78+J78))))) -> 0 | O78: 0

Sheet Stage 6
B1: Stage Input Sheet - Stage 6
A3: Shooter # | B3: Shooter | C3: Class | D3: Misses | E3: Raw Time | F3: Bonus | G3: 10 Sec | H3: 30 Sec | I3: DNF | J3: SDQ | K3: Total | L3: Rank | M3: Penalties | O3: # Penalties
A4: =ROW()-3 -> 1 | B4: ='Shooter Information'!B6 -> Striker | C4: ='Shooter Information'!C6 -> WW | E4: 23.39 | K4: =MIN(IF('Shooter Information'!H6=1,999.99,(D4*5)+E4-F4+(G4*10)+(H4*30)+(I4*999.99)+(J4*999.99)),999.99) -> 23.39 | L4: =IF(K4>0,SUMPRODUCT(--(K4>$K$4:$K$78),--($K$4:$K$78>0))+1,0) -> 5 | M4: =(IF('Shooter Information'!H6=1,"MDQ",IF(J4=1,"SDQ",IF(I4=1,"DNF",SUM(D4+G4+H4+I4+J4))))) -> 0 | O4: =SUM(D4+G4+H4+I4+J4) -> 0
A5: =ROW()-3 -> 2 | B5: ='Shooter Information'!B7 -> Cody Maverick | C5: ='Shooter Information'!C7 -> GF | D5: 1 | E5: 21.81 | K5: =MIN(IF('Shooter Information'!H7=1,999.99,(D5*5)+E5-F5+(G5*10)+(H5*30)+(I5*999.99)+(J5*999.99)),999.99) -> 26.81 | L5: =IF(K5>0,SUMPRODUCT(--(K5>$K$4:$K$78),--($K$4:$K$78>0))+1,0) -> 8 | M5: =(IF('Shooter Information'!H7=1,"MDQ",IF(J5=1,"SDQ",IF(I5=1,"DNF",SUM(D5+G5+H5+I5+J5))))) -> 1 | O5: =SUM(D5+G5+H5+I5+J5) -> 1
A6: 3 | B6: ='Shooter Information'!B8 -> Potter County Kid | C6: ='Shooter Information'!C8 -> WW | E6: 28.32 | K6: =MIN(IF('Shooter Information'!H8=1,999.99,(D6*5)+E6-F6+(G6*10)+(H6*30)+(I6*999.99)+(J6*999.99)),999.99) -> 28.32 | L6: 9 | M6: =(IF('Shooter Information'!H8=1,"MDQ",IF(J6=1,"SDQ",IF(I6=1,"DNF",SUM(D6+G6+H6+I6+J6))))) -> 0 | O6: 0
A7: 4 | B7: ='Shooter Information'!B9 -> Ricochet Kid | C7: ='Shooter Information'!C9 -> W | E7: 29.13 | K7: =MIN(IF('Shooter Information'!H9=1,999.99,(D7*5)+E7-F7+(G7*10)+(H7*30)+(I7*999.99)+(J7*999.99)),999.99) -> 29.13 | L7: 10 | M7: =(IF('Shooter Information'!H9=1,"MDQ",IF(J7=1,"SDQ",IF(I7=1,"DNF",SUM(D7+G7+H7+I7+J7))))) -> 0 | O7: 0
A8: 5 | B8: ='Shooter Information'!B10 -> Flatboat Bob | C8: ='Shooter Information'!C10 -> CBAR | E8: 23.37 | K8: =MIN(IF('Shooter Information'!H10=1,999.99,(D8*5)+E8-F8+(G8*10)+(H8*30)+(I8*999.99)+(J8*999.99)),999.99) -> 23.37 | L8: 4 | M8: =(IF('Shooter Information'!H10=1,"MDQ",IF(J8=1,"SDQ",IF(I8=1,"DNF",SUM(D8+G8+H8+I8+J8))))) -> 0 | O8: 0
A9: 6 | B9: ='Shooter Information'!B11 -> Hotshod | C9: ='Shooter Information'!C11 -> W | D9: 1 | E9: 24.87 | K9: =MIN(IF('Shooter Information'!H11=1,999.99,(D9*5)+E9-F9+(G9*10)+(H9*30)+(I9*999.99)+(J9*999.99)),999.99) -> 29.87 | L9: 13 | M9: =(IF('Shooter Information'!H11=1,"MDQ",IF(J9=1,"SDQ",IF(I9=1,"DNF",SUM(D9+G9+H9+I9+J9))))) -> 1 | O9: 1
A10: 7 | B10: ='Shooter Information'!B12 -> Prairie City Slim | C10: ='Shooter Information'!C12 -> ES | E10: 24.52 | K10: =MIN(IF('Shooter Information'!H12=1,999.99,(D10*5)+E10-F10+(G10*10)+(H10*30)+(I10*999.99)+(J10*999.99)),999.99) -> 24.52 | L10: 7 | M10: =(IF('Shooter Information'!H12=1,"MDQ",IF(J10=1,"SDQ",IF(I10=1,"DNF",SUM(D10+G10+H10+I10+J10))))) -> 0 | O10: 0
A11: 8 | B11: ='Shooter Information'!B13 -> Regret Schofield | C11: ='Shooter Information'!C13 -> 49er | E11: 43.78 | K11: =MIN(IF('Shooter Information'!H13=1,999.99,(D11*5)+E11-F11+(G11*10)+(H11*30)+(I11*999.99)+(J11*999.99)),999.99) -> 43.78 | L11: 14 | M11: =(IF('Shooter Information'!H13=1,"MDQ",IF(J11=1,"SDQ",IF(I11=1,"DNF",SUM(D11+G11+H11+I11+J11))))) -> 0 | O11: 0
A12: 9 | B12: ='Shooter Information'!B14 -> Tumble Weed Tink | C12: ='Shooter Information'!C14 -> L49 | D12: 3 | E12: 45.77 | K12: =MIN(IF('Shooter Information'!H14=1,999.99,(D12*5)+E12-F12+(G12*10)+(H12*30)+(I12*999.99)+(J12*999.99)),999.99) -> 60.77 | L12: 16 | M12: =(IF('Shooter Information'!H14=1,"MDQ",IF(J12=1,"SDQ",IF(I12=1,"DNF",SUM(D12+G12+H12+I12+J12))))) -> 3 | O12: 3
A13: 10 | B13: ='Shooter Information'!B15 -> One Eyed Jane | C13: ='Shooter Information'!C15 -> LSS | E13: 55.54 | K13: =MIN(IF('Shooter Information'!H15=1,999.99,(D13*5)+E13-F13+(G13*10)+(H13*30)+(I13*999.99)+(J13*999.99)),999.99) -> 55.54 | L13: 15 | M13: =(IF('Shooter Information'!H15=1,"MDQ",IF(J13=1,"SDQ",IF(I13=1,"DNF",SUM(D13+G13+H13+I13+J13))))) -> 0 | O13: 0
A14: 11 | B14: ='Shooter Information'!B16 -> Stogie | C14: ='Shooter Information'!C16 -> 49er | E14: 21.22 | K14: =MIN(IF('Shooter Information'!H16=1,999.99,(D14*5)+E14-F14+(G14*10)+(H14*30)+(I14*999.99)+(J14*999.99)),999.99) -> 21.22 | L14: 3 | M14: =(IF('Shooter Information'!H16=1,"MDQ",IF(J14=1,"SDQ",IF(I14=1,"DNF",SUM(D14+G14+H14+I14+J14))))) -> 0 | O14: 0
A15: 12 | B15: ='Shooter Information'!B17 -> Major BS Walker | C15: ='Shooter Information'!C17 -> WW | E15: 20.36 | K15: =MIN(IF('Shooter Information'!H17=1,999.99,(D15*5)+E15-F15+(G15*10)+(H15*30)+(I15*999.99)+(J15*999.99)),999.99) -> 20.36 | L15: 2 | M15: =(IF('Shooter Information'!H17=1,"MDQ",IF(J15=1,"SDQ",IF(I15=1,"DNF",SUM(D15+G15+H15+I15+J15))))) -> 0 | O15: 0
A16: 13 | B16: ='Shooter Information'!B18 -> Sassy Shooting Sours | C16: ='Shooter Information'!C18 -> S | E16: 29.18 | K16: =MIN(IF('Shooter Information'!H18=1,999.99,(D16*5)+E16-F16+(G16*10)+(H16*30)+(I16*999.99)+(J16*999.99)),999.99) -> 29.18 | L16: 11 | M16: =(IF('Shooter Information'!H18=1,"MDQ",IF(J16=1,"SDQ",IF(I16=1,"DNF",SUM(D16+G16+H16+I16+J16))))) -> 0 | O16: 0
A17: 14 | B17: ='Shooter Information'!B19 -> Lefty Spurmaker | C17: ='Shooter Information'!C19 -> S | E17: 18.33 | K17: =MIN(IF('Shooter Information'!H19=1,999.99,(D17*5)+E17-F17+(G17*10)+(H17*30)+(I17*999.99)+(J17*999.99)),999.99) -> 18.33 | L17: 1 | M17: =(IF('Shooter Information'!H19=1,"MDQ",IF(J17=1,"SDQ",IF(I17=1,"DNF",SUM(D17+G17+H17+I17+J17))))) -> 0 | O17: 0
A18: 15 | B18: ='Shooter Information'!B20 -> Windhorse Rider | C18: ='Shooter Information'!C20 -> GF | E18: 29.72 | K18: =MIN(IF('Shooter Information'!H20=1,999.99,(D18*5)+E18-F18+(G18*10)+(H18*30)+(I18*999.99)+(J18*999.99)),999.99) -> 29.72 | L18: 12 | M18: =(IF('Shooter Information'!H20=1,"MDQ",IF(J18=1,"SDQ",IF(I18=1,"DNF",SUM(D18+G18+H18+I18+J18))))) -> 0 | O18: 0
A19: 16 | B19: ='Shooter Information'!B21 -> Red Cavanaugh | C19: ='Shooter Information'!C21 -> 49er | D19: 1 | E19: 19.14 | K19: =MIN(IF('Shooter Information'!H21=1,999.99,(D19*5)+E19-F19+(G19*10)+(H19*30)+(I19*999.99)+(J19*999.99)),999.99) -> 24.14 | L19: 6 | M19: =(IF('Shooter Information'!H21=1,"MDQ",IF(J19=1,"SDQ",IF(I19=1,"DNF",SUM(D19+G19+H19+I19+J19))))) -> 1 | O19: 1
A20: 17 | B20: ='Shooter Information'!B22 -> 0 | C20: ='Shooter Information'!C22 -> 0 | K20: =MIN(IF('Shooter Information'!H22=1,999.99,(D20*5)+E20-F20+(G20*10)+(H20*30)+(I20*999.99)+(J20*999.99)),999.99) -> 0 | L20: 0 | M20: =(IF('Shooter Information'!H22=1,"MDQ",IF(J20=1,"SDQ",IF(I20=1,"DNF",SUM(D20+G20+H20+I20+J20))))) -> 0 | O20: 0
A21: 18 | B21: ='Shooter Information'!B23 -> 0 | C21: ='Shooter Information'!C23 -> 0 | K21: =MIN(IF('Shooter Information'!H23=1,999.99,(D21*5)+E21-F21+(G21*10)+(H21*30)+(I21*999.99)+(J21*999.99)),999.99) -> 0 | L21: 0 | M21: =(IF('Shooter Information'!H23=1,"MDQ",IF(J21=1,"SDQ",IF(I21=1,"DNF",SUM(D21+G21+H21+I21+J21))))) -> 0 | O21: 0
A22: 19 | B22: ='Shooter Information'!B24 -> 0 | C22: ='Shooter Information'!C24 -> 0 | K22: =MIN(IF('Shooter Information'!H24=1,999.99,(D22*5)+E22-F22+(G22*10)+(H22*30)+(I22*999.99)+(J22*999.99)),999.99) -> 0 | L22: 0 | M22: =(IF('Shooter Information'!H24=1,"MDQ",IF(J22=1,"SDQ",IF(I22=1,"DNF",SUM(D22+G22+H22+I22+J22))))) -> 0 | O22: 0
A23: 20 | B23: ='Shooter Information'!B25 -> 0 | C23: ='Shooter Information'!C25 -> 0 | K23: =MIN(IF('Shooter Information'!H25=1,999.99,(D23*5)+E23-F23+(G23*10)+(H23*30)+(I23*999.99)+(J23*999.99)),999.99) -> 0 | L23: 0 | M23: =(IF('Shooter Information'!H25=1,"MDQ",IF(J23=1,"SDQ",IF(I23=1,"DNF",SUM(D23+G23+H23+I23+J23))))) -> 0 | O23: 0
A24: 21 | B24: ='Shooter Information'!B26 -> 0 | C24: ='Shooter Information'!C26 -> 0 | K24: =MIN(IF('Shooter Information'!H26=1,999.99,(D24*5)+E24-F24+(G24*10)+(H24*30)+(I24*999.99)+(J24*999.99)),999.99) -> 0 | L24: 0 | M24: =(IF('Shooter Information'!H26=1,"MDQ",IF(J24=1,"SDQ",IF(I24=1,"DNF",SUM(D24+G24+H24+I24+J24))))) -> 0 | O24: 0
A25: 22 | B25: ='Shooter Information'!B27 -> 0 | C25: ='Shooter Information'!C27 -> 0 | K25: =MIN(IF('Shooter Information'!H27=1,999.99,(D25*5)+E25-F25+(G25*10)+(H25*30)+(I25*999.99)+(J25*999.99)),999.99) -> 0 | L25: 0 | M25: =(IF('Shooter Information'!H27=1,"MDQ",IF(J25=1,"SDQ",IF(I25=1,"DNF",SUM(D25+G25+H25+I25+J25))))) -> 0 | O25: 0
A26: 23 | B26: ='Shooter Information'!B28 -> 0 | C26: ='Shooter Information'!C28 -> 0 | K26: =MIN(IF('Shooter Information'!H28=1,999.99,(D26*5)+E26-F26+(G26*10)+(H26*30)+(I26*999.99)+(J26*999.99)),999.99) -> 0 | L26: 0 | M26: =(IF('Shooter Information'!H28=1,"MDQ",IF(J26=1,"SDQ",IF(I26=1,"DNF",SUM(D26+G26+H26+I26+J26))))) -> 0 | O26: 0
A27: 24 | B27: ='Shooter Information'!B29 -> 0 | C27: ='Shooter Information'!C29 -> 0 | K27: =MIN(IF('Shooter Information'!H29=1,999.99,(D27*5)+E27-F27+(G27*10)+(H27*30)+(I27*999.99)+(J27*999.99)),999.99) -> 0 | L27: 0 | M27: =(IF('Shooter Information'!H29=1,"MDQ",IF(J27=1,"SDQ",IF(I27=1,"DNF",SUM(D27+G27+H27+I27+J27))))) -> 0 | O27: 0
A28: 25 | B28: ='Shooter Information'!B30 -> 0 | C28: ='Shooter Information'!C30 -> 0 | K28: =MIN(IF('Shooter Information'!H30=1,999.99,(D28*5)+E28-F28+(G28*10)+(H28*30)+(I28*999.99)+(J28*999.99)),999.99) -> 0 | L28: 0 | M28: =(IF('Shooter Information'!H30=1,"MDQ",IF(J28=1,"SDQ",IF(I28=1,"DNF",SUM(D28+G28+H28+I28+J28))))) -> 0 | O28: 0
A29: 26 | B29: ='Shooter Information'!B31 -> 0 | C29: ='Shooter Information'!C31 -> 0 | K29: =MIN(IF('Shooter Information'!H31=1,999.99,(D29*5)+E29-F29+(G29*10)+(H29*30)+(I29*999.99)+(J29*999.99)),999.99) -> 0 | L29: 0 | M29: =(IF('Shooter Information'!H31=1,"MDQ",IF(J29=1,"SDQ",IF(I29=1,"DNF",SUM(D29+G29+H29+I29+J29))))) -> 0 | O29: 0
A30: 27 | B30: ='Shooter Information'!B32 -> 0 | C30: ='Shooter Information'!C32 -> 0 | K30: =MIN(IF('Shooter Information'!H32=1,999.99,(D30*5)+E30-F30+(G30*10)+(H30*30)+(I30*999.99)+(J30*999.99)),999.99) -> 0 | L30: 0 | M30: =(IF('Shooter Information'!H32=1,"MDQ",IF(J30=1,"SDQ",IF(I30=1,"DNF",SUM(D30+G30+H30+I30+J30))))) -> 0 | O30: 0
A31: 28 | B31: ='Shooter Information'!B33 -> 0 | C31: ='Shooter Information'!C33 -> 0 | K31: =MIN(IF('Shooter Information'!H33=1,999.99,(D31*5)+E31-F31+(G31*10)+(H31*30)+(I31*999.99)+(J31*999.99)),999.99) -> 0 | L31: 0 | M31: =(IF('Shooter Information'!H33=1,"MDQ",IF(J31=1,"SDQ",IF(I31=1,"DNF",SUM(D31+G31+H31+I31+J31))))) -> 0 | O31: 0
A32: 29 | B32: ='Shooter Information'!B34 -> 0 | C32: ='Shooter Information'!C34 -> 0 | K32: =MIN(IF('Shooter Information'!H34=1,999.99,(D32*5)+E32-F32+(G32*10)+(H32*30)+(I32*999.99)+(J32*999.99)),999.99) -> 0 | L32: 0 | M32: =(IF('Shooter Information'!H34=1,"MDQ",IF(J32=1,"SDQ",IF(I32=1,"DNF",SUM(D32+G32+H32+I32+J32))))) -> 0 | O32: 0
A33: 30 | B33: ='Shooter Information'!B35 -> 0 | C33: ='Shooter Information'!C35 -> 0 | K33: =MIN(IF('Shooter Information'!H35=1,999.99,(D33*5)+E33-F33+(G33*10)+(H33*30)+(I33*999.99)+(J33*999.99)),999.99) -> 0 | L33: 0 | M33: =(IF('Shooter Information'!H35=1,"MDQ",IF(J33=1,"SDQ",IF(I33=1,"DNF",SUM(D33+G33+H33+I33+J33))))) -> 0 | O33: 0
A34: 31 | B34: ='Shooter Information'!B36 -> 0 | C34: ='Shooter Information'!C36 -> 0 | K34: =MIN(IF('Shooter Information'!H36=1,999.99,(D34*5)+E34-F34+(G34*10)+(H34*30)+(I34*999.99)+(J34*999.99)),999.99) -> 0 | L34: 0 | M34: =(IF('Shooter Information'!H36=1,"MDQ",IF(J34=1,"SDQ",IF(I34=1,"DNF",SUM(D34+G34+H34+I34+J34))))) -> 0 | O34: 0
A35: 32 | B35: ='Shooter Information'!B37 -> 0 | C35: ='Shooter Information'!C37 -> 0 | K35: =MIN(IF('Shooter Information'!H37=1,999.99,(D35*5)+E35-F35+(G35*10)+(H35*30)+(I35*999.99)+(J35*999.99)),999.99) -> 0 | L35: 0 | M35: =(IF('Shooter Information'!H37=1,"MDQ",IF(J35=1,"SDQ",IF(I35=1,"DNF",SUM(D35+G35+H35+I35+J35))))) -> 0 | O35: 0
A36: 33 | B36: ='Shooter Information'!B38 -> 0 | C36: ='Shooter Information'!C38 -> 0 | K36: =MIN(IF('Shooter Information'!H38=1,999.99,(D36*5)+E36-F36+(G36*10)+(H36*30)+(I36*999.99)+(J36*999.99)),999.99) -> 0 | L36: 0 | M36: =(IF('Shooter Information'!H38=1,"MDQ",IF(J36=1,"SDQ",IF(I36=1,"DNF",SUM(D36+G36+H36+I36+J36))))) -> 0 | O36: 0
A37: 34 | B37: ='Shooter Information'!B39 -> 0 | C37: ='Shooter Information'!C39 -> 0 | K37: =MIN(IF('Shooter Information'!H39=1,999.99,(D37*5)+E37-F37+(G37*10)+(H37*30)+(I37*999.99)+(J37*999.99)),999.99) -> 0 | L37: 0 | M37: =(IF('Shooter Information'!H39=1,"MDQ",IF(J37=1,"SDQ",IF(I37=1,"DNF",SUM(D37+G37+H37+I37+J37))))) -> 0 | O37: 0
A38: 35 | B38: ='Shooter Information'!B40 -> 0 | C38: ='Shooter Information'!C40 -> 0 | K38: =MIN(IF('Shooter Information'!H40=1,999.99,(D38*5)+E38-F38+(G38*10)+(H38*30)+(I38*999.99)+(J38*999.99)),999.99) -> 0 | L38: 0 | M38: =(IF('Shooter Information'!H40=1,"MDQ",IF(J38=1,"SDQ",IF(I38=1,"DNF",SUM(D38+G38+H38+I38+J38))))) -> 0 | O38: 0
A39: 36 | B39: ='Shooter Information'!B41 -> 0 | C39: ='Shooter Information'!C41 -> 0 | K39: =MIN(IF('Shooter Information'!H41=1,999.99,(D39*5)+E39-F39+(G39*10)+(H39*30)+(I39*999.99)+(J39*999.99)),999.99) -> 0 | L39: 0 | M39: =(IF('Shooter Information'!H41=1,"MDQ",IF(J39=1,"SDQ",IF(I39=1,"DNF",SUM(D39+G39+H39+I39+J39))))) -> 0 | O39: 0
A40: 37 | B40: ='Shooter Information'!B42 -> 0 | C40: ='Shooter Information'!C42 -> 0 | K40: =MIN(IF('Shooter Information'!H42=1,999.99,(D40*5)+E40-F40+(G40*10)+(H40*30)+(I40*999.99)+(J40*999.99)),999.99) -> 0 | L40: 0 | M40: =(IF('Shooter Information'!H42=1,"MDQ",IF(J40=1,"SDQ",IF(I40=1,"DNF",SUM(D40+G40+H40+I40+J40))))) -> 0 | O40: 0
A41: 38 | B41: ='Shooter Information'!B43 -> 0 | C41: ='Shooter Information'!C43 -> 0 | K41: =MIN(IF('Shooter Information'!H43=1,999.99,(D41*5)+E41-F41+(G41*10)+(H41*30)+(I41*999.99)+(J41*999.99)),999.99) -> 0 | L41: 0 | M41: =(IF('Shooter Information'!H43=1,"MDQ",IF(J41=1,"SDQ",IF(I41=1,"DNF",SUM(D41+G41+H41+I41+J41))))) -> 0 | O41: 0
A42: 39 | B42: ='Shooter Information'!B44 -> 0 | C42: ='Shooter Information'!C44 -> 0 | K42: =MIN(IF('Shooter Information'!H44=1,999.99,(D42*5)+E42-F42+(G42*10)+(H42*30)+(I42*999.99)+(J42*999.99)),999.99) -> 0 | L42: 0 | M42: =(IF('Shooter Information'!H44=1,"MDQ",IF(J42=1,"SDQ",IF(I42=1,"DNF",SUM(D42+G42+H42+I42+J42))))) -> 0 | O42: 0
A43: 40 | B43: ='Shooter Information'!B45 -> 0 | C43: ='Shooter Information'!C45 -> 0 | K43: =MIN(IF('Shooter Information'!H45=1,999.99,(D43*5)+E43-F43+(G43*10)+(H43*30)+(I43*999.99)+(J43*999.99)),999.99) -> 0 | L43: 0 | M43: =(IF('Shooter Information'!H45=1,"MDQ",IF(J43=1,"SDQ",IF(I43=1,"DNF",SUM(D43+G43+H43+I43+J43))))) -> 0 | O43: 0
A44: 41 | B44: ='Shooter Information'!B46 -> 0 | C44: ='Shooter Information'!C46 -> 0 | K44: =MIN(IF('Shooter Information'!H46=1,999.99,(D44*5)+E44-F44+(G44*10)+(H44*30)+(I44*999.99)+(J44*999.99)),999.99) -> 0 | L44: 0 | M44: =(IF('Shooter Information'!H46=1,"MDQ",IF(J44=1,"SDQ",IF(I44=1,"DNF",SUM(D44+G44+H44+I44+J44))))) -> 0 | O44: 0
A45: 42 | B45: ='Shooter Information'!B47 -> 0 | C45: ='Shooter Information'!C47 -> 0 | K45: =MIN(IF('Shooter Information'!H47=1,999.99,(D45*5)+E45-F45+(G45*10)+(H45*30)+(I45*999.99)+(J45*999.99)),999.99) -> 0 | L45: 0 | M45: =(IF('Shooter Information'!H47=1,"MDQ",IF(J45=1,"SDQ",IF(I45=1,"DNF",SUM(D45+G45+H45+I45+J45))))) -> 0 | O45: 0
A46: 43 | B46: ='Shooter Information'!B48 -> 0 | C46: ='Shooter Information'!C48 -> 0 | K46: =MIN(IF('Shooter Information'!H48=1,999.99,(D46*5)+E46-F46+(G46*10)+(H46*30)+(I46*999.99)+(J46*999.99)),999.99) -> 0 | L46: 0 | M46: =(IF('Shooter Information'!H48=1,"MDQ",IF(J46=1,"SDQ",IF(I46=1,"DNF",SUM(D46+G46+H46+I46+J46))))) -> 0 | O46: 0
A47: 44 | B47: ='Shooter Information'!B49 -> 0 | C47: ='Shooter Information'!C49 -> 0 | K47: =MIN(IF('Shooter Information'!H49=1,999.99,(D47*5)+E47-F47+(G47*10)+(H47*30)+(I47*999.99)+(J47*999.99)),999.99) -> 0 | L47: 0 | M47: =(IF('Shooter Information'!H49=1,"MDQ",IF(J47=1,"SDQ",IF(I47=1,"DNF",SUM(D47+G47+H47+I47+J47))))) -> 0 | O47: 0
A48: 45 | B48: ='Shooter Information'!B50 -> 0 | C48: ='Shooter Information'!C50 -> 0 | K48: =MIN(IF('Shooter Information'!H50=1,999.99,(D48*5)+E48-F48+(G48*10)+(H48*30)+(I48*999.99)+(J48*999.99)),999.99) -> 0 | L48: 0 | M48: =(IF('Shooter Information'!H50=1,"MDQ",IF(J48=1,"SDQ",IF(I48=1,"DNF",SUM(D48+G48+H48+I48+J48))))) -> 0 | O48: 0
A49: 46 | B49: ='Shooter Information'!B51 -> 0 | C49: ='Shooter Information'!C51 -> 0 | K49: =MIN(IF('Shooter Information'!H51=1,999.99,(D49*5)+E49-F49+(G49*10)+(H49*30)+(I49*999.99)+(J49*999.99)),999.99) -> 0 | L49: 0 | M49: =(IF('Shooter Information'!H51=1,"MDQ",IF(J49=1,"SDQ",IF(I49=1,"DNF",SUM(D49+G49+H49+I49+J49))))) -> 0 | O49: 0
A50: 47 | B50: ='Shooter Information'!B52 -> 0 | C50: ='Shooter Information'!C52 -> 0 | K50: =MIN(IF('Shooter Information'!H52=1,999.99,(D50*5)+E50-F50+(G50*10)+(H50*30)+(I50*999.99)+(J50*999.99)),999.99) -> 0 | L50: 0 | M50: =(IF('Shooter Information'!H52=1,"MDQ",IF(J50=1,"SDQ",IF(I50=1,"DNF",SUM(D50+G50+H50+I50+J50))))) -> 0 | O50: 0
A51: 48 | B51: ='Shooter Information'!B53 -> 0 | C51: ='Shooter Information'!C53 -> 0 | K51: =MIN(IF('Shooter Information'!H53=1,999.99,(D51*5)+E51-F51+(G51*10)+(H51*30)+(I51*999.99)+(J51*999.99)),999.99) -> 0 | L51: 0 | M51: =(IF('Shooter Information'!H53=1,"MDQ",IF(J51=1,"SDQ",IF(I51=1,"DNF",SUM(D51+G51+H51+I51+J51))))) -> 0 | O51: 0
A52: 49 | B52: ='Shooter Information'!B54 -> 0 | C52: ='Shooter Information'!C54 -> 0 | K52: =MIN(IF('Shooter Information'!H54=1,999.99,(D52*5)+E52-F52+(G52*10)+(H52*30)+(I52*999.99)+(J52*999.99)),999.99) -> 0 | L52: 0 | M52: =(IF('Shooter Information'!H54=1,"MDQ",IF(J52=1,"SDQ",IF(I52=1,"DNF",SUM(D52+G52+H52+I52+J52))))) -> 0 | O52: 0
A53: 50 | B53: ='Shooter Information'!B55 -> 0 | C53: ='Shooter Information'!C55 -> 0 | K53: =MIN(IF('Shooter Information'!H55=1,999.99,(D53*5)+E53-F53+(G53*10)+(H53*30)+(I53*999.99)+(J53*999.99)),999.99) -> 0 | L53: 0 | M53: =(IF('Shooter Information'!H55=1,"MDQ",IF(J53=1,"SDQ",IF(I53=1,"DNF",SUM(D53+G53+H53+I53+J53))))) -> 0 | O53: 0
A54: 51 | B54: ='Shooter Information'!B56 -> 0 | C54: ='Shooter Information'!C56 -> 0 | K54: =MIN(IF('Shooter Information'!H56=1,999.99,(D54*5)+E54-F54+(G54*10)+(H54*30)+(I54*999.99)+(J54*999.99)),999.99) -> 0 | L54: 0 | M54: =(IF('Shooter Information'!H56=1,"MDQ",IF(J54=1,"SDQ",IF(I54=1,"DNF",SUM(D54+G54+H54+I54+J54))))) -> 0 | O54: 0
A55: 52 | B55: ='Shooter Information'!B57 -> 0 | C55: ='Shooter Information'!C57 -> 0 | K55: =MIN(IF('Shooter Information'!H57=1,999.99,(D55*5)+E55-F55+(G55*10)+(H55*30)+(I55*999.99)+(J55*999.99)),999.99) -> 0 | L55: 0 | M55: =(IF('Shooter Information'!H57=1,"MDQ",IF(J55=1,"SDQ",IF(I55=1,"DNF",SUM(D55+G55+H55+I55+J55))))) -> 0 | O55: 0
A56: 53 | B56: ='Shooter Information'!B58 -> 0 | C56: ='Shooter Information'!C58 -> 0 | K56: =MIN(IF('Shooter Information'!H58=1,999.99,(D56*5)+E56-F56+(G56*10)+(H56*30)+(I56*999.99)+(J56*999.99)),999.99) -> 0 | L56: 0 | M56: =(IF('Shooter Information'!H58=1,"MDQ",IF(J56=1,"SDQ",IF(I56=1,"DNF",SUM(D56+G56+H56+I56+J56))))) -> 0 | O56: 0
A57: 54 | B57: ='Shooter Information'!B59 -> 0 | C57: ='Shooter Information'!C59 -> 0 | K57: =MIN(IF('Shooter Information'!H59=1,999.99,(D57*5)+E57-F57+(G57*10)+(H57*30)+(I57*999.99)+(J57*999.99)),999.99) -> 0 | L57: 0 | M57: =(IF('Shooter Information'!H59=1,"MDQ",IF(J57=1,"SDQ",IF(I57=1,"DNF",SUM(D57+G57+H57+I57+J57))))) -> 0 | O57: 0
A58: 55 | B58: ='Shooter Information'!B60 -> 0 | C58: ='Shooter Information'!C60 -> 0 | K58: =MIN(IF('Shooter Information'!H60=1,999.99,(D58*5)+E58-F58+(G58*10)+(H58*30)+(I58*999.99)+(J58*999.99)),999.99) -> 0 | L58: 0 | M58: =(IF('Shooter Information'!H60=1,"MDQ",IF(J58=1,"SDQ",IF(I58=1,"DNF",SUM(D58+G58+H58+I58+J58))))) -> 0 | O58: 0
A59: 56 | B59: ='Shooter Information'!B61 -> 0 | C59: ='Shooter Information'!C61 -> 0 | K59: =MIN(IF('Shooter Information'!H61=1,999.99,(D59*5)+E59-F59+(G59*10)+(H59*30)+(I59*999.99)+(J59*999.99)),999.99) -> 0 | L59: 0 | M59: =(IF('Shooter Information'!H61=1,"MDQ",IF(J59=1,"SDQ",IF(I59=1,"DNF",SUM(D59+G59+H59+I59+J59))))) -> 0 | O59: 0
A60: 57 | B60: ='Shooter Information'!B62 -> 0 | C60: ='Shooter Information'!C62 -> 0 | K60: =MIN(IF('Shooter Information'!H62=1,999.99,(D60*5)+E60-F60+(G60*10)+(H60*30)+(I60*999.99)+(J60*999.99)),999.99) -> 0 | L60: 0 | M60: =(IF('Shooter Information'!H62=1,"MDQ",IF(J60=1,"SDQ",IF(I60=1,"DNF",SUM(D60+G60+H60+I60+J60))))) -> 0 | O60: 0
A61: 58 | B61: ='Shooter Information'!B63 -> 0 | C61: ='Shooter Information'!C63 -> 0 | K61: =MIN(IF('Shooter Information'!H63=1,999.99,(D61*5)+E61-F61+(G61*10)+(H61*30)+(I61*999.99)+(J61*999.99)),999.99) -> 0 | L61: 0 | M61: =(IF('Shooter Information'!H63=1,"MDQ",IF(J61=1,"SDQ",IF(I61=1,"DNF",SUM(D61+G61+H61+I61+J61))))) -> 0 | O61: 0
A62: 59 | B62: ='Shooter Information'!B64 -> 0 | C62: ='Shooter Information'!C64 -> 0 | K62: =MIN(IF('Shooter Information'!H64=1,999.99,(D62*5)+E62-F62+(G62*10)+(H62*30)+(I62*999.99)+(J62*999.99)),999.99) -> 0 | L62: 0 | M62: =(IF('Shooter Information'!H64=1,"MDQ",IF(J62=1,"SDQ",IF(I62=1,"DNF",SUM(D62+G62+H62+I62+J62))))) -> 0 | O62: 0
A63: 60 | B63: ='Shooter Information'!B65 -> 0 | C63: ='Shooter Information'!C65 -> 0 | K63: =MIN(IF('Shooter Information'!H65=1,999.99,(D63*5)+E63-F63+(G63*10)+(H63*30)+(I63*999.99)+(J63*999.99)),999.99) -> 0 | L63: 0 | M63: =(IF('Shooter Information'!H65=1,"MDQ",IF(J63=1,"SDQ",IF(I63=1,"DNF",SUM(D63+G63+H63+I63+J63))))) -> 0 | O63: 0
A64: 61 | B64: ='Shooter Information'!B66 -> 0 | C64: ='Shooter Information'!C66 -> 0 | K64: =MIN(IF('Shooter Information'!H66=1,999.99,(D64*5)+E64-F64+(G64*10)+(H64*30)+(I64*999.99)+(J64*999.99)),999.99) -> 0 | L64: 0 | M64: =(IF('Shooter Information'!H66=1,"MDQ",IF(J64=1,"SDQ",IF(I64=1,"DNF",SUM(D64+G64+H64+I64+J64))))) -> 0 | O64: 0
A65: 62 | B65: ='Shooter Information'!B67 -> 0 | C65: ='Shooter Information'!C67 -> 0 | K65: =MIN(IF('Shooter Information'!H67=1,999.99,(D65*5)+E65-F65+(G65*10)+(H65*30)+(I65*999.99)+(J65*999.99)),999.99) -> 0 | L65: 0 | M65: =(IF('Shooter Information'!H67=1,"MDQ",IF(J65=1,"SDQ",IF(I65=1,"DNF",SUM(D65+G65+H65+I65+J65))))) -> 0 | O65: 0
A66: 63 | B66: ='Shooter Information'!B68 -> 0 | C66: ='Shooter Information'!C68 -> 0 | K66: =MIN(IF('Shooter Information'!H68=1,999.99,(D66*5)+E66-F66+(G66*10)+(H66*30)+(I66*999.99)+(J66*999.99)),999.99) -> 0 | L66: 0 | M66: =(IF('Shooter Information'!H68=1,"MDQ",IF(J66=1,"SDQ",IF(I66=1,"DNF",SUM(D66+G66+H66+I66+J66))))) -> 0 | O66: 0
A67: 64 | B67: ='Shooter Information'!B69 -> 0 | C67: ='Shooter Information'!C69 -> 0 | K67: =MIN(IF('Shooter Information'!H69=1,999.99,(D67*5)+E67-F67+(G67*10)+(H67*30)+(I67*999.99)+(J67*999.99)),999.99) -> 0 | L67: 0 | M67: =(IF('Shooter Information'!H69=1,"MDQ",IF(J67=1,"SDQ",IF(I67=1,"DNF",SUM(D67+G67+H67+I67+J67))))) -> 0 | O67: 0
A68: 65 | B68: ='Shooter Information'!B70 -> 0 | C68: ='Shooter Information'!C70 -> 0 | K68: =MIN(IF('Shooter Information'!H70=1,999.99,(D68*5)+E68-F68+(G68*10)+(H68*30)+(I68*999.99)+(J68*999.99)),999.99) -> 0 | L68: 0 | M68: =(IF('Shooter Information'!H70=1,"MDQ",IF(J68=1,"SDQ",IF(I68=1,"DNF",SUM(D68+G68+H68+I68+J68))))) -> 0 | O68: 0
A69: 66 | B69: ='Shooter Information'!B71 -> 0 | C69: ='Shooter Information'!C71 -> 0 | K69: =MIN(IF('Shooter Information'!H71=1,999.99,(D69*5)+E69-F69+(G69*10)+(H69*30)+(I69*999.99)+(J69*999.99)),999.99) -> 0 | L69: =IF(K69>0,SUMPRODUCT(--(K69>$K$4:$K$78),--($K$4:$K$78>0))+1,0) -> 0 | M69: =(IF('Shooter Information'!H71=1,"MDQ",IF(J69=1,"SDQ",IF(I69=1,"DNF",SUM(D69+G69+H69+I69+J69))))) -> 0 | O69: =SUM(D69+G69+H69+I69+J69) -> 0
A70: 67 | B70: ='Shooter Information'!B72 -> 0 | C70: ='Shooter Information'!C72 -> 0 | K70: =MIN(IF('Shooter Information'!H72=1,999.99,(D70*5)+E70-F70+(G70*10)+(H70*30)+(I70*999.99)+(J70*999.99)),999.99) -> 0 | L70: 0 | M70: =(IF('Shooter Information'!H72=1,"MDQ",IF(J70=1,"SDQ",IF(I70=1,"DNF",SUM(D70+G70+H70+I70+J70))))) -> 0 | O70: 0
A71: 68 | B71: ='Shooter Information'!B73 -> 0 | C71: ='Shooter Information'!C73 -> 0 | K71: =MIN(IF('Shooter Information'!H73=1,999.99,(D71*5)+E71-F71+(G71*10)+(H71*30)+(I71*999.99)+(J71*999.99)),999.99) -> 0 | L71: 0 | M71: =(IF('Shooter Information'!H73=1,"MDQ",IF(J71=1,"SDQ",IF(I71=1,"DNF",SUM(D71+G71+H71+I71+J71))))) -> 0 | O71: 0
A72: 69 | B72: ='Shooter Information'!B74 -> 0 | C72: ='Shooter Information'!C74 -> 0 | K72: =MIN(IF('Shooter Information'!H74=1,999.99,(D72*5)+E72-F72+(G72*10)+(H72*30)+(I72*999.99)+(J72*999.99)),999.99) -> 0 | L72: 0 | M72: =(IF('Shooter Information'!H74=1,"MDQ",IF(J72=1,"SDQ",IF(I72=1,"DNF",SUM(D72+G72+H72+I72+J72))))) -> 0 | O72: 0
A73: 70 | B73: ='Shooter Information'!B75 -> 0 | C73: ='Shooter Information'!C75 -> 0 | K73: =MIN(IF('Shooter Information'!H75=1,999.99,(D73*5)+E73-F73+(G73*10)+(H73*30)+(I73*999.99)+(J73*999.99)),999.99) -> 0 | L73: 0 | M73: =(IF('Shooter Information'!H75=1,"MDQ",IF(J73=1,"SDQ",IF(I73=1,"DNF",SUM(D73+G73+H73+I73+J73))))) -> 0 | O73: 0
A74: 71 | B74: ='Shooter Information'!B76 -> 0 | C74: ='Shooter Information'!C76 -> 0 | K74: =MIN(IF('Shooter Information'!H76=1,999.99,(D74*5)+E74-F74+(G74*10)+(H74*30)+(I74*999.99)+(J74*999.99)),999.99) -> 0 | L74: 0 | M74: =(IF('Shooter Information'!H76=1,"MDQ",IF(J74=1,"SDQ",IF(I74=1,"DNF",SUM(D74+G74+H74+I74+J74))))) -> 0 | O74: 0
A75: 72 | B75: ='Shooter Information'!B77 -> 0 | C75: ='Shooter Information'!C77 -> 0 | K75: =MIN(IF('Shooter Information'!H77=1,999.99,(D75*5)+E75-F75+(G75*10)+(H75*30)+(I75*999.99)+(J75*999.99)),999.99) -> 0 | L75: 0 | M75: =(IF('Shooter Information'!H77=1,"MDQ",IF(J75=1,"SDQ",IF(I75=1,"DNF",SUM(D75+G75+H75+I75+J75))))) -> 0 | O75: 0
A76: 73 | B76: ='Shooter Information'!B78 -> 0 | C76: ='Shooter Information'!C78 -> 0 | K76: =MIN(IF('Shooter Information'!H78=1,999.99,(D76*5)+E76-F76+(G76*10)+(H76*30)+(I76*999.99)+(J76*999.99)),999.99) -> 0 | L76: 0 | M76: =(IF('Shooter Information'!H78=1,"MDQ",IF(J76=1,"SDQ",IF(I76=1,"DNF",SUM(D76+G76+H76+I76+J76))))) -> 0 | O76: 0
A77: 74 | B77: ='Shooter Information'!B79 -> 0 | C77: ='Shooter Information'!C79 -> 0 | K77: =MIN(IF('Shooter Information'!H79=1,999.99,(D77*5)+E77-F77+(G77*10)+(H77*30)+(I77*999.99)+(J77*999.99)),999.99) -> 0 | L77: 0 | M77: =(IF('Shooter Information'!H79=1,"MDQ",IF(J77=1,"SDQ",IF(I77=1,"DNF",SUM(D77+G77+H77+I77+J77))))) -> 0 | O77: 0
A78: 75 | B78: ='Shooter Information'!B80 -> 0 | C78: ='Shooter Information'!C80 -> 0 | K78: =MIN(IF('Shooter Information'!H80=1,999.99,(D78*5)+E78-F78+(G78*10)+(H78*30)+(I78*999.99)+(J78*999.99)),999.99) -> 0 | L78: 0 | M78: =(IF('Shooter Information'!H80=1,"MDQ",IF(J78=1,"SDQ",IF(I78=1,"DNF",SUM(D78+G78+H78+I78+J78))))) -> 0 | O78: 0

Sheet Stage 7 (hidden)
B1: Stage Input Sheet - Stage 7
A3: Shooter # | B3: Shooter | C3: Class | D3: Misses | E3: Raw Time | F3: Bonus | G3: 10 Sec | H3: 30 Sec | I3: DNF | J3: SDQ | K3: Total | L3: Rank | M3: Penalties | O3: # Penalties
A4: =ROW()-3 -> 1 | B4: ='Shooter Information'!B6 -> Striker | C4: ='Shooter Information'!C6 -> WW | K4: =MIN(IF('Shooter Information'!H6=1,999.99,(D4*5)+E4-F4+(G4*10)+(H4*30)+(I4*999.99)+(J4*999.99)),999.99) -> 0 | L4: =IF('Shooter Information'!$E$3-('Shooter Information'!$G$3-RANK(K4,K$4:K$78,1))<0,0,'Shooter Information'!$E$3-('Shooter Information'!$G$3-RANK(K4,K$4:K$78,1))) -> 0 | M4: =(IF('Shooter Information'!H6=1,"MDQ",IF(J4=1,"SDQ",IF(I4=1,"DNF",SUM(D4+G4+H4+I4+J4))))) -> 0 | O4: =SUM(D4+G4+H4+I4+J4) -> 0
A5: =ROW()-3 -> 2 | B5: ='Shooter Information'!B7 -> Cody Maverick | C5: ='Shooter Information'!C7 -> GF | K5: =MIN(IF('Shooter Information'!H7=1,999.99,(D5*5)+E5-F5+(G5*10)+(H5*30)+(I5*999.99)+(J5*999.99)),999.99) -> 0 | L5: =IF('Shooter Information'!$E$3-('Shooter Information'!$G$3-RANK(K5,K$4:K$78,1))<0,0,'Shooter Information'!$E$3-('Shooter Information'!$G$3-RANK(K5,K$4:K$78,1))) -> 0 | M5: =(IF('Shooter Information'!H7=1,"MDQ",IF(J5=1,"SDQ",IF(I5=1,"DNF",SUM(D5+G5+H5+I5+J5))))) -> 0 | O5: =SUM(D5+G5+H5+I5+J5) -> 0
A6: 3 | B6: ='Shooter Information'!B8 -> Potter County Kid | C6: ='Shooter Information'!C8 -> WW | K6: =MIN(IF('Shooter Information'!H8=1,999.99,(D6*5)+E6-F6+(G6*10)+(H6*30)+(I6*999.99)+(J6*999.99)),999.99) -> 0 | L6: =IF('Shooter Information'!$E$3-('Shooter Information'!$G$3-RANK(K6,K$4:K$78,1))<0,0,'Shooter Information'!$E$3-('Shooter Information'!$G$3-RANK(K6,K$4:K$78,1))) -> 0 | M6: =(IF('Shooter Information'!H8=1,"MDQ",IF(J6=1,"SDQ",IF(I6=1,"DNF",SUM(D6+G6+H6+I6+J6))))) -> 0 | O6: 0
A7: 4 | B7: ='Shooter Information'!B9 -> Ricochet Kid | C7: ='Shooter Information'!C9 -> W | K7: =MIN(IF('Shooter Information'!H9=1,999.99,(D7*5)+E7-F7+(G7*10)+(H7*30)+(I7*999.99)+(J7*999.99)),999.99) -> 0 | L7: =IF('Shooter Information'!$E$3-('Shooter Information'!$G$3-RANK(K7,K$4:K$78,1))<0,0,'Shooter Information'!$E$3-('Shooter Information'!$G$3-RANK(K7,K$4:K$78,1))) -> 0 | M7: =(IF('Shooter Information'!H9=1,"MDQ",IF(J7=1,"SDQ",IF(I7=1,"DNF",SUM(D7+G7+H7+I7+J7))))) -> 0 | O7: 0
A8: 5 | B8: ='Shooter Information'!B10 -> Flatboat Bob | C8: ='Shooter Information'!C10 -> CBAR | K8: =MIN(IF('Shooter Information'!H10=1,999.99,(D8*5)+E8-F8+(G8*10)+(H8*30)+(I8*999.99)+(J8*999.99)),999.99) -> 0 | L8: =IF('Shooter Information'!$E$3-('Shooter Information'!$G$3-RANK(K8,K$4:K$78,1))<0,0,'Shooter Information'!$E$3-('Shooter Information'!$G$3-RANK(K8,K$4:K$78,1))) -> 0 | M8: =(IF('Shooter Information'!H10=1,"MDQ",IF(J8=1,"SDQ",IF(I8=1,"DNF",SUM(D8+G8+H8+I8+J8))))) -> 0 | O8: 0
A9: 6 | B9: ='Shooter Information'!B11 -> Hotshod | C9: ='Shooter Information'!C11 -> W | K9: =MIN(IF('Shooter Information'!H11=1,999.99,(D9*5)+E9-F9+(G9*10)+(H9*30)+(I9*999.99)+(J9*999.99)),999.99) -> 0 | L9: =IF('Shooter Information'!$E$3-('Shooter Information'!$G$3-RANK(K9,K$4:K$78,1))<0,0,'Shooter Information'!$E$3-('Shooter Information'!$G$3-RANK(K9,K$4:K$78,1))) -> 0 | M9: =(IF('Shooter Information'!H11=1,"MDQ",IF(J9=1,"SDQ",IF(I9=1,"DNF",SUM(D9+G9+H9+I9+J9))))) -> 0 | O9: 0
A10: 7 | B10: ='Shooter Information'!B12 -> Prairie City Slim | C10: ='Shooter Information'!C12 -> ES | K10: =MIN(IF('Shooter Information'!H12=1,999.99,(D10*5)+E10-F10+(G10*10)+(H10*30)+(I10*999.99)+(J10*999.99)),999.99) -> 0 | L10: =IF('Shooter Information'!$E$3-('Shooter Information'!$G$3-RANK(K10,K$4:K$78,1))<0,0,'Shooter Information'!$E$3-('Shooter Information'!$G$3-RANK(K10,K$4:K$78,1))) -> 0 | M10: =(IF('Shooter Information'!H12=1,"MDQ",IF(J10=1,"SDQ",IF(I10=1,"DNF",SUM(D10+G10+H10+I10+J10))))) -> 0 | O10: 0
A11: 8 | B11: ='Shooter Information'!B13 -> Regret Schofield | C11: ='Shooter Information'!C13 -> 49er | K11: =MIN(IF('Shooter Information'!H13=1,999.99,(D11*5)+E11-F11+(G11*10)+(H11*30)+(I11*999.99)+(J11*999.99)),999.99) -> 0 | L11: =IF('Shooter Information'!$E$3-('Shooter Information'!$G$3-RANK(K11,K$4:K$78,1))<0,0,'Shooter Information'!$E$3-('Shooter Information'!$G$3-RANK(K11,K$4:K$78,1))) -> 0 | M11: =(IF('Shooter Information'!H13=1,"MDQ",IF(J11=1,"SDQ",IF(I11=1,"DNF",SUM(D11+G11+H11+I11+J11))))) -> 0 | O11: 0
A12: 9 | B12: ='Shooter Information'!B14 -> Tumble Weed Tink | C12: ='Shooter Information'!C14 -> L49 | K12: =MIN(IF('Shooter Information'!H14=1,999.99,(D12*5)+E12-F12+(G12*10)+(H12*30)+(I12*999.99)+(J12*999.99)),999.99) -> 0 | L12: =IF('Shooter Information'!$E$3-('Shooter Information'!$G$3-RANK(K12,K$4:K$78,1))<0,0,'Shooter Information'!$E$3-('Shooter Information'!$G$3-RANK(K12,K$4:K$78,1))) -> 0 | M12: =(IF('Shooter Information'!H14=1,"MDQ",IF(J12=1,"SDQ",IF(I12=1,"DNF",SUM(D12+G12+H12+I12+J12))))) -> 0 | O12: 0
A13: 10 | B13: ='Shooter Information'!B15 -> One Eyed Jane | C13: ='Shooter Information'!C15 -> LSS | K13: =MIN(IF('Shooter Information'!H15=1,999.99,(D13*5)+E13-F13+(G13*10)+(H13*30)+(I13*999.99)+(J13*999.99)),999.99) -> 0 | L13: =IF('Shooter Information'!$E$3-('Shooter Information'!$G$3-RANK(K13,K$4:K$78,1))<0,0,'Shooter Information'!$E$3-('Shooter Information'!$G$3-RANK(K13,K$4:K$78,1))) -> 0 | M13: =(IF('Shooter Information'!H15=1,"MDQ",IF(J13=1,"SDQ",IF(I13=1,"DNF",SUM(D13+G13+H13+I13+J13))))) -> 0 | O13: 0
A14: 11 | B14: ='Shooter Information'!B16 -> Stogie | C14: ='Shooter Information'!C16 -> 49er | K14: =MIN(IF('Shooter Information'!H16=1,999.99,(D14*5)+E14-F14+(G14*10)+(H14*30)+(I14*999.99)+(J14*999.99)),999.99) -> 0 | L14: =IF('Shooter Information'!$E$3-('Shooter Information'!$G$3-RANK(K14,K$4:K$78,1))<0,0,'Shooter Information'!$E$3-('Shooter Information'!$G$3-RANK(K14,K$4:K$78,1))) -> 0 | M14: =(IF('Shooter Information'!H16=1,"MDQ",IF(J14=1,"SDQ",IF(I14=1,"DNF",SUM(D14+G14+H14+I14+J14))))) -> 0 | O14: 0
A15: 12 | B15: ='Shooter Information'!B17 -> Major BS Walker | C15: ='Shooter Information'!C17 -> WW | K15: =MIN(IF('Shooter Information'!H17=1,999.99,(D15*5)+E15-F15+(G15*10)+(H15*30)+(I15*999.99)+(J15*999.99)),999.99) -> 0 | L15: =IF('Shooter Information'!$E$3-('Shooter Information'!$G$3-RANK(K15,K$4:K$78,1))<0,0,'Shooter Information'!$E$3-('Shooter Information'!$G$3-RANK(K15,K$4:K$78,1))) -> 0 | M15: =(IF('Shooter Information'!H17=1,"MDQ",IF(J15=1,"SDQ",IF(I15=1,"DNF",SUM(D15+G15+H15+I15+J15))))) -> 0 | O15: 0
A16: 13 | B16: ='Shooter Information'!B18 -> Sassy Shooting Sours | C16: ='Shooter Information'!C18 -> S | K16: =MIN(IF('Shooter Information'!H18=1,999.99,(D16*5)+E16-F16+(G16*10)+(H16*30)+(I16*999.99)+(J16*999.99)),999.99) -> 0 | L16: =IF('Shooter Information'!$E$3-('Shooter Information'!$G$3-RANK(K16,K$4:K$78,1))<0,0,'Shooter Information'!$E$3-('Shooter Information'!$G$3-RANK(K16,K$4:K$78,1))) -> 0 | M16: =(IF('Shooter Information'!H18=1,"MDQ",IF(J16=1,"SDQ",IF(I16=1,"DNF",SUM(D16+G16+H16+I16+J16))))) -> 0 | O16: 0
A17: 14 | B17: ='Shooter Information'!B19 -> Lefty Spurmaker | C17: ='Shooter Information'!C19 -> S | K17: =MIN(IF('Shooter Information'!H19=1,999.99,(D17*5)+E17-F17+(G17*10)+(H17*30)+(I17*999.99)+(J17*999.99)),999.99) -> 0 | L17: =IF('Shooter Information'!$E$3-('Shooter Information'!$G$3-RANK(K17,K$4:K$78,1))<0,0,'Shooter Information'!$E$3-('Shooter Information'!$G$3-RANK(K17,K$4:K$78,1))) -> 0 | M17: =(IF('Shooter Information'!H19=1,"MDQ",IF(J17=1,"SDQ",IF(I17=1,"DNF",SUM(D17+G17+H17+I17+J17))))) -> 0 | O17: 0
A18: 15 | B18: ='Shooter Information'!B20 -> Windhorse Rider | C18: ='Shooter Information'!C20 -> GF | K18: =MIN(IF('Shooter Information'!H20=1,999.99,(D18*5)+E18-F18+(G18*10)+(H18*30)+(I18*999.99)+(J18*999.99)),999.99) -> 0 | L18: =IF('Shooter Information'!$E$3-('Shooter Information'!$G$3-RANK(K18,K$4:K$78,1))<0,0,'Shooter Information'!$E$3-('Shooter Information'!$G$3-RANK(K18,K$4:K$78,1))) -> 0 | M18: =(IF('Shooter Information'!H20=1,"MDQ",IF(J18=1,"SDQ",IF(I18=1,"DNF",SUM(D18+G18+H18+I18+J18))))) -> 0 | O18: 0
A19: 16 | B19: ='Shooter Information'!B21 -> Red Cavanaugh | C19: ='Shooter Information'!C21 -> 49er | K19: =MIN(IF('Shooter Information'!H21=1,999.99,(D19*5)+E19-F19+(G19*10)+(H19*30)+(I19*999.99)+(J19*999.99)),999.99) -> 0 | L19: =IF('Shooter Information'!$E$3-('Shooter Information'!$G$3-RANK(K19,K$4:K$78,1))<0,0,'Shooter Information'!$E$3-('Shooter Information'!$G$3-RANK(K19,K$4:K$78,1))) -> 0 | M19: =(IF('Shooter Information'!H21=1,"MDQ",IF(J19=1,"SDQ",IF(I19=1,"DNF",SUM(D19+G19+H19+I19+J19))))) -> 0 | O19: 0
A20: 17 | B20: ='Shooter Information'!B22 -> 0 | C20: ='Shooter Information'!C22 -> 0 | K20: =MIN(IF('Shooter Information'!H22=1,999.99,(D20*5)+E20-F20+(G20*10)+(H20*30)+(I20*999.99)+(J20*999.99)),999.99) -> 0 | L20: =IF('Shooter Information'!$E$3-('Shooter Information'!$G$3-RANK(K20,K$4:K$78,1))<0,0,'Shooter Information'!$E$3-('Shooter Information'!$G$3-RANK(K20,K$4:K$78,1))) -> 0 | M20: =(IF('Shooter Information'!H22=1,"MDQ",IF(J20=1,"SDQ",IF(I20=1,"DNF",SUM(D20+G20+H20+I20+J20))))) -> 0 | O20: 0
A21: 18 | B21: ='Shooter Information'!B23 -> 0 | C21: ='Shooter Information'!C23 -> 0 | K21: =MIN(IF('Shooter Information'!H23=1,999.99,(D21*5)+E21-F21+(G21*10)+(H21*30)+(I21*999.99)+(J21*999.99)),999.99) -> 0 | L21: =IF('Shooter Information'!$E$3-('Shooter Information'!$G$3-RANK(K21,K$4:K$78,1))<0,0,'Shooter Information'!$E$3-('Shooter Information'!$G$3-RANK(K21,K$4:K$78,1))) -> 0 | M21: =(IF('Shooter Information'!H23=1,"MDQ",IF(J21=1,"SDQ",IF(I21=1,"DNF",SUM(D21+G21+H21+I21+J21))))) -> 0 | O21: 0
A22: 19 | B22: ='Shooter Information'!B24 -> 0 | C22: ='Shooter Information'!C24 -> 0 | K22: =MIN(IF('Shooter Information'!H24=1,999.99,(D22*5)+E22-F22+(G22*10)+(H22*30)+(I22*999.99)+(J22*999.99)),999.99) -> 0 | L22: =IF('Shooter Information'!$E$3-('Shooter Information'!$G$3-RANK(K22,K$4:K$78,1))<0,0,'Shooter Information'!$E$3-('Shooter Information'!$G$3-RANK(K22,K$4:K$78,1))) -> 0 | M22: =(IF('Shooter Information'!H24=1,"MDQ",IF(J22=1,"SDQ",IF(I22=1,"DNF",SUM(D22+G22+H22+I22+J22))))) -> 0 | O22: 0
A23: 20 | B23: ='Shooter Information'!B25 -> 0 | C23: ='Shooter Information'!C25 -> 0 | K23: =MIN(IF('Shooter Information'!H25=1,999.99,(D23*5)+E23-F23+(G23*10)+(H23*30)+(I23*999.99)+(J23*999.99)),999.99) -> 0 | L23: =IF('Shooter Information'!$E$3-('Shooter Information'!$G$3-RANK(K23,K$4:K$78,1))<0,0,'Shooter Information'!$E$3-('Shooter Information'!$G$3-RANK(K23,K$4:K$78,1))) -> 0 | M23: =(IF('Shooter Information'!H25=1,"MDQ",IF(J23=1,"SDQ",IF(I23=1,"DNF",SUM(D23+G23+H23+I23+J23))))) -> 0 | O23: 0
A24: 21 | B24: ='Shooter Information'!B26 -> 0 | C24: ='Shooter Information'!C26 -> 0 | K24: =MIN(IF('Shooter Information'!H26=1,999.99,(D24*5)+E24-F24+(G24*10)+(H24*30)+(I24*999.99)+(J24*999.99)),999.99) -> 0 | L24: =IF('Shooter Information'!$E$3-('Shooter Information'!$G$3-RANK(K24,K$4:K$78,1))<0,0,'Shooter Information'!$E$3-('Shooter Information'!$G$3-RANK(K24,K$4:K$78,1))) -> 0 | M24: =(IF('Shooter Information'!H26=1,"MDQ",IF(J24=1,"SDQ",IF(I24=1,"DNF",SUM(D24+G24+H24+I24+J24))))) -> 0 | O24: 0
A25: 22 | B25: ='Shooter Information'!B27 -> 0 | C25: ='Shooter Information'!C27 -> 0 | K25: =MIN(IF('Shooter Information'!H27=1,999.99,(D25*5)+E25-F25+(G25*10)+(H25*30)+(I25*999.99)+(J25*999.99)),999.99) -> 0 | L25: =IF('Shooter Information'!$E$3-('Shooter Information'!$G$3-RANK(K25,K$4:K$78,1))<0,0,'Shooter Information'!$E$3-('Shooter Information'!$G$3-RANK(K25,K$4:K$78,1))) -> 0 | M25: =(IF('Shooter Information'!H27=1,"MDQ",IF(J25=1,"SDQ",IF(I25=1,"DNF",SUM(D25+G25+H25+I25+J25))))) -> 0 | O25: 0
A26: 23 | B26: ='Shooter Information'!B28 -> 0 | C26: ='Shooter Information'!C28 -> 0 | K26: =MIN(IF('Shooter Information'!H28=1,999.99,(D26*5)+E26-F26+(G26*10)+(H26*30)+(I26*999.99)+(J26*999.99)),999.99) -> 0 | L26: =IF('Shooter Information'!$E$3-('Shooter Information'!$G$3-RANK(K26,K$4:K$78,1))<0,0,'Shooter Information'!$E$3-('Shooter Information'!$G$3-RANK(K26,K$4:K$78,1))) -> 0 | M26: =(IF('Shooter Information'!H28=1,"MDQ",IF(J26=1,"SDQ",IF(I26=1,"DNF",SUM(D26+G26+H26+I26+J26))))) -> 0 | O26: 0
A27: 24 | B27: ='Shooter Information'!B29 -> 0 | C27: ='Shooter Information'!C29 -> 0 | K27: =MIN(IF('Shooter Information'!H29=1,999.99,(D27*5)+E27-F27+(G27*10)+(H27*30)+(I27*999.99)+(J27*999.99)),999.99) -> 0 | L27: =IF('Shooter Information'!$E$3-('Shooter Information'!$G$3-RANK(K27,K$4:K$78,1))<0,0,'Shooter Information'!$E$3-('Shooter Information'!$G$3-RANK(K27,K$4:K$78,1))) -> 0 | M27: =(IF('Shooter Information'!H29=1,"MDQ",IF(J27=1,"SDQ",IF(I27=1,"DNF",SUM(D27+G27+H27+I27+J27))))) -> 0 | O27: 0
A28: 25 | B28: ='Shooter Information'!B30 -> 0 | C28: ='Shooter Information'!C30 -> 0 | K28: =MIN(IF('Shooter Information'!H30=1,999.99,(D28*5)+E28-F28+(G28*10)+(H28*30)+(I28*999.99)+(J28*999.99)),999.99) -> 0 | L28: =IF('Shooter Information'!$E$3-('Shooter Information'!$G$3-RANK(K28,K$4:K$78,1))<0,0,'Shooter Information'!$E$3-('Shooter Information'!$G$3-RANK(K28,K$4:K$78,1))) -> 0 | M28: =(IF('Shooter Information'!H30=1,"MDQ",IF(J28=1,"SDQ",IF(I28=1,"DNF",SUM(D28+G28+H28+I28+J28))))) -> 0 | O28: 0
A29: 26 | B29: ='Shooter Information'!B31 -> 0 | C29: ='Shooter Information'!C31 -> 0 | K29: =MIN(IF('Shooter Information'!H31=1,999.99,(D29*5)+E29-F29+(G29*10)+(H29*30)+(I29*999.99)+(J29*999.99)),999.99) -> 0 | L29: =IF('Shooter Information'!$E$3-('Shooter Information'!$G$3-RANK(K29,K$4:K$78,1))<0,0,'Shooter Information'!$E$3-('Shooter Information'!$G$3-RANK(K29,K$4:K$78,1))) -> 0 | M29: =(IF('Shooter Information'!H31=1,"MDQ",IF(J29=1,"SDQ",IF(I29=1,"DNF",SUM(D29+G29+H29+I29+J29))))) -> 0 | O29: 0
A30: 27 | B30: ='Shooter Information'!B32 -> 0 | C30: ='Shooter Information'!C32 -> 0 | K30: =MIN(IF('Shooter Information'!H32=1,999.99,(D30*5)+E30-F30+(G30*10)+(H30*30)+(I30*999.99)+(J30*999.99)),999.99) -> 0 | L30: =IF('Shooter Information'!$E$3-('Shooter Information'!$G$3-RANK(K30,K$4:K$78,1))<0,0,'Shooter Information'!$E$3-('Shooter Information'!$G$3-RANK(K30,K$4:K$78,1))) -> 0 | M30: =(IF('Shooter Information'!H32=1,"MDQ",IF(J30=1,"SDQ",IF(I30=1,"DNF",SUM(D30+G30+H30+I30+J30))))) -> 0 | O30: 0
A31: 28 | B31: ='Shooter Information'!B33 -> 0 | C31: ='Shooter Information'!C33 -> 0 | K31: =MIN(IF('Shooter Information'!H33=1,999.99,(D31*5)+E31-F31+(G31*10)+(H31*30)+(I31*999.99)+(J31*999.99)),999.99) -> 0 | L31: =IF('Shooter Information'!$E$3-('Shooter Information'!$G$3-RANK(K31,K$4:K$78,1))<0,0,'Shooter Information'!$E$3-('Shooter Information'!$G$3-RANK(K31,K$4:K$78,1))) -> 0 | M31: =(IF('Shooter Information'!H33=1,"MDQ",IF(J31=1,"SDQ",IF(I31=1,"DNF",SUM(D31+G31+H31+I31+J31))))) -> 0 | O31: 0
A32: 29 | B32: ='Shooter Information'!B34 -> 0 | C32: ='Shooter Information'!C34 -> 0 | K32: =MIN(IF('Shooter Information'!H34=1,999.99,(D32*5)+E32-F32+(G32*10)+(H32*30)+(I32*999.99)+(J32*999.99)),999.99) -> 0 | L32: =IF('Shooter Information'!$E$3-('Shooter Information'!$G$3-RANK(K32,K$4:K$78,1))<0,0,'Shooter Information'!$E$3-('Shooter Information'!$G$3-RANK(K32,K$4:K$78,1))) -> 0 | M32: =(IF('Shooter Information'!H34=1,"MDQ",IF(J32=1,"SDQ",IF(I32=1,"DNF",SUM(D32+G32+H32+I32+J32))))) -> 0 | O32: 0
A33: 30 | B33: ='Shooter Information'!B35 -> 0 | C33: ='Shooter Information'!C35 -> 0 | K33: =MIN(IF('Shooter Information'!H35=1,999.99,(D33*5)+E33-F33+(G33*10)+(H33*30)+(I33*999.99)+(J33*999.99)),999.99) -> 0 | L33: =IF('Shooter Information'!$E$3-('Shooter Information'!$G$3-RANK(K33,K$4:K$78,1))<0,0,'Shooter Information'!$E$3-('Shooter Information'!$G$3-RANK(K33,K$4:K$78,1))) -> 0 | M33: =(IF('Shooter Information'!H35=1,"MDQ",IF(J33=1,"SDQ",IF(I33=1,"DNF",SUM(D33+G33+H33+I33+J33))))) -> 0 | O33: 0
A34: 31 | B34: ='Shooter Information'!B36 -> 0 | C34: ='Shooter Information'!C36 -> 0 | K34: =MIN(IF('Shooter Information'!H36=1,999.99,(D34*5)+E34-F34+(G34*10)+(H34*30)+(I34*999.99)+(J34*999.99)),999.99) -> 0 | L34: =IF('Shooter Information'!$E$3-('Shooter Information'!$G$3-RANK(K34,K$4:K$78,1))<0,0,'Shooter Information'!$E$3-('Shooter Information'!$G$3-RANK(K34,K$4:K$78,1))) -> 0 | M34: =(IF('Shooter Information'!H36=1,"MDQ",IF(J34=1,"SDQ",IF(I34=1,"DNF",SUM(D34+G34+H34+I34+J34))))) -> 0 | O34: 0
A35: 32 | B35: ='Shooter Information'!B37 -> 0 | C35: ='Shooter Information'!C37 -> 0 | K35: =MIN(IF('Shooter Information'!H37=1,999.99,(D35*5)+E35-F35+(G35*10)+(H35*30)+(I35*999.99)+(J35*999.99)),999.99) -> 0 | L35: =IF('Shooter Information'!$E$3-('Shooter Information'!$G$3-RANK(K35,K$4:K$78,1))<0,0,'Shooter Information'!$E$3-('Shooter Information'!$G$3-RANK(K35,K$4:K$78,1))) -> 0 | M35: =(IF('Shooter Information'!H37=1,"MDQ",IF(J35=1,"SDQ",IF(I35=1,"DNF",SUM(D35+G35+H35+I35+J35))))) -> 0 | O35: 0
A36: 33 | B36: ='Shooter Information'!B38 -> 0 | C36: ='Shooter Information'!C38 -> 0 | K36: =MIN(IF('Shooter Information'!H38=1,999.99,(D36*5)+E36-F36+(G36*10)+(H36*30)+(I36*999.99)+(J36*999.99)),999.99) -> 0 | L36: =IF('Shooter Information'!$E$3-('Shooter Information'!$G$3-RANK(K36,K$4:K$78,1))<0,0,'Shooter Information'!$E$3-('Shooter Information'!$G$3-RANK(K36,K$4:K$78,1))) -> 0 | M36: =(IF('Shooter Information'!H38=1,"MDQ",IF(J36=1,"SDQ",IF(I36=1,"DNF",SUM(D36+G36+H36+I36+J36))))) -> 0 | O36: 0
A37: 34 | B37: ='Shooter Information'!B39 -> 0 | C37: ='Shooter Information'!C39 -> 0 | K37: =MIN(IF('Shooter Information'!H39=1,999.99,(D37*5)+E37-F37+(G37*10)+(H37*30)+(I37*999.99)+(J37*999.99)),999.99) -> 0 | L37: =IF('Shooter Information'!$E$3-('Shooter Information'!$G$3-RANK(K37,K$4:K$78,1))<0,0,'Shooter Information'!$E$3-('Shooter Information'!$G$3-RANK(K37,K$4:K$78,1))) -> 0 | M37: =(IF('Shooter Information'!H39=1,"MDQ",IF(J37=1,"SDQ",IF(I37=1,"DNF",SUM(D37+G37+H37+I37+J37))))) -> 0 | O37: 0
A38: 35 | B38: ='Shooter Information'!B40 -> 0 | C38: ='Shooter Information'!C40 -> 0 | K38: =MIN(IF('Shooter Information'!H40=1,999.99,(D38*5)+E38-F38+(G38*10)+(H38*30)+(I38*999.99)+(J38*999.99)),999.99) -> 0 | L38: =IF('Shooter Information'!$E$3-('Shooter Information'!$G$3-RANK(K38,K$4:K$78,1))<0,0,'Shooter Information'!$E$3-('Shooter Information'!$G$3-RANK(K38,K$4:K$78,1))) -> 0 | M38: =(IF('Shooter Information'!H40=1,"MDQ",IF(J38=1,"SDQ",IF(I38=1,"DNF",SUM(D38+G38+H38+I38+J38))))) -> 0 | O38: 0
A39: 36 | B39: ='Shooter Information'!B41 -> 0 | C39: ='Shooter Information'!C41 -> 0 | K39: =MIN(IF('Shooter Information'!H41=1,999.99,(D39*5)+E39-F39+(G39*10)+(H39*30)+(I39*999.99)+(J39*999.99)),999.99) -> 0 | L39: =IF('Shooter Information'!$E$3-('Shooter Information'!$G$3-RANK(K39,K$4:K$78,1))<0,0,'Shooter Information'!$E$3-('Shooter Information'!$G$3-RANK(K39,K$4:K$78,1))) -> 0 | M39: =(IF('Shooter Information'!H41=1,"MDQ",IF(J39=1,"SDQ",IF(I39=1,"DNF",SUM(D39+G39+H39+I39+J39))))) -> 0 | O39: 0
A40: 37 | B40: ='Shooter Information'!B42 -> 0 | C40: ='Shooter Information'!C42 -> 0 | K40: =MIN(IF('Shooter Information'!H42=1,999.99,(D40*5)+E40-F40+(G40*10)+(H40*30)+(I40*999.99)+(J40*999.99)),999.99) -> 0 | L40: =IF('Shooter Information'!$E$3-('Shooter Information'!$G$3-RANK(K40,K$4:K$78,1))<0,0,'Shooter Information'!$E$3-('Shooter Information'!$G$3-RANK(K40,K$4:K$78,1))) -> 0 | M40: =(IF('Shooter Information'!H42=1,"MDQ",IF(J40=1,"SDQ",IF(I40=1,"DNF",SUM(D40+G40+H40+I40+J40))))) -> 0 | O40: 0
A41: 38 | B41: ='Shooter Information'!B43 -> 0 | C41: ='Shooter Information'!C43 -> 0 | K41: =MIN(IF('Shooter Information'!H43=1,999.99,(D41*5)+E41-F41+(G41*10)+(H41*30)+(I41*999.99)+(J41*999.99)),999.99) -> 0 | L41: =IF('Shooter Information'!$E$3-('Shooter Information'!$G$3-RANK(K41,K$4:K$78,1))<0,0,'Shooter Information'!$E$3-('Shooter Information'!$G$3-RANK(K41,K$4:K$78,1))) -> 0 | M41: =(IF('Shooter Information'!H43=1,"MDQ",IF(J41=1,"SDQ",IF(I41=1,"DNF",SUM(D41+G41+H41+I41+J41))))) -> 0 | O41: 0
A42: 39 | B42: ='Shooter Information'!B44 -> 0 | C42: ='Shooter Information'!C44 -> 0 | K42: =MIN(IF('Shooter Information'!H44=1,999.99,(D42*5)+E42-F42+(G42*10)+(H42*30)+(I42*999.99)+(J42*999.99)),999.99) -> 0 | L42: =IF('Shooter Information'!$E$3-('Shooter Information'!$G$3-RANK(K42,K$4:K$78,1))<0,0,'Shooter Information'!$E$3-('Shooter Information'!$G$3-RANK(K42,K$4:K$78,1))) -> 0 | M42: =(IF('Shooter Information'!H44=1,"MDQ",IF(J42=1,"SDQ",IF(I42=1,"DNF",SUM(D42+G42+H42+I42+J42))))) -> 0 | O42: 0
A43: 40 | B43: ='Shooter Information'!B45 -> 0 | C43: ='Shooter Information'!C45 -> 0 | K43: =MIN(IF('Shooter Information'!H45=1,999.99,(D43*5)+E43-F43+(G43*10)+(H43*30)+(I43*999.99)+(J43*999.99)),999.99) -> 0 | L43: =IF('Shooter Information'!$E$3-('Shooter Information'!$G$3-RANK(K43,K$4:K$78,1))<0,0,'Shooter Information'!$E$3-('Shooter Information'!$G$3-RANK(K43,K$4:K$78,1))) -> 0 | M43: =(IF('Shooter Information'!H45=1,"MDQ",IF(J43=1,"SDQ",IF(I43=1,"DNF",SUM(D43+G43+H43+I43+J43))))) -> 0 | O43: 0
A44: 41 | B44: ='Shooter Information'!B46 -> 0 | C44: ='Shooter Information'!C46 -> 0 | K44: =MIN(IF('Shooter Information'!H46=1,999.99,(D44*5)+E44-F44+(G44*10)+(H44*30)+(I44*999.99)+(J44*999.99)),999.99) -> 0 | L44: =IF('Shooter Information'!$E$3-('Shooter Information'!$G$3-RANK(K44,K$4:K$78,1))<0,0,'Shooter Information'!$E$3-('Shooter Information'!$G$3-RANK(K44,K$4:K$78,1))) -> 0 | M44: =(IF('Shooter Information'!H46=1,"MDQ",IF(J44=1,"SDQ",IF(I44=1,"DNF",SUM(D44+G44+H44+I44+J44))))) -> 0 | O44: 0
A45: 42 | B45: ='Shooter Information'!B47 -> 0 | C45: ='Shooter Information'!C47 -> 0 | K45: =MIN(IF('Shooter Information'!H47=1,999.99,(D45*5)+E45-F45+(G45*10)+(H45*30)+(I45*999.99)+(J45*999.99)),999.99) -> 0 | L45: =IF('Shooter Information'!$E$3-('Shooter Information'!$G$3-RANK(K45,K$4:K$78,1))<0,0,'Shooter Information'!$E$3-('Shooter Information'!$G$3-RANK(K45,K$4:K$78,1))) -> 0 | M45: =(IF('Shooter Information'!H47=1,"MDQ",IF(J45=1,"SDQ",IF(I45=1,"DNF",SUM(D45+G45+H45+I45+J45))))) -> 0 | O45: 0
A46: 43 | B46: ='Shooter Information'!B48 -> 0 | C46: ='Shooter Information'!C48 -> 0 | K46: =MIN(IF('Shooter Information'!H48=1,999.99,(D46*5)+E46-F46+(G46*10)+(H46*30)+(I46*999.99)+(J46*999.99)),999.99) -> 0 | L46: =IF('Shooter Information'!$E$3-('Shooter Information'!$G$3-RANK(K46,K$4:K$78,1))<0,0,'Shooter Information'!$E$3-('Shooter Information'!$G$3-RANK(K46,K$4:K$78,1))) -> 0 | M46: =(IF('Shooter Information'!H48=1,"MDQ",IF(J46=1,"SDQ",IF(I46=1,"DNF",SUM(D46+G46+H46+I46+J46))))) -> 0 | O46: 0
A47: 44 | B47: ='Shooter Information'!B49 -> 0 | C47: ='Shooter Information'!C49 -> 0 | K47: =MIN(IF('Shooter Information'!H49=1,999.99,(D47*5)+E47-F47+(G47*10)+(H47*30)+(I47*999.99)+(J47*999.99)),999.99) -> 0 | L47: =IF('Shooter Information'!$E$3-('Shooter Information'!$G$3-RANK(K47,K$4:K$78,1))<0,0,'Shooter Information'!$E$3-('Shooter Information'!$G$3-RANK(K47,K$4:K$78,1))) -> 0 | M47: =(IF('Shooter Information'!H49=1,"MDQ",IF(J47=1,"SDQ",IF(I47=1,"DNF",SUM(D47+G47+H47+I47+J47))))) -> 0 | O47: 0
A48: 45 | B48: ='Shooter Information'!B50 -> 0 | C48: ='Shooter Information'!C50 -> 0 | K48: =MIN(IF('Shooter Information'!H50=1,999.99,(D48*5)+E48-F48+(G48*10)+(H48*30)+(I48*999.99)+(J48*999.99)),999.99) -> 0 | L48: =IF('Shooter Information'!$E$3-('Shooter Information'!$G$3-RANK(K48,K$4:K$78,1))<0,0,'Shooter Information'!$E$3-('Shooter Information'!$G$3-RANK(K48,K$4:K$78,1))) -> 0 | M48: =(IF('Shooter Information'!H50=1,"MDQ",IF(J48=1,"SDQ",IF(I48=1,"DNF",SUM(D48+G48+H48+I48+J48))))) -> 0 | O48: 0
A49: 46 | B49: ='Shooter Information'!B51 -> 0 | C49: ='Shooter Information'!C51 -> 0 | K49: =MIN(IF('Shooter Information'!H51=1,999.99,(D49*5)+E49-F49+(G49*10)+(H49*30)+(I49*999.99)+(J49*999.99)),999.99) -> 0 | L49: =IF('Shooter Information'!$E$3-('Shooter Information'!$G$3-RANK(K49,K$4:K$78,1))<0,0,'Shooter Information'!$E$3-('Shooter Information'!$G$3-RANK(K49,K$4:K$78,1))) -> 0 | M49: =(IF('Shooter Information'!H51=1,"MDQ",IF(J49=1,"SDQ",IF(I49=1,"DNF",SUM(D49+G49+H49+I49+J49))))) -> 0 | O49: 0
A50: 47 | B50: ='Shooter Information'!B52 -> 0 | C50: ='Shooter Information'!C52 -> 0 | K50: =MIN(IF('Shooter Information'!H52=1,999.99,(D50*5)+E50-F50+(G50*10)+(H50*30)+(I50*999.99)+(J50*999.99)),999.99) -> 0 | L50: =IF('Shooter Information'!$E$3-('Shooter Information'!$G$3-RANK(K50,K$4:K$78,1))<0,0,'Shooter Information'!$E$3-('Shooter Information'!$G$3-RANK(K50,K$4:K$78,1))) -> 0 | M50: =(IF('Shooter Information'!H52=1,"MDQ",IF(J50=1,"SDQ",IF(I50=1,"DNF",SUM(D50+G50+H50+I50+J50))))) -> 0 | O50: 0
A51: 48 | B51: ='Shooter Information'!B53 -> 0 | C51: ='Shooter Information'!C53 -> 0 | K51: =MIN(IF('Shooter Information'!H53=1,999.99,(D51*5)+E51-F51+(G51*10)+(H51*30)+(I51*999.99)+(J51*999.99)),999.99) -> 0 | L51: =IF('Shooter Information'!$E$3-('Shooter Information'!$G$3-RANK(K51,K$4:K$78,1))<0,0,'Shooter Information'!$E$3-('Shooter Information'!$G$3-RANK(K51,K$4:K$78,1))) -> 0 | M51: =(IF('Shooter Information'!H53=1,"MDQ",IF(J51=1,"SDQ",IF(I51=1,"DNF",SUM(D51+G51+H51+I51+J51))))) -> 0 | O51: 0
A52: 49 | B52: ='Shooter Information'!B54 -> 0 | C52: ='Shooter Information'!C54 -> 0 | K52: =MIN(IF('Shooter Information'!H54=1,999.99,(D52*5)+E52-F52+(G52*10)+(H52*30)+(I52*999.99)+(J52*999.99)),999.99) -> 0 | L52: =IF('Shooter Information'!$E$3-('Shooter Information'!$G$3-RANK(K52,K$4:K$78,1))<0,0,'Shooter Information'!$E$3-('Shooter Information'!$G$3-RANK(K52,K$4:K$78,1))) -> 0 | M52: =(IF('Shooter Information'!H54=1,"MDQ",IF(J52=1,"SDQ",IF(I52=1,"DNF",SUM(D52+G52+H52+I52+J52))))) -> 0 | O52: 0
A53: 50 | B53: ='Shooter Information'!B55 -> 0 | C53: ='Shooter Information'!C55 -> 0 | K53: =MIN(IF('Shooter Information'!H55=1,999.99,(D53*5)+E53-F53+(G53*10)+(H53*30)+(I53*999.99)+(J53*999.99)),999.99) -> 0 | L53: =IF('Shooter Information'!$E$3-('Shooter Information'!$G$3-RANK(K53,K$4:K$78,1))<0,0,'Shooter Information'!$E$3-('Shooter Information'!$G$3-RANK(K53,K$4:K$78,1))) -> 0 | M53: =(IF('Shooter Information'!H55=1,"MDQ",IF(J53=1,"SDQ",IF(I53=1,"DNF",SUM(D53+G53+H53+I53+J53))))) -> 0 | O53: 0
A54: 51 | B54: ='Shooter Information'!B56 -> 0 | C54: ='Shooter Information'!C56 -> 0 | K54: =MIN(IF('Shooter Information'!H56=1,999.99,(D54*5)+E54-F54+(G54*10)+(H54*30)+(I54*999.99)+(J54*999.99)),999.99) -> 0 | L54: =IF('Shooter Information'!$E$3-('Shooter Information'!$G$3-RANK(K54,K$4:K$78,1))<0,0,'Shooter Information'!$E$3-('Shooter Information'!$G$3-RANK(K54,K$4:K$78,1))) -> 0 | M54: =(IF('Shooter Information'!H56=1,"MDQ",IF(J54=1,"SDQ",IF(I54=1,"DNF",SUM(D54+G54+H54+I54+J54))))) -> 0 | O54: 0
A55: 52 | B55: ='Shooter Information'!B57 -> 0 | C55: ='Shooter Information'!C57 -> 0 | K55: =MIN(IF('Shooter Information'!H57=1,999.99,(D55*5)+E55-F55+(G55*10)+(H55*30)+(I55*999.99)+(J55*999.99)),999.99) -> 0 | L55: =IF('Shooter Information'!$E$3-('Shooter Information'!$G$3-RANK(K55,K$4:K$78,1))<0,0,'Shooter Information'!$E$3-('Shooter Information'!$G$3-RANK(K55,K$4:K$78,1))) -> 0 | M55: =(IF('Shooter Information'!H57=1,"MDQ",IF(J55=1,"SDQ",IF(I55=1,"DNF",SUM(D55+G55+H55+I55+J55))))) -> 0 | O55: 0
A56: 53 | B56: ='Shooter Information'!B58 -> 0 | C56: ='Shooter Information'!C58 -> 0 | K56: =MIN(IF('Shooter Information'!H58=1,999.99,(D56*5)+E56-F56+(G56*10)+(H56*30)+(I56*999.99)+(J56*999.99)),999.99) -> 0 | L56: =IF('Shooter Information'!$E$3-('Shooter Information'!$G$3-RANK(K56,K$4:K$78,1))<0,0,'Shooter Information'!$E$3-('Shooter Information'!$G$3-RANK(K56,K$4:K$78,1))) -> 0 | M56: =(IF('Shooter Information'!H58=1,"MDQ",IF(J56=1,"SDQ",IF(I56=1,"DNF",SUM(D56+G56+H56+I56+J56))))) -> 0 | O56: 0
A57: 54 | B57: ='Shooter Information'!B59 -> 0 | C57: ='Shooter Information'!C59 -> 0 | K57: =MIN(IF('Shooter Information'!H59=1,999.99,(D57*5)+E57-F57+(G57*10)+(H57*30)+(I57*999.99)+(J57*999.99)),999.99) -> 0 | L57: =IF('Shooter Information'!$E$3-('Shooter Information'!$G$3-RANK(K57,K$4:K$78,1))<0,0,'Shooter Information'!$E$3-('Shooter Information'!$G$3-RANK(K57,K$4:K$78,1))) -> 0 | M57: =(IF('Shooter Information'!H59=1,"MDQ",IF(J57=1,"SDQ",IF(I57=1,"DNF",SUM(D57+G57+H57+I57+J57))))) -> 0 | O57: 0
A58: 55 | B58: ='Shooter Information'!B60 -> 0 | C58: ='Shooter Information'!C60 -> 0 | K58: =MIN(IF('Shooter Information'!H60=1,999.99,(D58*5)+E58-F58+(G58*10)+(H58*30)+(I58*999.99)+(J58*999.99)),999.99) -> 0 | L58: =IF('Shooter Information'!$E$3-('Shooter Information'!$G$3-RANK(K58,K$4:K$78,1))<0,0,'Shooter Information'!$E$3-('Shooter Information'!$G$3-RANK(K58,K$4:K$78,1))) -> 0 | M58: =(IF('Shooter Information'!H60=1,"MDQ",IF(J58=1,"SDQ",IF(I58=1,"DNF",SUM(D58+G58+H58+I58+J58))))) -> 0 | O58: 0
A59: 56 | B59: ='Shooter Information'!B61 -> 0 | C59: ='Shooter Information'!C61 -> 0 | K59: =MIN(IF('Shooter Information'!H61=1,999.99,(D59*5)+E59-F59+(G59*10)+(H59*30)+(I59*999.99)+(J59*999.99)),999.99) -> 0 | L59: =IF('Shooter Information'!$E$3-('Shooter Information'!$G$3-RANK(K59,K$4:K$78,1))<0,0,'Shooter Information'!$E$3-('Shooter Information'!$G$3-RANK(K59,K$4:K$78,1))) -> 0 | M59: =(IF('Shooter Information'!H61=1,"MDQ",IF(J59=1,"SDQ",IF(I59=1,"DNF",SUM(D59+G59+H59+I59+J59))))) -> 0 | O59: 0
A60: 57 | B60: ='Shooter Information'!B62 -> 0 | C60: ='Shooter Information'!C62 -> 0 | K60: =MIN(IF('Shooter Information'!H62=1,999.99,(D60*5)+E60-F60+(G60*10)+(H60*30)+(I60*999.99)+(J60*999.99)),999.99) -> 0 | L60: =IF('Shooter Information'!$E$3-('Shooter Information'!$G$3-RANK(K60,K$4:K$78,1))<0,0,'Shooter Information'!$E$3-('Shooter Information'!$G$3-RANK(K60,K$4:K$78,1))) -> 0 | M60: =(IF('Shooter Information'!H62=1,"MDQ",IF(J60=1,"SDQ",IF(I60=1,"DNF",SUM(D60+G60+H60+I60+J60))))) -> 0 | O60: 0
A61: 58 | B61: ='Shooter Information'!B63 -> 0 | C61: ='Shooter Information'!C63 -> 0 | K61: =MIN(IF('Shooter Information'!H63=1,999.99,(D61*5)+E61-F61+(G61*10)+(H61*30)+(I61*999.99)+(J61*999.99)),999.99) -> 0 | L61: =IF('Shooter Information'!$E$3-('Shooter Information'!$G$3-RANK(K61,K$4:K$78,1))<0,0,'Shooter Information'!$E$3-('Shooter Information'!$G$3-RANK(K61,K$4:K$78,1))) -> 0 | M61: =(IF('Shooter Information'!H63=1,"MDQ",IF(J61=1,"SDQ",IF(I61=1,"DNF",SUM(D61+G61+H61+I61+J61))))) -> 0 | O61: 0
A62: 59 | B62: ='Shooter Information'!B64 -> 0 | C62: ='Shooter Information'!C64 -> 0 | K62: =MIN(IF('Shooter Information'!H64=1,999.99,(D62*5)+E62-F62+(G62*10)+(H62*30)+(I62*999.99)+(J62*999.99)),999.99) -> 0 | L62: =IF('Shooter Information'!$E$3-('Shooter Information'!$G$3-RANK(K62,K$4:K$78,1))<0,0,'Shooter Information'!$E$3-('Shooter Information'!$G$3-RANK(K62,K$4:K$78,1))) -> 0 | M62: =(IF('Shooter Information'!H64=1,"MDQ",IF(J62=1,"SDQ",IF(I62=1,"DNF",SUM(D62+G62+H62+I62+J62))))) -> 0 | O62: 0
A63: 60 | B63: ='Shooter Information'!B65 -> 0 | C63: ='Shooter Information'!C65 -> 0 | K63: =MIN(IF('Shooter Information'!H65=1,999.99,(D63*5)+E63-F63+(G63*10)+(H63*30)+(I63*999.99)+(J63*999.99)),999.99) -> 0 | L63: =IF('Shooter Information'!$E$3-('Shooter Information'!$G$3-RANK(K63,K$4:K$78,1))<0,0,'Shooter Information'!$E$3-('Shooter Information'!$G$3-RANK(K63,K$4:K$78,1))) -> 0 | M63: =(IF('Shooter Information'!H65=1,"MDQ",IF(J63=1,"SDQ",IF(I63=1,"DNF",SUM(D63+G63+H63+I63+J63))))) -> 0 | O63: 0
A64: 61 | B64: ='Shooter Information'!B66 -> 0 | C64: ='Shooter Information'!C66 -> 0 | K64: =MIN(IF('Shooter Information'!H66=1,999.99,(D64*5)+E64-F64+(G64*10)+(H64*30)+(I64*999.99)+(J64*999.99)),999.99) -> 0 | L64: =IF('Shooter Information'!$E$3-('Shooter Information'!$G$3-RANK(K64,K$4:K$78,1))<0,0,'Shooter Information'!$E$3-('Shooter Information'!$G$3-RANK(K64,K$4:K$78,1))) -> 0 | M64: =(IF('Shooter Information'!H66=1,"MDQ",IF(J64=1,"SDQ",IF(I64=1,"DNF",SUM(D64+G64+H64+I64+J64))))) -> 0 | O64: 0
A65: 62 | B65: ='Shooter Information'!B67 -> 0 | C65: ='Shooter Information'!C67 -> 0 | K65: =MIN(IF('Shooter Information'!H67=1,999.99,(D65*5)+E65-F65+(G65*10)+(H65*30)+(I65*999.99)+(J65*999.99)),999.99) -> 0 | L65: =IF('Shooter Information'!$E$3-('Shooter Information'!$G$3-RANK(K65,K$4:K$78,1))<0,0,'Shooter Information'!$E$3-('Shooter Information'!$G$3-RANK(K65,K$4:K$78,1))) -> 0 | M65: =(IF('Shooter Information'!H67=1,"MDQ",IF(J65=1,"SDQ",IF(I65=1,"DNF",SUM(D65+G65+H65+I65+J65))))) -> 0 | O65: 0
A66: 63 | B66: ='Shooter Information'!B68 -> 0 | C66: ='Shooter Information'!C68 -> 0 | K66: =MIN(IF('Shooter Information'!H68=1,999.99,(D66*5)+E66-F66+(G66*10)+(H66*30)+(I66*999.99)+(J66*999.99)),999.99) -> 0 | L66: =IF('Shooter Information'!$E$3-('Shooter Information'!$G$3-RANK(K66,K$4:K$78,1))<0,0,'Shooter Information'!$E$3-('Shooter Information'!$G$3-RANK(K66,K$4:K$78,1))) -> 0 | M66: =(IF('Shooter Information'!H68=1,"MDQ",IF(J66=1,"SDQ",IF(I66=1,"DNF",SUM(D66+G66+H66+I66+J66))))) -> 0 | O66: 0
A67: 64 | B67: ='Shooter Information'!B69 -> 0 | C67: ='Shooter Information'!C69 -> 0 | K67: =MIN(IF('Shooter Information'!H69=1,999.99,(D67*5)+E67-F67+(G67*10)+(H67*30)+(I67*999.99)+(J67*999.99)),999.99) -> 0 | L67: =IF('Shooter Information'!$E$3-('Shooter Information'!$G$3-RANK(K67,K$4:K$78,1))<0,0,'Shooter Information'!$E$3-('Shooter Information'!$G$3-RANK(K67,K$4:K$78,1))) -> 0 | M67: =(IF('Shooter Information'!H69=1,"MDQ",IF(J67=1,"SDQ",IF(I67=1,"DNF",SUM(D67+G67+H67+I67+J67))))) -> 0 | O67: 0
A68: 65 | B68: ='Shooter Information'!B70 -> 0 | C68: ='Shooter Information'!C70 -> 0 | K68: =MIN(IF('Shooter Information'!H70=1,999.99,(D68*5)+E68-F68+(G68*10)+(H68*30)+(I68*999.99)+(J68*999.99)),999.99) -> 0 | L68: =IF('Shooter Information'!$E$3-('Shooter Information'!$G$3-RANK(K68,K$4:K$78,1))<0,0,'Shooter Information'!$E$3-('Shooter Information'!$G$3-RANK(K68,K$4:K$78,1))) -> 0 | M68: =(IF('Shooter Information'!H70=1,"MDQ",IF(J68=1,"SDQ",IF(I68=1,"DNF",SUM(D68+G68+H68+I68+J68))))) -> 0 | O68: 0
A69: 66 | B69: ='Shooter Information'!B71 -> 0 | C69: ='Shooter Information'!C71 -> 0 | K69: =MIN(IF('Shooter Information'!H71=1,999.99,(D69*5)+E69-F69+(G69*10)+(H69*30)+(I69*999.99)+(J69*999.99)),999.99) -> 0 | L69: =IF('Shooter Information'!$E$3-('Shooter Information'!$G$3-RANK(K69,K$4:K$78,1))<0,0,'Shooter Information'!$E$3-('Shooter Information'!$G$3-RANK(K69,K$4:K$78,1))) -> 0 | M69: =(IF('Shooter Information'!H71=1,"MDQ",IF(J69=1,"SDQ",IF(I69=1,"DNF",SUM(D69+G69+H69+I69+J69))))) -> 0 | O69: =SUM(D69+G69+H69+I69+J69) -> 0
A70: 67 | B70: ='Shooter Information'!B72 -> 0 | C70: ='Shooter Information'!C72 -> 0 | K70: =MIN(IF('Shooter Information'!H72=1,999.99,(D70*5)+E70-F70+(G70*10)+(H70*30)+(I70*999.99)+(J70*999.99)),999.99) -> 0 | L70: =IF('Shooter Information'!$E$3-('Shooter Information'!$G$3-RANK(K70,K$4:K$78,1))<0,0,'Shooter Information'!$E$3-('Shooter Information'!$G$3-RANK(K70,K$4:K$78,1))) -> 0 | M70: =(IF('Shooter Information'!H72=1,"MDQ",IF(J70=1,"SDQ",IF(I70=1,"DNF",SUM(D70+G70+H70+I70+J70))))) -> 0 | O70: 0
A71: 68 | B71: ='Shooter Information'!B73 -> 0 | C71: ='Shooter Information'!C73 -> 0 | K71: =MIN(IF('Shooter Information'!H73=1,999.99,(D71*5)+E71-F71+(G71*10)+(H71*30)+(I71*999.99)+(J71*999.99)),999.99) -> 0 | L71: =IF('Shooter Information'!$E$3-('Shooter Information'!$G$3-RANK(K71,K$4:K$78,1))<0,0,'Shooter Information'!$E$3-('Shooter Information'!$G$3-RANK(K71,K$4:K$78,1))) -> 0 | M71: =(IF('Shooter Information'!H73=1,"MDQ",IF(J71=1,"SDQ",IF(I71=1,"DNF",SUM(D71+G71+H71+I71+J71))))) -> 0 | O71: 0
A72: 69 | B72: ='Shooter Information'!B74 -> 0 | C72: ='Shooter Information'!C74 -> 0 | K72: =MIN(IF('Shooter Information'!H74=1,999.99,(D72*5)+E72-F72+(G72*10)+(H72*30)+(I72*999.99)+(J72*999.99)),999.99) -> 0 | L72: =IF('Shooter Information'!$E$3-('Shooter Information'!$G$3-RANK(K72,K$4:K$78,1))<0,0,'Shooter Information'!$E$3-('Shooter Information'!$G$3-RANK(K72,K$4:K$78,1))) -> 0 | M72: =(IF('Shooter Information'!H74=1,"MDQ",IF(J72=1,"SDQ",IF(I72=1,"DNF",SUM(D72+G72+H72+I72+J72))))) -> 0 | O72: 0
A73: 70 | B73: ='Shooter Information'!B75 -> 0 | C73: ='Shooter Information'!C75 -> 0 | K73: =MIN(IF('Shooter Information'!H75=1,999.99,(D73*5)+E73-F73+(G73*10)+(H73*30)+(I73*999.99)+(J73*999.99)),999.99) -> 0 | L73: =IF('Shooter Information'!$E$3-('Shooter Information'!$G$3-RANK(K73,K$4:K$78,1))<0,0,'Shooter Information'!$E$3-('Shooter Information'!$G$3-RANK(K73,K$4:K$78,1))) -> 0 | M73: =(IF('Shooter Information'!H75=1,"MDQ",IF(J73=1,"SDQ",IF(I73=1,"DNF",SUM(D73+G73+H73+I73+J73))))) -> 0 | O73: 0
A74: 71 | B74: ='Shooter Information'!B76 -> 0 | C74: ='Shooter Information'!C76 -> 0 | K74: =MIN(IF('Shooter Information'!H76=1,999.99,(D74*5)+E74-F74+(G74*10)+(H74*30)+(I74*999.99)+(J74*999.99)),999.99) -> 0 | L74: =IF('Shooter Information'!$E$3-('Shooter Information'!$G$3-RANK(K74,K$4:K$78,1))<0,0,'Shooter Information'!$E$3-('Shooter Information'!$G$3-RANK(K74,K$4:K$78,1))) -> 0 | M74: =(IF('Shooter Information'!H76=1,"MDQ",IF(J74=1,"SDQ",IF(I74=1,"DNF",SUM(D74+G74+H74+I74+J74))))) -> 0 | O74: 0
A75: 72 | B75: ='Shooter Information'!B77 -> 0 | C75: ='Shooter Information'!C77 -> 0 | K75: =MIN(IF('Shooter Information'!H77=1,999.99,(D75*5)+E75-F75+(G75*10)+(H75*30)+(I75*999.99)+(J75*999.99)),999.99) -> 0 | L75: =IF('Shooter Information'!$E$3-('Shooter Information'!$G$3-RANK(K75,K$4:K$78,1))<0,0,'Shooter Information'!$E$3-('Shooter Information'!$G$3-RANK(K75,K$4:K$78,1))) -> 0 | M75: =(IF('Shooter Information'!H77=1,"MDQ",IF(J75=1,"SDQ",IF(I75=1,"DNF",SUM(D75+G75+H75+I75+J75))))) -> 0 | O75: 0
A76: 73 | B76: ='Shooter Information'!B78 -> 0 | C76: ='Shooter Information'!C78 -> 0 | K76: =MIN(IF('Shooter Information'!H78=1,999.99,(D76*5)+E76-F76+(G76*10)+(H76*30)+(I76*999.99)+(J76*999.99)),999.99) -> 0 | L76: =IF('Shooter Information'!$E$3-('Shooter Information'!$G$3-RANK(K76,K$4:K$78,1))<0,0,'Shooter Information'!$E$3-('Shooter Information'!$G$3-RANK(K76,K$4:K$78,1))) -> 0 | M76: =(IF('Shooter Information'!H78=1,"MDQ",IF(J76=1,"SDQ",IF(I76=1,"DNF",SUM(D76+G76+H76+I76+J76))))) -> 0 | O76: 0
A77: 74 | B77: ='Shooter Information'!B79 -> 0 | C77: ='Shooter Information'!C79 -> 0 | K77: =MIN(IF('Shooter Information'!H79=1,999.99,(D77*5)+E77-F77+(G77*10)+(H77*30)+(I77*999.99)+(J77*999.99)),999.99) -> 0 | L77: =IF('Shooter Information'!$E$3-('Shooter Information'!$G$3-RANK(K77,K$4:K$78,1))<0,0,'Shooter Information'!$E$3-('Shooter Information'!$G$3-RANK(K77,K$4:K$78,1))) -> 0 | M77: =(IF('Shooter Information'!H79=1,"MDQ",IF(J77=1,"SDQ",IF(I77=1,"DNF",SUM(D77+G77+H77+I77+J77))))) -> 0 | O77: 0
A78: 75 | B78: ='Shooter Information'!B80 -> 0 | C78: ='Shooter Information'!C80 -> 0 | K78: =MIN(IF('Shooter Information'!H80=1,999.99,(D78*5)+E78-F78+(G78*10)+(H78*30)+(I78*999.99)+(J78*999.99)),999.99) -> 0 | L78: =IF('Shooter Information'!$E$3-('Shooter Information'!$G$3-RANK(K78,K$4:K$78,1))<0,0,'Shooter Information'!$E$3-('Shooter Information'!$G$3-RANK(K78,K$4:K$78,1))) -> 0 | M78: =(IF('Shooter Information'!H80=1,"MDQ",IF(J78=1,"SDQ",IF(I78=1,"DNF",SUM(D78+G78+H78+I78+J78))))) -> 0 | O78: 0

Sheet Stage 8 (hidden)
B1: Stage Input Sheet - Stage 8
A3: Shooter # | B3: Shooter | C3: Class | D3: Misses | E3: Raw Time | F3: Bonus | G3: 10 Sec | H3: 30 Sec | I3: DNF | J3: SDQ | K3: Total | L3: Rank | M3: Penalties | O3: # Penalties
A4: =ROW()-3 -> 1 | B4: ='Shooter Information'!B6 -> Striker | C4: ='Shooter Information'!C6 -> WW | K4: =MIN(IF('Shooter Information'!H6=1,999.99,(D4*5)+E4-F4+(G4*10)+(H4*30)+(I4*999.99)+(J4*999.99)),999.99) -> 0 | L4: =IF('Shooter Information'!$E$3-('Shooter Information'!$G$3-RANK(K4,K$4:K$78,1))<0,0,'Shooter Information'!$E$3-('Shooter Information'!$G$3-RANK(K4,K$4:K$78,1))) -> 0 | M4: =(IF('Shooter Information'!H6=1,"MDQ",IF(J4=1,"SDQ",IF(I4=1,"DNF",SUM(D4+G4+H4+I4+J4))))) -> 0 | O4: =SUM(D4+G4+H4+I4+J4) -> 0
A5: =ROW()-3 -> 2 | B5: ='Shooter Information'!B7 -> Cody Maverick | C5: ='Shooter Information'!C7 -> GF | K5: =MIN(IF('Shooter Information'!H7=1,999.99,(D5*5)+E5-F5+(G5*10)+(H5*30)+(I5*999.99)+(J5*999.99)),999.99) -> 0 | L5: =IF('Shooter Information'!$E$3-('Shooter Information'!$G$3-RANK(K5,K$4:K$78,1))<0,0,'Shooter Information'!$E$3-('Shooter Information'!$G$3-RANK(K5,K$4:K$78,1))) -> 0 | M5: =(IF('Shooter Information'!H7=1,"MDQ",IF(J5=1,"SDQ",IF(I5=1,"DNF",SUM(D5+G5+H5+I5+J5))))) -> 0 | O5: =SUM(D5+G5+H5+I5+J5) -> 0
A6: 3 | B6: ='Shooter Information'!B8 -> Potter County Kid | C6: ='Shooter Information'!C8 -> WW | K6: =MIN(IF('Shooter Information'!H8=1,999.99,(D6*5)+E6-F6+(G6*10)+(H6*30)+(I6*999.99)+(J6*999.99)),999.99) -> 0 | L6: =IF('Shooter Information'!$E$3-('Shooter Information'!$G$3-RANK(K6,K$4:K$78,1))<0,0,'Shooter Information'!$E$3-('Shooter Information'!$G$3-RANK(K6,K$4:K$78,1))) -> 0 | M6: =(IF('Shooter Information'!H8=1,"MDQ",IF(J6=1,"SDQ",IF(I6=1,"DNF",SUM(D6+G6+H6+I6+J6))))) -> 0 | O6: 0
A7: 4 | B7: ='Shooter Information'!B9 -> Ricochet Kid | C7: ='Shooter Information'!C9 -> W | K7: =MIN(IF('Shooter Information'!H9=1,999.99,(D7*5)+E7-F7+(G7*10)+(H7*30)+(I7*999.99)+(J7*999.99)),999.99) -> 0 | L7: =IF('Shooter Information'!$E$3-('Shooter Information'!$G$3-RANK(K7,K$4:K$78,1))<0,0,'Shooter Information'!$E$3-('Shooter Information'!$G$3-RANK(K7,K$4:K$78,1))) -> 0 | M7: =(IF('Shooter Information'!H9=1,"MDQ",IF(J7=1,"SDQ",IF(I7=1,"DNF",SUM(D7+G7+H7+I7+J7))))) -> 0 | O7: 0
A8: 5 | B8: ='Shooter Information'!B10 -> Flatboat Bob | C8: ='Shooter Information'!C10 -> CBAR | K8: =MIN(IF('Shooter Information'!H10=1,999.99,(D8*5)+E8-F8+(G8*10)+(H8*30)+(I8*999.99)+(J8*999.99)),999.99) -> 0 | L8: =IF('Shooter Information'!$E$3-('Shooter Information'!$G$3-RANK(K8,K$4:K$78,1))<0,0,'Shooter Information'!$E$3-('Shooter Information'!$G$3-RANK(K8,K$4:K$78,1))) -> 0 | M8: =(IF('Shooter Information'!H10=1,"MDQ",IF(J8=1,"SDQ",IF(I8=1,"DNF",SUM(D8+G8+H8+I8+J8))))) -> 0 | O8: 0
A9: 6 | B9: ='Shooter Information'!B11 -> Hotshod | C9: ='Shooter Information'!C11 -> W | K9: =MIN(IF('Shooter Information'!H11=1,999.99,(D9*5)+E9-F9+(G9*10)+(H9*30)+(I9*999.99)+(J9*999.99)),999.99) -> 0 | L9: =IF('Shooter Information'!$E$3-('Shooter Information'!$G$3-RANK(K9,K$4:K$78,1))<0,0,'Shooter Information'!$E$3-('Shooter Information'!$G$3-RANK(K9,K$4:K$78,1))) -> 0 | M9: =(IF('Shooter Information'!H11=1,"MDQ",IF(J9=1,"SDQ",IF(I9=1,"DNF",SUM(D9+G9+H9+I9+J9))))) -> 0 | O9: 0
A10: 7 | B10: ='Shooter Information'!B12 -> Prairie City Slim | C10: ='Shooter Information'!C12 -> ES | K10: =MIN(IF('Shooter Information'!H12=1,999.99,(D10*5)+E10-F10+(G10*10)+(H10*30)+(I10*999.99)+(J10*999.99)),999.99) -> 0 | L10: =IF('Shooter Information'!$E$3-('Shooter Information'!$G$3-RANK(K10,K$4:K$78,1))<0,0,'Shooter Information'!$E$3-('Shooter Information'!$G$3-RANK(K10,K$4:K$78,1))) -> 0 | M10: =(IF('Shooter Information'!H12=1,"MDQ",IF(J10=1,"SDQ",IF(I10=1,"DNF",SUM(D10+G10+H10+I10+J10))))) -> 0 | O10: 0
A11: 8 | B11: ='Shooter Information'!B13 -> Regret Schofield | C11: ='Shooter Information'!C13 -> 49er | K11: =MIN(IF('Shooter Information'!H13=1,999.99,(D11*5)+E11-F11+(G11*10)+(H11*30)+(I11*999.99)+(J11*999.99)),999.99) -> 0 | L11: =IF('Shooter Information'!$E$3-('Shooter Information'!$G$3-RANK(K11,K$4:K$78,1))<0,0,'Shooter Information'!$E$3-('Shooter Information'!$G$3-RANK(K11,K$4:K$78,1))) -> 0 | M11: =(IF('Shooter Information'!H13=1,"MDQ",IF(J11=1,"SDQ",IF(I11=1,"DNF",SUM(D11+G11+H11+I11+J11))))) -> 0 | O11: 0
A12: 9 | B12: ='Shooter Information'!B14 -> Tumble Weed Tink | C12: ='Shooter Information'!C14 -> L49 | K12: =MIN(IF('Shooter Information'!H14=1,999.99,(D12*5)+E12-F12+(G12*10)+(H12*30)+(I12*999.99)+(J12*999.99)),999.99) -> 0 | L12: =IF('Shooter Information'!$E$3-('Shooter Information'!$G$3-RANK(K12,K$4:K$78,1))<0,0,'Shooter Information'!$E$3-('Shooter Information'!$G$3-RANK(K12,K$4:K$78,1))) -> 0 | M12: =(IF('Shooter Information'!H14=1,"MDQ",IF(J12=1,"SDQ",IF(I12=1,"DNF",SUM(D12+G12+H12+I12+J12))))) -> 0 | O12: 0
A13: 10 | B13: ='Shooter Information'!B15 -> One Eyed Jane | C13: ='Shooter Information'!C15 -> LSS | K13: =MIN(IF('Shooter Information'!H15=1,999.99,(D13*5)+E13-F13+(G13*10)+(H13*30)+(I13*999.99)+(J13*999.99)),999.99) -> 0 | L13: =IF('Shooter Information'!$E$3-('Shooter Information'!$G$3-RANK(K13,K$4:K$78,1))<0,0,'Shooter Information'!$E$3-('Shooter Information'!$G$3-RANK(K13,K$4:K$78,1))) -> 0 | M13: =(IF('Shooter Information'!H15=1,"MDQ",IF(J13=1,"SDQ",IF(I13=1,"DNF",SUM(D13+G13+H13+I13+J13))))) -> 0 | O13: 0
A14: 11 | B14: ='Shooter Information'!B16 -> Stogie | C14: ='Shooter Information'!C16 -> 49er | K14: =MIN(IF('Shooter Information'!H16=1,999.99,(D14*5)+E14-F14+(G14*10)+(H14*30)+(I14*999.99)+(J14*999.99)),999.99) -> 0 | L14: =IF('Shooter Information'!$E$3-('Shooter Information'!$G$3-RANK(K14,K$4:K$78,1))<0,0,'Shooter Information'!$E$3-('Shooter Information'!$G$3-RANK(K14,K$4:K$78,1))) -> 0 | M14: =(IF('Shooter Information'!H16=1,"MDQ",IF(J14=1,"SDQ",IF(I14=1,"DNF",SUM(D14+G14+H14+I14+J14))))) -> 0 | O14: 0
A15: 12 | B15: ='Shooter Information'!B17 -> Major BS Walker | C15: ='Shooter Information'!C17 -> WW | K15: =MIN(IF('Shooter Information'!H17=1,999.99,(D15*5)+E15-F15+(G15*10)+(H15*30)+(I15*999.99)+(J15*999.99)),999.99) -> 0 | L15: =IF('Shooter Information'!$E$3-('Shooter Information'!$G$3-RANK(K15,K$4:K$78,1))<0,0,'Shooter Information'!$E$3-('Shooter Information'!$G$3-RANK(K15,K$4:K$78,1))) -> 0 | M15: =(IF('Shooter Information'!H17=1,"MDQ",IF(J15=1,"SDQ",IF(I15=1,"DNF",SUM(D15+G15+H15+I15+J15))))) -> 0 | O15: 0
A16: 13 | B16: ='Shooter Information'!B18 -> Sassy Shooting Sours | C16: ='Shooter Information'!C18 -> S | K16: =MIN(IF('Shooter Information'!H18=1,999.99,(D16*5)+E16-F16+(G16*10)+(H16*30)+(I16*999.99)+(J16*999.99)),999.99) -> 0 | L16: =IF('Shooter Information'!$E$3-('Shooter Information'!$G$3-RANK(K16,K$4:K$78,1))<0,0,'Shooter Information'!$E$3-('Shooter Information'!$G$3-RANK(K16,K$4:K$78,1))) -> 0 | M16: =(IF('Shooter Information'!H18=1,"MDQ",IF(J16=1,"SDQ",IF(I16=1,"DNF",SUM(D16+G16+H16+I16+J16))))) -> 0 | O16: 0
A17: 14 | B17: ='Shooter Information'!B19 -> Lefty Spurmaker | C17: ='Shooter Information'!C19 -> S | K17: =MIN(IF('Shooter Information'!H19=1,999.99,(D17*5)+E17-F17+(G17*10)+(H17*30)+(I17*999.99)+(J17*999.99)),999.99) -> 0 | L17: =IF('Shooter Information'!$E$3-('Shooter Information'!$G$3-RANK(K17,K$4:K$78,1))<0,0,'Shooter Information'!$E$3-('Shooter Information'!$G$3-RANK(K17,K$4:K$78,1))) -> 0 | M17: =(IF('Shooter Information'!H19=1,"MDQ",IF(J17=1,"SDQ",IF(I17=1,"DNF",SUM(D17+G17+H17+I17+J17))))) -> 0 | O17: 0
A18: 15 | B18: ='Shooter Information'!B20 -> Windhorse Rider | C18: ='Shooter Information'!C20 -> GF | K18: =MIN(IF('Shooter Information'!H20=1,999.99,(D18*5)+E18-F18+(G18*10)+(H18*30)+(I18*999.99)+(J18*999.99)),999.99) -> 0 | L18: =IF('Shooter Information'!$E$3-('Shooter Information'!$G$3-RANK(K18,K$4:K$78,1))<0,0,'Shooter Information'!$E$3-('Shooter Information'!$G$3-RANK(K18,K$4:K$78,1))) -> 0 | M18: =(IF('Shooter Information'!H20=1,"MDQ",IF(J18=1,"SDQ",IF(I18=1,"DNF",SUM(D18+G18+H18+I18+J18))))) -> 0 | O18: 0
A19: 16 | B19: ='Shooter Information'!B21 -> Red Cavanaugh | C19: ='Shooter Information'!C21 -> 49er | K19: =MIN(IF('Shooter Information'!H21=1,999.99,(D19*5)+E19-F19+(G19*10)+(H19*30)+(I19*999.99)+(J19*999.99)),999.99) -> 0 | L19: =IF('Shooter Information'!$E$3-('Shooter Information'!$G$3-RANK(K19,K$4:K$78,1))<0,0,'Shooter Information'!$E$3-('Shooter Information'!$G$3-RANK(K19,K$4:K$78,1))) -> 0 | M19: =(IF('Shooter Information'!H21=1,"MDQ",IF(J19=1,"SDQ",IF(I19=1,"DNF",SUM(D19+G19+H19+I19+J19))))) -> 0 | O19: 0
A20: 17 | B20: ='Shooter Information'!B22 -> 0 | C20: ='Shooter Information'!C22 -> 0 | K20: =MIN(IF('Shooter Information'!H22=1,999.99,(D20*5)+E20-F20+(G20*10)+(H20*30)+(I20*999.99)+(J20*999.99)),999.99) -> 0 | L20: =IF('Shooter Information'!$E$3-('Shooter Information'!$G$3-RANK(K20,K$4:K$78,1))<0,0,'Shooter Information'!$E$3-('Shooter Information'!$G$3-RANK(K20,K$4:K$78,1))) -> 0 | M20: =(IF('Shooter Information'!H22=1,"MDQ",IF(J20=1,"SDQ",IF(I20=1,"DNF",SUM(D20+G20+H20+I20+J20))))) -> 0 | O20: 0
A21: 18 | B21: ='Shooter Information'!B23 -> 0 | C21: ='Shooter Information'!C23 -> 0 | K21: =MIN(IF('Shooter Information'!H23=1,999.99,(D21*5)+E21-F21+(G21*10)+(H21*30)+(I21*999.99)+(J21*999.99)),999.99) -> 0 | L21: =IF('Shooter Information'!$E$3-('Shooter Information'!$G$3-RANK(K21,K$4:K$78,1))<0,0,'Shooter Information'!$E$3-('Shooter Information'!$G$3-RANK(K21,K$4:K$78,1))) -> 0 | M21: =(IF('Shooter Information'!H23=1,"MDQ",IF(J21=1,"SDQ",IF(I21=1,"DNF",SUM(D21+G21+H21+I21+J21))))) -> 0 | O21: 0
A22: 19 | B22: ='Shooter Information'!B24 -> 0 | C22: ='Shooter Information'!C24 -> 0 | K22: =MIN(IF('Shooter Information'!H24=1,999.99,(D22*5)+E22-F22+(G22*10)+(H22*30)+(I22*999.99)+(J22*999.99)),999.99) -> 0 | L22: =IF('Shooter Information'!$E$3-('Shooter Information'!$G$3-RANK(K22,K$4:K$78,1))<0,0,'Shooter Information'!$E$3-('Shooter Information'!$G$3-RANK(K22,K$4:K$78,1))) -> 0 | M22: =(IF('Shooter Information'!H24=1,"MDQ",IF(J22=1,"SDQ",IF(I22=1,"DNF",SUM(D22+G22+H22+I22+J22))))) -> 0 | O22: 0
A23: 20 | B23: ='Shooter Information'!B25 -> 0 | C23: ='Shooter Information'!C25 -> 0 | K23: =MIN(IF('Shooter Information'!H25=1,999.99,(D23*5)+E23-F23+(G23*10)+(H23*30)+(I23*999.99)+(J23*999.99)),999.99) -> 0 | L23: =IF('Shooter Information'!$E$3-('Shooter Information'!$G$3-RANK(K23,K$4:K$78,1))<0,0,'Shooter Information'!$E$3-('Shooter Information'!$G$3-RANK(K23,K$4:K$78,1))) -> 0 | M23: =(IF('Shooter Information'!H25=1,"MDQ",IF(J23=1,"SDQ",IF(I23=1,"DNF",SUM(D23+G23+H23+I23+J23))))) -> 0 | O23: 0
A24: 21 | B24: ='Shooter Information'!B26 -> 0 | C24: ='Shooter Information'!C26 -> 0 | K24: =MIN(IF('Shooter Information'!H26=1,999.99,(D24*5)+E24-F24+(G24*10)+(H24*30)+(I24*999.99)+(J24*999.99)),999.99) -> 0 | L24: =IF('Shooter Information'!$E$3-('Shooter Information'!$G$3-RANK(K24,K$4:K$78,1))<0,0,'Shooter Information'!$E$3-('Shooter Information'!$G$3-RANK(K24,K$4:K$78,1))) -> 0 | M24: =(IF('Shooter Information'!H26=1,"MDQ",IF(J24=1,"SDQ",IF(I24=1,"DNF",SUM(D24+G24+H24+I24+J24))))) -> 0 | O24: 0
A25: 22 | B25: ='Shooter Information'!B27 -> 0 | C25: ='Shooter Information'!C27 -> 0 | K25: =MIN(IF('Shooter Information'!H27=1,999.99,(D25*5)+E25-F25+(G25*10)+(H25*30)+(I25*999.99)+(J25*999.99)),999.99) -> 0 | L25: =IF('Shooter Information'!$E$3-('Shooter Information'!$G$3-RANK(K25,K$4:K$78,1))<0,0,'Shooter Information'!$E$3-('Shooter Information'!$G$3-RANK(K25,K$4:K$78,1))) -> 0 | M25: =(IF('Shooter Information'!H27=1,"MDQ",IF(J25=1,"SDQ",IF(I25=1,"DNF",SUM(D25+G25+H25+I25+J25))))) -> 0 | O25: 0
A26: 23 | B26: ='Shooter Information'!B28 -> 0 | C26: ='Shooter Information'!C28 -> 0 | K26: =MIN(IF('Shooter Information'!H28=1,999.99,(D26*5)+E26-F26+(G26*10)+(H26*30)+(I26*999.99)+(J26*999.99)),999.99) -> 0 | L26: =IF('Shooter Information'!$E$3-('Shooter Information'!$G$3-RANK(K26,K$4:K$78,1))<0,0,'Shooter Information'!$E$3-('Shooter Information'!$G$3-RANK(K26,K$4:K$78,1))) -> 0 | M26: =(IF('Shooter Information'!H28=1,"MDQ",IF(J26=1,"SDQ",IF(I26=1,"DNF",SUM(D26+G26+H26+I26+J26))))) -> 0 | O26: 0
A27: 24 | B27: ='Shooter Information'!B29 -> 0 | C27: ='Shooter Information'!C29 -> 0 | K27: =MIN(IF('Shooter Information'!H29=1,999.99,(D27*5)+E27-F27+(G27*10)+(H27*30)+(I27*999.99)+(J27*999.99)),999.99) -> 0 | L27: =IF('Shooter Information'!$E$3-('Shooter Information'!$G$3-RANK(K27,K$4:K$78,1))<0,0,'Shooter Information'!$E$3-('Shooter Information'!$G$3-RANK(K27,K$4:K$78,1))) -> 0 | M27: =(IF('Shooter Information'!H29=1,"MDQ",IF(J27=1,"SDQ",IF(I27=1,"DNF",SUM(D27+G27+H27+I27+J27))))) -> 0 | O27: 0
A28: 25 | B28: ='Shooter Information'!B30 -> 0 | C28: ='Shooter Information'!C30 -> 0 | K28: =MIN(IF('Shooter Information'!H30=1,999.99,(D28*5)+E28-F28+(G28*10)+(H28*30)+(I28*999.99)+(J28*999.99)),999.99) -> 0 | L28: =IF('Shooter Information'!$E$3-('Shooter Information'!$G$3-RANK(K28,K$4:K$78,1))<0,0,'Shooter Information'!$E$3-('Shooter Information'!$G$3-RANK(K28,K$4:K$78,1))) -> 0 | M28: =(IF('Shooter Information'!H30=1,"MDQ",IF(J28=1,"SDQ",IF(I28=1,"DNF",SUM(D28+G28+H28+I28+J28))))) -> 0 | O28: 0
A29: 26 | B29: ='Shooter Information'!B31 -> 0 | C29: ='Shooter Information'!C31 -> 0 | K29: =MIN(IF('Shooter Information'!H31=1,999.99,(D29*5)+E29-F29+(G29*10)+(H29*30)+(I29*999.99)+(J29*999.99)),999.99) -> 0 | L29: =IF('Shooter Information'!$E$3-('Shooter Information'!$G$3-RANK(K29,K$4:K$78,1))<0,0,'Shooter Information'!$E$3-('Shooter Information'!$G$3-RANK(K29,K$4:K$78,1))) -> 0 | M29: =(IF('Shooter Information'!H31=1,"MDQ",IF(J29=1,"SDQ",IF(I29=1,"DNF",SUM(D29+G29+H29+I29+J29))))) -> 0 | O29: 0
A30: 27 | B30: ='Shooter Information'!B32 -> 0 | C30: ='Shooter Information'!C32 -> 0 | K30: =MIN(IF('Shooter Information'!H32=1,999.99,(D30*5)+E30-F30+(G30*10)+(H30*30)+(I30*999.99)+(J30*999.99)),999.99) -> 0 | L30: =IF('Shooter Information'!$E$3-('Shooter Information'!$G$3-RANK(K30,K$4:K$78,1))<0,0,'Shooter Information'!$E$3-('Shooter Information'!$G$3-RANK(K30,K$4:K$78,1))) -> 0 | M30: =(IF('Shooter Information'!H32=1,"MDQ",IF(J30=1,"SDQ",IF(I30=1,"DNF",SUM(D30+G30+H30+I30+J30))))) -> 0 | O30: 0
A31: 28 | B31: ='Shooter Information'!B33 -> 0 | C31: ='Shooter Information'!C33 -> 0 | K31: =MIN(IF('Shooter Information'!H33=1,999.99,(D31*5)+E31-F31+(G31*10)+(H31*30)+(I31*999.99)+(J31*999.99)),999.99) -> 0 | L31: =IF('Shooter Information'!$E$3-('Shooter Information'!$G$3-RANK(K31,K$4:K$78,1))<0,0,'Shooter Information'!$E$3-('Shooter Information'!$G$3-RANK(K31,K$4:K$78,1))) -> 0 | M31: =(IF('Shooter Information'!H33=1,"MDQ",IF(J31=1,"SDQ",IF(I31=1,"DNF",SUM(D31+G31+H31+I31+J31))))) -> 0 | O31: 0
A32: 29 | B32: ='Shooter Information'!B34 -> 0 | C32: ='Shooter Information'!C34 -> 0 | K32: =MIN(IF('Shooter Information'!H34=1,999.99,(D32*5)+E32-F32+(G32*10)+(H32*30)+(I32*999.99)+(J32*999.99)),999.99) -> 0 | L32: =IF('Shooter Information'!$E$3-('Shooter Information'!$G$3-RANK(K32,K$4:K$78,1))<0,0,'Shooter Information'!$E$3-('Shooter Information'!$G$3-RANK(K32,K$4:K$78,1))) -> 0 | M32: =(IF('Shooter Information'!H34=1,"MDQ",IF(J32=1,"SDQ",IF(I32=1,"DNF",SUM(D32+G32+H32+I32+J32))))) -> 0 | O32: 0
A33: 30 | B33: ='Shooter Information'!B35 -> 0 | C33: ='Shooter Information'!C35 -> 0 | K33: =MIN(IF('Shooter Information'!H35=1,999.99,(D33*5)+E33-F33+(G33*10)+(H33*30)+(I33*999.99)+(J33*999.99)),999.99) -> 0 | L33: =IF('Shooter Information'!$E$3-('Shooter Information'!$G$3-RANK(K33,K$4:K$78,1))<0,0,'Shooter Information'!$E$3-('Shooter Information'!$G$3-RANK(K33,K$4:K$78,1))) -> 0 | M33: =(IF('Shooter Information'!H35=1,"MDQ",IF(J33=1,"SDQ",IF(I33=1,"DNF",SUM(D33+G33+H33+I33+J33))))) -> 0 | O33: 0
A34: 31 | B34: ='Shooter Information'!B36 -> 0 | C34: ='Shooter Information'!C36 -> 0 | K34: =MIN(IF('Shooter Information'!H36=1,999.99,(D34*5)+E34-F34+(G34*10)+(H34*30)+(I34*999.99)+(J34*999.99)),999.99) -> 0 | L34: =IF('Shooter Information'!$E$3-('Shooter Information'!$G$3-RANK(K34,K$4:K$78,1))<0,0,'Shooter Information'!$E$3-('Shooter Information'!$G$3-RANK(K34,K$4:K$78,1))) -> 0 | M34: =(IF('Shooter Information'!H36=1,"MDQ",IF(J34=1,"SDQ",IF(I34=1,"DNF",SUM(D34+G34+H34+I34+J34))))) -> 0 | O34: 0
A35: 32 | B35: ='Shooter Information'!B37 -> 0 | C35: ='Shooter Information'!C37 -> 0 | K35: =MIN(IF('Shooter Information'!H37=1,999.99,(D35*5)+E35-F35+(G35*10)+(H35*30)+(I35*999.99)+(J35*999.99)),999.99) -> 0 | L35: =IF('Shooter Information'!$E$3-('Shooter Information'!$G$3-RANK(K35,K$4:K$78,1))<0,0,'Shooter Information'!$E$3-('Shooter Information'!$G$3-RANK(K35,K$4:K$78,1))) -> 0 | M35: =(IF('Shooter Information'!H37=1,"MDQ",IF(J35=1,"SDQ",IF(I35=1,"DNF",SUM(D35+G35+H35+I35+J35))))) -> 0 | O35: 0
A36: 33 | B36: ='Shooter Information'!B38 -> 0 | C36: ='Shooter Information'!C38 -> 0 | K36: =MIN(IF('Shooter Information'!H38=1,999.99,(D36*5)+E36-F36+(G36*10)+(H36*30)+(I36*999.99)+(J36*999.99)),999.99) -> 0 | L36: =IF('Shooter Information'!$E$3-('Shooter Information'!$G$3-RANK(K36,K$4:K$78,1))<0,0,'Shooter Information'!$E$3-('Shooter Information'!$G$3-RANK(K36,K$4:K$78,1))) -> 0 | M36: =(IF('Shooter Information'!H38=1,"MDQ",IF(J36=1,"SDQ",IF(I36=1,"DNF",SUM(D36+G36+H36+I36+J36))))) -> 0 | O36: 0
A37: 34 | B37: ='Shooter Information'!B39 -> 0 | C37: ='Shooter Information'!C39 -> 0 | K37: =MIN(IF('Shooter Information'!H39=1,999.99,(D37*5)+E37-F37+(G37*10)+(H37*30)+(I37*999.99)+(J37*999.99)),999.99) -> 0 | L37: =IF('Shooter Information'!$E$3-('Shooter Information'!$G$3-RANK(K37,K$4:K$78,1))<0,0,'Shooter Information'!$E$3-('Shooter Information'!$G$3-RANK(K37,K$4:K$78,1))) -> 0 | M37: =(IF('Shooter Information'!H39=1,"MDQ",IF(J37=1,"SDQ",IF(I37=1,"DNF",SUM(D37+G37+H37+I37+J37))))) -> 0 | O37: 0
A38: 35 | B38: ='Shooter Information'!B40 -> 0 | C38: ='Shooter Information'!C40 -> 0 | K38: =MIN(IF('Shooter Information'!H40=1,999.99,(D38*5)+E38-F38+(G38*10)+(H38*30)+(I38*999.99)+(J38*999.99)),999.99) -> 0 | L38: =IF('Shooter Information'!$E$3-('Shooter Information'!$G$3-RANK(K38,K$4:K$78,1))<0,0,'Shooter Information'!$E$3-('Shooter Information'!$G$3-RANK(K38,K$4:K$78,1))) -> 0 | M38: =(IF('Shooter Information'!H40=1,"MDQ",IF(J38=1,"SDQ",IF(I38=1,"DNF",SUM(D38+G38+H38+I38+J38))))) -> 0 | O38: 0
A39: 36 | B39: ='Shooter Information'!B41 -> 0 | C39: ='Shooter Information'!C41 -> 0 | K39: =MIN(IF('Shooter Information'!H41=1,999.99,(D39*5)+E39-F39+(G39*10)+(H39*30)+(I39*999.99)+(J39*999.99)),999.99) -> 0 | L39: =IF('Shooter Information'!$E$3-('Shooter Information'!$G$3-RANK(K39,K$4:K$78,1))<0,0,'Shooter Information'!$E$3-('Shooter Information'!$G$3-RANK(K39,K$4:K$78,1))) -> 0 | M39: =(IF('Shooter Information'!H41=1,"MDQ",IF(J39=1,"SDQ",IF(I39=1,"DNF",SUM(D39+G39+H39+I39+J39))))) -> 0 | O39: 0
A40: 37 | B40: ='Shooter Information'!B42 -> 0 | C40: ='Shooter Information'!C42 -> 0 | K40: =MIN(IF('Shooter Information'!H42=1,999.99,(D40*5)+E40-F40+(G40*10)+(H40*30)+(I40*999.99)+(J40*999.99)),999.99) -> 0 | L40: =IF('Shooter Information'!$E$3-('Shooter Information'!$G$3-RANK(K40,K$4:K$78,1))<0,0,'Shooter Information'!$E$3-('Shooter Information'!$G$3-RANK(K40,K$4:K$78,1))) -> 0 | M40: =(IF('Shooter Information'!H42=1,"MDQ",IF(J40=1,"SDQ",IF(I40=1,"DNF",SUM(D40+G40+H40+I40+J40))))) -> 0 | O40: 0
A41: 38 | B41: ='Shooter Information'!B43 -> 0 | C41: ='Shooter Information'!C43 -> 0 | K41: =MIN(IF('Shooter Information'!H43=1,999.99,(D41*5)+E41-F41+(G41*10)+(H41*30)+(I41*999.99)+(J41*999.99)),999.99) -> 0 | L41: =IF('Shooter Information'!$E$3-('Shooter Information'!$G$3-RANK(K41,K$4:K$78,1))<0,0,'Shooter Information'!$E$3-('Shooter Information'!$G$3-RANK(K41,K$4:K$78,1))) -> 0 | M41: =(IF('Shooter Information'!H43=1,"MDQ",IF(J41=1,"SDQ",IF(I41=1,"DNF",SUM(D41+G41+H41+I41+J41))))) -> 0 | O41: 0
A42: 39 | B42: ='Shooter Information'!B44 -> 0 | C42: ='Shooter Information'!C44 -> 0 | K42: =MIN(IF('Shooter Information'!H44=1,999.99,(D42*5)+E42-F42+(G42*10)+(H42*30)+(I42*999.99)+(J42*999.99)),999.99) -> 0 | L42: =IF('Shooter Information'!$E$3-('Shooter Information'!$G$3-RANK(K42,K$4:K$78,1))<0,0,'Shooter Information'!$E$3-('Shooter Information'!$G$3-RANK(K42,K$4:K$78,1))) -> 0 | M42: =(IF('Shooter Information'!H44=1,"MDQ",IF(J42=1,"SDQ",IF(I42=1,"DNF",SUM(D42+G42+H42+I42+J42))))) -> 0 | O42: 0
A43: 40 | B43: ='Shooter Information'!B45 -> 0 | C43: ='Shooter Information'!C45 -> 0 | K43: =MIN(IF('Shooter Information'!H45=1,999.99,(D43*5)+E43-F43+(G43*10)+(H43*30)+(I43*999.99)+(J43*999.99)),999.99) -> 0 | L43: =IF('Shooter Information'!$E$3-('Shooter Information'!$G$3-RANK(K43,K$4:K$78,1))<0,0,'Shooter Information'!$E$3-('Shooter Information'!$G$3-RANK(K43,K$4:K$78,1))) -> 0 | M43: =(IF('Shooter Information'!H45=1,"MDQ",IF(J43=1,"SDQ",IF(I43=1,"DNF",SUM(D43+G43+H43+I43+J43))))) -> 0 | O43: 0
A44: 41 | B44: ='Shooter Information'!B46 -> 0 | C44: ='Shooter Information'!C46 -> 0 | K44: =MIN(IF('Shooter Information'!H46=1,999.99,(D44*5)+E44-F44+(G44*10)+(H44*30)+(I44*999.99)+(J44*999.99)),999.99) -> 0 | L44: =IF('Shooter Information'!$E$3-('Shooter Information'!$G$3-RANK(K44,K$4:K$78,1))<0,0,'Shooter Information'!$E$3-('Shooter Information'!$G$3-RANK(K44,K$4:K$78,1))) -> 0 | M44: =(IF('Shooter Information'!H46=1,"MDQ",IF(J44=1,"SDQ",IF(I44=1,"DNF",SUM(D44+G44+H44+I44+J44))))) -> 0 | O44: 0
A45: 42 | B45: ='Shooter Information'!B47 -> 0 | C45: ='Shooter Information'!C47 -> 0 | K45: =MIN(IF('Shooter Information'!H47=1,999.99,(D45*5)+E45-F45+(G45*10)+(H45*30)+(I45*999.99)+(J45*999.99)),999.99) -> 0 | L45: =IF('Shooter Information'!$E$3-('Shooter Information'!$G$3-RANK(K45,K$4:K$78,1))<0,0,'Shooter Information'!$E$3-('Shooter Information'!$G$3-RANK(K45,K$4:K$78,1))) -> 0 | M45: =(IF('Shooter Information'!H47=1,"MDQ",IF(J45=1,"SDQ",IF(I45=1,"DNF",SUM(D45+G45+H45+I45+J45))))) -> 0 | O45: 0
A46: 43 | B46: ='Shooter Information'!B48 -> 0 | C46: ='Shooter Information'!C48 -> 0 | K46: =MIN(IF('Shooter Information'!H48=1,999.99,(D46*5)+E46-F46+(G46*10)+(H46*30)+(I46*999.99)+(J46*999.99)),999.99) -> 0 | L46: =IF('Shooter Information'!$E$3-('Shooter Information'!$G$3-RANK(K46,K$4:K$78,1))<0,0,'Shooter Information'!$E$3-('Shooter Information'!$G$3-RANK(K46,K$4:K$78,1))) -> 0 | M46: =(IF('Shooter Information'!H48=1,"MDQ",IF(J46=1,"SDQ",IF(I46=1,"DNF",SUM(D46+G46+H46+I46+J46))))) -> 0 | O46: 0
A47: 44 | B47: ='Shooter Information'!B49 -> 0 | C47: ='Shooter Information'!C49 -> 0 | K47: =MIN(IF('Shooter Information'!H49=1,999.99,(D47*5)+E47-F47+(G47*10)+(H47*30)+(I47*999.99)+(J47*999.99)),999.99) -> 0 | L47: =IF('Shooter Information'!$E$3-('Shooter Information'!$G$3-RANK(K47,K$4:K$78,1))<0,0,'Shooter Information'!$E$3-('Shooter Information'!$G$3-RANK(K47,K$4:K$78,1))) -> 0 | M47: =(IF('Shooter Information'!H49=1,"MDQ",IF(J47=1,"SDQ",IF(I47=1,"DNF",SUM(D47+G47+H47+I47+J47))))) -> 0 | O47: 0
A48: 45 | B48: ='Shooter Information'!B50 -> 0 | C48: ='Shooter Information'!C50 -> 0 | K48: =MIN(IF('Shooter Information'!H50=1,999.99,(D48*5)+E48-F48+(G48*10)+(H48*30)+(I48*999.99)+(J48*999.99)),999.99) -> 0 | L48: =IF('Shooter Information'!$E$3-('Shooter Information'!$G$3-RANK(K48,K$4:K$78,1))<0,0,'Shooter Information'!$E$3-('Shooter Information'!$G$3-RANK(K48,K$4:K$78,1))) -> 0 | M48: =(IF('Shooter Information'!H50=1,"MDQ",IF(J48=1,"SDQ",IF(I48=1,"DNF",SUM(D48+G48+H48+I48+J48))))) -> 0 | O48: 0
A49: 46 | B49: ='Shooter Information'!B51 -> 0 | C49: ='Shooter Information'!C51 -> 0 | K49: =MIN(IF('Shooter Information'!H51=1,999.99,(D49*5)+E49-F49+(G49*10)+(H49*30)+(I49*999.99)+(J49*999.99)),999.99) -> 0 | L49: =IF('Shooter Information'!$E$3-('Shooter Information'!$G$3-RANK(K49,K$4:K$78,1))<0,0,'Shooter Information'!$E$3-('Shooter Information'!$G$3-RANK(K49,K$4:K$78,1))) -> 0 | M49: =(IF('Shooter Information'!H51=1,"MDQ",IF(J49=1,"SDQ",IF(I49=1,"DNF",SUM(D49+G49+H49+I49+J49))))) -> 0 | O49: 0
A50: 47 | B50: ='Shooter Information'!B52 -> 0 | C50: ='Shooter Information'!C52 -> 0 | K50: =MIN(IF('Shooter Information'!H52=1,999.99,(D50*5)+E50-F50+(G50*10)+(H50*30)+(I50*999.99)+(J50*999.99)),999.99) -> 0 | L50: =IF('Shooter Information'!$E$3-('Shooter Information'!$G$3-RANK(K50,K$4:K$78,1))<0,0,'Shooter Information'!$E$3-('Shooter Information'!$G$3-RANK(K50,K$4:K$78,1))) -> 0 | M50: =(IF('Shooter Information'!H52=1,"MDQ",IF(J50=1,"SDQ",IF(I50=1,"DNF",SUM(D50+G50+H50+I50+J50))))) -> 0 | O50: 0
A51: 48 | B51: ='Shooter Information'!B53 -> 0 | C51: ='Shooter Information'!C53 -> 0 | K51: =MIN(IF('Shooter Information'!H53=1,999.99,(D51*5)+E51-F51+(G51*10)+(H51*30)+(I51*999.99)+(J51*999.99)),999.99) -> 0 | L51: =IF('Shooter Information'!$E$3-('Shooter Information'!$G$3-RANK(K51,K$4:K$78,1))<0,0,'Shooter Information'!$E$3-('Shooter Information'!$G$3-RANK(K51,K$4:K$78,1))) -> 0 | M51: =(IF('Shooter Information'!H53=1,"MDQ",IF(J51=1,"SDQ",IF(I51=1,"DNF",SUM(D51+G51+H51+I51+J51))))) -> 0 | O51: 0
A52: 49 | B52: ='Shooter Information'!B54 -> 0 | C52: ='Shooter Information'!C54 -> 0 | K52: =MIN(IF('Shooter Information'!H54=1,999.99,(D52*5)+E52-F52+(G52*10)+(H52*30)+(I52*999.99)+(J52*999.99)),999.99) -> 0 | L52: =IF('Shooter Information'!$E$3-('Shooter Information'!$G$3-RANK(K52,K$4:K$78,1))<0,0,'Shooter Information'!$E$3-('Shooter Information'!$G$3-RANK(K52,K$4:K$78,1))) -> 0 | M52: =(IF('Shooter Information'!H54=1,"MDQ",IF(J52=1,"SDQ",IF(I52=1,"DNF",SUM(D52+G52+H52+I52+J52))))) -> 0 | O52: 0
A53: 50 | B53: ='Shooter Information'!B55 -> 0 | C53: ='Shooter Information'!C55 -> 0 | K53: =MIN(IF('Shooter Information'!H55=1,999.99,(D53*5)+E53-F53+(G53*10)+(H53*30)+(I53*999.99)+(J53*999.99)),999.99) -> 0 | L53: =IF('Shooter Information'!$E$3-('Shooter Information'!$G$3-RANK(K53,K$4:K$78,1))<0,0,'Shooter Information'!$E$3-('Shooter Information'!$G$3-RANK(K53,K$4:K$78,1))) -> 0 | M53: =(IF('Shooter Information'!H55=1,"MDQ",IF(J53=1,"SDQ",IF(I53=1,"DNF",SUM(D53+G53+H53+I53+J53))))) -> 0 | O53: 0
A54: 51 | B54: ='Shooter Information'!B56 -> 0 | C54: ='Shooter Information'!C56 -> 0 | K54: =MIN(IF('Shooter Information'!H56=1,999.99,(D54*5)+E54-F54+(G54*10)+(H54*30)+(I54*999.99)+(J54*999.99)),999.99) -> 0 | L54: =IF('Shooter Information'!$E$3-('Shooter Information'!$G$3-RANK(K54,K$4:K$78,1))<0,0,'Shooter Information'!$E$3-('Shooter Information'!$G$3-RANK(K54,K$4:K$78,1))) -> 0 | M54: =(IF('Shooter Information'!H56=1,"MDQ",IF(J54=1,"SDQ",IF(I54=1,"DNF",SUM(D54+G54+H54+I54+J54))))) -> 0 | O54: 0
A55: 52 | B55: ='Shooter Information'!B57 -> 0 | C55: ='Shooter Information'!C57 -> 0 | K55: =MIN(IF('Shooter Information'!H57=1,999.99,(D55*5)+E55-F55+(G55*10)+(H55*30)+(I55*999.99)+(J55*999.99)),999.99) -> 0 | L55: =IF('Shooter Information'!$E$3-('Shooter Information'!$G$3-RANK(K55,K$4:K$78,1))<0,0,'Shooter Information'!$E$3-('Shooter Information'!$G$3-RANK(K55,K$4:K$78,1))) -> 0 | M55: =(IF('Shooter Information'!H57=1,"MDQ",IF(J55=1,"SDQ",IF(I55=1,"DNF",SUM(D55+G55+H55+I55+J55))))) -> 0 | O55: 0
A56: 53 | B56: ='Shooter Information'!B58 -> 0 | C56: ='Shooter Information'!C58 -> 0 | K56: =MIN(IF('Shooter Information'!H58=1,999.99,(D56*5)+E56-F56+(G56*10)+(H56*30)+(I56*999.99)+(J56*999.99)),999.99) -> 0 | L56: =IF('Shooter Information'!$E$3-('Shooter Information'!$G$3-RANK(K56,K$4:K$78,1))<0,0,'Shooter Information'!$E$3-('Shooter Information'!$G$3-RANK(K56,K$4:K$78,1))) -> 0 | M56: =(IF('Shooter Information'!H58=1,"MDQ",IF(J56=1,"SDQ",IF(I56=1,"DNF",SUM(D56+G56+H56+I56+J56))))) -> 0 | O56: 0
A57: 54 | B57: ='Shooter Information'!B59 -> 0 | C57: ='Shooter Information'!C59 -> 0 | K57: =MIN(IF('Shooter Information'!H59=1,999.99,(D57*5)+E57-F57+(G57*10)+(H57*30)+(I57*999.99)+(J57*999.99)),999.99) -> 0 | L57: =IF('Shooter Information'!$E$3-('Shooter Information'!$G$3-RANK(K57,K$4:K$78,1))<0,0,'Shooter Information'!$E$3-('Shooter Information'!$G$3-RANK(K57,K$4:K$78,1))) -> 0 | M57: =(IF('Shooter Information'!H59=1,"MDQ",IF(J57=1,"SDQ",IF(I57=1,"DNF",SUM(D57+G57+H57+I57+J57))))) -> 0 | O57: 0
A58: 55 | B58: ='Shooter Information'!B60 -> 0 | C58: ='Shooter Information'!C60 -> 0 | K58: =MIN(IF('Shooter Information'!H60=1,999.99,(D58*5)+E58-F58+(G58*10)+(H58*30)+(I58*999.99)+(J58*999.99)),999.99) -> 0 | L58: =IF('Shooter Information'!$E$3-('Shooter Information'!$G$3-RANK(K58,K$4:K$78,1))<0,0,'Shooter Information'!$E$3-('Shooter Information'!$G$3-RANK(K58,K$4:K$78,1))) -> 0 | M58: =(IF('Shooter Information'!H60=1,"MDQ",IF(J58=1,"SDQ",IF(I58=1,"DNF",SUM(D58+G58+H58+I58+J58))))) -> 0 | O58: 0
A59: 56 | B59: ='Shooter Information'!B61 -> 0 | C59: ='Shooter Information'!C61 -> 0 | K59: =MIN(IF('Shooter Information'!H61=1,999.99,(D59*5)+E59-F59+(G59*10)+(H59*30)+(I59*999.99)+(J59*999.99)),999.99) -> 0 | L59: =IF('Shooter Information'!$E$3-('Shooter Information'!$G$3-RANK(K59,K$4:K$78,1))<0,0,'Shooter Information'!$E$3-('Shooter Information'!$G$3-RANK(K59,K$4:K$78,1))) -> 0 | M59: =(IF('Shooter Information'!H61=1,"MDQ",IF(J59=1,"SDQ",IF(I59=1,"DNF",SUM(D59+G59+H59+I59+J59))))) -> 0 | O59: 0
A60: 57 | B60: ='Shooter Information'!B62 -> 0 | C60: ='Shooter Information'!C62 -> 0 | K60: =MIN(IF('Shooter Information'!H62=1,999.99,(D60*5)+E60-F60+(G60*10)+(H60*30)+(I60*999.99)+(J60*999.99)),999.99) -> 0 | L60: =IF('Shooter Information'!$E$3-('Shooter Information'!$G$3-RANK(K60,K$4:K$78,1))<0,0,'Shooter Information'!$E$3-('Shooter Information'!$G$3-RANK(K60,K$4:K$78,1))) -> 0 | M60: =(IF('Shooter Information'!H62=1,"MDQ",IF(J60=1,"SDQ",IF(I60=1,"DNF",SUM(D60+G60+H60+I60+J60))))) -> 0 | O60: 0
A61: 58 | B61: ='Shooter Information'!B63 -> 0 | C61: ='Shooter Information'!C63 -> 0 | K61: =MIN(IF('Shooter Information'!H63=1,999.99,(D61*5)+E61-F61+(G61*10)+(H61*30)+(I61*999.99)+(J61*999.99)),999.99) -> 0 | L61: =IF('Shooter Information'!$E$3-('Shooter Information'!$G$3-RANK(K61,K$4:K$78,1))<0,0,'Shooter Information'!$E$3-('Shooter Information'!$G$3-RANK(K61,K$4:K$78,1))) -> 0 | M61: =(IF('Shooter Information'!H63=1,"MDQ",IF(J61=1,"SDQ",IF(I61=1,"DNF",SUM(D61+G61+H61+I61+J61))))) -> 0 | O61: 0
A62: 59 | B62: ='Shooter Information'!B64 -> 0 | C62: ='Shooter Information'!C64 -> 0 | K62: =MIN(IF('Shooter Information'!H64=1,999.99,(D62*5)+E62-F62+(G62*10)+(H62*30)+(I62*999.99)+(J62*999.99)),999.99) -> 0 | L62: =IF('Shooter Information'!$E$3-('Shooter Information'!$G$3-RANK(K62,K$4:K$78,1))<0,0,'Shooter Information'!$E$3-('Shooter Information'!$G$3-RANK(K62,K$4:K$78,1))) -> 0 | M62: =(IF('Shooter Information'!H64=1,"MDQ",IF(J62=1,"SDQ",IF(I62=1,"DNF",SUM(D62+G62+H62+I62+J62))))) -> 0 | O62: 0
A63: 60 | B63: ='Shooter Information'!B65 -> 0 | C63: ='Shooter Information'!C65 -> 0 | K63: =MIN(IF('Shooter Information'!H65=1,999.99,(D63*5)+E63-F63+(G63*10)+(H63*30)+(I63*999.99)+(J63*999.99)),999.99) -> 0 | L63: =IF('Shooter Information'!$E$3-('Shooter Information'!$G$3-RANK(K63,K$4:K$78,1))<0,0,'Shooter Information'!$E$3-('Shooter Information'!$G$3-RANK(K63,K$4:K$78,1))) -> 0 | M63: =(IF('Shooter Information'!H65=1,"MDQ",IF(J63=1,"SDQ",IF(I63=1,"DNF",SUM(D63+G63+H63+I63+J63))))) -> 0 | O63: 0
A64: 61 | B64: ='Shooter Information'!B66 -> 0 | C64: ='Shooter Information'!C66 -> 0 | K64: =MIN(IF('Shooter Information'!H66=1,999.99,(D64*5)+E64-F64+(G64*10)+(H64*30)+(I64*999.99)+(J64*999.99)),999.99) -> 0 | L64: =IF('Shooter Information'!$E$3-('Shooter Information'!$G$3-RANK(K64,K$4:K$78,1))<0,0,'Shooter Information'!$E$3-('Shooter Information'!$G$3-RANK(K64,K$4:K$78,1))) -> 0 | M64: =(IF('Shooter Information'!H66=1,"MDQ",IF(J64=1,"SDQ",IF(I64=1,"DNF",SUM(D64+G64+H64+I64+J64))))) -> 0 | O64: 0
A65: 62 | B65: ='Shooter Information'!B67 -> 0 | C65: ='Shooter Information'!C67 -> 0 | K65: =MIN(IF('Shooter Information'!H67=1,999.99,(D65*5)+E65-F65+(G65*10)+(H65*30)+(I65*999.99)+(J65*999.99)),999.99) -> 0 | L65: =IF('Shooter Information'!$E$3-('Shooter Information'!$G$3-RANK(K65,K$4:K$78,1))<0,0,'Shooter Information'!$E$3-('Shooter Information'!$G$3-RANK(K65,K$4:K$78,1))) -> 0 | M65: =(IF('Shooter Information'!H67=1,"MDQ",IF(J65=1,"SDQ",IF(I65=1,"DNF",SUM(D65+G65+H65+I65+J65))))) -> 0 | O65: 0
A66: 63 | B66: ='Shooter Information'!B68 -> 0 | C66: ='Shooter Information'!C68 -> 0 | K66: =MIN(IF('Shooter Information'!H68=1,999.99,(D66*5)+E66-F66+(G66*10)+(H66*30)+(I66*999.99)+(J66*999.99)),999.99) -> 0 | L66: =IF('Shooter Information'!$E$3-('Shooter Information'!$G$3-RANK(K66,K$4:K$78,1))<0,0,'Shooter Information'!$E$3-('Shooter Information'!$G$3-RANK(K66,K$4:K$78,1))) -> 0 | M66: =(IF('Shooter Information'!H68=1,"MDQ",IF(J66=1,"SDQ",IF(I66=1,"DNF",SUM(D66+G66+H66+I66+J66))))) -> 0 | O66: 0
A67: 64 | B67: ='Shooter Information'!B69 -> 0 | C67: ='Shooter Information'!C69 -> 0 | K67: =MIN(IF('Shooter Information'!H69=1,999.99,(D67*5)+E67-F67+(G67*10)+(H67*30)+(I67*999.99)+(J67*999.99)),999.99) -> 0 | L67: =IF('Shooter Information'!$E$3-('Shooter Information'!$G$3-RANK(K67,K$4:K$78,1))<0,0,'Shooter Information'!$E$3-('Shooter Information'!$G$3-RANK(K67,K$4:K$78,1))) -> 0 | M67: =(IF('Shooter Information'!H69=1,"MDQ",IF(J67=1,"SDQ",IF(I67=1,"DNF",SUM(D67+G67+H67+I67+J67))))) -> 0 | O67: 0
A68: 65 | B68: ='Shooter Information'!B70 -> 0 | C68: ='Shooter Information'!C70 -> 0 | K68: =MIN(IF('Shooter Information'!H70=1,999.99,(D68*5)+E68-F68+(G68*10)+(H68*30)+(I68*999.99)+(J68*999.99)),999.99) -> 0 | L68: =IF('Shooter Information'!$E$3-('Shooter Information'!$G$3-RANK(K68,K$4:K$78,1))<0,0,'Shooter Information'!$E$3-('Shooter Information'!$G$3-RANK(K68,K$4:K$78,1))) -> 0 | M68: =(IF('Shooter Information'!H70=1,"MDQ",IF(J68=1,"SDQ",IF(I68=1,"DNF",SUM(D68+G68+H68+I68+J68))))) -> 0 | O68: 0
A69: 66 | B69: ='Shooter Information'!B71 -> 0 | C69: ='Shooter Information'!C71 -> 0 | K69: =MIN(IF('Shooter Information'!H71=1,999.99,(D69*5)+E69-F69+(G69*10)+(H69*30)+(I69*999.99)+(J69*999.99)),999.99) -> 0 | L69: =IF('Shooter Information'!$E$3-('Shooter Information'!$G$3-RANK(K69,K$4:K$78,1))<0,0,'Shooter Information'!$E$3-('Shooter Information'!$G$3-RANK(K69,K$4:K$78,1))) -> 0 | M69: =(IF('Shooter Information'!H71=1,"MDQ",IF(J69=1,"SDQ",IF(I69=1,"DNF",SUM(D69+G69+H69+I69+J69))))) -> 0 | O69: =SUM(D69+G69+H69+I69+J69) -> 0
A70: 67 | B70: ='Shooter Information'!B72 -> 0 | C70: ='Shooter Information'!C72 -> 0 | K70: =MIN(IF('Shooter Information'!H72=1,999.99,(D70*5)+E70-F70+(G70*10)+(H70*30)+(I70*999.99)+(J70*999.99)),999.99) -> 0 | L70: =IF('Shooter Information'!$E$3-('Shooter Information'!$G$3-RANK(K70,K$4:K$78,1))<0,0,'Shooter Information'!$E$3-('Shooter Information'!$G$3-RANK(K70,K$4:K$78,1))) -> 0 | M70: =(IF('Shooter Information'!H72=1,"MDQ",IF(J70=1,"SDQ",IF(I70=1,"DNF",SUM(D70+G70+H70+I70+J70))))) -> 0 | O70: 0
A71: 68 | B71: ='Shooter Information'!B73 -> 0 | C71: ='Shooter Information'!C73 -> 0 | K71: =MIN(IF('Shooter Information'!H73=1,999.99,(D71*5)+E71-F71+(G71*10)+(H71*30)+(I71*999.99)+(J71*999.99)),999.99) -> 0 | L71: =IF('Shooter Information'!$E$3-('Shooter Information'!$G$3-RANK(K71,K$4:K$78,1))<0,0,'Shooter Information'!$E$3-('Shooter Information'!$G$3-RANK(K71,K$4:K$78,1))) -> 0 | M71: =(IF('Shooter Information'!H73=1,"MDQ",IF(J71=1,"SDQ",IF(I71=1,"DNF",SUM(D71+G71+H71+I71+J71))))) -> 0 | O71: 0
A72: 69 | B72: ='Shooter Information'!B74 -> 0 | C72: ='Shooter Information'!C74 -> 0 | K72: =MIN(IF('Shooter Information'!H74=1,999.99,(D72*5)+E72-F72+(G72*10)+(H72*30)+(I72*999.99)+(J72*999.99)),999.99) -> 0 | L72: =IF('Shooter Information'!$E$3-('Shooter Information'!$G$3-RANK(K72,K$4:K$78,1))<0,0,'Shooter Information'!$E$3-('Shooter Information'!$G$3-RANK(K72,K$4:K$78,1))) -> 0 | M72: =(IF('Shooter Information'!H74=1,"MDQ",IF(J72=1,"SDQ",IF(I72=1,"DNF",SUM(D72+G72+H72+I72+J72))))) -> 0 | O72: 0
A73: 70 | B73: ='Shooter Information'!B75 -> 0 | C73: ='Shooter Information'!C75 -> 0 | K73: =MIN(IF('Shooter Information'!H75=1,999.99,(D73*5)+E73-F73+(G73*10)+(H73*30)+(I73*999.99)+(J73*999.99)),999.99) -> 0 | L73: =IF('Shooter Information'!$E$3-('Shooter Information'!$G$3-RANK(K73,K$4:K$78,1))<0,0,'Shooter Information'!$E$3-('Shooter Information'!$G$3-RANK(K73,K$4:K$78,1))) -> 0 | M73: =(IF('Shooter Information'!H75=1,"MDQ",IF(J73=1,"SDQ",IF(I73=1,"DNF",SUM(D73+G73+H73+I73+J73))))) -> 0 | O73: 0
A74: 71 | B74: ='Shooter Information'!B76 -> 0 | C74: ='Shooter Information'!C76 -> 0 | K74: =MIN(IF('Shooter Information'!H76=1,999.99,(D74*5)+E74-F74+(G74*10)+(H74*30)+(I74*999.99)+(J74*999.99)),999.99) -> 0 | L74: =IF('Shooter Information'!$E$3-('Shooter Information'!$G$3-RANK(K74,K$4:K$78,1))<0,0,'Shooter Information'!$E$3-('Shooter Information'!$G$3-RANK(K74,K$4:K$78,1))) -> 0 | M74: =(IF('Shooter Information'!H76=1,"MDQ",IF(J74=1,"SDQ",IF(I74=1,"DNF",SUM(D74+G74+H74+I74+J74))))) -> 0 | O74: 0
A75: 72 | B75: ='Shooter Information'!B77 -> 0 | C75: ='Shooter Information'!C77 -> 0 | K75: =MIN(IF('Shooter Information'!H77=1,999.99,(D75*5)+E75-F75+(G75*10)+(H75*30)+(I75*999.99)+(J75*999.99)),999.99) -> 0 | L75: =IF('Shooter Information'!$E$3-('Shooter Information'!$G$3-RANK(K75,K$4:K$78,1))<0,0,'Shooter Information'!$E$3-('Shooter Information'!$G$3-RANK(K75,K$4:K$78,1))) -> 0 | M75: =(IF('Shooter Information'!H77=1,"MDQ",IF(J75=1,"SDQ",IF(I75=1,"DNF",SUM(D75+G75+H75+I75+J75))))) -> 0 | O75: 0
A76: 73 | B76: ='Shooter Information'!B78 -> 0 | C76: ='Shooter Information'!C78 -> 0 | K76: =MIN(IF('Shooter Information'!H78=1,999.99,(D76*5)+E76-F76+(G76*10)+(H76*30)+(I76*999.99)+(J76*999.99)),999.99) -> 0 | L76: =IF('Shooter Information'!$E$3-('Shooter Information'!$G$3-RANK(K76,K$4:K$78,1))<0,0,'Shooter Information'!$E$3-('Shooter Information'!$G$3-RANK(K76,K$4:K$78,1))) -> 0 | M76: =(IF('Shooter Information'!H78=1,"MDQ",IF(J76=1,"SDQ",IF(I76=1,"DNF",SUM(D76+G76+H76+I76+J76))))) -> 0 | O76: 0
A77: 74 | B77: ='Shooter Information'!B79 -> 0 | C77: ='Shooter Information'!C79 -> 0 | K77: =MIN(IF('Shooter Information'!H79=1,999.99,(D77*5)+E77-F77+(G77*10)+(H77*30)+(I77*999.99)+(J77*999.99)),999.99) -> 0 | L77: =IF('Shooter Information'!$E$3-('Shooter Information'!$G$3-RANK(K77,K$4:K$78,1))<0,0,'Shooter Information'!$E$3-('Shooter Information'!$G$3-RANK(K77,K$4:K$78,1))) -> 0 | M77: =(IF('Shooter Information'!H79=1,"MDQ",IF(J77=1,"SDQ",IF(I77=1,"DNF",SUM(D77+G77+H77+I77+J77))))) -> 0 | O77: 0
A78: 75 | B78: ='Shooter Information'!B80 -> 0 | C78: ='Shooter Information'!C80 -> 0 | K78: =MIN(IF('Shooter Information'!H80=1,999.99,(D78*5)+E78-F78+(G78*10)+(H78*30)+(I78*999.99)+(J78*999.99)),999.99) -> 0 | L78: =IF('Shooter Information'!$E$3-('Shooter Information'!$G$3-RANK(K78,K$4:K$78,1))<0,0,'Shooter Information'!$E$3-('Shooter Information'!$G$3-RANK(K78,K$4:K$78,1))) -> 0 | M78: =(IF('Shooter Information'!H80=1,"MDQ",IF(J78=1,"SDQ",IF(I78=1,"DNF",SUM(D78+G78+H78+I78+J78))))) -> 0 | O78: 0

Sheet Stage 9 (hidden)
B1: Stage Input Sheet - Stage 9
A3: Shooter # | B3: Shooter | C3: Class | D3: Misses | E3: Raw Time | F3: Bonus | G3: 10 Sec | H3: 30 Sec | I3: DNF | J3: SDQ | K3: Total | L3: Rank | M3: Penalties | O3: # Penalties
A4: =ROW()-3 -> 1 | B4: ='Shooter Information'!B6 -> Striker | C4: ='Shooter Information'!C6 -> WW | K4: =MIN(IF('Shooter Information'!H6=1,999.99,(D4*5)+E4-F4+(G4*10)+(H4*30)+(I4*999.99)+(J4*999.99)),999.99) -> 0 | L4: =IF('Shooter Information'!$E$3-('Shooter Information'!$G$3-RANK(K4,K$4:K$78,1))<0,0,'Shooter Information'!$E$3-('Shooter Information'!$G$3-RANK(K4,K$4:K$78,1))) -> 0 | M4: =(IF('Shooter Information'!H6=1,"MDQ",IF(J4=1,"SDQ",IF(I4=1,"DNF",SUM(D4+G4+H4+I4+J4))))) -> 0 | O4: =SUM(D4+G4+H4+I4+J4) -> 0
A5: =ROW()-3 -> 2 | B5: ='Shooter Information'!B7 -> Cody Maverick | C5: ='Shooter Information'!C7 -> GF | K5: =MIN(IF('Shooter Information'!H7=1,999.99,(D5*5)+E5-F5+(G5*10)+(H5*30)+(I5*999.99)+(J5*999.99)),999.99) -> 0 | L5: =IF('Shooter Information'!$E$3-('Shooter Information'!$G$3-RANK(K5,K$4:K$78,1))<0,0,'Shooter Information'!$E$3-('Shooter Information'!$G$3-RANK(K5,K$4:K$78,1))) -> 0 | M5: =(IF('Shooter Information'!H7=1,"MDQ",IF(J5=1,"SDQ",IF(I5=1,"DNF",SUM(D5+G5+H5+I5+J5))))) -> 0 | O5: =SUM(D5+G5+H5+I5+J5) -> 0
A6: 3 | B6: ='Shooter Information'!B8 -> Potter County Kid | C6: ='Shooter Information'!C8 -> WW | K6: =MIN(IF('Shooter Information'!H8=1,999.99,(D6*5)+E6-F6+(G6*10)+(H6*30)+(I6*999.99)+(J6*999.99)),999.99) -> 0 | L6: =IF('Shooter Information'!$E$3-('Shooter Information'!$G$3-RANK(K6,K$4:K$78,1))<0,0,'Shooter Information'!$E$3-('Shooter Information'!$G$3-RANK(K6,K$4:K$78,1))) -> 0 | M6: =(IF('Shooter Information'!H8=1,"MDQ",IF(J6=1,"SDQ",IF(I6=1,"DNF",SUM(D6+G6+H6+I6+J6))))) -> 0 | O6: 0
A7: 4 | B7: ='Shooter Information'!B9 -> Ricochet Kid | C7: ='Shooter Information'!C9 -> W | K7: =MIN(IF('Shooter Information'!H9=1,999.99,(D7*5)+E7-F7+(G7*10)+(H7*30)+(I7*999.99)+(J7*999.99)),999.99) -> 0 | L7: =IF('Shooter Information'!$E$3-('Shooter Information'!$G$3-RANK(K7,K$4:K$78,1))<0,0,'Shooter Information'!$E$3-('Shooter Information'!$G$3-RANK(K7,K$4:K$78,1))) -> 0 | M7: =(IF('Shooter Information'!H9=1,"MDQ",IF(J7=1,"SDQ",IF(I7=1,"DNF",SUM(D7+G7+H7+I7+J7))))) -> 0 | O7: 0
A8: 5 | B8: ='Shooter Information'!B10 -> Flatboat Bob | C8: ='Shooter Information'!C10 -> CBAR | K8: =MIN(IF('Shooter Information'!H10=1,999.99,(D8*5)+E8-F8+(G8*10)+(H8*30)+(I8*999.99)+(J8*999.99)),999.99) -> 0 | L8: =IF('Shooter Information'!$E$3-('Shooter Information'!$G$3-RANK(K8,K$4:K$78,1))<0,0,'Shooter Information'!$E$3-('Shooter Information'!$G$3-RANK(K8,K$4:K$78,1))) -> 0 | M8: =(IF('Shooter Information'!H10=1,"MDQ",IF(J8=1,"SDQ",IF(I8=1,"DNF",SUM(D8+G8+H8+I8+J8))))) -> 0 | O8: 0
A9: 6 | B9: ='Shooter Information'!B11 -> Hotshod | C9: ='Shooter Information'!C11 -> W | K9: =MIN(IF('Shooter Information'!H11=1,999.99,(D9*5)+E9-F9+(G9*10)+(H9*30)+(I9*999.99)+(J9*999.99)),999.99) -> 0 | L9: =IF('Shooter Information'!$E$3-('Shooter Information'!$G$3-RANK(K9,K$4:K$78,1))<0,0,'Shooter Information'!$E$3-('Shooter Information'!$G$3-RANK(K9,K$4:K$78,1))) -> 0 | M9: =(IF('Shooter Information'!H11=1,"MDQ",IF(J9=1,"SDQ",IF(I9=1,"DNF",SUM(D9+G9+H9+I9+J9))))) -> 0 | O9: 0
A10: 7 | B10: ='Shooter Information'!B12 -> Prairie City Slim | C10: ='Shooter Information'!C12 -> ES | K10: =MIN(IF('Shooter Information'!H12=1,999.99,(D10*5)+E10-F10+(G10*10)+(H10*30)+(I10*999.99)+(J10*999.99)),999.99) -> 0 | L10: =IF('Shooter Information'!$E$3-('Shooter Information'!$G$3-RANK(K10,K$4:K$78,1))<0,0,'Shooter Information'!$E$3-('Shooter Information'!$G$3-RANK(K10,K$4:K$78,1))) -> 0 | M10: =(IF('Shooter Information'!H12=1,"MDQ",IF(J10=1,"SDQ",IF(I10=1,"DNF",SUM(D10+G10+H10+I10+J10))))) -> 0 | O10: 0
A11: 8 | B11: ='Shooter Information'!B13 -> Regret Schofield | C11: ='Shooter Information'!C13 -> 49er | K11: =MIN(IF('Shooter Information'!H13=1,999.99,(D11*5)+E11-F11+(G11*10)+(H11*30)+(I11*999.99)+(J11*999.99)),999.99) -> 0 | L11: =IF('Shooter Information'!$E$3-('Shooter Information'!$G$3-RANK(K11,K$4:K$78,1))<0,0,'Shooter Information'!$E$3-('Shooter Information'!$G$3-RANK(K11,K$4:K$78,1))) -> 0 | M11: =(IF('Shooter Information'!H13=1,"MDQ",IF(J11=1,"SDQ",IF(I11=1,"DNF",SUM(D11+G11+H11+I11+J11))))) -> 0 | O11: 0
A12: 9 | B12: ='Shooter Information'!B14 -> Tumble Weed Tink | C12: ='Shooter Information'!C14 -> L49 | K12: =MIN(IF('Shooter Information'!H14=1,999.99,(D12*5)+E12-F12+(G12*10)+(H12*30)+(I12*999.99)+(J12*999.99)),999.99) -> 0 | L12: =IF('Shooter Information'!$E$3-('Shooter Information'!$G$3-RANK(K12,K$4:K$78,1))<0,0,'Shooter Information'!$E$3-('Shooter Information'!$G$3-RANK(K12,K$4:K$78,1))) -> 0 | M12: =(IF('Shooter Information'!H14=1,"MDQ",IF(J12=1,"SDQ",IF(I12=1,"DNF",SUM(D12+G12+H12+I12+J12))))) -> 0 | O12: 0
A13: 10 | B13: ='Shooter Information'!B15 -> One Eyed Jane | C13: ='Shooter Information'!C15 -> LSS | K13: =MIN(IF('Shooter Information'!H15=1,999.99,(D13*5)+E13-F13+(G13*10)+(H13*30)+(I13*999.99)+(J13*999.99)),999.99) -> 0 | L13: =IF('Shooter Information'!$E$3-('Shooter Information'!$G$3-RANK(K13,K$4:K$78,1))<0,0,'Shooter Information'!$E$3-('Shooter Information'!$G$3-RANK(K13,K$4:K$78,1))) -> 0 | M13: =(IF('Shooter Information'!H15=1,"MDQ",IF(J13=1,"SDQ",IF(I13=1,"DNF",SUM(D13+G13+H13+I13+J13))))) -> 0 | O13: 0
A14: 11 | B14: ='Shooter Information'!B16 -> Stogie | C14: ='Shooter Information'!C16 -> 49er | K14: =MIN(IF('Shooter Information'!H16=1,999.99,(D14*5)+E14-F14+(G14*10)+(H14*30)+(I14*999.99)+(J14*999.99)),999.99) -> 0 | L14: =IF('Shooter Information'!$E$3-('Shooter Information'!$G$3-RANK(K14,K$4:K$78,1))<0,0,'Shooter Information'!$E$3-('Shooter Information'!$G$3-RANK(K14,K$4:K$78,1))) -> 0 | M14: =(IF('Shooter Information'!H16=1,"MDQ",IF(J14=1,"SDQ",IF(I14=1,"DNF",SUM(D14+G14+H14+I14+J14))))) -> 0 | O14: 0
A15: 12 | B15: ='Shooter Information'!B17 -> Major BS Walker | C15: ='Shooter Information'!C17 -> WW | K15: =MIN(IF('Shooter Information'!H17=1,999.99,(D15*5)+E15-F15+(G15*10)+(H15*30)+(I15*999.99)+(J15*999.99)),999.99) -> 0 | L15: =IF('Shooter Information'!$E$3-('Shooter Information'!$G$3-RANK(K15,K$4:K$78,1))<0,0,'Shooter Information'!$E$3-('Shooter Information'!$G$3-RANK(K15,K$4:K$78,1))) -> 0 | M15: =(IF('Shooter Information'!H17=1,"MDQ",IF(J15=1,"SDQ",IF(I15=1,"DNF",SUM(D15+G15+H15+I15+J15))))) -> 0 | O15: 0
A16: 13 | B16: ='Shooter Information'!B18 -> Sassy Shooting Sours | C16: ='Shooter Information'!C18 -> S | K16: =MIN(IF('Shooter Information'!H18=1,999.99,(D16*5)+E16-F16+(G16*10)+(H16*30)+(I16*999.99)+(J16*999.99)),999.99) -> 0 | L16: =IF('Shooter Information'!$E$3-('Shooter Information'!$G$3-RANK(K16,K$4:K$78,1))<0,0,'Shooter Information'!$E$3-('Shooter Information'!$G$3-RANK(K16,K$4:K$78,1))) -> 0 | M16: =(IF('Shooter Information'!H18=1,"MDQ",IF(J16=1,"SDQ",IF(I16=1,"DNF",SUM(D16+G16+H16+I16+J16))))) -> 0 | O16: 0
A17: 14 | B17: ='Shooter Information'!B19 -> Lefty Spurmaker | C17: ='Shooter Information'!C19 -> S | K17: =MIN(IF('Shooter Information'!H19=1,999.99,(D17*5)+E17-F17+(G17*10)+(H17*30)+(I17*999.99)+(J17*999.99)),999.99) -> 0 | L17: =IF('Shooter Information'!$E$3-('Shooter Information'!$G$3-RANK(K17,K$4:K$78,1))<0,0,'Shooter Information'!$E$3-('Shooter Information'!$G$3-RANK(K17,K$4:K$78,1))) -> 0 | M17: =(IF('Shooter Information'!H19=1,"MDQ",IF(J17=1,"SDQ",IF(I17=1,"DNF",SUM(D17+G17+H17+I17+J17))))) -> 0 | O17: 0
A18: 15 | B18: ='Shooter Information'!B20 -> Windhorse Rider | C18: ='Shooter Information'!C20 -> GF | K18: =MIN(IF('Shooter Information'!H20=1,999.99,(D18*5)+E18-F18+(G18*10)+(H18*30)+(I18*999.99)+(J18*999.99)),999.99) -> 0 | L18: =IF('Shooter Information'!$E$3-('Shooter Information'!$G$3-RANK(K18,K$4:K$78,1))<0,0,'Shooter Information'!$E$3-('Shooter Information'!$G$3-RANK(K18,K$4:K$78,1))) -> 0 | M18: =(IF('Shooter Information'!H20=1,"MDQ",IF(J18=1,"SDQ",IF(I18=1,"DNF",SUM(D18+G18+H18+I18+J18))))) -> 0 | O18: 0
A19: 16 | B19: ='Shooter Information'!B21 -> Red Cavanaugh | C19: ='Shooter Information'!C21 -> 49er | K19: =MIN(IF('Shooter Information'!H21=1,999.99,(D19*5)+E19-F19+(G19*10)+(H19*30)+(I19*999.99)+(J19*999.99)),999.99) -> 0 | L19: =IF('Shooter Information'!$E$3-('Shooter Information'!$G$3-RANK(K19,K$4:K$78,1))<0,0,'Shooter Information'!$E$3-('Shooter Information'!$G$3-RANK(K19,K$4:K$78,1))) -> 0 | M19: =(IF('Shooter Information'!H21=1,"MDQ",IF(J19=1,"SDQ",IF(I19=1,"DNF",SUM(D19+G19+H19+I19+J19))))) -> 0 | O19: 0
A20: 17 | B20: ='Shooter Information'!B22 -> 0 | C20: ='Shooter Information'!C22 -> 0 | K20: =MIN(IF('Shooter Information'!H22=1,999.99,(D20*5)+E20-F20+(G20*10)+(H20*30)+(I20*999.99)+(J20*999.99)),999.99) -> 0 | L20: =IF('Shooter Information'!$E$3-('Shooter Information'!$G$3-RANK(K20,K$4:K$78,1))<0,0,'Shooter Information'!$E$3-('Shooter Information'!$G$3-RANK(K20,K$4:K$78,1))) -> 0 | M20: =(IF('Shooter Information'!H22=1,"MDQ",IF(J20=1,"SDQ",IF(I20=1,"DNF",SUM(D20+G20+H20+I20+J20))))) -> 0 | O20: 0
A21: 18 | B21: ='Shooter Information'!B23 -> 0 | C21: ='Shooter Information'!C23 -> 0 | K21: =MIN(IF('Shooter Information'!H23=1,999.99,(D21*5)+E21-F21+(G21*10)+(H21*30)+(I21*999.99)+(J21*999.99)),999.99) -> 0 | L21: =IF('Shooter Information'!$E$3-('Shooter Information'!$G$3-RANK(K21,K$4:K$78,1))<0,0,'Shooter Information'!$E$3-('Shooter Information'!$G$3-RANK(K21,K$4:K$78,1))) -> 0 | M21: =(IF('Shooter Information'!H23=1,"MDQ",IF(J21=1,"SDQ",IF(I21=1,"DNF",SUM(D21+G21+H21+I21+J21))))) -> 0 | O21: 0
A22: 19 | B22: ='Shooter Information'!B24 -> 0 | C22: ='Shooter Information'!C24 -> 0 | K22: =MIN(IF('Shooter Information'!H24=1,999.99,(D22*5)+E22-F22+(G22*10)+(H22*30)+(I22*999.99)+(J22*999.99)),999.99) -> 0 | L22: =IF('Shooter Information'!$E$3-('Shooter Information'!$G$3-RANK(K22,K$4:K$78,1))<0,0,'Shooter Information'!$E$3-('Shooter Information'!$G$3-RANK(K22,K$4:K$78,1))) -> 0 | M22: =(IF('Shooter Information'!H24=1,"MDQ",IF(J22=1,"SDQ",IF(I22=1,"DNF",SUM(D22+G22+H22+I22+J22))))) -> 0 | O22: 0
A23: 20 | B23: ='Shooter Information'!B25 -> 0 | C23: ='Shooter Information'!C25 -> 0 | K23: =MIN(IF('Shooter Information'!H25=1,999.99,(D23*5)+E23-F23+(G23*10)+(H23*30)+(I23*999.99)+(J23*999.99)),999.99) -> 0 | L23: =IF('Shooter Information'!$E$3-('Shooter Information'!$G$3-RANK(K23,K$4:K$78,1))<0,0,'Shooter Information'!$E$3-('Shooter Information'!$G$3-RANK(K23,K$4:K$78,1))) -> 0 | M23: =(IF('Shooter Information'!H25=1,"MDQ",IF(J23=1,"SDQ",IF(I23=1,"DNF",SUM(D23+G23+H23+I23+J23))))) -> 0 | O23: 0
A24: 21 | B24: ='Shooter Information'!B26 -> 0 | C24: ='Shooter Information'!C26 -> 0 | K24: =MIN(IF('Shooter Information'!H26=1,999.99,(D24*5)+E24-F24+(G24*10)+(H24*30)+(I24*999.99)+(J24*999.99)),999.99) -> 0 | L24: =IF('Shooter Information'!$E$3-('Shooter Information'!$G$3-RANK(K24,K$4:K$78,1))<0,0,'Shooter Information'!$E$3-('Shooter Information'!$G$3-RANK(K24,K$4:K$78,1))) -> 0 | M24: =(IF('Shooter Information'!H26=1,"MDQ",IF(J24=1,"SDQ",IF(I24=1,"DNF",SUM(D24+G24+H24+I24+J24))))) -> 0 | O24: 0
A25: 22 | B25: ='Shooter Information'!B27 -> 0 | C25: ='Shooter Information'!C27 -> 0 | K25: =MIN(IF('Shooter Information'!H27=1,999.99,(D25*5)+E25-F25+(G25*10)+(H25*30)+(I25*999.99)+(J25*999.99)),999.99) -> 0 | L25: =IF('Shooter Information'!$E$3-('Shooter Information'!$G$3-RANK(K25,K$4:K$78,1))<0,0,'Shooter Information'!$E$3-('Shooter Information'!$G$3-RANK(K25,K$4:K$78,1))) -> 0 | M25: =(IF('Shooter Information'!H27=1,"MDQ",IF(J25=1,"SDQ",IF(I25=1,"DNF",SUM(D25+G25+H25+I25+J25))))) -> 0 | O25: 0
A26: 23 | B26: ='Shooter Information'!B28 -> 0 | C26: ='Shooter Information'!C28 -> 0 | K26: =MIN(IF('Shooter Information'!H28=1,999.99,(D26*5)+E26-F26+(G26*10)+(H26*30)+(I26*999.99)+(J26*999.99)),999.99) -> 0 | L26: =IF('Shooter Information'!$E$3-('Shooter Information'!$G$3-RANK(K26,K$4:K$78,1))<0,0,'Shooter Information'!$E$3-('Shooter Information'!$G$3-RANK(K26,K$4:K$78,1))) -> 0 | M26: =(IF('Shooter Information'!H28=1,"MDQ",IF(J26=1,"SDQ",IF(I26=1,"DNF",SUM(D26+G26+H26+I26+J26))))) -> 0 | O26: 0
A27: 24 | B27: ='Shooter Information'!B29 -> 0 | C27: ='Shooter Information'!C29 -> 0 | K27: =MIN(IF('Shooter Information'!H29=1,999.99,(D27*5)+E27-F27+(G27*10)+(H27*30)+(I27*999.99)+(J27*999.99)),999.99) -> 0 | L27: =IF('Shooter Information'!$E$3-('Shooter Information'!$G$3-RANK(K27,K$4:K$78,1))<0,0,'Shooter Information'!$E$3-('Shooter Information'!$G$3-RANK(K27,K$4:K$78,1))) -> 0 | M27: =(IF('Shooter Information'!H29=1,"MDQ",IF(J27=1,"SDQ",IF(I27=1,"DNF",SUM(D27+G27+H27+I27+J27))))) -> 0 | O27: 0
A28: 25 | B28: ='Shooter Information'!B30 -> 0 | C28: ='Shooter Information'!C30 -> 0 | K28: =MIN(IF('Shooter Information'!H30=1,999.99,(D28*5)+E28-F28+(G28*10)+(H28*30)+(I28*999.99)+(J28*999.99)),999.99) -> 0 | L28: =IF('Shooter Information'!$E$3-('Shooter Information'!$G$3-RANK(K28,K$4:K$78,1))<0,0,'Shooter Information'!$E$3-('Shooter Information'!$G$3-RANK(K28,K$4:K$78,1))) -> 0 | M28: =(IF('Shooter Information'!H30=1,"MDQ",IF(J28=1,"SDQ",IF(I28=1,"DNF",SUM(D28+G28+H28+I28+J28))))) -> 0 | O28: 0
A29: 26 | B29: ='Shooter Information'!B31 -> 0 | C29: ='Shooter Information'!C31 -> 0 | K29: =MIN(IF('Shooter Information'!H31=1,999.99,(D29*5)+E29-F29+(G29*10)+(H29*30)+(I29*999.99)+(J29*999.99)),999.99) -> 0 | L29: =IF('Shooter Information'!$E$3-('Shooter Information'!$G$3-RANK(K29,K$4:K$78,1))<0,0,'Shooter Information'!$E$3-('Shooter Information'!$G$3-RANK(K29,K$4:K$78,1))) -> 0 | M29: =(IF('Shooter Information'!H31=1,"MDQ",IF(J29=1,"SDQ",IF(I29=1,"DNF",SUM(D29+G29+H29+I29+J29))))) -> 0 | O29: 0
A30: 27 | B30: ='Shooter Information'!B32 -> 0 | C30: ='Shooter Information'!C32 -> 0 | K30: =MIN(IF('Shooter Information'!H32=1,999.99,(D30*5)+E30-F30+(G30*10)+(H30*30)+(I30*999.99)+(J30*999.99)),999.99) -> 0 | L30: =IF('Shooter Information'!$E$3-('Shooter Information'!$G$3-RANK(K30,K$4:K$78,1))<0,0,'Shooter Information'!$E$3-('Shooter Information'!$G$3-RANK(K30,K$4:K$78,1))) -> 0 | M30: =(IF('Shooter Information'!H32=1,"MDQ",IF(J30=1,"SDQ",IF(I30=1,"DNF",SUM(D30+G30+H30+I30+J30))))) -> 0 | O30: 0
A31: 28 | B31: ='Shooter Information'!B33 -> 0 | C31: ='Shooter Information'!C33 -> 0 | K31: =MIN(IF('Shooter Information'!H33=1,999.99,(D31*5)+E31-F31+(G31*10)+(H31*30)+(I31*999.99)+(J31*999.99)),999.99) -> 0 | L31: =IF('Shooter Information'!$E$3-('Shooter Information'!$G$3-RANK(K31,K$4:K$78,1))<0,0,'Shooter Information'!$E$3-('Shooter Information'!$G$3-RANK(K31,K$4:K$78,1))) -> 0 | M31: =(IF('Shooter Information'!H33=1,"MDQ",IF(J31=1,"SDQ",IF(I31=1,"DNF",SUM(D31+G31+H31+I31+J31))))) -> 0 | O31: 0
A32: 29 | B32: ='Shooter Information'!B34 -> 0 | C32: ='Shooter Information'!C34 -> 0 | K32: =MIN(IF('Shooter Information'!H34=1,999.99,(D32*5)+E32-F32+(G32*10)+(H32*30)+(I32*999.99)+(J32*999.99)),999.99) -> 0 | L32: =IF('Shooter Information'!$E$3-('Shooter Information'!$G$3-RANK(K32,K$4:K$78,1))<0,0,'Shooter Information'!$E$3-('Shooter Information'!$G$3-RANK(K32,K$4:K$78,1))) -> 0 | M32: =(IF('Shooter Information'!H34=1,"MDQ",IF(J32=1,"SDQ",IF(I32=1,"DNF",SUM(D32+G32+H32+I32+J32))))) -> 0 | O32: 0
A33: 30 | B33: ='Shooter Information'!B35 -> 0 | C33: ='Shooter Information'!C35 -> 0 | K33: =MIN(IF('Shooter Information'!H35=1,999.99,(D33*5)+E33-F33+(G33*10)+(H33*30)+(I33*999.99)+(J33*999.99)),999.99) -> 0 | L33: =IF('Shooter Information'!$E$3-('Shooter Information'!$G$3-RANK(K33,K$4:K$78,1))<0,0,'Shooter Information'!$E$3-('Shooter Information'!$G$3-RANK(K33,K$4:K$78,1))) -> 0 | M33: =(IF('Shooter Information'!H35=1,"MDQ",IF(J33=1,"SDQ",IF(I33=1,"DNF",SUM(D33+G33+H33+I33+J33))))) -> 0 | O33: 0
A34: 31 | B34: ='Shooter Information'!B36 -> 0 | C34: ='Shooter Information'!C36 -> 0 | K34: =MIN(IF('Shooter Information'!H36=1,999.99,(D34*5)+E34-F34+(G34*10)+(H34*30)+(I34*999.99)+(J34*999.99)),999.99) -> 0 | L34: =IF('Shooter Information'!$E$3-('Shooter Information'!$G$3-RANK(K34,K$4:K$78,1))<0,0,'Shooter Information'!$E$3-('Shooter Information'!$G$3-RANK(K34,K$4:K$78,1))) -> 0 | M34: =(IF('Shooter Information'!H36=1,"MDQ",IF(J34=1,"SDQ",IF(I34=1,"DNF",SUM(D34+G34+H34+I34+J34))))) -> 0 | O34: 0
A35: 32 | B35: ='Shooter Information'!B37 -> 0 | C35: ='Shooter Information'!C37 -> 0 | K35: =MIN(IF('Shooter Information'!H37=1,999.99,(D35*5)+E35-F35+(G35*10)+(H35*30)+(I35*999.99)+(J35*999.99)),999.99) -> 0 | L35: =IF('Shooter Information'!$E$3-('Shooter Information'!$G$3-RANK(K35,K$4:K$78,1))<0,0,'Shooter Information'!$E$3-('Shooter Information'!$G$3-RANK(K35,K$4:K$78,1))) -> 0 | M35: =(IF('Shooter Information'!H37=1,"MDQ",IF(J35=1,"SDQ",IF(I35=1,"DNF",SUM(D35+G35+H35+I35+J35))))) -> 0 | O35: 0
A36: 33 | B36: ='Shooter Information'!B38 -> 0 | C36: ='Shooter Information'!C38 -> 0 | K36: =MIN(IF('Shooter Information'!H38=1,999.99,(D36*5)+E36-F36+(G36*10)+(H36*30)+(I36*999.99)+(J36*999.99)),999.99) -> 0 | L36: =IF('Shooter Information'!$E$3-('Shooter Information'!$G$3-RANK(K36,K$4:K$78,1))<0,0,'Shooter Information'!$E$3-('Shooter Information'!$G$3-RANK(K36,K$4:K$78,1))) -> 0 | M36: =(IF('Shooter Information'!H38=1,"MDQ",IF(J36=1,"SDQ",IF(I36=1,"DNF",SUM(D36+G36+H36+I36+J36))))) -> 0 | O36: 0
A37: 34 | B37: ='Shooter Information'!B39 -> 0 | C37: ='Shooter Information'!C39 -> 0 | K37: =MIN(IF('Shooter Information'!H39=1,999.99,(D37*5)+E37-F37+(G37*10)+(H37*30)+(I37*999.99)+(J37*999.99)),999.99) -> 0 | L37: =IF('Shooter Information'!$E$3-('Shooter Information'!$G$3-RANK(K37,K$4:K$78,1))<0,0,'Shooter Information'!$E$3-('Shooter Information'!$G$3-RANK(K37,K$4:K$78,1))) -> 0 | M37: =(IF('Shooter Information'!H39=1,"MDQ",IF(J37=1,"SDQ",IF(I37=1,"DNF",SUM(D37+G37+H37+I37+J37))))) -> 0 | O37: 0
A38: 35 | B38: ='Shooter Information'!B40 -> 0 | C38: ='Shooter Information'!C40 -> 0 | K38: =MIN(IF('Shooter Information'!H40=1,999.99,(D38*5)+E38-F38+(G38*10)+(H38*30)+(I38*999.99)+(J38*999.99)),999.99) -> 0 | L38: =IF('Shooter Information'!$E$3-('Shooter Information'!$G$3-RANK(K38,K$4:K$78,1))<0,0,'Shooter Information'!$E$3-('Shooter Information'!$G$3-RANK(K38,K$4:K$78,1))) -> 0 | M38: =(IF('Shooter Information'!H40=1,"MDQ",IF(J38=1,"SDQ",IF(I38=1,"DNF",SUM(D38+G38+H38+I38+J38))))) -> 0 | O38: 0
A39: 36 | B39: ='Shooter Information'!B41 -> 0 | C39: ='Shooter Information'!C41 -> 0 | K39: =MIN(IF('Shooter Information'!H41=1,999.99,(D39*5)+E39-F39+(G39*10)+(H39*30)+(I39*999.99)+(J39*999.99)),999.99) -> 0 | L39: =IF('Shooter Information'!$E$3-('Shooter Information'!$G$3-RANK(K39,K$4:K$78,1))<0,0,'Shooter Information'!$E$3-('Shooter Information'!$G$3-RANK(K39,K$4:K$78,1))) -> 0 | M39: =(IF('Shooter Information'!H41=1,"MDQ",IF(J39=1,"SDQ",IF(I39=1,"DNF",SUM(D39+G39+H39+I39+J39))))) -> 0 | O39: 0
A40: 37 | B40: ='Shooter Information'!B42 -> 0 | C40: ='Shooter Information'!C42 -> 0 | K40: =MIN(IF('Shooter Information'!H42=1,999.99,(D40*5)+E40-F40+(G40*10)+(H40*30)+(I40*999.99)+(J40*999.99)),999.99) -> 0 | L40: =IF('Shooter Information'!$E$3-('Shooter Information'!$G$3-RANK(K40,K$4:K$78,1))<0,0,'Shooter Information'!$E$3-('Shooter Information'!$G$3-RANK(K40,K$4:K$78,1))) -> 0 | M40: =(IF('Shooter Information'!H42=1,"MDQ",IF(J40=1,"SDQ",IF(I40=1,"DNF",SUM(D40+G40+H40+I40+J40))))) -> 0 | O40: 0
A41: 38 | B41: ='Shooter Information'!B43 -> 0 | C41: ='Shooter Information'!C43 -> 0 | K41: =MIN(IF('Shooter Information'!H43=1,999.99,(D41*5)+E41-F41+(G41*10)+(H41*30)+(I41*999.99)+(J41*999.99)),999.99) -> 0 | L41: =IF('Shooter Information'!$E$3-('Shooter Information'!$G$3-RANK(K41,K$4:K$78,1))<0,0,'Shooter Information'!$E$3-('Shooter Information'!$G$3-RANK(K41,K$4:K$78,1))) -> 0 | M41: =(IF('Shooter Information'!H43=1,"MDQ",IF(J41=1,"SDQ",IF(I41=1,"DNF",SUM(D41+G41+H41+I41+J41))))) -> 0 | O41: 0
A42: 39 | B42: ='Shooter Information'!B44 -> 0 | C42: ='Shooter Information'!C44 -> 0 | K42: =MIN(IF('Shooter Information'!H44=1,999.99,(D42*5)+E42-F42+(G42*10)+(H42*30)+(I42*999.99)+(J42*999.99)),999.99) -> 0 | L42: =IF('Shooter Information'!$E$3-('Shooter Information'!$G$3-RANK(K42,K$4:K$78,1))<0,0,'Shooter Information'!$E$3-('Shooter Information'!$G$3-RANK(K42,K$4:K$78,1))) -> 0 | M42: =(IF('Shooter Information'!H44=1,"MDQ",IF(J42=1,"SDQ",IF(I42=1,"DNF",SUM(D42+G42+H42+I42+J42))))) -> 0 | O42: 0
A43: 40 | B43: ='Shooter Information'!B45 -> 0 | C43: ='Shooter Information'!C45 -> 0 | K43: =MIN(IF('Shooter Information'!H45=1,999.99,(D43*5)+E43-F43+(G43*10)+(H43*30)+(I43*999.99)+(J43*999.99)),999.99) -> 0 | L43: =IF('Shooter Information'!$E$3-('Shooter Information'!$G$3-RANK(K43,K$4:K$78,1))<0,0,'Shooter Information'!$E$3-('Shooter Information'!$G$3-RANK(K43,K$4:K$78,1))) -> 0 | M43: =(IF('Shooter Information'!H45=1,"MDQ",IF(J43=1,"SDQ",IF(I43=1,"DNF",SUM(D43+G43+H43+I43+J43))))) -> 0 | O43: 0
A44: 41 | B44: ='Shooter Information'!B46 -> 0 | C44: ='Shooter Information'!C46 -> 0 | K44: =MIN(IF('Shooter Information'!H46=1,999.99,(D44*5)+E44-F44+(G44*10)+(H44*30)+(I44*999.99)+(J44*999.99)),999.99) -> 0 | L44: =IF('Shooter Information'!$E$3-('Shooter Information'!$G$3-RANK(K44,K$4:K$78,1))<0,0,'Shooter Information'!$E$3-('Shooter Information'!$G$3-RANK(K44,K$4:K$78,1))) -> 0 | M44: =(IF('Shooter Information'!H46=1,"MDQ",IF(J44=1,"SDQ",IF(I44=1,"DNF",SUM(D44+G44+H44+I44+J44))))) -> 0 | O44: 0
A45: 42 | B45: ='Shooter Information'!B47 -> 0 | C45: ='Shooter Information'!C47 -> 0 | K45: =MIN(IF('Shooter Information'!H47=1,999.99,(D45*5)+E45-F45+(G45*10)+(H45*30)+(I45*999.99)+(J45*999.99)),999.99) -> 0 | L45: =IF('Shooter Information'!$E$3-('Shooter Information'!$G$3-RANK(K45,K$4:K$78,1))<0,0,'Shooter Information'!$E$3-('Shooter Information'!$G$3-RANK(K45,K$4:K$78,1))) -> 0 | M45: =(IF('Shooter Information'!H47=1,"MDQ",IF(J45=1,"SDQ",IF(I45=1,"DNF",SUM(D45+G45+H45+I45+J45))))) -> 0 | O45: 0
A46: 43 | B46: ='Shooter Information'!B48 -> 0 | C46: ='Shooter Information'!C48 -> 0 | K46: =MIN(IF('Shooter Information'!H48=1,999.99,(D46*5)+E46-F46+(G46*10)+(H46*30)+(I46*999.99)+(J46*999.99)),999.99) -> 0 | L46: =IF('Shooter Information'!$E$3-('Shooter Information'!$G$3-RANK(K46,K$4:K$78,1))<0,0,'Shooter Information'!$E$3-('Shooter Information'!$G$3-RANK(K46,K$4:K$78,1))) -> 0 | M46: =(IF('Shooter Information'!H48=1,"MDQ",IF(J46=1,"SDQ",IF(I46=1,"DNF",SUM(D46+G46+H46+I46+J46))))) -> 0 | O46: 0
A47: 44 | B47: ='Shooter Information'!B49 -> 0 | C47: ='Shooter Information'!C49 -> 0 | K47: =MIN(IF('Shooter Information'!H49=1,999.99,(D47*5)+E47-F47+(G47*10)+(H47*30)+(I47*999.99)+(J47*999.99)),999.99) -> 0 | L47: =IF('Shooter Information'!$E$3-('Shooter Information'!$G$3-RANK(K47,K$4:K$78,1))<0,0,'Shooter Information'!$E$3-('Shooter Information'!$G$3-RANK(K47,K$4:K$78,1))) -> 0 | M47: =(IF('Shooter Information'!H49=1,"MDQ",IF(J47=1,"SDQ",IF(I47=1,"DNF",SUM(D47+G47+H47+I47+J47))))) -> 0 | O47: 0
A48: 45 | B48: ='Shooter Information'!B50 -> 0 | C48: ='Shooter Information'!C50 -> 0 | K48: =MIN(IF('Shooter Information'!H50=1,999.99,(D48*5)+E48-F48+(G48*10)+(H48*30)+(I48*999.99)+(J48*999.99)),999.99) -> 0 | L48: =IF('Shooter Information'!$E$3-('Shooter Information'!$G$3-RANK(K48,K$4:K$78,1))<0,0,'Shooter Information'!$E$3-('Shooter Information'!$G$3-RANK(K48,K$4:K$78,1))) -> 0 | M48: =(IF('Shooter Information'!H50=1,"MDQ",IF(J48=1,"SDQ",IF(I48=1,"DNF",SUM(D48+G48+H48+I48+J48))))) -> 0 | O48: 0
A49: 46 | B49: ='Shooter Information'!B51 -> 0 | C49: ='Shooter Information'!C51 -> 0 | K49: =MIN(IF('Shooter Information'!H51=1,999.99,(D49*5)+E49-F49+(G49*10)+(H49*30)+(I49*999.99)+(J49*999.99)),999.99) -> 0 | L49: =IF('Shooter Information'!$E$3-('Shooter Information'!$G$3-RANK(K49,K$4:K$78,1))<0,0,'Shooter Information'!$E$3-('Shooter Information'!$G$3-RANK(K49,K$4:K$78,1))) -> 0 | M49: =(IF('Shooter Information'!H51=1,"MDQ",IF(J49=1,"SDQ",IF(I49=1,"DNF",SUM(D49+G49+H49+I49+J49))))) -> 0 | O49: 0
A50: 47 | B50: ='Shooter Information'!B52 -> 0 | C50: ='Shooter Information'!C52 -> 0 | K50: =MIN(IF('Shooter Information'!H52=1,999.99,(D50*5)+E50-F50+(G50*10)+(H50*30)+(I50*999.99)+(J50*999.99)),999.99) -> 0 | L50: =IF('Shooter Information'!$E$3-('Shooter Information'!$G$3-RANK(K50,K$4:K$78,1))<0,0,'Shooter Information'!$E$3-('Shooter Information'!$G$3-RANK(K50,K$4:K$78,1))) -> 0 | M50: =(IF('Shooter Information'!H52=1,"MDQ",IF(J50=1,"SDQ",IF(I50=1,"DNF",SUM(D50+G50+H50+I50+J50))))) -> 0 | O50: 0
A51: 48 | B51: ='Shooter Information'!B53 -> 0 | C51: ='Shooter Information'!C53 -> 0 | K51: =MIN(IF('Shooter Information'!H53=1,999.99,(D51*5)+E51-F51+(G51*10)+(H51*30)+(I51*999.99)+(J51*999.99)),999.99) -> 0 | L51: =IF('Shooter Information'!$E$3-('Shooter Information'!$G$3-RANK(K51,K$4:K$78,1))<0,0,'Shooter Information'!$E$3-('Shooter Information'!$G$3-RANK(K51,K$4:K$78,1))) -> 0 | M51: =(IF('Shooter Information'!H53=1,"MDQ",IF(J51=1,"SDQ",IF(I51=1,"DNF",SUM(D51+G51+H51+I51+J51))))) -> 0 | O51: 0
A52: 49 | B52: ='Shooter Information'!B54 -> 0 | C52: ='Shooter Information'!C54 -> 0 | K52: =MIN(IF('Shooter Information'!H54=1,999.99,(D52*5)+E52-F52+(G52*10)+(H52*30)+(I52*999.99)+(J52*999.99)),999.99) -> 0 | L52: =IF('Shooter Information'!$E$3-('Shooter Information'!$G$3-RANK(K52,K$4:K$78,1))<0,0,'Shooter Information'!$E$3-('Shooter Information'!$G$3-RANK(K52,K$4:K$78,1))) -> 0 | M52: =(IF('Shooter Information'!H54=1,"MDQ",IF(J52=1,"SDQ",IF(I52=1,"DNF",SUM(D52+G52+H52+I52+J52))))) -> 0 | O52: 0
A53: 50 | B53: ='Shooter Information'!B55 -> 0 | C53: ='Shooter Information'!C55 -> 0 | K53: =MIN(IF('Shooter Information'!H55=1,999.99,(D53*5)+E53-F53+(G53*10)+(H53*30)+(I53*999.99)+(J53*999.99)),999.99) -> 0 | L53: =IF('Shooter Information'!$E$3-('Shooter Information'!$G$3-RANK(K53,K$4:K$78,1))<0,0,'Shooter Information'!$E$3-('Shooter Information'!$G$3-RANK(K53,K$4:K$78,1))) -> 0 | M53: =(IF('Shooter Information'!H55=1,"MDQ",IF(J53=1,"SDQ",IF(I53=1,"DNF",SUM(D53+G53+H53+I53+J53))))) -> 0 | O53: 0
A54: 51 | B54: ='Shooter Information'!B56 -> 0 | C54: ='Shooter Information'!C56 -> 0 | K54: =MIN(IF('Shooter Information'!H56=1,999.99,(D54*5)+E54-F54+(G54*10)+(H54*30)+(I54*999.99)+(J54*999.99)),999.99) -> 0 | L54: =IF('Shooter Information'!$E$3-('Shooter Information'!$G$3-RANK(K54,K$4:K$78,1))<0,0,'Shooter Information'!$E$3-('Shooter Information'!$G$3-RANK(K54,K$4:K$78,1))) -> 0 | M54: =(IF('Shooter Information'!H56=1,"MDQ",IF(J54=1,"SDQ",IF(I54=1,"DNF",SUM(D54+G54+H54+I54+J54))))) -> 0 | O54: 0
A55: 52 | B55: ='Shooter Information'!B57 -> 0 | C55: ='Shooter Information'!C57 -> 0 | K55: =MIN(IF('Shooter Information'!H57=1,999.99,(D55*5)+E55-F55+(G55*10)+(H55*30)+(I55*999.99)+(J55*999.99)),999.99) -> 0 | L55: =IF('Shooter Information'!$E$3-('Shooter Information'!$G$3-RANK(K55,K$4:K$78,1))<0,0,'Shooter Information'!$E$3-('Shooter Information'!$G$3-RANK(K55,K$4:K$78,1))) -> 0 | M55: =(IF('Shooter Information'!H57=1,"MDQ",IF(J55=1,"SDQ",IF(I55=1,"DNF",SUM(D55+G55+H55+I55+J55))))) -> 0 | O55: 0
A56: 53 | B56: ='Shooter Information'!B58 -> 0 | C56: ='Shooter Information'!C58 -> 0 | K56: =MIN(IF('Shooter Information'!H58=1,999.99,(D56*5)+E56-F56+(G56*10)+(H56*30)+(I56*999.99)+(J56*999.99)),999.99) -> 0 | L56: =IF('Shooter Information'!$E$3-('Shooter Information'!$G$3-RANK(K56,K$4:K$78,1))<0,0,'Shooter Information'!$E$3-('Shooter Information'!$G$3-RANK(K56,K$4:K$78,1))) -> 0 | M56: =(IF('Shooter Information'!H58=1,"MDQ",IF(J56=1,"SDQ",IF(I56=1,"DNF",SUM(D56+G56+H56+I56+J56))))) -> 0 | O56: 0
A57: 54 | B57: ='Shooter Information'!B59 -> 0 | C57: ='Shooter Information'!C59 -> 0 | K57: =MIN(IF('Shooter Information'!H59=1,999.99,(D57*5)+E57-F57+(G57*10)+(H57*30)+(I57*999.99)+(J57*999.99)),999.99) -> 0 | L57: =IF('Shooter Information'!$E$3-('Shooter Information'!$G$3-RANK(K57,K$4:K$78,1))<0,0,'Shooter Information'!$E$3-('Shooter Information'!$G$3-RANK(K57,K$4:K$78,1))) -> 0 | M57: =(IF('Shooter Information'!H59=1,"MDQ",IF(J57=1,"SDQ",IF(I57=1,"DNF",SUM(D57+G57+H57+I57+J57))))) -> 0 | O57: 0
A58: 55 | B58: ='Shooter Information'!B60 -> 0 | C58: ='Shooter Information'!C60 -> 0 | K58: =MIN(IF('Shooter Information'!H60=1,999.99,(D58*5)+E58-F58+(G58*10)+(H58*30)+(I58*999.99)+(J58*999.99)),999.99) -> 0 | L58: =IF('Shooter Information'!$E$3-('Shooter Information'!$G$3-RANK(K58,K$4:K$78,1))<0,0,'Shooter Information'!$E$3-('Shooter Information'!$G$3-RANK(K58,K$4:K$78,1))) -> 0 | M58: =(IF('Shooter Information'!H60=1,"MDQ",IF(J58=1,"SDQ",IF(I58=1,"DNF",SUM(D58+G58+H58+I58+J58))))) -> 0 | O58: 0
A59: 56 | B59: ='Shooter Information'!B61 -> 0 | C59: ='Shooter Information'!C61 -> 0 | K59: =MIN(IF('Shooter Information'!H61=1,999.99,(D59*5)+E59-F59+(G59*10)+(H59*30)+(I59*999.99)+(J59*999.99)),999.99) -> 0 | L59: =IF('Shooter Information'!$E$3-('Shooter Information'!$G$3-RANK(K59,K$4:K$78,1))<0,0,'Shooter Information'!$E$3-('Shooter Information'!$G$3-RANK(K59,K$4:K$78,1))) -> 0 | M59: =(IF('Shooter Information'!H61=1,"MDQ",IF(J59=1,"SDQ",IF(I59=1,"DNF",SUM(D59+G59+H59+I59+J59))))) -> 0 | O59: 0
A60: 57 | B60: ='Shooter Information'!B62 -> 0 | C60: ='Shooter Information'!C62 -> 0 | K60: =MIN(IF('Shooter Information'!H62=1,999.99,(D60*5)+E60-F60+(G60*10)+(H60*30)+(I60*999.99)+(J60*999.99)),999.99) -> 0 | L60: =IF('Shooter Information'!$E$3-('Shooter Information'!$G$3-RANK(K60,K$4:K$78,1))<0,0,'Shooter Information'!$E$3-('Shooter Information'!$G$3-RANK(K60,K$4:K$78,1))) -> 0 | M60: =(IF('Shooter Information'!H62=1,"MDQ",IF(J60=1,"SDQ",IF(I60=1,"DNF",SUM(D60+G60+H60+I60+J60))))) -> 0 | O60: 0
A61: 58 | B61: ='Shooter Information'!B63 -> 0 | C61: ='Shooter Information'!C63 -> 0 | K61: =MIN(IF('Shooter Information'!H63=1,999.99,(D61*5)+E61-F61+(G61*10)+(H61*30)+(I61*999.99)+(J61*999.99)),999.99) -> 0 | L61: =IF('Shooter Information'!$E$3-('Shooter Information'!$G$3-RANK(K61,K$4:K$78,1))<0,0,'Shooter Information'!$E$3-('Shooter Information'!$G$3-RANK(K61,K$4:K$78,1))) -> 0 | M61: =(IF('Shooter Information'!H63=1,"MDQ",IF(J61=1,"SDQ",IF(I61=1,"DNF",SUM(D61+G61+H61+I61+J61))))) -> 0 | O61: 0
A62: 59 | B62: ='Shooter Information'!B64 -> 0 | C62: ='Shooter Information'!C64 -> 0 | K62: =MIN(IF('Shooter Information'!H64=1,999.99,(D62*5)+E62-F62+(G62*10)+(H62*30)+(I62*999.99)+(J62*999.99)),999.99) -> 0 | L62: =IF('Shooter Information'!$E$3-('Shooter Information'!$G$3-RANK(K62,K$4:K$78,1))<0,0,'Shooter Information'!$E$3-('Shooter Information'!$G$3-RANK(K62,K$4:K$78,1))) -> 0 | M62: =(IF('Shooter Information'!H64=1,"MDQ",IF(J62=1,"SDQ",IF(I62=1,"DNF",SUM(D62+G62+H62+I62+J62))))) -> 0 | O62: 0
A63: 60 | B63: ='Shooter Information'!B65 -> 0 | C63: ='Shooter Information'!C65 -> 0 | K63: =MIN(IF('Shooter Information'!H65=1,999.99,(D63*5)+E63-F63+(G63*10)+(H63*30)+(I63*999.99)+(J63*999.99)),999.99) -> 0 | L63: =IF('Shooter Information'!$E$3-('Shooter Information'!$G$3-RANK(K63,K$4:K$78,1))<0,0,'Shooter Information'!$E$3-('Shooter Information'!$G$3-RANK(K63,K$4:K$78,1))) -> 0 | M63: =(IF('Shooter Information'!H65=1,"MDQ",IF(J63=1,"SDQ",IF(I63=1,"DNF",SUM(D63+G63+H63+I63+J63))))) -> 0 | O63: 0
A64: 61 | B64: ='Shooter Information'!B66 -> 0 | C64: ='Shooter Information'!C66 -> 0 | K64: =MIN(IF('Shooter Information'!H66=1,999.99,(D64*5)+E64-F64+(G64*10)+(H64*30)+(I64*999.99)+(J64*999.99)),999.99) -> 0 | L64: =IF('Shooter Information'!$E$3-('Shooter Information'!$G$3-RANK(K64,K$4:K$78,1))<0,0,'Shooter Information'!$E$3-('Shooter Information'!$G$3-RANK(K64,K$4:K$78,1))) -> 0 | M64: =(IF('Shooter Information'!H66=1,"MDQ",IF(J64=1,"SDQ",IF(I64=1,"DNF",SUM(D64+G64+H64+I64+J64))))) -> 0 | O64: 0
A65: 62 | B65: ='Shooter Information'!B67 -> 0 | C65: ='Shooter Information'!C67 -> 0 | K65: =MIN(IF('Shooter Information'!H67=1,999.99,(D65*5)+E65-F65+(G65*10)+(H65*30)+(I65*999.99)+(J65*999.99)),999.99) -> 0 | L65: =IF('Shooter Information'!$E$3-('Shooter Information'!$G$3-RANK(K65,K$4:K$78,1))<0,0,'Shooter Information'!$E$3-('Shooter Information'!$G$3-RANK(K65,K$4:K$78,1))) -> 0 | M65: =(IF('Shooter Information'!H67=1,"MDQ",IF(J65=1,"SDQ",IF(I65=1,"DNF",SUM(D65+G65+H65+I65+J65))))) -> 0 | O65: 0
A66: 63 | B66: ='Shooter Information'!B68 -> 0 | C66: ='Shooter Information'!C68 -> 0 | K66: =MIN(IF('Shooter Information'!H68=1,999.99,(D66*5)+E66-F66+(G66*10)+(H66*30)+(I66*999.99)+(J66*999.99)),999.99) -> 0 | L66: =IF('Shooter Information'!$E$3-('Shooter Information'!$G$3-RANK(K66,K$4:K$78,1))<0,0,'Shooter Information'!$E$3-('Shooter Information'!$G$3-RANK(K66,K$4:K$78,1))) -> 0 | M66: =(IF('Shooter Information'!H68=1,"MDQ",IF(J66=1,"SDQ",IF(I66=1,"DNF",SUM(D66+G66+H66+I66+J66))))) -> 0 | O66: 0
A67: 64 | B67: ='Shooter Information'!B69 -> 0 | C67: ='Shooter Information'!C69 -> 0 | K67: =MIN(IF('Shooter Information'!H69=1,999.99,(D67*5)+E67-F67+(G67*10)+(H67*30)+(I67*999.99)+(J67*999.99)),999.99) -> 0 | L67: =IF('Shooter Information'!$E$3-('Shooter Information'!$G$3-RANK(K67,K$4:K$78,1))<0,0,'Shooter Information'!$E$3-('Shooter Information'!$G$3-RANK(K67,K$4:K$78,1))) -> 0 | M67: =(IF('Shooter Information'!H69=1,"MDQ",IF(J67=1,"SDQ",IF(I67=1,"DNF",SUM(D67+G67+H67+I67+J67))))) -> 0 | O67: 0
A68: 65 | B68: ='Shooter Information'!B70 -> 0 | C68: ='Shooter Information'!C70 -> 0 | K68: =MIN(IF('Shooter Information'!H70=1,999.99,(D68*5)+E68-F68+(G68*10)+(H68*30)+(I68*999.99)+(J68*999.99)),999.99) -> 0 | L68: =IF('Shooter Information'!$E$3-('Shooter Information'!$G$3-RANK(K68,K$4:K$78,1))<0,0,'Shooter Information'!$E$3-('Shooter Information'!$G$3-RANK(K68,K$4:K$78,1))) -> 0 | M68: =(IF('Shooter Information'!H70=1,"MDQ",IF(J68=1,"SDQ",IF(I68=1,"DNF",SUM(D68+G68+H68+I68+J68))))) -> 0 | O68: 0
A69: 66 | B69: ='Shooter Information'!B71 -> 0 | C69: ='Shooter Information'!C71 -> 0 | K69: =MIN(IF('Shooter Information'!H71=1,999.99,(D69*5)+E69-F69+(G69*10)+(H69*30)+(I69*999.99)+(J69*999.99)),999.99) -> 0 | L69: =IF('Shooter Information'!$E$3-('Shooter Information'!$G$3-RANK(K69,K$4:K$78,1))<0,0,'Shooter Information'!$E$3-('Shooter Information'!$G$3-RANK(K69,K$4:K$78,1))) -> 0 | M69: =(IF('Shooter Information'!H71=1,"MDQ",IF(J69=1,"SDQ",IF(I69=1,"DNF",SUM(D69+G69+H69+I69+J69))))) -> 0 | O69: =SUM(D69+G69+H69+I69+J69) -> 0
A70: 67 | B70: ='Shooter Information'!B72 -> 0 | C70: ='Shooter Information'!C72 -> 0 | K70: =MIN(IF('Shooter Information'!H72=1,999.99,(D70*5)+E70-F70+(G70*10)+(H70*30)+(I70*999.99)+(J70*999.99)),999.99) -> 0 | L70: =IF('Shooter Information'!$E$3-('Shooter Information'!$G$3-RANK(K70,K$4:K$78,1))<0,0,'Shooter Information'!$E$3-('Shooter Information'!$G$3-RANK(K70,K$4:K$78,1))) -> 0 | M70: =(IF('Shooter Information'!H72=1,"MDQ",IF(J70=1,"SDQ",IF(I70=1,"DNF",SUM(D70+G70+H70+I70+J70))))) -> 0 | O70: 0
A71: 68 | B71: ='Shooter Information'!B73 -> 0 | C71: ='Shooter Information'!C73 -> 0 | K71: =MIN(IF('Shooter Information'!H73=1,999.99,(D71*5)+E71-F71+(G71*10)+(H71*30)+(I71*999.99)+(J71*999.99)),999.99) -> 0 | L71: =IF('Shooter Information'!$E$3-('Shooter Information'!$G$3-RANK(K71,K$4:K$78,1))<0,0,'Shooter Information'!$E$3-('Shooter Information'!$G$3-RANK(K71,K$4:K$78,1))) -> 0 | M71: =(IF('Shooter Information'!H73=1,"MDQ",IF(J71=1,"SDQ",IF(I71=1,"DNF",SUM(D71+G71+H71+I71+J71))))) -> 0 | O71: 0
A72: 69 | B72: ='Shooter Information'!B74 -> 0 | C72: ='Shooter Information'!C74 -> 0 | K72: =MIN(IF('Shooter Information'!H74=1,999.99,(D72*5)+E72-F72+(G72*10)+(H72*30)+(I72*999.99)+(J72*999.99)),999.99) -> 0 | L72: =IF('Shooter Information'!$E$3-('Shooter Information'!$G$3-RANK(K72,K$4:K$78,1))<0,0,'Shooter Information'!$E$3-('Shooter Information'!$G$3-RANK(K72,K$4:K$78,1))) -> 0 | M72: =(IF('Shooter Information'!H74=1,"MDQ",IF(J72=1,"SDQ",IF(I72=1,"DNF",SUM(D72+G72+H72+I72+J72))))) -> 0 | O72: 0
A73: 70 | B73: ='Shooter Information'!B75 -> 0 | C73: ='Shooter Information'!C75 -> 0 | K73: =MIN(IF('Shooter Information'!H75=1,999.99,(D73*5)+E73-F73+(G73*10)+(H73*30)+(I73*999.99)+(J73*999.99)),999.99) -> 0 | L73: =IF('Shooter Information'!$E$3-('Shooter Information'!$G$3-RANK(K73,K$4:K$78,1))<0,0,'Shooter Information'!$E$3-('Shooter Information'!$G$3-RANK(K73,K$4:K$78,1))) -> 0 | M73: =(IF('Shooter Information'!H75=1,"MDQ",IF(J73=1,"SDQ",IF(I73=1,"DNF",SUM(D73+G73+H73+I73+J73))))) -> 0 | O73: 0
A74: 71 | B74: ='Shooter Information'!B76 -> 0 | C74: ='Shooter Information'!C76 -> 0 | K74: =MIN(IF('Shooter Information'!H76=1,999.99,(D74*5)+E74-F74+(G74*10)+(H74*30)+(I74*999.99)+(J74*999.99)),999.99) -> 0 | L74: =IF('Shooter Information'!$E$3-('Shooter Information'!$G$3-RANK(K74,K$4:K$78,1))<0,0,'Shooter Information'!$E$3-('Shooter Information'!$G$3-RANK(K74,K$4:K$78,1))) -> 0 | M74: =(IF('Shooter Information'!H76=1,"MDQ",IF(J74=1,"SDQ",IF(I74=1,"DNF",SUM(D74+G74+H74+I74+J74))))) -> 0 | O74: 0
A75: 72 | B75: ='Shooter Information'!B77 -> 0 | C75: ='Shooter Information'!C77 -> 0 | K75: =MIN(IF('Shooter Information'!H77=1,999.99,(D75*5)+E75-F75+(G75*10)+(H75*30)+(I75*999.99)+(J75*999.99)),999.99) -> 0 | L75: =IF('Shooter Information'!$E$3-('Shooter Information'!$G$3-RANK(K75,K$4:K$78,1))<0,0,'Shooter Information'!$E$3-('Shooter Information'!$G$3-RANK(K75,K$4:K$78,1))) -> 0 | M75: =(IF('Shooter Information'!H77=1,"MDQ",IF(J75=1,"SDQ",IF(I75=1,"DNF",SUM(D75+G75+H75+I75+J75))))) -> 0 | O75: 0
A76: 73 | B76: ='Shooter Information'!B78 -> 0 | C76: ='Shooter Information'!C78 -> 0 | K76: =MIN(IF('Shooter Information'!H78=1,999.99,(D76*5)+E76-F76+(G76*10)+(H76*30)+(I76*999.99)+(J76*999.99)),999.99) -> 0 | L76: =IF('Shooter Information'!$E$3-('Shooter Information'!$G$3-RANK(K76,K$4:K$78,1))<0,0,'Shooter Information'!$E$3-('Shooter Information'!$G$3-RANK(K76,K$4:K$78,1))) -> 0 | M76: =(IF('Shooter Information'!H78=1,"MDQ",IF(J76=1,"SDQ",IF(I76=1,"DNF",SUM(D76+G76+H76+I76+J76))))) -> 0 | O76: 0
A77: 74 | B77: ='Shooter Information'!B79 -> 0 | C77: ='Shooter Information'!C79 -> 0 | K77: =MIN(IF('Shooter Information'!H79=1,999.99,(D77*5)+E77-F77+(G77*10)+(H77*30)+(I77*999.99)+(J77*999.99)),999.99) -> 0 | L77: =IF('Shooter Information'!$E$3-('Shooter Information'!$G$3-RANK(K77,K$4:K$78,1))<0,0,'Shooter Information'!$E$3-('Shooter Information'!$G$3-RANK(K77,K$4:K$78,1))) -> 0 | M77: =(IF('Shooter Information'!H79=1,"MDQ",IF(J77=1,"SDQ",IF(I77=1,"DNF",SUM(D77+G77+H77+I77+J77))))) -> 0 | O77: 0
A78: 75 | B78: ='Shooter Information'!B80 -> 0 | C78: ='Shooter Information'!C80 -> 0 | K78: =MIN(IF('Shooter Information'!H80=1,999.99,(D78*5)+E78-F78+(G78*10)+(H78*30)+(I78*999.99)+(J78*999.99)),999.99) -> 0 | L78: =IF('Shooter Information'!$E$3-('Shooter Information'!$G$3-RANK(K78,K$4:K$78,1))<0,0,'Shooter Information'!$E$3-('Shooter Information'!$G$3-RANK(K78,K$4:K$78,1))) -> 0 | M78: =(IF('Shooter Information'!H80=1,"MDQ",IF(J78=1,"SDQ",IF(I78=1,"DNF",SUM(D78+G78+H78+I78+J78))))) -> 0 | O78: 0

Sheet Stage 10 (hidden)
B1: Stage Input Sheet - Stage 10
A3: Shooter # | B3: Shooter | C3: Class | D3: Misses | E3: Raw Time | F3: Bonus | G3: 10 Sec | H3: 30 Sec | I3: DNF | J3: SDQ | K3: Total | L3: Rank | M3: Penalties | O3: # Penalties
A4: =ROW()-3 -> 1 | B4: ='Shooter Information'!B6 -> Striker | C4: ='Shooter Information'!C6 -> WW | K4: =MIN(IF('Shooter Information'!H6=1,999.99,(D4*5)+E4-F4+(G4*10)+(H4*30)+(I4*999.99)+(J4*999.99)),999.99) -> 0 | L4: =IF('Shooter Information'!$E$3-('Shooter Information'!$G$3-RANK(K4,K$4:K$78,1))<0,0,'Shooter Information'!$E$3-('Shooter Information'!$G$3-RANK(K4,K$4:K$78,1))) -> 0 | M4: =(IF('Shooter Information'!H6=1,"MDQ",IF(J4=1,"SDQ",IF(I4=1,"DNF",SUM(D4+G4+H4+I4+J4))))) -> 0 | O4: =SUM(D4+G4+H4+I4+J4) -> 0
A5: =ROW()-3 -> 2 | B5: ='Shooter Information'!B7 -> Cody Maverick | C5: ='Shooter Information'!C7 -> GF | K5: =MIN(IF('Shooter Information'!H7=1,999.99,(D5*5)+E5-F5+(G5*10)+(H5*30)+(I5*999.99)+(J5*999.99)),999.99) -> 0 | L5: =IF('Shooter Information'!$E$3-('Shooter Information'!$G$3-RANK(K5,K$4:K$78,1))<0,0,'Shooter Information'!$E$3-('Shooter Information'!$G$3-RANK(K5,K$4:K$78,1))) -> 0 | M5: =(IF('Shooter Information'!H7=1,"MDQ",IF(J5=1,"SDQ",IF(I5=1,"DNF",SUM(D5+G5+H5+I5+J5))))) -> 0 | O5: =SUM(D5+G5+H5+I5+J5) -> 0
A6: 3 | B6: ='Shooter Information'!B8 -> Potter County Kid | C6: ='Shooter Information'!C8 -> WW | K6: =MIN(IF('Shooter Information'!H8=1,999.99,(D6*5)+E6-F6+(G6*10)+(H6*30)+(I6*999.99)+(J6*999.99)),999.99) -> 0 | L6: =IF('Shooter Information'!$E$3-('Shooter Information'!$G$3-RANK(K6,K$4:K$78,1))<0,0,'Shooter Information'!$E$3-('Shooter Information'!$G$3-RANK(K6,K$4:K$78,1))) -> 0 | M6: =(IF('Shooter Information'!H8=1,"MDQ",IF(J6=1,"SDQ",IF(I6=1,"DNF",SUM(D6+G6+H6+I6+J6))))) -> 0 | O6: 0
A7: 4 | B7: ='Shooter Information'!B9 -> Ricochet Kid | C7: ='Shooter Information'!C9 -> W | K7: =MIN(IF('Shooter Information'!H9=1,999.99,(D7*5)+E7-F7+(G7*10)+(H7*30)+(I7*999.99)+(J7*999.99)),999.99) -> 0 | L7: =IF('Shooter Information'!$E$3-('Shooter Information'!$G$3-RANK(K7,K$4:K$78,1))<0,0,'Shooter Information'!$E$3-('Shooter Information'!$G$3-RANK(K7,K$4:K$78,1))) -> 0 | M7: =(IF('Shooter Information'!H9=1,"MDQ",IF(J7=1,"SDQ",IF(I7=1,"DNF",SUM(D7+G7+H7+I7+J7))))) -> 0 | O7: 0
A8: 5 | B8: ='Shooter Information'!B10 -> Flatboat Bob | C8: ='Shooter Information'!C10 -> CBAR | K8: =MIN(IF('Shooter Information'!H10=1,999.99,(D8*5)+E8-F8+(G8*10)+(H8*30)+(I8*999.99)+(J8*999.99)),999.99) -> 0 | L8: =IF('Shooter Information'!$E$3-('Shooter Information'!$G$3-RANK(K8,K$4:K$78,1))<0,0,'Shooter Information'!$E$3-('Shooter Information'!$G$3-RANK(K8,K$4:K$78,1))) -> 0 | M8: =(IF('Shooter Information'!H10=1,"MDQ",IF(J8=1,"SDQ",IF(I8=1,"DNF",SUM(D8+G8+H8+I8+J8))))) -> 0 | O8: 0
A9: 6 | B9: ='Shooter Information'!B11 -> Hotshod | C9: ='Shooter Information'!C11 -> W | K9: =MIN(IF('Shooter Information'!H11=1,999.99,(D9*5)+E9-F9+(G9*10)+(H9*30)+(I9*999.99)+(J9*999.99)),999.99) -> 0 | L9: =IF('Shooter Information'!$E$3-('Shooter Information'!$G$3-RANK(K9,K$4:K$78,1))<0,0,'Shooter Information'!$E$3-('Shooter Information'!$G$3-RANK(K9,K$4:K$78,1))) -> 0 | M9: =(IF('Shooter Information'!H11=1,"MDQ",IF(J9=1,"SDQ",IF(I9=1,"DNF",SUM(D9+G9+H9+I9+J9))))) -> 0 | O9: 0
A10: 7 | B10: ='Shooter Information'!B12 -> Prairie City Slim | C10: ='Shooter Information'!C12 -> ES | K10: =MIN(IF('Shooter Information'!H12=1,999.99,(D10*5)+E10-F10+(G10*10)+(H10*30)+(I10*999.99)+(J10*999.99)),999.99) -> 0 | L10: =IF('Shooter Information'!$E$3-('Shooter Information'!$G$3-RANK(K10,K$4:K$78,1))<0,0,'Shooter Information'!$E$3-('Shooter Information'!$G$3-RANK(K10,K$4:K$78,1))) -> 0 | M10: =(IF('Shooter Information'!H12=1,"MDQ",IF(J10=1,"SDQ",IF(I10=1,"DNF",SUM(D10+G10+H10+I10+J10))))) -> 0 | O10: 0
A11: 8 | B11: ='Shooter Information'!B13 -> Regret Schofield | C11: ='Shooter Information'!C13 -> 49er | K11: =MIN(IF('Shooter Information'!H13=1,999.99,(D11*5)+E11-F11+(G11*10)+(H11*30)+(I11*999.99)+(J11*999.99)),999.99) -> 0 | L11: =IF('Shooter Information'!$E$3-('Shooter Information'!$G$3-RANK(K11,K$4:K$78,1))<0,0,'Shooter Information'!$E$3-('Shooter Information'!$G$3-RANK(K11,K$4:K$78,1))) -> 0 | M11: =(IF('Shooter Information'!H13=1,"MDQ",IF(J11=1,"SDQ",IF(I11=1,"DNF",SUM(D11+G11+H11+I11+J11))))) -> 0 | O11: 0
A12: 9 | B12: ='Shooter Information'!B14 -> Tumble Weed Tink | C12: ='Shooter Information'!C14 -> L49 | K12: =MIN(IF('Shooter Information'!H14=1,999.99,(D12*5)+E12-F12+(G12*10)+(H12*30)+(I12*999.99)+(J12*999.99)),999.99) -> 0 | L12: =IF('Shooter Information'!$E$3-('Shooter Information'!$G$3-RANK(K12,K$4:K$78,1))<0,0,'Shooter Information'!$E$3-('Shooter Information'!$G$3-RANK(K12,K$4:K$78,1))) -> 0 | M12: =(IF('Shooter Information'!H14=1,"MDQ",IF(J12=1,"SDQ",IF(I12=1,"DNF",SUM(D12+G12+H12+I12+J12))))) -> 0 | O12: 0
A13: 10 | B13: ='Shooter Information'!B15 -> One Eyed Jane | C13: ='Shooter Information'!C15 -> LSS | K13: =MIN(IF('Shooter Information'!H15=1,999.99,(D13*5)+E13-F13+(G13*10)+(H13*30)+(I13*999.99)+(J13*999.99)),999.99) -> 0 | L13: =IF('Shooter Information'!$E$3-('Shooter Information'!$G$3-RANK(K13,K$4:K$78,1))<0,0,'Shooter Information'!$E$3-('Shooter Information'!$G$3-RANK(K13,K$4:K$78,1))) -> 0 | M13: =(IF('Shooter Information'!H15=1,"MDQ",IF(J13=1,"SDQ",IF(I13=1,"DNF",SUM(D13+G13+H13+I13+J13))))) -> 0 | O13: 0
A14: 11 | B14: ='Shooter Information'!B16 -> Stogie | C14: ='Shooter Information'!C16 -> 49er | K14: =MIN(IF('Shooter Information'!H16=1,999.99,(D14*5)+E14-F14+(G14*10)+(H14*30)+(I14*999.99)+(J14*999.99)),999.99) -> 0 | L14: =IF('Shooter Information'!$E$3-('Shooter Information'!$G$3-RANK(K14,K$4:K$78,1))<0,0,'Shooter Information'!$E$3-('Shooter Information'!$G$3-RANK(K14,K$4:K$78,1))) -> 0 | M14: =(IF('Shooter Information'!H16=1,"MDQ",IF(J14=1,"SDQ",IF(I14=1,"DNF",SUM(D14+G14+H14+I14+J14))))) -> 0 | O14: 0
A15: 12 | B15: ='Shooter Information'!B17 -> Major BS Walker | C15: ='Shooter Information'!C17 -> WW | K15: =MIN(IF('Shooter Information'!H17=1,999.99,(D15*5)+E15-F15+(G15*10)+(H15*30)+(I15*999.99)+(J15*999.99)),999.99) -> 0 | L15: =IF('Shooter Information'!$E$3-('Shooter Information'!$G$3-RANK(K15,K$4:K$78,1))<0,0,'Shooter Information'!$E$3-('Shooter Information'!$G$3-RANK(K15,K$4:K$78,1))) -> 0 | M15: =(IF('Shooter Information'!H17=1,"MDQ",IF(J15=1,"SDQ",IF(I15=1,"DNF",SUM(D15+G15+H15+I15+J15))))) -> 0 | O15: 0
A16: 13 | B16: ='Shooter Information'!B18 -> Sassy Shooting Sours | C16: ='Shooter Information'!C18 -> S | K16: =MIN(IF('Shooter Information'!H18=1,999.99,(D16*5)+E16-F16+(G16*10)+(H16*30)+(I16*999.99)+(J16*999.99)),999.99) -> 0 | L16: =IF('Shooter Information'!$E$3-('Shooter Information'!$G$3-RANK(K16,K$4:K$78,1))<0,0,'Shooter Information'!$E$3-('Shooter Information'!$G$3-RANK(K16,K$4:K$78,1))) -> 0 | M16: =(IF('Shooter Information'!H18=1,"MDQ",IF(J16=1,"SDQ",IF(I16=1,"DNF",SUM(D16+G16+H16+I16+J16))))) -> 0 | O16: 0
A17: 14 | B17: ='Shooter Information'!B19 -> Lefty Spurmaker | C17: ='Shooter Information'!C19 -> S | K17: =MIN(IF('Shooter Information'!H19=1,999.99,(D17*5)+E17-F17+(G17*10)+(H17*30)+(I17*999.99)+(J17*999.99)),999.99) -> 0 | L17: =IF('Shooter Information'!$E$3-('Shooter Information'!$G$3-RANK(K17,K$4:K$78,1))<0,0,'Shooter Information'!$E$3-('Shooter Information'!$G$3-RANK(K17,K$4:K$78,1))) -> 0 | M17: =(IF('Shooter Information'!H19=1,"MDQ",IF(J17=1,"SDQ",IF(I17=1,"DNF",SUM(D17+G17+H17+I17+J17))))) -> 0 | O17: 0
A18: 15 | B18: ='Shooter Information'!B20 -> Windhorse Rider | C18: ='Shooter Information'!C20 -> GF | K18: =MIN(IF('Shooter Information'!H20=1,999.99,(D18*5)+E18-F18+(G18*10)+(H18*30)+(I18*999.99)+(J18*999.99)),999.99) -> 0 | L18: =IF('Shooter Information'!$E$3-('Shooter Information'!$G$3-RANK(K18,K$4:K$78,1))<0,0,'Shooter Information'!$E$3-('Shooter Information'!$G$3-RANK(K18,K$4:K$78,1))) -> 0 | M18: =(IF('Shooter Information'!H20=1,"MDQ",IF(J18=1,"SDQ",IF(I18=1,"DNF",SUM(D18+G18+H18+I18+J18))))) -> 0 | O18: 0
A19: 16 | B19: ='Shooter Information'!B21 -> Red Cavanaugh | C19: ='Shooter Information'!C21 -> 49er | K19: =MIN(IF('Shooter Information'!H21=1,999.99,(D19*5)+E19-F19+(G19*10)+(H19*30)+(I19*999.99)+(J19*999.99)),999.99) -> 0 | L19: =IF('Shooter Information'!$E$3-('Shooter Information'!$G$3-RANK(K19,K$4:K$78,1))<0,0,'Shooter Information'!$E$3-('Shooter Information'!$G$3-RANK(K19,K$4:K$78,1))) -> 0 | M19: =(IF('Shooter Information'!H21=1,"MDQ",IF(J19=1,"SDQ",IF(I19=1,"DNF",SUM(D19+G19+H19+I19+J19))))) -> 0 | O19: 0
A20: 17 | B20: ='Shooter Information'!B22 -> 0 | C20: ='Shooter Information'!C22 -> 0 | K20: =MIN(IF('Shooter Information'!H22=1,999.99,(D20*5)+E20-F20+(G20*10)+(H20*30)+(I20*999.99)+(J20*999.99)),999.99) -> 0 | L20: =IF('Shooter Information'!$E$3-('Shooter Information'!$G$3-RANK(K20,K$4:K$78,1))<0,0,'Shooter Information'!$E$3-('Shooter Information'!$G$3-RANK(K20,K$4:K$78,1))) -> 0 | M20: =(IF('Shooter Information'!H22=1,"MDQ",IF(J20=1,"SDQ",IF(I20=1,"DNF",SUM(D20+G20+H20+I20+J20))))) -> 0 | O20: 0
A21: 18 | B21: ='Shooter Information'!B23 -> 0 | C21: ='Shooter Information'!C23 -> 0 | K21: =MIN(IF('Shooter Information'!H23=1,999.99,(D21*5)+E21-F21+(G21*10)+(H21*30)+(I21*999.99)+(J21*999.99)),999.99) -> 0 | L21: =IF('Shooter Information'!$E$3-('Shooter Information'!$G$3-RANK(K21,K$4:K$78,1))<0,0,'Shooter Information'!$E$3-('Shooter Information'!$G$3-RANK(K21,K$4:K$78,1))) -> 0 | M21: =(IF('Shooter Information'!H23=1,"MDQ",IF(J21=1,"SDQ",IF(I21=1,"DNF",SUM(D21+G21+H21+I21+J21))))) -> 0 | O21: 0
A22: 19 | B22: ='Shooter Information'!B24 -> 0 | C22: ='Shooter Information'!C24 -> 0 | K22: =MIN(IF('Shooter Information'!H24=1,999.99,(D22*5)+E22-F22+(G22*10)+(H22*30)+(I22*999.99)+(J22*999.99)),999.99) -> 0 | L22: =IF('Shooter Information'!$E$3-('Shooter Information'!$G$3-RANK(K22,K$4:K$78,1))<0,0,'Shooter Information'!$E$3-('Shooter Information'!$G$3-RANK(K22,K$4:K$78,1))) -> 0 | M22: =(IF('Shooter Information'!H24=1,"MDQ",IF(J22=1,"SDQ",IF(I22=1,"DNF",SUM(D22+G22+H22+I22+J22))))) -> 0 | O22: 0
A23: 20 | B23: ='Shooter Information'!B25 -> 0 | C23: ='Shooter Information'!C25 -> 0 | K23: =MIN(IF('Shooter Information'!H25=1,999.99,(D23*5)+E23-F23+(G23*10)+(H23*30)+(I23*999.99)+(J23*999.99)),999.99) -> 0 | L23: =IF('Shooter Information'!$E$3-('Shooter Information'!$G$3-RANK(K23,K$4:K$78,1))<0,0,'Shooter Information'!$E$3-('Shooter Information'!$G$3-RANK(K23,K$4:K$78,1))) -> 0 | M23: =(IF('Shooter Information'!H25=1,"MDQ",IF(J23=1,"SDQ",IF(I23=1,"DNF",SUM(D23+G23+H23+I23+J23))))) -> 0 | O23: 0
A24: 21 | B24: ='Shooter Information'!B26 -> 0 | C24: ='Shooter Information'!C26 -> 0 | K24: =MIN(IF('Shooter Information'!H26=1,999.99,(D24*5)+E24-F24+(G24*10)+(H24*30)+(I24*999.99)+(J24*999.99)),999.99) -> 0 | L24: =IF('Shooter Information'!$E$3-('Shooter Information'!$G$3-RANK(K24,K$4:K$78,1))<0,0,'Shooter Information'!$E$3-('Shooter Information'!$G$3-RANK(K24,K$4:K$78,1))) -> 0 | M24: =(IF('Shooter Information'!H26=1,"MDQ",IF(J24=1,"SDQ",IF(I24=1,"DNF",SUM(D24+G24+H24+I24+J24))))) -> 0 | O24: 0
A25: 22 | B25: ='Shooter Information'!B27 -> 0 | C25: ='Shooter Information'!C27 -> 0 | K25: =MIN(IF('Shooter Information'!H27=1,999.99,(D25*5)+E25-F25+(G25*10)+(H25*30)+(I25*999.99)+(J25*999.99)),999.99) -> 0 | L25: =IF('Shooter Information'!$E$3-('Shooter Information'!$G$3-RANK(K25,K$4:K$78,1))<0,0,'Shooter Information'!$E$3-('Shooter Information'!$G$3-RANK(K25,K$4:K$78,1))) -> 0 | M25: =(IF('Shooter Information'!H27=1,"MDQ",IF(J25=1,"SDQ",IF(I25=1,"DNF",SUM(D25+G25+H25+I25+J25))))) -> 0 | O25: 0
A26: 23 | B26: ='Shooter Information'!B28 -> 0 | C26: ='Shooter Information'!C28 -> 0 | K26: =MIN(IF('Shooter Information'!H28=1,999.99,(D26*5)+E26-F26+(G26*10)+(H26*30)+(I26*999.99)+(J26*999.99)),999.99) -> 0 | L26: =IF('Shooter Information'!$E$3-('Shooter Information'!$G$3-RANK(K26,K$4:K$78,1))<0,0,'Shooter Information'!$E$3-('Shooter Information'!$G$3-RANK(K26,K$4:K$78,1))) -> 0 | M26: =(IF('Shooter Information'!H28=1,"MDQ",IF(J26=1,"SDQ",IF(I26=1,"DNF",SUM(D26+G26+H26+I26+J26))))) -> 0 | O26: 0
A27: 24 | B27: ='Shooter Information'!B29 -> 0 | C27: ='Shooter Information'!C29 -> 0 | K27: =MIN(IF('Shooter Information'!H29=1,999.99,(D27*5)+E27-F27+(G27*10)+(H27*30)+(I27*999.99)+(J27*999.99)),999.99) -> 0 | L27: =IF('Shooter Information'!$E$3-('Shooter Information'!$G$3-RANK(K27,K$4:K$78,1))<0,0,'Shooter Information'!$E$3-('Shooter Information'!$G$3-RANK(K27,K$4:K$78,1))) -> 0 | M27: =(IF('Shooter Information'!H29=1,"MDQ",IF(J27=1,"SDQ",IF(I27=1,"DNF",SUM(D27+G27+H27+I27+J27))))) -> 0 | O27: 0
A28: 25 | B28: ='Shooter Information'!B30 -> 0 | C28: ='Shooter Information'!C30 -> 0 | K28: =MIN(IF('Shooter Information'!H30=1,999.99,(D28*5)+E28-F28+(G28*10)+(H28*30)+(I28*999.99)+(J28*999.99)),999.99) -> 0 | L28: =IF('Shooter Information'!$E$3-('Shooter Information'!$G$3-RANK(K28,K$4:K$78,1))<0,0,'Shooter Information'!$E$3-('Shooter Information'!$G$3-RANK(K28,K$4:K$78,1))) -> 0 | M28: =(IF('Shooter Information'!H30=1,"MDQ",IF(J28=1,"SDQ",IF(I28=1,"DNF",SUM(D28+G28+H28+I28+J28))))) -> 0 | O28: 0
A29: 26 | B29: ='Shooter Information'!B31 -> 0 | C29: ='Shooter Information'!C31 -> 0 | K29: =MIN(IF('Shooter Information'!H31=1,999.99,(D29*5)+E29-F29+(G29*10)+(H29*30)+(I29*999.99)+(J29*999.99)),999.99) -> 0 | L29: =IF('Shooter Information'!$E$3-('Shooter Information'!$G$3-RANK(K29,K$4:K$78,1))<0,0,'Shooter Information'!$E$3-('Shooter Information'!$G$3-RANK(K29,K$4:K$78,1))) -> 0 | M29: =(IF('Shooter Information'!H31=1,"MDQ",IF(J29=1,"SDQ",IF(I29=1,"DNF",SUM(D29+G29+H29+I29+J29))))) -> 0 | O29: 0
A30: 27 | B30: ='Shooter Information'!B32 -> 0 | C30: ='Shooter Information'!C32 -> 0 | K30: =MIN(IF('Shooter Information'!H32=1,999.99,(D30*5)+E30-F30+(G30*10)+(H30*30)+(I30*999.99)+(J30*999.99)),999.99) -> 0 | L30: =IF('Shooter Information'!$E$3-('Shooter Information'!$G$3-RANK(K30,K$4:K$78,1))<0,0,'Shooter Information'!$E$3-('Shooter Information'!$G$3-RANK(K30,K$4:K$78,1))) -> 0 | M30: =(IF('Shooter Information'!H32=1,"MDQ",IF(J30=1,"SDQ",IF(I30=1,"DNF",SUM(D30+G30+H30+I30+J30))))) -> 0 | O30: 0
A31: 28 | B31: ='Shooter Information'!B33 -> 0 | C31: ='Shooter Information'!C33 -> 0 | K31: =MIN(IF('Shooter Information'!H33=1,999.99,(D31*5)+E31-F31+(G31*10)+(H31*30)+(I31*999.99)+(J31*999.99)),999.99) -> 0 | L31: =IF('Shooter Information'!$E$3-('Shooter Information'!$G$3-RANK(K31,K$4:K$78,1))<0,0,'Shooter Information'!$E$3-('Shooter Information'!$G$3-RANK(K31,K$4:K$78,1))) -> 0 | M31: =(IF('Shooter Information'!H33=1,"MDQ",IF(J31=1,"SDQ",IF(I31=1,"DNF",SUM(D31+G31+H31+I31+J31))))) -> 0 | O31: 0
A32: 29 | B32: ='Shooter Information'!B34 -> 0 | C32: ='Shooter Information'!C34 -> 0 | K32: =MIN(IF('Shooter Information'!H34=1,999.99,(D32*5)+E32-F32+(G32*10)+(H32*30)+(I32*999.99)+(J32*999.99)),999.99) -> 0 | L32: =IF('Shooter Information'!$E$3-('Shooter Information'!$G$3-RANK(K32,K$4:K$78,1))<0,0,'Shooter Information'!$E$3-('Shooter Information'!$G$3-RANK(K32,K$4:K$78,1))) -> 0 | M32: =(IF('Shooter Information'!H34=1,"MDQ",IF(J32=1,"SDQ",IF(I32=1,"DNF",SUM(D32+G32+H32+I32+J32))))) -> 0 | O32: 0
A33: 30 | B33: ='Shooter Information'!B35 -> 0 | C33: ='Shooter Information'!C35 -> 0 | K33: =MIN(IF('Shooter Information'!H35=1,999.99,(D33*5)+E33-F33+(G33*10)+(H33*30)+(I33*999.99)+(J33*999.99)),999.99) -> 0 | L33: =IF('Shooter Information'!$E$3-('Shooter Information'!$G$3-RANK(K33,K$4:K$78,1))<0,0,'Shooter Information'!$E$3-('Shooter Information'!$G$3-RANK(K33,K$4:K$78,1))) -> 0 | M33: =(IF('Shooter Information'!H35=1,"MDQ",IF(J33=1,"SDQ",IF(I33=1,"DNF",SUM(D33+G33+H33+I33+J33))))) -> 0 | O33: 0
A34: 31 | B34: ='Shooter Information'!B36 -> 0 | C34: ='Shooter Information'!C36 -> 0 | K34: =MIN(IF('Shooter Information'!H36=1,999.99,(D34*5)+E34-F34+(G34*10)+(H34*30)+(I34*999.99)+(J34*999.99)),999.99) -> 0 | L34: =IF('Shooter Information'!$E$3-('Shooter Information'!$G$3-RANK(K34,K$4:K$78,1))<0,0,'Shooter Information'!$E$3-('Shooter Information'!$G$3-RANK(K34,K$4:K$78,1))) -> 0 | M34: =(IF('Shooter Information'!H36=1,"MDQ",IF(J34=1,"SDQ",IF(I34=1,"DNF",SUM(D34+G34+H34+I34+J34))))) -> 0 | O34: 0
A35: 32 | B35: ='Shooter Information'!B37 -> 0 | C35: ='Shooter Information'!C37 -> 0 | K35: =MIN(IF('Shooter Information'!H37=1,999.99,(D35*5)+E35-F35+(G35*10)+(H35*30)+(I35*999.99)+(J35*999.99)),999.99) -> 0 | L35: =IF('Shooter Information'!$E$3-('Shooter Information'!$G$3-RANK(K35,K$4:K$78,1))<0,0,'Shooter Information'!$E$3-('Shooter Information'!$G$3-RANK(K35,K$4:K$78,1))) -> 0 | M35: =(IF('Shooter Information'!H37=1,"MDQ",IF(J35=1,"SDQ",IF(I35=1,"DNF",SUM(D35+G35+H35+I35+J35))))) -> 0 | O35: 0
A36: 33 | B36: ='Shooter Information'!B38 -> 0 | C36: ='Shooter Information'!C38 -> 0 | K36: =MIN(IF('Shooter Information'!H38=1,999.99,(D36*5)+E36-F36+(G36*10)+(H36*30)+(I36*999.99)+(J36*999.99)),999.99) -> 0 | L36: =IF('Shooter Information'!$E$3-('Shooter Information'!$G$3-RANK(K36,K$4:K$78,1))<0,0,'Shooter Information'!$E$3-('Shooter Information'!$G$3-RANK(K36,K$4:K$78,1))) -> 0 | M36: =(IF('Shooter Information'!H38=1,"MDQ",IF(J36=1,"SDQ",IF(I36=1,"DNF",SUM(D36+G36+H36+I36+J36))))) -> 0 | O36: 0
A37: 34 | B37: ='Shooter Information'!B39 -> 0 | C37: ='Shooter Information'!C39 -> 0 | K37: =MIN(IF('Shooter Information'!H39=1,999.99,(D37*5)+E37-F37+(G37*10)+(H37*30)+(I37*999.99)+(J37*999.99)),999.99) -> 0 | L37: =IF('Shooter Information'!$E$3-('Shooter Information'!$G$3-RANK(K37,K$4:K$78,1))<0,0,'Shooter Information'!$E$3-('Shooter Information'!$G$3-RANK(K37,K$4:K$78,1))) -> 0 | M37: =(IF('Shooter Information'!H39=1,"MDQ",IF(J37=1,"SDQ",IF(I37=1,"DNF",SUM(D37+G37+H37+I37+J37))))) -> 0 | O37: 0
A38: 35 | B38: ='Shooter Information'!B40 -> 0 | C38: ='Shooter Information'!C40 -> 0 | K38: =MIN(IF('Shooter Information'!H40=1,999.99,(D38*5)+E38-F38+(G38*10)+(H38*30)+(I38*999.99)+(J38*999.99)),999.99) -> 0 | L38: =IF('Shooter Information'!$E$3-('Shooter Information'!$G$3-RANK(K38,K$4:K$78,1))<0,0,'Shooter Information'!$E$3-('Shooter Information'!$G$3-RANK(K38,K$4:K$78,1))) -> 0 | M38: =(IF('Shooter Information'!H40=1,"MDQ",IF(J38=1,"SDQ",IF(I38=1,"DNF",SUM(D38+G38+H38+I38+J38))))) -> 0 | O38: 0
A39: 36 | B39: ='Shooter Information'!B41 -> 0 | C39: ='Shooter Information'!C41 -> 0 | K39: =MIN(IF('Shooter Information'!H41=1,999.99,(D39*5)+E39-F39+(G39*10)+(H39*30)+(I39*999.99)+(J39*999.99)),999.99) -> 0 | L39: =IF('Shooter Information'!$E$3-('Shooter Information'!$G$3-RANK(K39,K$4:K$78,1))<0,0,'Shooter Information'!$E$3-('Shooter Information'!$G$3-RANK(K39,K$4:K$78,1))) -> 0 | M39: =(IF('Shooter Information'!H41=1,"MDQ",IF(J39=1,"SDQ",IF(I39=1,"DNF",SUM(D39+G39+H39+I39+J39))))) -> 0 | O39: 0
A40: 37 | B40: ='Shooter Information'!B42 -> 0 | C40: ='Shooter Information'!C42 -> 0 | K40: =MIN(IF('Shooter Information'!H42=1,999.99,(D40*5)+E40-F40+(G40*10)+(H40*30)+(I40*999.99)+(J40*999.99)),999.99) -> 0 | L40: =IF('Shooter Information'!$E$3-('Shooter Information'!$G$3-RANK(K40,K$4:K$78,1))<0,0,'Shooter Information'!$E$3-('Shooter Information'!$G$3-RANK(K40,K$4:K$78,1))) -> 0 | M40: =(IF('Shooter Information'!H42=1,"MDQ",IF(J40=1,"SDQ",IF(I40=1,"DNF",SUM(D40+G40+H40+I40+J40))))) -> 0 | O40: 0
A41: 38 | B41: ='Shooter Information'!B43 -> 0 | C41: ='Shooter Information'!C43 -> 0 | K41: =MIN(IF('Shooter Information'!H43=1,999.99,(D41*5)+E41-F41+(G41*10)+(H41*30)+(I41*999.99)+(J41*999.99)),999.99) -> 0 | L41: =IF('Shooter Information'!$E$3-('Shooter Information'!$G$3-RANK(K41,K$4:K$78,1))<0,0,'Shooter Information'!$E$3-('Shooter Information'!$G$3-RANK(K41,K$4:K$78,1))) -> 0 | M41: =(IF('Shooter Information'!H43=1,"MDQ",IF(J41=1,"SDQ",IF(I41=1,"DNF",SUM(D41+G41+H41+I41+J41))))) -> 0 | O41: 0
A42: 39 | B42: ='Shooter Information'!B44 -> 0 | C42: ='Shooter Information'!C44 -> 0 | K42: =MIN(IF('Shooter Information'!H44=1,999.99,(D42*5)+E42-F42+(G42*10)+(H42*30)+(I42*999.99)+(J42*999.99)),999.99) -> 0 | L42: =IF('Shooter Information'!$E$3-('Shooter Information'!$G$3-RANK(K42,K$4:K$78,1))<0,0,'Shooter Information'!$E$3-('Shooter Information'!$G$3-RANK(K42,K$4:K$78,1))) -> 0 | M42: =(IF('Shooter Information'!H44=1,"MDQ",IF(J42=1,"SDQ",IF(I42=1,"DNF",SUM(D42+G42+H42+I42+J42))))) -> 0 | O42: 0
A43: 40 | B43: ='Shooter Information'!B45 -> 0 | C43: ='Shooter Information'!C45 -> 0 | K43: =MIN(IF('Shooter Information'!H45=1,999.99,(D43*5)+E43-F43+(G43*10)+(H43*30)+(I43*999.99)+(J43*999.99)),999.99) -> 0 | L43: =IF('Shooter Information'!$E$3-('Shooter Information'!$G$3-RANK(K43,K$4:K$78,1))<0,0,'Shooter Information'!$E$3-('Shooter Information'!$G$3-RANK(K43,K$4:K$78,1))) -> 0 | M43: =(IF('Shooter Information'!H45=1,"MDQ",IF(J43=1,"SDQ",IF(I43=1,"DNF",SUM(D43+G43+H43+I43+J43))))) -> 0 | O43: 0
A44: 41 | B44: ='Shooter Information'!B46 -> 0 | C44: ='Shooter Information'!C46 -> 0 | K44: =MIN(IF('Shooter Information'!H46=1,999.99,(D44*5)+E44-F44+(G44*10)+(H44*30)+(I44*999.99)+(J44*999.99)),999.99) -> 0 | L44: =IF('Shooter Information'!$E$3-('Shooter Information'!$G$3-RANK(K44,K$4:K$78,1))<0,0,'Shooter Information'!$E$3-('Shooter Information'!$G$3-RANK(K44,K$4:K$78,1))) -> 0 | M44: =(IF('Shooter Information'!H46=1,"MDQ",IF(J44=1,"SDQ",IF(I44=1,"DNF",SUM(D44+G44+H44+I44+J44))))) -> 0 | O44: 0
A45: 42 | B45: ='Shooter Information'!B47 -> 0 | C45: ='Shooter Information'!C47 -> 0 | K45: =MIN(IF('Shooter Information'!H47=1,999.99,(D45*5)+E45-F45+(G45*10)+(H45*30)+(I45*999.99)+(J45*999.99)),999.99) -> 0 | L45: =IF('Shooter Information'!$E$3-('Shooter Information'!$G$3-RANK(K45,K$4:K$78,1))<0,0,'Shooter Information'!$E$3-('Shooter Information'!$G$3-RANK(K45,K$4:K$78,1))) -> 0 | M45: =(IF('Shooter Information'!H47=1,"MDQ",IF(J45=1,"SDQ",IF(I45=1,"DNF",SUM(D45+G45+H45+I45+J45))))) -> 0 | O45: 0
A46: 43 | B46: ='Shooter Information'!B48 -> 0 | C46: ='Shooter Information'!C48 -> 0 | K46: =MIN(IF('Shooter Information'!H48=1,999.99,(D46*5)+E46-F46+(G46*10)+(H46*30)+(I46*999.99)+(J46*999.99)),999.99) -> 0 | L46: =IF('Shooter Information'!$E$3-('Shooter Information'!$G$3-RANK(K46,K$4:K$78,1))<0,0,'Shooter Information'!$E$3-('Shooter Information'!$G$3-RANK(K46,K$4:K$78,1))) -> 0 | M46: =(IF('Shooter Information'!H48=1,"MDQ",IF(J46=1,"SDQ",IF(I46=1,"DNF",SUM(D46+G46+H46+I46+J46))))) -> 0 | O46: 0
A47: 44 | B47: ='Shooter Information'!B49 -> 0 | C47: ='Shooter Information'!C49 -> 0 | K47: =MIN(IF('Shooter Information'!H49=1,999.99,(D47*5)+E47-F47+(G47*10)+(H47*30)+(I47*999.99)+(J47*999.99)),999.99) -> 0 | L47: =IF('Shooter Information'!$E$3-('Shooter Information'!$G$3-RANK(K47,K$4:K$78,1))<0,0,'Shooter Information'!$E$3-('Shooter Information'!$G$3-RANK(K47,K$4:K$78,1))) -> 0 | M47: =(IF('Shooter Information'!H49=1,"MDQ",IF(J47=1,"SDQ",IF(I47=1,"DNF",SUM(D47+G47+H47+I47+J47))))) -> 0 | O47: 0
A48: 45 | B48: ='Shooter Information'!B50 -> 0 | C48: ='Shooter Information'!C50 -> 0 | K48: =MIN(IF('Shooter Information'!H50=1,999.99,(D48*5)+E48-F48+(G48*10)+(H48*30)+(I48*999.99)+(J48*999.99)),999.99) -> 0 | L48: =IF('Shooter Information'!$E$3-('Shooter Information'!$G$3-RANK(K48,K$4:K$78,1))<0,0,'Shooter Information'!$E$3-('Shooter Information'!$G$3-RANK(K48,K$4:K$78,1))) -> 0 | M48: =(IF('Shooter Information'!H50=1,"MDQ",IF(J48=1,"SDQ",IF(I48=1,"DNF",SUM(D48+G48+H48+I48+J48))))) -> 0 | O48: 0
